Workbook

Sheet MOM
A1: =YEAR(表A_RAW!F2)&"年"&MONTH(表A_RAW!F2)&"月" -> 2025年3月
F2: 成長及衰退前五名之產業MOM%
A4: 成長前五名之產業 MOM% | C4: 該產業成長前五名之公司 MOM% | F4: 單月營收金額(千元) | G4: 本月與上月相較 | I4: 本月與去年同期相較 | K4: 累計營收金額(千元) | L4: 累計營收與去年同期相較
A5: 成長 排名 | B5: 產業 | C5: 排名 | D5: 公司代號&簡稱 | G5: 上月營收金額(千元) | H5: 較上月變動比率(%) | I5: 去年同期金額(千元) | J5: 較去年同期變動比率(%) | L5: 去年累計營收金額(千元) | M5: 較去年同期變動比率(%)
A6: 1 | B6: =VLOOKUP(A6,表B_RAW!N:P,3,0) -> 水泥工業 | C6: 1 | D6: =VLOOKUP($B$6&C6,表B_RAW!A:D,3,0) -> 1109 信大 | F6: =IF(ISERROR(VLOOKUP($D6,表B_RAW!$C:$I,4,0)),"",VLOOKUP($D6,表B_RAW!$C:$I,4,0)) -> 446709 | G6: =IF(ISERROR(VLOOKUP($D6,表B_RAW!$C:$I,5,0)),"",VLOOKUP($D6,表B_RAW!$C:$I,5,0)) -> 238647 | H6: =IF(ISERROR(VLOOKUP($D6,表B_RAW!$C:$I,6,0)),"",VLOOKUP($D6,表B_RAW!$C:$I,6,0)/100) -> 0.8718 | I6: =IF(ISERROR(VLOOKUP($D6,表A_RAW!$C:$I,5,0)),"",VLOOKUP($D6,表A_RAW!$C:$I,5,0)) -> 403740 | J6: =IF(ISERROR(VLOOKUP($D6,表A_RAW!$C:$I,7,0)),"",VLOOKUP($D6,表A_RAW!$C:$I,7,0)) -> 0.1064274038 | K6: =IF(ISERROR(VLOOKUP($D6,表C_RAW!$C:$I,4,0)),"",VLOOKUP($D6,表C_RAW!$C:$I,4,0)) -> 989911 | L6: =IF(ISERROR(VLOOKUP($D6,表C_RAW!$C:$I,5,0)),"",VLOOKUP($D6,表C_RAW!$C:$I,5,0)) -> 1097070 | M6: =IF(ISERROR(VLOOKUP($D6,表C_RAW!$C:$I,6,0)),"",VLOOKUP($D6,表C_RAW!$C:$I,6,0)/100) -> -0.0977
C7: 2 | D7: =VLOOKUP($B$6&C7,表B_RAW!A:D,3,0) -> 1102 亞泥 | F7: =IF(ISERROR(VLOOKUP($D7,表B_RAW!$C:$I,4,0)),"",VLOOKUP($D7,表B_RAW!$C:$I,4,0)) -> 6532662 | G7: =IF(ISERROR(VLOOKUP($D7,表B_RAW!$C:$I,5,0)),"",VLOOKUP($D7,表B_RAW!$C:$I,5,0)) -> 4184371 | H7: =IF(ISERROR(VLOOKUP($D7,表B_RAW!$C:$I,6,0)),"",VLOOKUP($D7,表B_RAW!$C:$I,6,0)/100) -> 0.5612 | I7: =IF(ISERROR(VLOOKUP($D7,表A_RAW!$C:$I,5,0)),"",VLOOKUP($D7,表A_RAW!$C:$I,5,0)) -> 6409280 | J7: =IF(ISERROR(VLOOKUP($D7,表A_RAW!$C:$I,7,0)),"",VLOOKUP($D7,表A_RAW!$C:$I,7,0)) -> 0.01925052424 | K7: =IF(ISERROR(VLOOKUP($D7,表C_RAW!$C:$I,4,0)),"",VLOOKUP($D7,表C_RAW!$C:$I,4,0)) -> 16594707 | L7: =IF(ISERROR(VLOOKUP($D7,表C_RAW!$C:$I,5,0)),"",VLOOKUP($D7,表C_RAW!$C:$I,5,0)) -> 16499832 | M7: =IF(ISERROR(VLOOKUP($D7,表C_RAW!$C:$I,6,0)),"",VLOOKUP($D7,表C_RAW!$C:$I,6,0)/100) -> 0.0058
C8: 3 | D8: =VLOOKUP($B$6&C8,表B_RAW!A:D,3,0) -> 1101 台泥 | F8: =IF(ISERROR(VLOOKUP($D8,表B_RAW!$C:$I,4,0)),"",VLOOKUP($D8,表B_RAW!$C:$I,4,0)) -> 13635386 | G8: =IF(ISERROR(VLOOKUP($D8,表B_RAW!$C:$I,5,0)),"",VLOOKUP($D8,表B_RAW!$C:$I,5,0)) -> 9123490 | H8: =IF(ISERROR(VLOOKUP($D8,表B_RAW!$C:$I,6,0)),"",VLOOKUP($D8,表B_RAW!$C:$I,6,0)/100) -> 0.4945 | I8: =IF(ISERROR(VLOOKUP($D8,表A_RAW!$C:$I,5,0)),"",VLOOKUP($D8,表A_RAW!$C:$I,5,0)) -> 13649152 | J8: =IF(ISERROR(VLOOKUP($D8,表A_RAW!$C:$I,7,0)),"",VLOOKUP($D8,表A_RAW!$C:$I,7,0)) -> -0.001008560825 | K8: =IF(ISERROR(VLOOKUP($D8,表C_RAW!$C:$I,4,0)),"",VLOOKUP($D8,表C_RAW!$C:$I,4,0)) -> 34972226 | L8: =IF(ISERROR(VLOOKUP($D8,表C_RAW!$C:$I,5,0)),"",VLOOKUP($D8,表C_RAW!$C:$I,5,0)) -> 25685663 | M8: =IF(ISERROR(VLOOKUP($D8,表C_RAW!$C:$I,6,0)),"",VLOOKUP($D8,表C_RAW!$C:$I,6,0)/100) -> 0.3615
B9: =VLOOKUP(A6,表B_RAW!N:T,7,0) -> 49.56 | C9: 4 | D9: =VLOOKUP($B$6&C9,表B_RAW!A:D,3,0) -> 1104 環泥 | F9: =IF(ISERROR(VLOOKUP($D9,表B_RAW!$C:$I,4,0)),"",VLOOKUP($D9,表B_RAW!$C:$I,4,0)) -> 702215 | G9: =IF(ISERROR(VLOOKUP($D9,表B_RAW!$C:$I,5,0)),"",VLOOKUP($D9,表B_RAW!$C:$I,5,0)) -> 538636 | H9: =IF(ISERROR(VLOOKUP($D9,表B_RAW!$C:$I,6,0)),"",VLOOKUP($D9,表B_RAW!$C:$I,6,0)/100) -> 0.3037 | I9: =IF(ISERROR(VLOOKUP($D9,表A_RAW!$C:$I,5,0)),"",VLOOKUP($D9,表A_RAW!$C:$I,5,0)) -> 750456 | J9: =IF(ISERROR(VLOOKUP($D9,表A_RAW!$C:$I,7,0)),"",VLOOKUP($D9,表A_RAW!$C:$I,7,0)) -> -0.06428224973 | K9: =IF(ISERROR(VLOOKUP($D9,表C_RAW!$C:$I,4,0)),"",VLOOKUP($D9,表C_RAW!$C:$I,4,0)) -> 1928654 | L9: =IF(ISERROR(VLOOKUP($D9,表C_RAW!$C:$I,5,0)),"",VLOOKUP($D9,表C_RAW!$C:$I,5,0)) -> 1908572 | M9: =IF(ISERROR(VLOOKUP($D9,表C_RAW!$C:$I,6,0)),"",VLOOKUP($D9,表C_RAW!$C:$I,6,0)/100) -> 0.0105
C10: 5 | D10: =VLOOKUP($B$6&C10,表B_RAW!A:D,3,0) -> 1103 嘉泥 | F10: =IF(ISERROR(VLOOKUP($D10,表B_RAW!$C:$I,4,0)),"",VLOOKUP($D10,表B_RAW!$C:$I,4,0)) -> 266282 | G10: =IF(ISERROR(VLOOKUP($D10,表B_RAW!$C:$I,5,0)),"",VLOOKUP($D10,表B_RAW!$C:$I,5,0)) -> 218169 | H10: =IF(ISERROR(VLOOKUP($D10,表B_RAW!$C:$I,6,0)),"",VLOOKUP($D10,表B_RAW!$C:$I,6,0)/100) -> 0.2205 | I10: =IF(ISERROR(VLOOKUP($D10,表A_RAW!$C:$I,5,0)),"",VLOOKUP($D10,表A_RAW!$C:$I,5,0)) -> 254887 | J10: =IF(ISERROR(VLOOKUP($D10,表A_RAW!$C:$I,7,0)),"",VLOOKUP($D10,表A_RAW!$C:$I,7,0)) -> 0.04470608544 | K10: =IF(ISERROR(VLOOKUP($D10,表C_RAW!$C:$I,4,0)),"",VLOOKUP($D10,表C_RAW!$C:$I,4,0)) -> 752454 | L10: =IF(ISERROR(VLOOKUP($D10,表C_RAW!$C:$I,5,0)),"",VLOOKUP($D10,表C_RAW!$C:$I,5,0)) -> 699142 | M10: =IF(ISERROR(VLOOKUP($D10,表C_RAW!$C:$I,6,0)),"",VLOOKUP($D10,表C_RAW!$C:$I,6,0)/100) -> 0.0763
A11: 2 | B11: =VLOOKUP(A11,表B_RAW!N:P,3,0) -> 農業科技 | C11: 1 | D11: =VLOOKUP($B$11&C11,表B_RAW!A:D,3,0) -> 6578 達邦蛋白 | F11: =IF(ISERROR(VLOOKUP($D11,表B_RAW!$C:$I,4,0)),"",VLOOKUP($D11,表B_RAW!$C:$I,4,0)) -> 27399 | G11: =IF(ISERROR(VLOOKUP($D11,表B_RAW!$C:$I,5,0)),"",VLOOKUP($D11,表B_RAW!$C:$I,5,0)) -> 15950 | H11: =IF(ISERROR(VLOOKUP($D11,表B_RAW!$C:$I,6,0)),"",VLOOKUP($D11,表B_RAW!$C:$I,6,0)/100) -> 0.7178 | I11: =IF(ISERROR(VLOOKUP($D11,表A_RAW!$C:$I,5,0)),"",VLOOKUP($D11,表A_RAW!$C:$I,5,0)) -> 34409 | J11: =IF(ISERROR(VLOOKUP($D11,表A_RAW!$C:$I,7,0)),"",VLOOKUP($D11,表A_RAW!$C:$I,7,0)) -> -0.2037257694 | K11: =IF(ISERROR(VLOOKUP($D11,表C_RAW!$C:$I,4,0)),"",VLOOKUP($D11,表C_RAW!$C:$I,4,0)) -> 68597 | L11: =IF(ISERROR(VLOOKUP($D11,表C_RAW!$C:$I,5,0)),"",VLOOKUP($D11,表C_RAW!$C:$I,5,0)) -> 101181 | M11: =IF(ISERROR(VLOOKUP($D11,表C_RAW!$C:$I,6,0)),"",VLOOKUP($D11,表C_RAW!$C:$I,6,0)/100) -> -0.322
C12: 2 | D12: =VLOOKUP($B$11&C12,表B_RAW!A:D,3,0) -> 6508 惠光 | F12: =IF(ISERROR(VLOOKUP($D12,表B_RAW!$C:$I,4,0)),"",VLOOKUP($D12,表B_RAW!$C:$I,4,0)) -> 200950 | G12: =IF(ISERROR(VLOOKUP($D12,表B_RAW!$C:$I,5,0)),"",VLOOKUP($D12,表B_RAW!$C:$I,5,0)) -> 117273 | H12: =IF(ISERROR(VLOOKUP($D12,表B_RAW!$C:$I,6,0)),"",VLOOKUP($D12,表B_RAW!$C:$I,6,0)/100) -> 0.7135 | I12: =IF(ISERROR(VLOOKUP($D12,表A_RAW!$C:$I,5,0)),"",VLOOKUP($D12,表A_RAW!$C:$I,5,0)) -> 192644 | J12: =IF(ISERROR(VLOOKUP($D12,表A_RAW!$C:$I,7,0)),"",VLOOKUP($D12,表A_RAW!$C:$I,7,0)) -> 0.04311579909 | K12: =IF(ISERROR(VLOOKUP($D12,表C_RAW!$C:$I,4,0)),"",VLOOKUP($D12,表C_RAW!$C:$I,4,0)) -> 435396 | L12: =IF(ISERROR(VLOOKUP($D12,表C_RAW!$C:$I,5,0)),"",VLOOKUP($D12,表C_RAW!$C:$I,5,0)) -> 432793 | M12: =IF(ISERROR(VLOOKUP($D12,表C_RAW!$C:$I,6,0)),"",VLOOKUP($D12,表C_RAW!$C:$I,6,0)/100) -> 0.006
C13: 3 | D13: =VLOOKUP($B$11&C13,表B_RAW!A:D,3,0) -> 1240 茂生農經 | F13: =IF(ISERROR(VLOOKUP($D13,表B_RAW!$C:$I,4,0)),"",VLOOKUP($D13,表B_RAW!$C:$I,4,0)) -> 249994 | G13: =IF(ISERROR(VLOOKUP($D13,表B_RAW!$C:$I,5,0)),"",VLOOKUP($D13,表B_RAW!$C:$I,5,0)) -> 202227 | H13: =IF(ISERROR(VLOOKUP($D13,表B_RAW!$C:$I,6,0)),"",VLOOKUP($D13,表B_RAW!$C:$I,6,0)/100) -> 0.2362 | I13: =IF(ISERROR(VLOOKUP($D13,表A_RAW!$C:$I,5,0)),"",VLOOKUP($D13,表A_RAW!$C:$I,5,0)) -> 229752 | J13: =IF(ISERROR(VLOOKUP($D13,表A_RAW!$C:$I,7,0)),"",VLOOKUP($D13,表A_RAW!$C:$I,7,0)) -> 0.08810369442 | K13: =IF(ISERROR(VLOOKUP($D13,表C_RAW!$C:$I,4,0)),"",VLOOKUP($D13,表C_RAW!$C:$I,4,0)) -> 683656 | L13: =IF(ISERROR(VLOOKUP($D13,表C_RAW!$C:$I,5,0)),"",VLOOKUP($D13,表C_RAW!$C:$I,5,0)) -> 714830 | M13: =IF(ISERROR(VLOOKUP($D13,表C_RAW!$C:$I,6,0)),"",VLOOKUP($D13,表C_RAW!$C:$I,6,0)/100) -> -0.0436
B14: =VLOOKUP(A11,表B_RAW!N:T,7,0) -> 38.03 | C14: 4 | D14: =VLOOKUP($B$11&C14,表B_RAW!A:D,3,0) -> 4171 瑞基 | F14: =IF(ISERROR(VLOOKUP($D14,表B_RAW!$C:$I,4,0)),"",VLOOKUP($D14,表B_RAW!$C:$I,4,0)) -> 18624 | G14: =IF(ISERROR(VLOOKUP($D14,表B_RAW!$C:$I,5,0)),"",VLOOKUP($D14,表B_RAW!$C:$I,5,0)) -> 24586 | H14: =IF(ISERROR(VLOOKUP($D14,表B_RAW!$C:$I,6,0)),"",VLOOKUP($D14,表B_RAW!$C:$I,6,0)/100) -> -0.2425 | I14: =IF(ISERROR(VLOOKUP($D14,表A_RAW!$C:$I,5,0)),"",VLOOKUP($D14,表A_RAW!$C:$I,5,0)) -> 11256 | J14: =IF(ISERROR(VLOOKUP($D14,表A_RAW!$C:$I,7,0)),"",VLOOKUP($D14,表A_RAW!$C:$I,7,0)) -> 0.6545842217 | K14: =IF(ISERROR(VLOOKUP($D14,表C_RAW!$C:$I,4,0)),"",VLOOKUP($D14,表C_RAW!$C:$I,4,0)) -> 52467 | L14: =IF(ISERROR(VLOOKUP($D14,表C_RAW!$C:$I,5,0)),"",VLOOKUP($D14,表C_RAW!$C:$I,5,0)) -> 45905 | M14: =IF(ISERROR(VLOOKUP($D14,表C_RAW!$C:$I,6,0)),"",VLOOKUP($D14,表C_RAW!$C:$I,6,0)/100) -> 0.1429
C15: 5 | D15: =IFERROR(VLOOKUP($B$11&C15,表B_RAW!A:D,3,0),"") ->  | F15: =IF(ISERROR(VLOOKUP($D15,表B_RAW!$C:$I,4,0)),"",VLOOKUP($D15,表B_RAW!$C:$I,4,0)) ->  | G15: =IF(ISERROR(VLOOKUP($D15,表B_RAW!$C:$I,5,0)),"",VLOOKUP($D15,表B_RAW!$C:$I,5,0)) ->  | H15: =IF(ISERROR(VLOOKUP($D15,表B_RAW!$C:$I,6,0)),"",VLOOKUP($D15,表B_RAW!$C:$I,6,0)/100) ->  | I15: =IF(ISERROR(VLOOKUP($D15,表A_RAW!$C:$I,5,0)),"",VLOOKUP($D15,表A_RAW!$C:$I,5,0)) ->  | J15: =IF(ISERROR(VLOOKUP($D15,表A_RAW!$C:$I,7,0)),"",VLOOKUP($D15,表A_RAW!$C:$I,7,0)) ->  | K15: =IF(ISERROR(VLOOKUP($D15,表C_RAW!$C:$I,4,0)),"",VLOOKUP($D15,表C_RAW!$C:$I,4,0)) ->  | L15: =IF(ISERROR(VLOOKUP($D15,表C_RAW!$C:$I,5,0)),"",VLOOKUP($D15,表C_RAW!$C:$I,5,0)) ->  | M15: =IF(ISERROR(VLOOKUP($D15,表C_RAW!$C:$I,6,0)),"",VLOOKUP($D15,表C_RAW!$C:$I,6,0)/100) -> 
A16: 3 | B16: =VLOOKUP(A16,表B_RAW!N:P,3,0) -> 建材營造 | C16: 1 | D16: =VLOOKUP($B$16&C16,表B_RAW!A:D,3,0) -> 2505 國揚 | F16: =IF(ISERROR(VLOOKUP($D16,表B_RAW!$C:$I,4,0)),"",VLOOKUP($D16,表B_RAW!$C:$I,4,0)) -> 678295 | G16: =IF(ISERROR(VLOOKUP($D16,表B_RAW!$C:$I,5,0)),"",VLOOKUP($D16,表B_RAW!$C:$I,5,0)) -> 860 | H16: =IF(ISERROR(VLOOKUP($D16,表B_RAW!$C:$I,6,0)),"",VLOOKUP($D16,表B_RAW!$C:$I,6,0)/100) -> 787.7151 | I16: =IF(ISERROR(VLOOKUP($D16,表A_RAW!$C:$I,5,0)),"",VLOOKUP($D16,表A_RAW!$C:$I,5,0)) -> 89123 | J16: =IF(ISERROR(VLOOKUP($D16,表A_RAW!$C:$I,7,0)),"",VLOOKUP($D16,表A_RAW!$C:$I,7,0)) -> 6.610773874 | K16: =IF(ISERROR(VLOOKUP($D16,表C_RAW!$C:$I,4,0)),"",VLOOKUP($D16,表C_RAW!$C:$I,4,0)) -> 679840 | L16: =IF(ISERROR(VLOOKUP($D16,表C_RAW!$C:$I,5,0)),"",VLOOKUP($D16,表C_RAW!$C:$I,5,0)) -> 159790 | M16: =IF(ISERROR(VLOOKUP($D16,表C_RAW!$C:$I,6,0)),"",VLOOKUP($D16,表C_RAW!$C:$I,6,0)/100) -> 3.2546
C17: 2 | D17: =VLOOKUP($B$16&C17,表B_RAW!A:D,3,0) -> 6171 大城地產 | F17: =IF(ISERROR(VLOOKUP($D17,表B_RAW!$C:$I,4,0)),"",VLOOKUP($D17,表B_RAW!$C:$I,4,0)) -> 14887 | G17: =IF(ISERROR(VLOOKUP($D17,表B_RAW!$C:$I,5,0)),"",VLOOKUP($D17,表B_RAW!$C:$I,5,0)) -> 33 | H17: =IF(ISERROR(VLOOKUP($D17,表B_RAW!$C:$I,6,0)),"",VLOOKUP($D17,表B_RAW!$C:$I,6,0)/100) -> 450.1212 | I17: =IF(ISERROR(VLOOKUP($D17,表A_RAW!$C:$I,5,0)),"",VLOOKUP($D17,表A_RAW!$C:$I,5,0)) -> 33 | J17: =IF(ISERROR(VLOOKUP($D17,表A_RAW!$C:$I,7,0)),"",VLOOKUP($D17,表A_RAW!$C:$I,7,0)) -> 450.1212121 | K17: =IF(ISERROR(VLOOKUP($D17,表C_RAW!$C:$I,4,0)),"",VLOOKUP($D17,表C_RAW!$C:$I,4,0)) -> 15824 | L17: =IF(ISERROR(VLOOKUP($D17,表C_RAW!$C:$I,5,0)),"",VLOOKUP($D17,表C_RAW!$C:$I,5,0)) -> 11244 | M17: =IF(ISERROR(VLOOKUP($D17,表C_RAW!$C:$I,6,0)),"",VLOOKUP($D17,表C_RAW!$C:$I,6,0)/100) -> 0.4073
C18: 3 | D18: =VLOOKUP($B$16&C18,表B_RAW!A:D,3,0) -> 6186 新潤 | F18: =IF(ISERROR(VLOOKUP($D18,表B_RAW!$C:$I,4,0)),"",VLOOKUP($D18,表B_RAW!$C:$I,4,0)) -> 2191711 | G18: =IF(ISERROR(VLOOKUP($D18,表B_RAW!$C:$I,5,0)),"",VLOOKUP($D18,表B_RAW!$C:$I,5,0)) -> 29902 | H18: =IF(ISERROR(VLOOKUP($D18,表B_RAW!$C:$I,6,0)),"",VLOOKUP($D18,表B_RAW!$C:$I,6,0)/100) -> 72.2965 | I18: =IF(ISERROR(VLOOKUP($D18,表A_RAW!$C:$I,5,0)),"",VLOOKUP($D18,表A_RAW!$C:$I,5,0)) -> 328685 | J18: =IF(ISERROR(VLOOKUP($D18,表A_RAW!$C:$I,7,0)),"",VLOOKUP($D18,表A_RAW!$C:$I,7,0)) -> 5.668119932 | K18: =IF(ISERROR(VLOOKUP($D18,表C_RAW!$C:$I,4,0)),"",VLOOKUP($D18,表C_RAW!$C:$I,4,0)) -> 2249000 | L18: =IF(ISERROR(VLOOKUP($D18,表C_RAW!$C:$I,5,0)),"",VLOOKUP($D18,表C_RAW!$C:$I,5,0)) -> 968436 | M18: =IF(ISERROR(VLOOKUP($D18,表C_RAW!$C:$I,6,0)),"",VLOOKUP($D18,表C_RAW!$C:$I,6,0)/100) -> 1.3223
B19: =VLOOKUP(A16,表B_RAW!N:T,7,0) -> 37.93 | C19: 4 | D19: =VLOOKUP($B$16&C19,表B_RAW!A:D,3,0) -> 2718 全心投控 | F19: =IF(ISERROR(VLOOKUP($D19,表B_RAW!$C:$I,4,0)),"",VLOOKUP($D19,表B_RAW!$C:$I,4,0)) -> 25347 | G19: =IF(ISERROR(VLOOKUP($D19,表B_RAW!$C:$I,5,0)),"",VLOOKUP($D19,表B_RAW!$C:$I,5,0)) -> 408 | H19: =IF(ISERROR(VLOOKUP($D19,表B_RAW!$C:$I,6,0)),"",VLOOKUP($D19,表B_RAW!$C:$I,6,0)/100) -> 61.125 | I19: =IF(ISERROR(VLOOKUP($D19,表A_RAW!$C:$I,5,0)),"",VLOOKUP($D19,表A_RAW!$C:$I,5,0)) -> 120042 | J19: =IF(ISERROR(VLOOKUP($D19,表A_RAW!$C:$I,7,0)),"",VLOOKUP($D19,表A_RAW!$C:$I,7,0)) -> -0.7888489029 | K19: =IF(ISERROR(VLOOKUP($D19,表C_RAW!$C:$I,4,0)),"",VLOOKUP($D19,表C_RAW!$C:$I,4,0)) -> 26125 | L19: =IF(ISERROR(VLOOKUP($D19,表C_RAW!$C:$I,5,0)),"",VLOOKUP($D19,表C_RAW!$C:$I,5,0)) -> 300098 | M19: =IF(ISERROR(VLOOKUP($D19,表C_RAW!$C:$I,6,0)),"",VLOOKUP($D19,表C_RAW!$C:$I,6,0)/100) -> -0.9129
C20: 5 | D20: =VLOOKUP($B$16&C20,表B_RAW!A:D,3,0) -> 1439 雋揚 | F20: =IF(ISERROR(VLOOKUP($D20,表B_RAW!$C:$I,4,0)),"",VLOOKUP($D20,表B_RAW!$C:$I,4,0)) -> 127936 | G20: =IF(ISERROR(VLOOKUP($D20,表B_RAW!$C:$I,5,0)),"",VLOOKUP($D20,表B_RAW!$C:$I,5,0)) -> 4266 | H20: =IF(ISERROR(VLOOKUP($D20,表B_RAW!$C:$I,6,0)),"",VLOOKUP($D20,表B_RAW!$C:$I,6,0)/100) -> 28.9897 | I20: =IF(ISERROR(VLOOKUP($D20,表A_RAW!$C:$I,5,0)),"",VLOOKUP($D20,表A_RAW!$C:$I,5,0)) -> 14957 | J20: =IF(ISERROR(VLOOKUP($D20,表A_RAW!$C:$I,7,0)),"",VLOOKUP($D20,表A_RAW!$C:$I,7,0)) -> 7.553586949 | K20: =IF(ISERROR(VLOOKUP($D20,表C_RAW!$C:$I,4,0)),"",VLOOKUP($D20,表C_RAW!$C:$I,4,0)) -> 136397 | L20: =IF(ISERROR(VLOOKUP($D20,表C_RAW!$C:$I,5,0)),"",VLOOKUP($D20,表C_RAW!$C:$I,5,0)) -> 33150 | M20: =IF(ISERROR(VLOOKUP($D20,表C_RAW!$C:$I,6,0)),"",VLOOKUP($D20,表C_RAW!$C:$I,6,0)/100) -> 3.1145
A21: 4 | B21: =VLOOKUP(A21,表B_RAW!N:P,3,0) -> 電腦及週邊設備業 | C21: 1 | D21: =VLOOKUP($B$21&C21,表B_RAW!A:D,3,0) -> 3521 鴻翊 | F21: =IF(ISERROR(VLOOKUP($D21,表B_RAW!$C:$I,4,0)),"",VLOOKUP($D21,表B_RAW!$C:$I,4,0)) -> 15874 | G21: =IF(ISERROR(VLOOKUP($D21,表B_RAW!$C:$I,5,0)),"",VLOOKUP($D21,表B_RAW!$C:$I,5,0)) -> 1671 | H21: =IF(ISERROR(VLOOKUP($D21,表B_RAW!$C:$I,6,0)),"",VLOOKUP($D21,表B_RAW!$C:$I,6,0)/100) -> 8.4997 | I21: =IF(ISERROR(VLOOKUP($D21,表A_RAW!$C:$I,5,0)),"",VLOOKUP($D21,表A_RAW!$C:$I,5,0)) -> 49317 | J21: =IF(ISERROR(VLOOKUP($D21,表A_RAW!$C:$I,7,0)),"",VLOOKUP($D21,表A_RAW!$C:$I,7,0)) -> -0.6781231624 | K21: =IF(ISERROR(VLOOKUP($D21,表C_RAW!$C:$I,4,0)),"",VLOOKUP($D21,表C_RAW!$C:$I,4,0)) -> 17844 | L21: =IF(ISERROR(VLOOKUP($D21,表C_RAW!$C:$I,5,0)),"",VLOOKUP($D21,表C_RAW!$C:$I,5,0)) -> 97440 | M21: =IF(ISERROR(VLOOKUP($D21,表C_RAW!$C:$I,6,0)),"",VLOOKUP($D21,表C_RAW!$C:$I,6,0)/100) -> -0.8169
C22: 2 | D22: =VLOOKUP($B$21&C22,表B_RAW!A:D,3,0) -> 2425 承啟 | F22: =IF(ISERROR(VLOOKUP($D22,表B_RAW!$C:$I,4,0)),"",VLOOKUP($D22,表B_RAW!$C:$I,4,0)) -> 955289 | G22: =IF(ISERROR(VLOOKUP($D22,表B_RAW!$C:$I,5,0)),"",VLOOKUP($D22,表B_RAW!$C:$I,5,0)) -> 436869 | H22: =IF(ISERROR(VLOOKUP($D22,表B_RAW!$C:$I,6,0)),"",VLOOKUP($D22,表B_RAW!$C:$I,6,0)/100) -> 1.1867 | I22: =IF(ISERROR(VLOOKUP($D22,表A_RAW!$C:$I,5,0)),"",VLOOKUP($D22,表A_RAW!$C:$I,5,0)) -> 501070 | J22: =IF(ISERROR(VLOOKUP($D22,表A_RAW!$C:$I,7,0)),"",VLOOKUP($D22,表A_RAW!$C:$I,7,0)) -> 0.9064980941 | K22: =IF(ISERROR(VLOOKUP($D22,表C_RAW!$C:$I,4,0)),"",VLOOKUP($D22,表C_RAW!$C:$I,4,0)) -> 1827951 | L22: =IF(ISERROR(VLOOKUP($D22,表C_RAW!$C:$I,5,0)),"",VLOOKUP($D22,表C_RAW!$C:$I,5,0)) -> 1175932 | M22: =IF(ISERROR(VLOOKUP($D22,表C_RAW!$C:$I,6,0)),"",VLOOKUP($D22,表C_RAW!$C:$I,6,0)/100) -> 0.5545
C23: 3 | D23: =VLOOKUP($B$21&C23,表B_RAW!A:D,3,0) -> 5386 青雲 | F23: =IF(ISERROR(VLOOKUP($D23,表B_RAW!$C:$I,4,0)),"",VLOOKUP($D23,表B_RAW!$C:$I,4,0)) -> 504172 | G23: =IF(ISERROR(VLOOKUP($D23,表B_RAW!$C:$I,5,0)),"",VLOOKUP($D23,表B_RAW!$C:$I,5,0)) -> 256940 | H23: =IF(ISERROR(VLOOKUP($D23,表B_RAW!$C:$I,6,0)),"",VLOOKUP($D23,表B_RAW!$C:$I,6,0)/100) -> 0.9622 | I23: =IF(ISERROR(VLOOKUP($D23,表A_RAW!$C:$I,5,0)),"",VLOOKUP($D23,表A_RAW!$C:$I,5,0)) -> 174708 | J23: =IF(ISERROR(VLOOKUP($D23,表A_RAW!$C:$I,7,0)),"",VLOOKUP($D23,表A_RAW!$C:$I,7,0)) -> 1.885798017 | K23: =IF(ISERROR(VLOOKUP($D23,表C_RAW!$C:$I,4,0)),"",VLOOKUP($D23,表C_RAW!$C:$I,4,0)) -> 1246706 | L23: =IF(ISERROR(VLOOKUP($D23,表C_RAW!$C:$I,5,0)),"",VLOOKUP($D23,表C_RAW!$C:$I,5,0)) -> 732387 | M23: =IF(ISERROR(VLOOKUP($D23,表C_RAW!$C:$I,6,0)),"",VLOOKUP($D23,表C_RAW!$C:$I,6,0)/100) -> 0.7023
B24: =VLOOKUP(A21,表B_RAW!N:T,7,0) -> 29.04 | C24: 4 | D24: =VLOOKUP($B$21&C24,表B_RAW!A:D,3,0) -> 6669 緯穎 | F24: =IF(ISERROR(VLOOKUP($D24,表B_RAW!$C:$I,4,0)),"",VLOOKUP($D24,表B_RAW!$C:$I,4,0)) -> 86632073 | G24: =IF(ISERROR(VLOOKUP($D24,表B_RAW!$C:$I,5,0)),"",VLOOKUP($D24,表B_RAW!$C:$I,5,0)) -> 46516815 | H24: =IF(ISERROR(VLOOKUP($D24,表B_RAW!$C:$I,6,0)),"",VLOOKUP($D24,表B_RAW!$C:$I,6,0)/100) -> 0.8624 | I24: =IF(ISERROR(VLOOKUP($D24,表A_RAW!$C:$I,5,0)),"",VLOOKUP($D24,表A_RAW!$C:$I,5,0)) -> 26514171 | J24: =IF(ISERROR(VLOOKUP($D24,表A_RAW!$C:$I,7,0)),"",VLOOKUP($D24,表A_RAW!$C:$I,7,0)) -> 2.267387579 | K24: =IF(ISERROR(VLOOKUP($D24,表C_RAW!$C:$I,4,0)),"",VLOOKUP($D24,表C_RAW!$C:$I,4,0)) -> 170655284 | L24: =IF(ISERROR(VLOOKUP($D24,表C_RAW!$C:$I,5,0)),"",VLOOKUP($D24,表C_RAW!$C:$I,5,0)) -> 69628237 | M24: =IF(ISERROR(VLOOKUP($D24,表C_RAW!$C:$I,6,0)),"",VLOOKUP($D24,表C_RAW!$C:$I,6,0)/100) -> 1.4509
C25: 5 | D25: =VLOOKUP($B$21&C25,表B_RAW!A:D,3,0) -> 5215 科嘉-KY | F25: =IF(ISERROR(VLOOKUP($D25,表B_RAW!$C:$I,4,0)),"",VLOOKUP($D25,表B_RAW!$C:$I,4,0)) -> 247332 | G25: =IF(ISERROR(VLOOKUP($D25,表B_RAW!$C:$I,5,0)),"",VLOOKUP($D25,表B_RAW!$C:$I,5,0)) -> 136683 | H25: =IF(ISERROR(VLOOKUP($D25,表B_RAW!$C:$I,6,0)),"",VLOOKUP($D25,表B_RAW!$C:$I,6,0)/100) -> 0.8095 | I25: =IF(ISERROR(VLOOKUP($D25,表A_RAW!$C:$I,5,0)),"",VLOOKUP($D25,表A_RAW!$C:$I,5,0)) -> 205188 | J25: =IF(ISERROR(VLOOKUP($D25,表A_RAW!$C:$I,7,0)),"",VLOOKUP($D25,表A_RAW!$C:$I,7,0)) -> 0.2053921282 | K25: =IF(ISERROR(VLOOKUP($D25,表C_RAW!$C:$I,4,0)),"",VLOOKUP($D25,表C_RAW!$C:$I,4,0)) -> 564503 | L25: =IF(ISERROR(VLOOKUP($D25,表C_RAW!$C:$I,5,0)),"",VLOOKUP($D25,表C_RAW!$C:$I,5,0)) -> 556200 | M25: =IF(ISERROR(VLOOKUP($D25,表C_RAW!$C:$I,6,0)),"",VLOOKUP($D25,表C_RAW!$C:$I,6,0)/100) -> 0.0149
A26: 5 | B26: =VLOOKUP(A26,表B_RAW!N:P,3,0) -> 貿易百貨 | C26: 1 | D26: =VLOOKUP($B$26&C26,表B_RAW!A:D,3,0) -> 2929 淘帝-KY | F26: =IF(ISERROR(VLOOKUP($D26,表B_RAW!$C:$I,4,0)),"",VLOOKUP($D26,表B_RAW!$C:$I,4,0)) -> 231899 | G26: =IF(ISERROR(VLOOKUP($D26,表B_RAW!$C:$I,5,0)),"",VLOOKUP($D26,表B_RAW!$C:$I,5,0)) -> 89017 | H26: =IF(ISERROR(VLOOKUP($D26,表B_RAW!$C:$I,6,0)),"",VLOOKUP($D26,表B_RAW!$C:$I,6,0)/100) -> 1.6051 | I26: =IF(ISERROR(VLOOKUP($D26,表A_RAW!$C:$I,5,0)),"",VLOOKUP($D26,表A_RAW!$C:$I,5,0)) -> 237339 | J26: =IF(ISERROR(VLOOKUP($D26,表A_RAW!$C:$I,7,0)),"",VLOOKUP($D26,表A_RAW!$C:$I,7,0)) -> -0.02292080105 | K26: =IF(ISERROR(VLOOKUP($D26,表C_RAW!$C:$I,4,0)),"",VLOOKUP($D26,表C_RAW!$C:$I,4,0)) -> 466469 | L26: =IF(ISERROR(VLOOKUP($D26,表C_RAW!$C:$I,5,0)),"",VLOOKUP($D26,表C_RAW!$C:$I,5,0)) -> 472569 | M26: =IF(ISERROR(VLOOKUP($D26,表C_RAW!$C:$I,6,0)),"",VLOOKUP($D26,表C_RAW!$C:$I,6,0)/100) -> -0.0129
C27: 2 | D27: =VLOOKUP($B$26&C27,表B_RAW!A:D,3,0) -> 8429 金麗-KY | F27: =IF(ISERROR(VLOOKUP($D27,表B_RAW!$C:$I,4,0)),"",VLOOKUP($D27,表B_RAW!$C:$I,4,0)) -> 10279 | G27: =IF(ISERROR(VLOOKUP($D27,表B_RAW!$C:$I,5,0)),"",VLOOKUP($D27,表B_RAW!$C:$I,5,0)) -> 4692 | H27: =IF(ISERROR(VLOOKUP($D27,表B_RAW!$C:$I,6,0)),"",VLOOKUP($D27,表B_RAW!$C:$I,6,0)/100) -> 1.1908 | I27: =IF(ISERROR(VLOOKUP($D27,表A_RAW!$C:$I,5,0)),"",VLOOKUP($D27,表A_RAW!$C:$I,5,0)) -> 9212 | J27: =IF(ISERROR(VLOOKUP($D27,表A_RAW!$C:$I,7,0)),"",VLOOKUP($D27,表A_RAW!$C:$I,7,0)) -> 0.1158271819 | K27: =IF(ISERROR(VLOOKUP($D27,表C_RAW!$C:$I,4,0)),"",VLOOKUP($D27,表C_RAW!$C:$I,4,0)) -> 30901 | L27: =IF(ISERROR(VLOOKUP($D27,表C_RAW!$C:$I,5,0)),"",VLOOKUP($D27,表C_RAW!$C:$I,5,0)) -> 12844 | M27: =IF(ISERROR(VLOOKUP($D27,表C_RAW!$C:$I,6,0)),"",VLOOKUP($D27,表C_RAW!$C:$I,6,0)/100) -> 1.4059
C28: 3 | D28: =VLOOKUP($B$26&C28,表B_RAW!A:D,3,0) -> 2905 三商 | F28: =IF(ISERROR(VLOOKUP($D28,表B_RAW!$C:$I,4,0)),"",VLOOKUP($D28,表B_RAW!$C:$I,4,0)) -> 21143581 | G28: =IF(ISERROR(VLOOKUP($D28,表B_RAW!$C:$I,5,0)),"",VLOOKUP($D28,表B_RAW!$C:$I,5,0)) -> 12746179 | H28: =IF(ISERROR(VLOOKUP($D28,表B_RAW!$C:$I,6,0)),"",VLOOKUP($D28,表B_RAW!$C:$I,6,0)/100) -> 0.6588 | I28: =IF(ISERROR(VLOOKUP($D28,表A_RAW!$C:$I,5,0)),"",VLOOKUP($D28,表A_RAW!$C:$I,5,0)) -> 20903939 | J28: =IF(ISERROR(VLOOKUP($D28,表A_RAW!$C:$I,7,0)),"",VLOOKUP($D28,表A_RAW!$C:$I,7,0)) -> 0.0114639638 | K28: =IF(ISERROR(VLOOKUP($D28,表C_RAW!$C:$I,4,0)),"",VLOOKUP($D28,表C_RAW!$C:$I,4,0)) -> 50607313 | L28: =IF(ISERROR(VLOOKUP($D28,表C_RAW!$C:$I,5,0)),"",VLOOKUP($D28,表C_RAW!$C:$I,5,0)) -> 64883688 | M28: =IF(ISERROR(VLOOKUP($D28,表C_RAW!$C:$I,6,0)),"",VLOOKUP($D28,表C_RAW!$C:$I,6,0)/100) -> -0.22
B29: =VLOOKUP(A26,表B_RAW!N:T,7,0) -> 27.78 | C29: 4 | D29: =VLOOKUP($B$26&C29,表B_RAW!A:D,3,0) -> 2903 遠百 | F29: =IF(ISERROR(VLOOKUP($D29,表B_RAW!$C:$I,4,0)),"",VLOOKUP($D29,表B_RAW!$C:$I,4,0)) -> 2981571 | G29: =IF(ISERROR(VLOOKUP($D29,表B_RAW!$C:$I,5,0)),"",VLOOKUP($D29,表B_RAW!$C:$I,5,0)) -> 2197968 | H29: =IF(ISERROR(VLOOKUP($D29,表B_RAW!$C:$I,6,0)),"",VLOOKUP($D29,表B_RAW!$C:$I,6,0)/100) -> 0.3565 | I29: =IF(ISERROR(VLOOKUP($D29,表A_RAW!$C:$I,5,0)),"",VLOOKUP($D29,表A_RAW!$C:$I,5,0)) -> 3088981 | J29: =IF(ISERROR(VLOOKUP($D29,表A_RAW!$C:$I,7,0)),"",VLOOKUP($D29,表A_RAW!$C:$I,7,0)) -> -0.03477198468 | K29: =IF(ISERROR(VLOOKUP($D29,表C_RAW!$C:$I,4,0)),"",VLOOKUP($D29,表C_RAW!$C:$I,4,0)) -> 8472036 | L29: =IF(ISERROR(VLOOKUP($D29,表C_RAW!$C:$I,5,0)),"",VLOOKUP($D29,表C_RAW!$C:$I,5,0)) -> 8821079 | M29: =IF(ISERROR(VLOOKUP($D29,表C_RAW!$C:$I,6,0)),"",VLOOKUP($D29,表C_RAW!$C:$I,6,0)/100) -> -0.0396
C30: 5 | D30: =VLOOKUP($B$26&C30,表B_RAW!A:D,3,0) -> 2908 特力 | F30: =IF(ISERROR(VLOOKUP($D30,表B_RAW!$C:$I,4,0)),"",VLOOKUP($D30,表B_RAW!$C:$I,4,0)) -> 2995171 | G30: =IF(ISERROR(VLOOKUP($D30,表B_RAW!$C:$I,5,0)),"",VLOOKUP($D30,表B_RAW!$C:$I,5,0)) -> 2434287 | H30: =IF(ISERROR(VLOOKUP($D30,表B_RAW!$C:$I,6,0)),"",VLOOKUP($D30,表B_RAW!$C:$I,6,0)/100) -> 0.2304 | I30: =IF(ISERROR(VLOOKUP($D30,表A_RAW!$C:$I,5,0)),"",VLOOKUP($D30,表A_RAW!$C:$I,5,0)) -> 3190458 | J30: =IF(ISERROR(VLOOKUP($D30,表A_RAW!$C:$I,7,0)),"",VLOOKUP($D30,表A_RAW!$C:$I,7,0)) -> -0.0612097072 | K30: =IF(ISERROR(VLOOKUP($D30,表C_RAW!$C:$I,4,0)),"",VLOOKUP($D30,表C_RAW!$C:$I,4,0)) -> 8497958 | L30: =IF(ISERROR(VLOOKUP($D30,表C_RAW!$C:$I,5,0)),"",VLOOKUP($D30,表C_RAW!$C:$I,5,0)) -> 9263413 | M30: =IF(ISERROR(VLOOKUP($D30,表C_RAW!$C:$I,6,0)),"",VLOOKUP($D30,表C_RAW!$C:$I,6,0)/100) -> -0.0826
A32: 衰退前五名之產業 MOM% | C32: 該產業衰退前五名之公司 MOM% | F32: 單月營收金額(千元) | G32: 本月與上月相較 | I32: 本月與去年同期相較 | K32: 累計營收金額(千元) | L32: 累計營收與去年同期相較
A33: 衰退 排名 | B33: 產業 | C33: 排名 | D33: 公司代號&簡稱 | G33: 上月營收金額(千元) | H33: 較上月變動比率(%) | I33: 去年同期金額(千元) | J33: 較去年同期變動比率(%) | L33: 去年累計營收金額(千元) | M33: 較去年同期變動比率(%)
A34: 1 | B34: =VLOOKUP(A34,表B_RAW!O:P,2,0) -> 金融業 | C34: 1 | D34: =VLOOKUP($B$34&C34,表B_RAW!B:D,2,0) -> 6016 康和證 | F34: =IF(ISERROR(VLOOKUP($D34,表B_RAW!$C:$I,4,0)),"",VLOOKUP($D34,表B_RAW!$C:$I,4,0)) -> -324806 | G34: =IF(ISERROR(VLOOKUP($D34,表B_RAW!$C:$I,5,0)),"",VLOOKUP($D34,表B_RAW!$C:$I,5,0)) -> -2742 | H34: =IF(ISERROR(VLOOKUP($D34,表B_RAW!$C:$I,6,0)),"",VLOOKUP($D34,表B_RAW!$C:$I,6,0)/100) -> -117.4559 | I34: =IF(ISERROR(VLOOKUP($D34,表A_RAW!$C:$I,5,0)),"",VLOOKUP($D34,表A_RAW!$C:$I,5,0)) -> 209179 | J34: =IF(ISERROR(VLOOKUP($D34,表A_RAW!$C:$I,7,0)),"",VLOOKUP($D34,表A_RAW!$C:$I,7,0)) -> -2.552765813 | K34: =IF(ISERROR(VLOOKUP($D34,表C_RAW!$C:$I,4,0)),"",VLOOKUP($D34,表C_RAW!$C:$I,4,0)) -> 159689 | L34: =IF(ISERROR(VLOOKUP($D34,表C_RAW!$C:$I,5,0)),"",VLOOKUP($D34,表C_RAW!$C:$I,5,0)) -> 1410600 | M34: =IF(ISERROR(VLOOKUP($D34,表C_RAW!$C:$I,6,0)),"",VLOOKUP($D34,表C_RAW!$C:$I,6,0)/100) -> -0.8868
C35: 2 | D35: =VLOOKUP($B$34&C35,表B_RAW!B:D,2,0) -> 6021 美好證 | F35: =IF(ISERROR(VLOOKUP($D35,表B_RAW!$C:$I,4,0)),"",VLOOKUP($D35,表B_RAW!$C:$I,4,0)) -> -264125 | G35: =IF(ISERROR(VLOOKUP($D35,表B_RAW!$C:$I,5,0)),"",VLOOKUP($D35,表B_RAW!$C:$I,5,0)) -> -30073 | H35: =IF(ISERROR(VLOOKUP($D35,表B_RAW!$C:$I,6,0)),"",VLOOKUP($D35,表B_RAW!$C:$I,6,0)/100) -> -7.7828 | I35: =IF(ISERROR(VLOOKUP($D35,表A_RAW!$C:$I,5,0)),"",VLOOKUP($D35,表A_RAW!$C:$I,5,0)) -> 229011 | J35: =IF(ISERROR(VLOOKUP($D35,表A_RAW!$C:$I,7,0)),"",VLOOKUP($D35,表A_RAW!$C:$I,7,0)) -> -2.153328879 | K35: =IF(ISERROR(VLOOKUP($D35,表C_RAW!$C:$I,4,0)),"",VLOOKUP($D35,表C_RAW!$C:$I,4,0)) -> -147280 | L35: =IF(ISERROR(VLOOKUP($D35,表C_RAW!$C:$I,5,0)),"",VLOOKUP($D35,表C_RAW!$C:$I,5,0)) -> 455343 | M35: =IF(ISERROR(VLOOKUP($D35,表C_RAW!$C:$I,6,0)),"",VLOOKUP($D35,表C_RAW!$C:$I,6,0)/100) -> -1.3234
C36: 3 | D36: =VLOOKUP($B$34&C36,表B_RAW!B:D,2,0) -> 5864 致和證 | F36: =IF(ISERROR(VLOOKUP($D36,表B_RAW!$C:$I,4,0)),"",VLOOKUP($D36,表B_RAW!$C:$I,4,0)) -> -392299 | G36: =IF(ISERROR(VLOOKUP($D36,表B_RAW!$C:$I,5,0)),"",VLOOKUP($D36,表B_RAW!$C:$I,5,0)) -> -51521 | H36: =IF(ISERROR(VLOOKUP($D36,表B_RAW!$C:$I,6,0)),"",VLOOKUP($D36,表B_RAW!$C:$I,6,0)/100) -> -6.6144 | I36: =IF(ISERROR(VLOOKUP($D36,表A_RAW!$C:$I,5,0)),"",VLOOKUP($D36,表A_RAW!$C:$I,5,0)) -> 245262 | J36: =IF(ISERROR(VLOOKUP($D36,表A_RAW!$C:$I,7,0)),"",VLOOKUP($D36,表A_RAW!$C:$I,7,0)) -> -2.599509912 | K36: =IF(ISERROR(VLOOKUP($D36,表C_RAW!$C:$I,4,0)),"",VLOOKUP($D36,表C_RAW!$C:$I,4,0)) -> -426682 | L36: =IF(ISERROR(VLOOKUP($D36,表C_RAW!$C:$I,5,0)),"",VLOOKUP($D36,表C_RAW!$C:$I,5,0)) -> 399591 | M36: =IF(ISERROR(VLOOKUP($D36,表C_RAW!$C:$I,6,0)),"",VLOOKUP($D36,表C_RAW!$C:$I,6,0)/100) -> -2.0678
B37: =VLOOKUP(A34,表B_RAW!O:T,6,0) -> -10.27 | C37: 4 | D37: =VLOOKUP($B$34&C37,表B_RAW!B:D,2,0) -> 6026 福邦證 | F37: =IF(ISERROR(VLOOKUP($D37,表B_RAW!$C:$I,4,0)),"",VLOOKUP($D37,表B_RAW!$C:$I,4,0)) -> -110636 | G37: =IF(ISERROR(VLOOKUP($D37,表B_RAW!$C:$I,5,0)),"",VLOOKUP($D37,表B_RAW!$C:$I,5,0)) -> 69686 | H37: =IF(ISERROR(VLOOKUP($D37,表B_RAW!$C:$I,6,0)),"",VLOOKUP($D37,表B_RAW!$C:$I,6,0)/100) -> -2.5876 | I37: =IF(ISERROR(VLOOKUP($D37,表A_RAW!$C:$I,5,0)),"",VLOOKUP($D37,表A_RAW!$C:$I,5,0)) -> 118732 | J37: =IF(ISERROR(VLOOKUP($D37,表A_RAW!$C:$I,7,0)),"",VLOOKUP($D37,表A_RAW!$C:$I,7,0)) -> -1.931812822 | K37: =IF(ISERROR(VLOOKUP($D37,表C_RAW!$C:$I,4,0)),"",VLOOKUP($D37,表C_RAW!$C:$I,4,0)) -> 185680 | L37: =IF(ISERROR(VLOOKUP($D37,表C_RAW!$C:$I,5,0)),"",VLOOKUP($D37,表C_RAW!$C:$I,5,0)) -> 395753 | M37: =IF(ISERROR(VLOOKUP($D37,表C_RAW!$C:$I,6,0)),"",VLOOKUP($D37,表C_RAW!$C:$I,6,0)/100) -> -0.5308
C38: 5 | D38: =VLOOKUP($B$34&C38,表B_RAW!B:D,2,0) -> 6020 大展證 | F38: =IF(ISERROR(VLOOKUP($D38,表B_RAW!$C:$I,4,0)),"",VLOOKUP($D38,表B_RAW!$C:$I,4,0)) -> -23724 | G38: =IF(ISERROR(VLOOKUP($D38,表B_RAW!$C:$I,5,0)),"",VLOOKUP($D38,表B_RAW!$C:$I,5,0)) -> 22082 | H38: =IF(ISERROR(VLOOKUP($D38,表B_RAW!$C:$I,6,0)),"",VLOOKUP($D38,表B_RAW!$C:$I,6,0)/100) -> -2.0744 | I38: =IF(ISERROR(VLOOKUP($D38,表A_RAW!$C:$I,5,0)),"",VLOOKUP($D38,表A_RAW!$C:$I,5,0)) -> 56428 | J38: =IF(ISERROR(VLOOKUP($D38,表A_RAW!$C:$I,7,0)),"",VLOOKUP($D38,表A_RAW!$C:$I,7,0)) -> -1.420429574 | K38: =IF(ISERROR(VLOOKUP($D38,表C_RAW!$C:$I,4,0)),"",VLOOKUP($D38,表C_RAW!$C:$I,4,0)) -> -5900 | L38: =IF(ISERROR(VLOOKUP($D38,表C_RAW!$C:$I,5,0)),"",VLOOKUP($D38,表C_RAW!$C:$I,5,0)) -> 121618 | M38: =IF(ISERROR(VLOOKUP($D38,表C_RAW!$C:$I,6,0)),"",VLOOKUP($D38,表C_RAW!$C:$I,6,0)/100) -> -1.0485
A39: 2 | B39: =VLOOKUP(A39,表B_RAW!O:P,2,0) -> 其他電子業 | C39: 1 | D39: =VLOOKUP($B$39&C39,表B_RAW!B:D,2,0) -> 3018 隆銘綠能 | F39: =IF(ISERROR(VLOOKUP($D39,表B_RAW!$C:$I,4,0)),"",VLOOKUP($D39,表B_RAW!$C:$I,4,0)) -> 41160 | G39: =IF(ISERROR(VLOOKUP($D39,表B_RAW!$C:$I,5,0)),"",VLOOKUP($D39,表B_RAW!$C:$I,5,0)) -> 93087 | H39: =IF(ISERROR(VLOOKUP($D39,表B_RAW!$C:$I,6,0)),"",VLOOKUP($D39,表B_RAW!$C:$I,6,0)/100) -> -0.5578 | I39: =IF(ISERROR(VLOOKUP($D39,表A_RAW!$C:$I,5,0)),"",VLOOKUP($D39,表A_RAW!$C:$I,5,0)) -> 70581 | J39: =IF(ISERROR(VLOOKUP($D39,表A_RAW!$C:$I,7,0)),"",VLOOKUP($D39,表A_RAW!$C:$I,7,0)) -> -0.4168402261 | K39: =IF(ISERROR(VLOOKUP($D39,表C_RAW!$C:$I,4,0)),"",VLOOKUP($D39,表C_RAW!$C:$I,4,0)) -> 196326 | L39: =IF(ISERROR(VLOOKUP($D39,表C_RAW!$C:$I,5,0)),"",VLOOKUP($D39,表C_RAW!$C:$I,5,0)) -> 97616 | M39: =IF(ISERROR(VLOOKUP($D39,表C_RAW!$C:$I,6,0)),"",VLOOKUP($D39,表C_RAW!$C:$I,6,0)/100) -> 1.0112
C40: 2 | D40: =VLOOKUP($B$39&C40,表B_RAW!B:D,2,0) -> 6735 美達科技 | F40: =IF(ISERROR(VLOOKUP($D40,表B_RAW!$C:$I,4,0)),"",VLOOKUP($D40,表B_RAW!$C:$I,4,0)) -> 10977 | G40: =IF(ISERROR(VLOOKUP($D40,表B_RAW!$C:$I,5,0)),"",VLOOKUP($D40,表B_RAW!$C:$I,5,0)) -> 20979 | H40: =IF(ISERROR(VLOOKUP($D40,表B_RAW!$C:$I,6,0)),"",VLOOKUP($D40,表B_RAW!$C:$I,6,0)/100) -> -0.4768 | I40: =IF(ISERROR(VLOOKUP($D40,表A_RAW!$C:$I,5,0)),"",VLOOKUP($D40,表A_RAW!$C:$I,5,0)) -> 43598 | J40: =IF(ISERROR(VLOOKUP($D40,表A_RAW!$C:$I,7,0)),"",VLOOKUP($D40,表A_RAW!$C:$I,7,0)) -> -0.7482223955 | K40: =IF(ISERROR(VLOOKUP($D40,表C_RAW!$C:$I,4,0)),"",VLOOKUP($D40,表C_RAW!$C:$I,4,0)) -> 64310 | L40: =IF(ISERROR(VLOOKUP($D40,表C_RAW!$C:$I,5,0)),"",VLOOKUP($D40,表C_RAW!$C:$I,5,0)) -> 120014 | M40: =IF(ISERROR(VLOOKUP($D40,表C_RAW!$C:$I,6,0)),"",VLOOKUP($D40,表C_RAW!$C:$I,6,0)/100) -> -0.4641
C41: 3 | D41: =VLOOKUP($B$39&C41,表B_RAW!B:D,2,0) -> 6658 聯策 | F41: =IF(ISERROR(VLOOKUP($D41,表B_RAW!$C:$I,4,0)),"",VLOOKUP($D41,表B_RAW!$C:$I,4,0)) -> 134885 | G41: =IF(ISERROR(VLOOKUP($D41,表B_RAW!$C:$I,5,0)),"",VLOOKUP($D41,表B_RAW!$C:$I,5,0)) -> 211494 | H41: =IF(ISERROR(VLOOKUP($D41,表B_RAW!$C:$I,6,0)),"",VLOOKUP($D41,表B_RAW!$C:$I,6,0)/100) -> -0.3622 | I41: =IF(ISERROR(VLOOKUP($D41,表A_RAW!$C:$I,5,0)),"",VLOOKUP($D41,表A_RAW!$C:$I,5,0)) -> 146450 | J41: =IF(ISERROR(VLOOKUP($D41,表A_RAW!$C:$I,7,0)),"",VLOOKUP($D41,表A_RAW!$C:$I,7,0)) -> -0.07896893138 | K41: =IF(ISERROR(VLOOKUP($D41,表C_RAW!$C:$I,4,0)),"",VLOOKUP($D41,表C_RAW!$C:$I,4,0)) -> 486508 | L41: =IF(ISERROR(VLOOKUP($D41,表C_RAW!$C:$I,5,0)),"",VLOOKUP($D41,表C_RAW!$C:$I,5,0)) -> 282893 | M41: =IF(ISERROR(VLOOKUP($D41,表C_RAW!$C:$I,6,0)),"",VLOOKUP($D41,表C_RAW!$C:$I,6,0)/100) -> 0.7198
B42: =VLOOKUP(A39,表B_RAW!O:T,6,0) -> 2.25 | C42: 4 | D42: =VLOOKUP($B$39&C42,表B_RAW!B:D,2,0) -> 8092 建暐 | F42: =IF(ISERROR(VLOOKUP($D42,表B_RAW!$C:$I,4,0)),"",VLOOKUP($D42,表B_RAW!$C:$I,4,0)) -> 10352 | G42: =IF(ISERROR(VLOOKUP($D42,表B_RAW!$C:$I,5,0)),"",VLOOKUP($D42,表B_RAW!$C:$I,5,0)) -> 14196 | H42: =IF(ISERROR(VLOOKUP($D42,表B_RAW!$C:$I,6,0)),"",VLOOKUP($D42,表B_RAW!$C:$I,6,0)/100) -> -0.2708 | I42: =IF(ISERROR(VLOOKUP($D42,表A_RAW!$C:$I,5,0)),"",VLOOKUP($D42,表A_RAW!$C:$I,5,0)) -> 16710 | J42: =IF(ISERROR(VLOOKUP($D42,表A_RAW!$C:$I,7,0)),"",VLOOKUP($D42,表A_RAW!$C:$I,7,0)) -> -0.3804907241 | K42: =IF(ISERROR(VLOOKUP($D42,表C_RAW!$C:$I,4,0)),"",VLOOKUP($D42,表C_RAW!$C:$I,4,0)) -> 43723 | L42: =IF(ISERROR(VLOOKUP($D42,表C_RAW!$C:$I,5,0)),"",VLOOKUP($D42,表C_RAW!$C:$I,5,0)) -> 62714 | M42: =IF(ISERROR(VLOOKUP($D42,表C_RAW!$C:$I,6,0)),"",VLOOKUP($D42,表C_RAW!$C:$I,6,0)/100) -> -0.3028
C43: 5 | D43: =VLOOKUP($B$39&C43,表B_RAW!B:D,2,0) -> 3498 陽程 | F43: =IF(ISERROR(VLOOKUP($D43,表B_RAW!$C:$I,4,0)),"",VLOOKUP($D43,表B_RAW!$C:$I,4,0)) -> 29504 | G43: =IF(ISERROR(VLOOKUP($D43,表B_RAW!$C:$I,5,0)),"",VLOOKUP($D43,表B_RAW!$C:$I,5,0)) -> 35979 | H43: =IF(ISERROR(VLOOKUP($D43,表B_RAW!$C:$I,6,0)),"",VLOOKUP($D43,表B_RAW!$C:$I,6,0)/100) -> -0.18 | I43: =IF(ISERROR(VLOOKUP($D43,表A_RAW!$C:$I,5,0)),"",VLOOKUP($D43,表A_RAW!$C:$I,5,0)) -> 13347 | J43: =IF(ISERROR(VLOOKUP($D43,表A_RAW!$C:$I,7,0)),"",VLOOKUP($D43,表A_RAW!$C:$I,7,0)) -> 1.210534202 | K43: =IF(ISERROR(VLOOKUP($D43,表C_RAW!$C:$I,4,0)),"",VLOOKUP($D43,表C_RAW!$C:$I,4,0)) -> 141423 | L43: =IF(ISERROR(VLOOKUP($D43,表C_RAW!$C:$I,5,0)),"",VLOOKUP($D43,表C_RAW!$C:$I,5,0)) -> 66581 | M43: =IF(ISERROR(VLOOKUP($D43,表C_RAW!$C:$I,6,0)),"",VLOOKUP($D43,表C_RAW!$C:$I,6,0)/100) -> 1.1241
A44: 3 | B44: =VLOOKUP(A44,表B_RAW!O:P,2,0) -> 資訊服務業 | C44: 1 | D44: =VLOOKUP($B$44&C44,表B_RAW!B:D,2,0) -> 6874 倍力 | F44: =IF(ISERROR(VLOOKUP($D44,表B_RAW!$C:$I,4,0)),"",VLOOKUP($D44,表B_RAW!$C:$I,4,0)) -> 74786 | G44: =IF(ISERROR(VLOOKUP($D44,表B_RAW!$C:$I,5,0)),"",VLOOKUP($D44,表B_RAW!$C:$I,5,0)) -> 154562 | H44: =IF(ISERROR(VLOOKUP($D44,表B_RAW!$C:$I,6,0)),"",VLOOKUP($D44,表B_RAW!$C:$I,6,0)/100) -> -0.5161 | I44: =IF(ISERROR(VLOOKUP($D44,表A_RAW!$C:$I,5,0)),"",VLOOKUP($D44,表A_RAW!$C:$I,5,0)) -> 93394 | J44: =IF(ISERROR(VLOOKUP($D44,表A_RAW!$C:$I,7,0)),"",VLOOKUP($D44,表A_RAW!$C:$I,7,0)) -> -0.1992419213 | K44: =IF(ISERROR(VLOOKUP($D44,表C_RAW!$C:$I,4,0)),"",VLOOKUP($D44,表C_RAW!$C:$I,4,0)) -> 520897 | L44: =IF(ISERROR(VLOOKUP($D44,表C_RAW!$C:$I,5,0)),"",VLOOKUP($D44,表C_RAW!$C:$I,5,0)) -> 691918 | M44: =IF(ISERROR(VLOOKUP($D44,表C_RAW!$C:$I,6,0)),"",VLOOKUP($D44,表C_RAW!$C:$I,6,0)/100) -> -0.2472
C45: 2 | D45: =VLOOKUP($B$44&C45,表B_RAW!B:D,2,0) -> 6516 勤崴國際 | F45: =IF(ISERROR(VLOOKUP($D45,表B_RAW!$C:$I,4,0)),"",VLOOKUP($D45,表B_RAW!$C:$I,4,0)) -> 34551 | G45: =IF(ISERROR(VLOOKUP($D45,表B_RAW!$C:$I,5,0)),"",VLOOKUP($D45,表B_RAW!$C:$I,5,0)) -> 60914 | H45: =IF(ISERROR(VLOOKUP($D45,表B_RAW!$C:$I,6,0)),"",VLOOKUP($D45,表B_RAW!$C:$I,6,0)/100) -> -0.4328 | I45: =IF(ISERROR(VLOOKUP($D45,表A_RAW!$C:$I,5,0)),"",VLOOKUP($D45,表A_RAW!$C:$I,5,0)) -> 31983 | J45: =IF(ISERROR(VLOOKUP($D45,表A_RAW!$C:$I,7,0)),"",VLOOKUP($D45,表A_RAW!$C:$I,7,0)) -> 0.08029265547 | K45: =IF(ISERROR(VLOOKUP($D45,表C_RAW!$C:$I,4,0)),"",VLOOKUP($D45,表C_RAW!$C:$I,4,0)) -> 133823 | L45: =IF(ISERROR(VLOOKUP($D45,表C_RAW!$C:$I,5,0)),"",VLOOKUP($D45,表C_RAW!$C:$I,5,0)) -> 90880 | M45: =IF(ISERROR(VLOOKUP($D45,表C_RAW!$C:$I,6,0)),"",VLOOKUP($D45,表C_RAW!$C:$I,6,0)/100) -> 0.4725
C46: 3 | D46: =VLOOKUP($B$44&C46,表B_RAW!B:D,2,0) -> 5310 天剛 | F46: =IF(ISERROR(VLOOKUP($D46,表B_RAW!$C:$I,4,0)),"",VLOOKUP($D46,表B_RAW!$C:$I,4,0)) -> 33 | G46: =IF(ISERROR(VLOOKUP($D46,表B_RAW!$C:$I,5,0)),"",VLOOKUP($D46,表B_RAW!$C:$I,5,0)) -> 58 | H46: =IF(ISERROR(VLOOKUP($D46,表B_RAW!$C:$I,6,0)),"",VLOOKUP($D46,表B_RAW!$C:$I,6,0)/100) -> -0.431 | I46: =IF(ISERROR(VLOOKUP($D46,表A_RAW!$C:$I,5,0)),"",VLOOKUP($D46,表A_RAW!$C:$I,5,0)) -> 125 | J46: =IF(ISERROR(VLOOKUP($D46,表A_RAW!$C:$I,7,0)),"",VLOOKUP($D46,表A_RAW!$C:$I,7,0)) -> -0.736 | K46: =IF(ISERROR(VLOOKUP($D46,表C_RAW!$C:$I,4,0)),"",VLOOKUP($D46,表C_RAW!$C:$I,4,0)) -> 94 | L46: =IF(ISERROR(VLOOKUP($D46,表C_RAW!$C:$I,5,0)),"",VLOOKUP($D46,表C_RAW!$C:$I,5,0)) -> 360 | M46: =IF(ISERROR(VLOOKUP($D46,表C_RAW!$C:$I,6,0)),"",VLOOKUP($D46,表C_RAW!$C:$I,6,0)/100) -> -0.7389
B47: =VLOOKUP(A44,表B_RAW!O:T,6,0) -> 2.35 | C47: 4 | D47: =VLOOKUP($B$44&C47,表B_RAW!B:D,2,0) -> 5410 國眾 | F47: =IF(ISERROR(VLOOKUP($D47,表B_RAW!$C:$I,4,0)),"",VLOOKUP($D47,表B_RAW!$C:$I,4,0)) -> 383461 | G47: =IF(ISERROR(VLOOKUP($D47,表B_RAW!$C:$I,5,0)),"",VLOOKUP($D47,表B_RAW!$C:$I,5,0)) -> 647512 | H47: =IF(ISERROR(VLOOKUP($D47,表B_RAW!$C:$I,6,0)),"",VLOOKUP($D47,表B_RAW!$C:$I,6,0)/100) -> -0.4078 | I47: =IF(ISERROR(VLOOKUP($D47,表A_RAW!$C:$I,5,0)),"",VLOOKUP($D47,表A_RAW!$C:$I,5,0)) -> 389339 | J47: =IF(ISERROR(VLOOKUP($D47,表A_RAW!$C:$I,7,0)),"",VLOOKUP($D47,表A_RAW!$C:$I,7,0)) -> -0.015097383 | K47: =IF(ISERROR(VLOOKUP($D47,表C_RAW!$C:$I,4,0)),"",VLOOKUP($D47,表C_RAW!$C:$I,4,0)) -> 1339477 | L47: =IF(ISERROR(VLOOKUP($D47,表C_RAW!$C:$I,5,0)),"",VLOOKUP($D47,表C_RAW!$C:$I,5,0)) -> 793877 | M47: =IF(ISERROR(VLOOKUP($D47,表C_RAW!$C:$I,6,0)),"",VLOOKUP($D47,表C_RAW!$C:$I,6,0)/100) -> 0.6873
C48: 5 | D48: =VLOOKUP($B$44&C48,表B_RAW!B:D,2,0) -> 6148 驊宏資 | F48: =IF(ISERROR(VLOOKUP($D48,表B_RAW!$C:$I,4,0)),"",VLOOKUP($D48,表B_RAW!$C:$I,4,0)) -> 52611 | G48: =IF(ISERROR(VLOOKUP($D48,表B_RAW!$C:$I,5,0)),"",VLOOKUP($D48,表B_RAW!$C:$I,5,0)) -> 81919 | H48: =IF(ISERROR(VLOOKUP($D48,表B_RAW!$C:$I,6,0)),"",VLOOKUP($D48,表B_RAW!$C:$I,6,0)/100) -> -0.3578 | I48: =IF(ISERROR(VLOOKUP($D48,表A_RAW!$C:$I,5,0)),"",VLOOKUP($D48,表A_RAW!$C:$I,5,0)) -> 87634 | J48: =IF(ISERROR(VLOOKUP($D48,表A_RAW!$C:$I,7,0)),"",VLOOKUP($D48,表A_RAW!$C:$I,7,0)) -> -0.3996508205 | K48: =IF(ISERROR(VLOOKUP($D48,表C_RAW!$C:$I,4,0)),"",VLOOKUP($D48,表C_RAW!$C:$I,4,0)) -> 170704 | L48: =IF(ISERROR(VLOOKUP($D48,表C_RAW!$C:$I,5,0)),"",VLOOKUP($D48,表C_RAW!$C:$I,5,0)) -> 173164 | M48: =IF(ISERROR(VLOOKUP($D48,表C_RAW!$C:$I,6,0)),"",VLOOKUP($D48,表C_RAW!$C:$I,6,0)/100) -> -0.0142
A49: 4 | B49: =VLOOKUP(A49,表B_RAW!O:P,2,0) -> 航運業 | C49: 1 | D49: =VLOOKUP($B$49&C49,表B_RAW!B:D,2,0) -> 2609 陽明 | F49: =IF(ISERROR(VLOOKUP($D49,表B_RAW!$C:$I,4,0)),"",VLOOKUP($D49,表B_RAW!$C:$I,4,0)) -> 13229338 | G49: =IF(ISERROR(VLOOKUP($D49,表B_RAW!$C:$I,5,0)),"",VLOOKUP($D49,表B_RAW!$C:$I,5,0)) -> 14694473 | H49: =IF(ISERROR(VLOOKUP($D49,表B_RAW!$C:$I,6,0)),"",VLOOKUP($D49,表B_RAW!$C:$I,6,0)/100) -> -0.0997 | I49: =IF(ISERROR(VLOOKUP($D49,表A_RAW!$C:$I,5,0)),"",VLOOKUP($D49,表A_RAW!$C:$I,5,0)) -> 15547726 | J49: =IF(ISERROR(VLOOKUP($D49,表A_RAW!$C:$I,7,0)),"",VLOOKUP($D49,表A_RAW!$C:$I,7,0)) -> -0.149114282 | K49: =IF(ISERROR(VLOOKUP($D49,表C_RAW!$C:$I,4,0)),"",VLOOKUP($D49,表C_RAW!$C:$I,4,0)) -> 45516702 | L49: =IF(ISERROR(VLOOKUP($D49,表C_RAW!$C:$I,5,0)),"",VLOOKUP($D49,表C_RAW!$C:$I,5,0)) -> 43801435 | M49: =IF(ISERROR(VLOOKUP($D49,表C_RAW!$C:$I,6,0)),"",VLOOKUP($D49,表C_RAW!$C:$I,6,0)/100) -> 0.0392
C50: 2 | D50: =VLOOKUP($B$49&C50,表B_RAW!B:D,2,0) -> 6757 台灣虎航 | F50: =IF(ISERROR(VLOOKUP($D50,表B_RAW!$C:$I,4,0)),"",VLOOKUP($D50,表B_RAW!$C:$I,4,0)) -> 1409111 | G50: =IF(ISERROR(VLOOKUP($D50,表B_RAW!$C:$I,5,0)),"",VLOOKUP($D50,表B_RAW!$C:$I,5,0)) -> 1527719 | H50: =IF(ISERROR(VLOOKUP($D50,表B_RAW!$C:$I,6,0)),"",VLOOKUP($D50,表B_RAW!$C:$I,6,0)/100) -> -0.0776 | I50: =IF(ISERROR(VLOOKUP($D50,表A_RAW!$C:$I,5,0)),"",VLOOKUP($D50,表A_RAW!$C:$I,5,0)) -> 1388462 | J50: =IF(ISERROR(VLOOKUP($D50,表A_RAW!$C:$I,7,0)),"",VLOOKUP($D50,表A_RAW!$C:$I,7,0)) -> 0.01487185101 | K50: =IF(ISERROR(VLOOKUP($D50,表C_RAW!$C:$I,4,0)),"",VLOOKUP($D50,表C_RAW!$C:$I,4,0)) -> 4628654 | L50: =IF(ISERROR(VLOOKUP($D50,表C_RAW!$C:$I,5,0)),"",VLOOKUP($D50,表C_RAW!$C:$I,5,0)) -> 4246512 | M50: =IF(ISERROR(VLOOKUP($D50,表C_RAW!$C:$I,6,0)),"",VLOOKUP($D50,表C_RAW!$C:$I,6,0)/100) -> 0.09
C51: 3 | D51: =VLOOKUP($B$49&C51,表B_RAW!B:D,2,0) -> 2611 志信 | F51: =IF(ISERROR(VLOOKUP($D51,表B_RAW!$C:$I,4,0)),"",VLOOKUP($D51,表B_RAW!$C:$I,4,0)) -> 54077 | G51: =IF(ISERROR(VLOOKUP($D51,表B_RAW!$C:$I,5,0)),"",VLOOKUP($D51,表B_RAW!$C:$I,5,0)) -> 56709 | H51: =IF(ISERROR(VLOOKUP($D51,表B_RAW!$C:$I,6,0)),"",VLOOKUP($D51,表B_RAW!$C:$I,6,0)/100) -> -0.0464 | I51: =IF(ISERROR(VLOOKUP($D51,表A_RAW!$C:$I,5,0)),"",VLOOKUP($D51,表A_RAW!$C:$I,5,0)) -> 55455 | J51: =IF(ISERROR(VLOOKUP($D51,表A_RAW!$C:$I,7,0)),"",VLOOKUP($D51,表A_RAW!$C:$I,7,0)) -> -0.02484897665 | K51: =IF(ISERROR(VLOOKUP($D51,表C_RAW!$C:$I,4,0)),"",VLOOKUP($D51,表C_RAW!$C:$I,4,0)) -> 168002 | L51: =IF(ISERROR(VLOOKUP($D51,表C_RAW!$C:$I,5,0)),"",VLOOKUP($D51,表C_RAW!$C:$I,5,0)) -> 167512 | M51: =IF(ISERROR(VLOOKUP($D51,表C_RAW!$C:$I,6,0)),"",VLOOKUP($D51,表C_RAW!$C:$I,6,0)/100) -> 0.0029
B52: =VLOOKUP(A49,表B_RAW!O:T,6,0) -> 4.99 | C52: 4 | D52: =VLOOKUP($B$49&C52,表B_RAW!B:D,2,0) -> 2603 長榮 | F52: =IF(ISERROR(VLOOKUP($D52,表B_RAW!$C:$I,4,0)),"",VLOOKUP($D52,表B_RAW!$C:$I,4,0)) -> 33517259 | G52: =IF(ISERROR(VLOOKUP($D52,表B_RAW!$C:$I,5,0)),"",VLOOKUP($D52,表B_RAW!$C:$I,5,0)) -> 34233366 | H52: =IF(ISERROR(VLOOKUP($D52,表B_RAW!$C:$I,6,0)),"",VLOOKUP($D52,表B_RAW!$C:$I,6,0)/100) -> -0.0209 | I52: =IF(ISERROR(VLOOKUP($D52,表A_RAW!$C:$I,5,0)),"",VLOOKUP($D52,表A_RAW!$C:$I,5,0)) -> 30117519 | J52: =IF(ISERROR(VLOOKUP($D52,表A_RAW!$C:$I,7,0)),"",VLOOKUP($D52,表A_RAW!$C:$I,7,0)) -> 0.1128824722 | K52: =IF(ISERROR(VLOOKUP($D52,表C_RAW!$C:$I,4,0)),"",VLOOKUP($D52,表C_RAW!$C:$I,4,0)) -> 109998582 | L52: =IF(ISERROR(VLOOKUP($D52,表C_RAW!$C:$I,5,0)),"",VLOOKUP($D52,表C_RAW!$C:$I,5,0)) -> 88638659 | M52: =IF(ISERROR(VLOOKUP($D52,表C_RAW!$C:$I,6,0)),"",VLOOKUP($D52,表C_RAW!$C:$I,6,0)/100) -> 0.241
C53: 5 | D53: =VLOOKUP($B$49&C53,表B_RAW!B:D,2,0) -> 5601 台聯櫃 | F53: =IF(ISERROR(VLOOKUP($D53,表B_RAW!$C:$I,4,0)),"",VLOOKUP($D53,表B_RAW!$C:$I,4,0)) -> 7658 | G53: =IF(ISERROR(VLOOKUP($D53,表B_RAW!$C:$I,5,0)),"",VLOOKUP($D53,表B_RAW!$C:$I,5,0)) -> 7443 | H53: =IF(ISERROR(VLOOKUP($D53,表B_RAW!$C:$I,6,0)),"",VLOOKUP($D53,表B_RAW!$C:$I,6,0)/100) -> 0.0289 | I53: =IF(ISERROR(VLOOKUP($D53,表A_RAW!$C:$I,5,0)),"",VLOOKUP($D53,表A_RAW!$C:$I,5,0)) -> 7763 | J53: =IF(ISERROR(VLOOKUP($D53,表A_RAW!$C:$I,7,0)),"",VLOOKUP($D53,表A_RAW!$C:$I,7,0)) -> -0.01352569883 | K53: =IF(ISERROR(VLOOKUP($D53,表C_RAW!$C:$I,4,0)),"",VLOOKUP($D53,表C_RAW!$C:$I,4,0)) -> 22854 | L53: =IF(ISERROR(VLOOKUP($D53,表C_RAW!$C:$I,5,0)),"",VLOOKUP($D53,表C_RAW!$C:$I,5,0)) -> 21760 | M53: =IF(ISERROR(VLOOKUP($D53,表C_RAW!$C:$I,6,0)),"",VLOOKUP($D53,表C_RAW!$C:$I,6,0)/100) -> 0.0503
A54: 5 | B54: =VLOOKUP(A54,表B_RAW!O:P,2,0) -> 文化創意業 | C54: 1 | D54: =VLOOKUP($B$54&C54,表B_RAW!B:D,2,0) -> 6596 寬宏藝術 | F54: =IF(ISERROR(VLOOKUP($D54,表B_RAW!$C:$I,4,0)),"",VLOOKUP($D54,表B_RAW!$C:$I,4,0)) -> 93888 | G54: =IF(ISERROR(VLOOKUP($D54,表B_RAW!$C:$I,5,0)),"",VLOOKUP($D54,表B_RAW!$C:$I,5,0)) -> 155380 | H54: =IF(ISERROR(VLOOKUP($D54,表B_RAW!$C:$I,6,0)),"",VLOOKUP($D54,表B_RAW!$C:$I,6,0)/100) -> -0.3958 | I54: =IF(ISERROR(VLOOKUP($D54,表A_RAW!$C:$I,5,0)),"",VLOOKUP($D54,表A_RAW!$C:$I,5,0)) -> 165253 | J54: =IF(ISERROR(VLOOKUP($D54,表A_RAW!$C:$I,7,0)),"",VLOOKUP($D54,表A_RAW!$C:$I,7,0)) -> -0.431852977 | K54: =IF(ISERROR(VLOOKUP($D54,表C_RAW!$C:$I,4,0)),"",VLOOKUP($D54,表C_RAW!$C:$I,4,0)) -> 463283 | L54: =IF(ISERROR(VLOOKUP($D54,表C_RAW!$C:$I,5,0)),"",VLOOKUP($D54,表C_RAW!$C:$I,5,0)) -> 632749 | M54: =IF(ISERROR(VLOOKUP($D54,表C_RAW!$C:$I,6,0)),"",VLOOKUP($D54,表C_RAW!$C:$I,6,0)/100) -> -0.2678
C55: 2 | D55: =VLOOKUP($B$54&C55,表B_RAW!B:D,2,0) -> 3083 網龍 | F55: =IF(ISERROR(VLOOKUP($D55,表B_RAW!$C:$I,4,0)),"",VLOOKUP($D55,表B_RAW!$C:$I,4,0)) -> 18417 | G55: =IF(ISERROR(VLOOKUP($D55,表B_RAW!$C:$I,5,0)),"",VLOOKUP($D55,表B_RAW!$C:$I,5,0)) -> 22691 | H55: =IF(ISERROR(VLOOKUP($D55,表B_RAW!$C:$I,6,0)),"",VLOOKUP($D55,表B_RAW!$C:$I,6,0)/100) -> -0.1884 | I55: =IF(ISERROR(VLOOKUP($D55,表A_RAW!$C:$I,5,0)),"",VLOOKUP($D55,表A_RAW!$C:$I,5,0)) -> 50220 | J55: =IF(ISERROR(VLOOKUP($D55,表A_RAW!$C:$I,7,0)),"",VLOOKUP($D55,表A_RAW!$C:$I,7,0)) -> -0.6332735962 | K55: =IF(ISERROR(VLOOKUP($D55,表C_RAW!$C:$I,4,0)),"",VLOOKUP($D55,表C_RAW!$C:$I,4,0)) -> 77797 | L55: =IF(ISERROR(VLOOKUP($D55,表C_RAW!$C:$I,5,0)),"",VLOOKUP($D55,表C_RAW!$C:$I,5,0)) -> 111113 | M55: =IF(ISERROR(VLOOKUP($D55,表C_RAW!$C:$I,6,0)),"",VLOOKUP($D55,表C_RAW!$C:$I,6,0)/100) -> -0.2998
C56: 3 | D56: =VLOOKUP($B$54&C56,表B_RAW!B:D,2,0) -> 6180 橘子 | F56: =IF(ISERROR(VLOOKUP($D56,表B_RAW!$C:$I,4,0)),"",VLOOKUP($D56,表B_RAW!$C:$I,4,0)) -> 912156 | G56: =IF(ISERROR(VLOOKUP($D56,表B_RAW!$C:$I,5,0)),"",VLOOKUP($D56,表B_RAW!$C:$I,5,0)) -> 1063137 | H56: =IF(ISERROR(VLOOKUP($D56,表B_RAW!$C:$I,6,0)),"",VLOOKUP($D56,表B_RAW!$C:$I,6,0)/100) -> -0.142 | I56: =IF(ISERROR(VLOOKUP($D56,表A_RAW!$C:$I,5,0)),"",VLOOKUP($D56,表A_RAW!$C:$I,5,0)) -> 1001549 | J56: =IF(ISERROR(VLOOKUP($D56,表A_RAW!$C:$I,7,0)),"",VLOOKUP($D56,表A_RAW!$C:$I,7,0)) -> -0.0892547444 | K56: =IF(ISERROR(VLOOKUP($D56,表C_RAW!$C:$I,4,0)),"",VLOOKUP($D56,表C_RAW!$C:$I,4,0)) -> 2883043 | L56: =IF(ISERROR(VLOOKUP($D56,表C_RAW!$C:$I,5,0)),"",VLOOKUP($D56,表C_RAW!$C:$I,5,0)) -> 3329333 | M56: =IF(ISERROR(VLOOKUP($D56,表C_RAW!$C:$I,6,0)),"",VLOOKUP($D56,表C_RAW!$C:$I,6,0)/100) -> -0.134
B57: =VLOOKUP(A54,表B_RAW!O:T,6,0) -> 5.95 | C57: 4 | D57: =VLOOKUP($B$54&C57,表B_RAW!B:D,2,0) -> 7584 樂意 | F57: =IF(ISERROR(VLOOKUP($D57,表B_RAW!$C:$I,4,0)),"",VLOOKUP($D57,表B_RAW!$C:$I,4,0)) -> 84332 | G57: =IF(ISERROR(VLOOKUP($D57,表B_RAW!$C:$I,5,0)),"",VLOOKUP($D57,表B_RAW!$C:$I,5,0)) -> 96564 | H57: =IF(ISERROR(VLOOKUP($D57,表B_RAW!$C:$I,6,0)),"",VLOOKUP($D57,表B_RAW!$C:$I,6,0)/100) -> -0.1267 | I57: =IF(ISERROR(VLOOKUP($D57,表A_RAW!$C:$I,5,0)),"",VLOOKUP($D57,表A_RAW!$C:$I,5,0)) -> 47054 | J57: =IF(ISERROR(VLOOKUP($D57,表A_RAW!$C:$I,7,0)),"",VLOOKUP($D57,表A_RAW!$C:$I,7,0)) -> 0.7922387045 | K57: =IF(ISERROR(VLOOKUP($D57,表C_RAW!$C:$I,4,0)),"",VLOOKUP($D57,表C_RAW!$C:$I,4,0)) -> 309300 | L57: =IF(ISERROR(VLOOKUP($D57,表C_RAW!$C:$I,5,0)),"",VLOOKUP($D57,表C_RAW!$C:$I,5,0)) -> 151090 | M57: =IF(ISERROR(VLOOKUP($D57,表C_RAW!$C:$I,6,0)),"",VLOOKUP($D57,表C_RAW!$C:$I,6,0)/100) -> 1.0471
C58: 5 | D58: =VLOOKUP($B$54&C58,表B_RAW!B:D,2,0) -> 3086 華義 | F58: =IF(ISERROR(VLOOKUP($D58,表B_RAW!$C:$I,4,0)),"",VLOOKUP($D58,表B_RAW!$C:$I,4,0)) -> 11783 | G58: =IF(ISERROR(VLOOKUP($D58,表B_RAW!$C:$I,5,0)),"",VLOOKUP($D58,表B_RAW!$C:$I,5,0)) -> 13141 | H58: =IF(ISERROR(VLOOKUP($D58,表B_RAW!$C:$I,6,0)),"",VLOOKUP($D58,表B_RAW!$C:$I,6,0)/100) -> -0.1033 | I58: =IF(ISERROR(VLOOKUP($D58,表A_RAW!$C:$I,5,0)),"",VLOOKUP($D58,表A_RAW!$C:$I,5,0)) -> 12564 | J58: =IF(ISERROR(VLOOKUP($D58,表A_RAW!$C:$I,7,0)),"",VLOOKUP($D58,表A_RAW!$C:$I,7,0)) -> -0.06216173193 | K58: =IF(ISERROR(VLOOKUP($D58,表C_RAW!$C:$I,4,0)),"",VLOOKUP($D58,表C_RAW!$C:$I,4,0)) -> 43687 | L58: =IF(ISERROR(VLOOKUP($D58,表C_RAW!$C:$I,5,0)),"",VLOOKUP($D58,表C_RAW!$C:$I,5,0)) -> 43923 | M58: =IF(ISERROR(VLOOKUP($D58,表C_RAW!$C:$I,6,0)),"",VLOOKUP($D58,表C_RAW!$C:$I,6,0)/100) -> -0.0054

Sheet YOY(單月)
B1: =YEAR(表A_RAW!F2)&"年"&MONTH(表A_RAW!F2)&"月" -> 2025年3月
G2: 成長及衰退前五名之產業YOY%(單月)
B4: 成長前五名之產業 YOY(單月)% | D4: 該產業成長前五名之公司 YOY(單月)% | G4: 單月營收金額(千元) | H4: 本月與上月相較 | J4: 本月與去年同期相較 | L4: 累計營收金額(千元) | M4: 累計營收與去年同期相較
B5: 成長 排名 | C5: 產業 | D5: 排名 | E5: 公司代號&簡稱 | H5: 上月營收金額(千元) | I5: 較上月變動比率(%) | J5: 去年同期金額(千元) | K5: 較去年同期變動比率(%) | M5: 去年累計營收金額(千元) | N5: 較去年同期變動比率(%)
B6: 1 | C6: =VLOOKUP(B6,表A_RAW!N:T,3,0) -> 電腦及週邊設備業 | D6: 1 | E6: =VLOOKUP($C$6&D6,表A_RAW!A:I,3,0) -> 6669 緯穎 | G6: =IF(ISERROR(VLOOKUP($E6,表A_RAW!$C:$I,4,0)),"",VLOOKUP($E6,表A_RAW!$C:$I,4,0)) -> 86632073 | H6: =IF(ISERROR(VLOOKUP($E6,表B_RAW!$C:$I,5,0)),"",VLOOKUP($E6,表B_RAW!$C:$I,5,0)) -> 46516815 | I6: =IF(ISERROR(VLOOKUP($E6,表B_RAW!$C:$I,6,0)),"",VLOOKUP($E6,表B_RAW!$C:$I,6,0)/100) -> 0.8624 | J6: =IF(ISERROR(VLOOKUP($E6,表A_RAW!$C:$I,5,0)),"",VLOOKUP($E6,表A_RAW!$C:$I,5,0)) -> 26514171 | K6: =IF(ISERROR(VLOOKUP($E6,表A_RAW!$C:$I,7,0)),"",VLOOKUP($E6,表A_RAW!$C:$I,7,0)) -> 2.267387579 | L6: =IF(ISERROR(VLOOKUP($E6,表C_RAW!$C:$I,4,0)),"",VLOOKUP($E6,表C_RAW!$C:$I,4,0)) -> 170655284 | M6: =IF(ISERROR(VLOOKUP($E6,表C_RAW!$C:$I,5,0)),"",VLOOKUP($E6,表C_RAW!$C:$I,5,0)) -> 69628237 | N6: =IF(ISERROR(VLOOKUP($E6,表C_RAW!$C:$I,6,0)),"",VLOOKUP($E6,表C_RAW!$C:$I,6,0)/100) -> 1.4509
D7: 2 | E7: =VLOOKUP($C$6&D7,表A_RAW!A:I,3,0) -> 8114 振樺電 | G7: =IF(ISERROR(VLOOKUP($E7,表A_RAW!$C:$I,4,0)),"",VLOOKUP($E7,表A_RAW!$C:$I,4,0)) -> 2634495 | H7: =IF(ISERROR(VLOOKUP($E7,表B_RAW!$C:$I,5,0)),"",VLOOKUP($E7,表B_RAW!$C:$I,5,0)) -> 1899152 | I7: =IF(ISERROR(VLOOKUP($E7,表B_RAW!$C:$I,6,0)),"",VLOOKUP($E7,表B_RAW!$C:$I,6,0)/100) -> 0.3872 | J7: =IF(ISERROR(VLOOKUP($E7,表A_RAW!$C:$I,5,0)),"",VLOOKUP($E7,表A_RAW!$C:$I,5,0)) -> 870731 | K7: =IF(ISERROR(VLOOKUP($E7,表A_RAW!$C:$I,7,0)),"",VLOOKUP($E7,表A_RAW!$C:$I,7,0)) -> 2.025612962 | L7: =IF(ISERROR(VLOOKUP($E7,表C_RAW!$C:$I,4,0)),"",VLOOKUP($E7,表C_RAW!$C:$I,4,0)) -> 5918982 | M7: =IF(ISERROR(VLOOKUP($E7,表C_RAW!$C:$I,5,0)),"",VLOOKUP($E7,表C_RAW!$C:$I,5,0)) -> 2215951 | N7: =IF(ISERROR(VLOOKUP($E7,表C_RAW!$C:$I,6,0)),"",VLOOKUP($E7,表C_RAW!$C:$I,6,0)/100) -> 1.6711
D8: 3 | E8: =VLOOKUP($C$6&D8,表A_RAW!A:I,3,0) -> 5386 青雲 | G8: =IF(ISERROR(VLOOKUP($E8,表A_RAW!$C:$I,4,0)),"",VLOOKUP($E8,表A_RAW!$C:$I,4,0)) -> 504172 | H8: =IF(ISERROR(VLOOKUP($E8,表B_RAW!$C:$I,5,0)),"",VLOOKUP($E8,表B_RAW!$C:$I,5,0)) -> 256940 | I8: =IF(ISERROR(VLOOKUP($E8,表B_RAW!$C:$I,6,0)),"",VLOOKUP($E8,表B_RAW!$C:$I,6,0)/100) -> 0.9622 | J8: =IF(ISERROR(VLOOKUP($E8,表A_RAW!$C:$I,5,0)),"",VLOOKUP($E8,表A_RAW!$C:$I,5,0)) -> 174708 | K8: =IF(ISERROR(VLOOKUP($E8,表A_RAW!$C:$I,7,0)),"",VLOOKUP($E8,表A_RAW!$C:$I,7,0)) -> 1.885798017 | L8: =IF(ISERROR(VLOOKUP($E8,表C_RAW!$C:$I,4,0)),"",VLOOKUP($E8,表C_RAW!$C:$I,4,0)) -> 1246706 | M8: =IF(ISERROR(VLOOKUP($E8,表C_RAW!$C:$I,5,0)),"",VLOOKUP($E8,表C_RAW!$C:$I,5,0)) -> 732387 | N8: =IF(ISERROR(VLOOKUP($E8,表C_RAW!$C:$I,6,0)),"",VLOOKUP($E8,表C_RAW!$C:$I,6,0)/100) -> 0.7023
C9: =VLOOKUP(B6,表A_RAW!N:T,7,0) -> 43.20144896 | D9: 4 | E9: =VLOOKUP($C$6&D9,表A_RAW!A:I,3,0) -> 3706 神達 | G9: =IF(ISERROR(VLOOKUP($E9,表A_RAW!$C:$I,4,0)),"",VLOOKUP($E9,表A_RAW!$C:$I,4,0)) -> 8490733 | H9: =IF(ISERROR(VLOOKUP($E9,表B_RAW!$C:$I,5,0)),"",VLOOKUP($E9,表B_RAW!$C:$I,5,0)) -> 7532350 | I9: =IF(ISERROR(VLOOKUP($E9,表B_RAW!$C:$I,6,0)),"",VLOOKUP($E9,表B_RAW!$C:$I,6,0)/100) -> 0.1272 | J9: =IF(ISERROR(VLOOKUP($E9,表A_RAW!$C:$I,5,0)),"",VLOOKUP($E9,表A_RAW!$C:$I,5,0)) -> 3447128 | K9: =IF(ISERROR(VLOOKUP($E9,表A_RAW!$C:$I,7,0)),"",VLOOKUP($E9,表A_RAW!$C:$I,7,0)) -> 1.463132498 | L9: =IF(ISERROR(VLOOKUP($E9,表C_RAW!$C:$I,4,0)),"",VLOOKUP($E9,表C_RAW!$C:$I,4,0)) -> 23665159 | M9: =IF(ISERROR(VLOOKUP($E9,表C_RAW!$C:$I,5,0)),"",VLOOKUP($E9,表C_RAW!$C:$I,5,0)) -> 9653944 | N9: =IF(ISERROR(VLOOKUP($E9,表C_RAW!$C:$I,6,0)),"",VLOOKUP($E9,表C_RAW!$C:$I,6,0)/100) -> 1.4513
D10: 5 | E10: =VLOOKUP($C$6&D10,表A_RAW!A:I,3,0) -> 6228 全譜 | G10: =IF(ISERROR(VLOOKUP($E10,表A_RAW!$C:$I,4,0)),"",VLOOKUP($E10,表A_RAW!$C:$I,4,0)) -> 7616 | H10: =IF(ISERROR(VLOOKUP($E10,表B_RAW!$C:$I,5,0)),"",VLOOKUP($E10,表B_RAW!$C:$I,5,0)) -> 4719 | I10: =IF(ISERROR(VLOOKUP($E10,表B_RAW!$C:$I,6,0)),"",VLOOKUP($E10,表B_RAW!$C:$I,6,0)/100) -> 0.6139 | J10: =IF(ISERROR(VLOOKUP($E10,表A_RAW!$C:$I,5,0)),"",VLOOKUP($E10,表A_RAW!$C:$I,5,0)) -> 3461 | K10: =IF(ISERROR(VLOOKUP($E10,表A_RAW!$C:$I,7,0)),"",VLOOKUP($E10,表A_RAW!$C:$I,7,0)) -> 1.200520081 | L10: =IF(ISERROR(VLOOKUP($E10,表C_RAW!$C:$I,4,0)),"",VLOOKUP($E10,表C_RAW!$C:$I,4,0)) -> 17970 | M10: =IF(ISERROR(VLOOKUP($E10,表C_RAW!$C:$I,5,0)),"",VLOOKUP($E10,表C_RAW!$C:$I,5,0)) -> 8635 | N10: =IF(ISERROR(VLOOKUP($E10,表C_RAW!$C:$I,6,0)),"",VLOOKUP($E10,表C_RAW!$C:$I,6,0)/100) -> 1.0811
B11: 2 | C11: =VLOOKUP(B11,表A_RAW!N:T,3,0) -> 電子通路業 | D11: 1 | E11: =VLOOKUP($C$11&D11,表A_RAW!A:I,3,0) -> 3209 全科 | G11: =IF(ISERROR(VLOOKUP($E11,表A_RAW!$C:$I,4,0)),"",VLOOKUP($E11,表A_RAW!$C:$I,4,0)) -> 6089153 | H11: =IF(ISERROR(VLOOKUP($E11,表B_RAW!$C:$I,5,0)),"",VLOOKUP($E11,表B_RAW!$C:$I,5,0)) -> 3120553 | I11: =IF(ISERROR(VLOOKUP($E11,表B_RAW!$C:$I,6,0)),"",VLOOKUP($E11,表B_RAW!$C:$I,6,0)/100) -> 0.9513 | J11: =IF(ISERROR(VLOOKUP($E11,表A_RAW!$C:$I,5,0)),"",VLOOKUP($E11,表A_RAW!$C:$I,5,0)) -> 2601133 | K11: =IF(ISERROR(VLOOKUP($E11,表A_RAW!$C:$I,7,0)),"",VLOOKUP($E11,表A_RAW!$C:$I,7,0)) -> 1.340961804 | L11: =IF(ISERROR(VLOOKUP($E11,表C_RAW!$C:$I,4,0)),"",VLOOKUP($E11,表C_RAW!$C:$I,4,0)) -> 14364998 | M11: =IF(ISERROR(VLOOKUP($E11,表C_RAW!$C:$I,5,0)),"",VLOOKUP($E11,表C_RAW!$C:$I,5,0)) -> 10791081 | N11: =IF(ISERROR(VLOOKUP($E11,表C_RAW!$C:$I,6,0)),"",VLOOKUP($E11,表C_RAW!$C:$I,6,0)/100) -> 0.3312
D12: 2 | E12: =VLOOKUP($C$11&D12,表A_RAW!A:I,3,0) -> 8096 擎亞 | G12: =IF(ISERROR(VLOOKUP($E12,表A_RAW!$C:$I,4,0)),"",VLOOKUP($E12,表A_RAW!$C:$I,4,0)) -> 4861049 | H12: =IF(ISERROR(VLOOKUP($E12,表B_RAW!$C:$I,5,0)),"",VLOOKUP($E12,表B_RAW!$C:$I,5,0)) -> 4794429 | I12: =IF(ISERROR(VLOOKUP($E12,表B_RAW!$C:$I,6,0)),"",VLOOKUP($E12,表B_RAW!$C:$I,6,0)/100) -> 0.0139 | J12: =IF(ISERROR(VLOOKUP($E12,表A_RAW!$C:$I,5,0)),"",VLOOKUP($E12,表A_RAW!$C:$I,5,0)) -> 2480248 | K12: =IF(ISERROR(VLOOKUP($E12,表A_RAW!$C:$I,7,0)),"",VLOOKUP($E12,表A_RAW!$C:$I,7,0)) -> 0.9599044128 | L12: =IF(ISERROR(VLOOKUP($E12,表C_RAW!$C:$I,4,0)),"",VLOOKUP($E12,表C_RAW!$C:$I,4,0)) -> 14526906 | M12: =IF(ISERROR(VLOOKUP($E12,表C_RAW!$C:$I,5,0)),"",VLOOKUP($E12,表C_RAW!$C:$I,5,0)) -> 7340328 | N12: =IF(ISERROR(VLOOKUP($E12,表C_RAW!$C:$I,6,0)),"",VLOOKUP($E12,表C_RAW!$C:$I,6,0)/100) -> 0.9791
D13: 3 | E13: =VLOOKUP($C$11&D13,表A_RAW!A:I,3,0) -> 6265 方土昶 | G13: =IF(ISERROR(VLOOKUP($E13,表A_RAW!$C:$I,4,0)),"",VLOOKUP($E13,表A_RAW!$C:$I,4,0)) -> 64161 | H13: =IF(ISERROR(VLOOKUP($E13,表B_RAW!$C:$I,5,0)),"",VLOOKUP($E13,表B_RAW!$C:$I,5,0)) -> 41852 | I13: =IF(ISERROR(VLOOKUP($E13,表B_RAW!$C:$I,6,0)),"",VLOOKUP($E13,表B_RAW!$C:$I,6,0)/100) -> 0.533 | J13: =IF(ISERROR(VLOOKUP($E13,表A_RAW!$C:$I,5,0)),"",VLOOKUP($E13,表A_RAW!$C:$I,5,0)) -> 39828 | K13: =IF(ISERROR(VLOOKUP($E13,表A_RAW!$C:$I,7,0)),"",VLOOKUP($E13,表A_RAW!$C:$I,7,0)) -> 0.610952094 | L13: =IF(ISERROR(VLOOKUP($E13,表C_RAW!$C:$I,4,0)),"",VLOOKUP($E13,表C_RAW!$C:$I,4,0)) -> 145770 | M13: =IF(ISERROR(VLOOKUP($E13,表C_RAW!$C:$I,5,0)),"",VLOOKUP($E13,表C_RAW!$C:$I,5,0)) -> 185824 | N13: =IF(ISERROR(VLOOKUP($E13,表C_RAW!$C:$I,6,0)),"",VLOOKUP($E13,表C_RAW!$C:$I,6,0)/100) -> -0.2155
C14: =VLOOKUP(B11,表A_RAW!N:T,7,0) -> 26.44482913 | D14: 4 | E14: =VLOOKUP($C$11&D14,表A_RAW!A:I,3,0) -> 8067 志旭 | G14: =IF(ISERROR(VLOOKUP($E14,表A_RAW!$C:$I,4,0)),"",VLOOKUP($E14,表A_RAW!$C:$I,4,0)) -> 14927 | H14: =IF(ISERROR(VLOOKUP($E14,表B_RAW!$C:$I,5,0)),"",VLOOKUP($E14,表B_RAW!$C:$I,5,0)) -> 9250 | I14: =IF(ISERROR(VLOOKUP($E14,表B_RAW!$C:$I,6,0)),"",VLOOKUP($E14,表B_RAW!$C:$I,6,0)/100) -> 0.6137 | J14: =IF(ISERROR(VLOOKUP($E14,表A_RAW!$C:$I,5,0)),"",VLOOKUP($E14,表A_RAW!$C:$I,5,0)) -> 9475 | K14: =IF(ISERROR(VLOOKUP($E14,表A_RAW!$C:$I,7,0)),"",VLOOKUP($E14,表A_RAW!$C:$I,7,0)) -> 0.575408971 | L14: =IF(ISERROR(VLOOKUP($E14,表C_RAW!$C:$I,4,0)),"",VLOOKUP($E14,表C_RAW!$C:$I,4,0)) -> 32829 | M14: =IF(ISERROR(VLOOKUP($E14,表C_RAW!$C:$I,5,0)),"",VLOOKUP($E14,表C_RAW!$C:$I,5,0)) -> 23853 | N14: =IF(ISERROR(VLOOKUP($E14,表C_RAW!$C:$I,6,0)),"",VLOOKUP($E14,表C_RAW!$C:$I,6,0)/100) -> 0.3763
D15: 5 | E15: =VLOOKUP($C$11&D15,表A_RAW!A:I,3,0) -> 3702 大聯大 | G15: =IF(ISERROR(VLOOKUP($E15,表A_RAW!$C:$I,4,0)),"",VLOOKUP($E15,表A_RAW!$C:$I,4,0)) -> 110167665 | H15: =IF(ISERROR(VLOOKUP($E15,表B_RAW!$C:$I,5,0)),"",VLOOKUP($E15,表B_RAW!$C:$I,5,0)) -> 72838266 | I15: =IF(ISERROR(VLOOKUP($E15,表B_RAW!$C:$I,6,0)),"",VLOOKUP($E15,表B_RAW!$C:$I,6,0)/100) -> 0.5125 | J15: =IF(ISERROR(VLOOKUP($E15,表A_RAW!$C:$I,5,0)),"",VLOOKUP($E15,表A_RAW!$C:$I,5,0)) -> 70192226 | K15: =IF(ISERROR(VLOOKUP($E15,表A_RAW!$C:$I,7,0)),"",VLOOKUP($E15,表A_RAW!$C:$I,7,0)) -> 0.5695137664 | L15: =IF(ISERROR(VLOOKUP($E15,表C_RAW!$C:$I,4,0)),"",VLOOKUP($E15,表C_RAW!$C:$I,4,0)) -> 248833981 | M15: =IF(ISERROR(VLOOKUP($E15,表C_RAW!$C:$I,5,0)),"",VLOOKUP($E15,表C_RAW!$C:$I,5,0)) -> 181903608 | N15: =IF(ISERROR(VLOOKUP($E15,表C_RAW!$C:$I,6,0)),"",VLOOKUP($E15,表C_RAW!$C:$I,6,0)/100) -> 0.3679
B16: 3 | C16: =VLOOKUP(B16,表A_RAW!N:T,3,0) -> 半導體業 | D16: 1 | E16: =VLOOKUP($C$16&D16,表A_RAW!A:I,3,0) -> 2363 矽統 | G16: =IF(ISERROR(VLOOKUP($E16,表A_RAW!$C:$I,4,0)),"",VLOOKUP($E16,表A_RAW!$C:$I,4,0)) -> 193776 | H16: =IF(ISERROR(VLOOKUP($E16,表B_RAW!$C:$I,5,0)),"",VLOOKUP($E16,表B_RAW!$C:$I,5,0)) -> 119575 | I16: =IF(ISERROR(VLOOKUP($E16,表B_RAW!$C:$I,6,0)),"",VLOOKUP($E16,表B_RAW!$C:$I,6,0)/100) -> 0.6205 | J16: =IF(ISERROR(VLOOKUP($E16,表A_RAW!$C:$I,5,0)),"",VLOOKUP($E16,表A_RAW!$C:$I,5,0)) -> 12717 | K16: =IF(ISERROR(VLOOKUP($E16,表A_RAW!$C:$I,7,0)),"",VLOOKUP($E16,表A_RAW!$C:$I,7,0)) -> 14.23755603 | L16: =IF(ISERROR(VLOOKUP($E16,表C_RAW!$C:$I,4,0)),"",VLOOKUP($E16,表C_RAW!$C:$I,4,0)) -> 469683 | M16: =IF(ISERROR(VLOOKUP($E16,表C_RAW!$C:$I,5,0)),"",VLOOKUP($E16,表C_RAW!$C:$I,5,0)) -> 34293 | N16: =IF(ISERROR(VLOOKUP($E16,表C_RAW!$C:$I,6,0)),"",VLOOKUP($E16,表C_RAW!$C:$I,6,0)/100) -> 12.6962
D17: 2 | E17: =VLOOKUP($C$16&D17,表A_RAW!A:I,3,0) -> 3035 智原 | G17: =IF(ISERROR(VLOOKUP($E17,表A_RAW!$C:$I,4,0)),"",VLOOKUP($E17,表A_RAW!$C:$I,4,0)) -> 3482593 | H17: =IF(ISERROR(VLOOKUP($E17,表B_RAW!$C:$I,5,0)),"",VLOOKUP($E17,表B_RAW!$C:$I,5,0)) -> 2836864 | I17: =IF(ISERROR(VLOOKUP($E17,表B_RAW!$C:$I,6,0)),"",VLOOKUP($E17,表B_RAW!$C:$I,6,0)/100) -> 0.2276 | J17: =IF(ISERROR(VLOOKUP($E17,表A_RAW!$C:$I,5,0)),"",VLOOKUP($E17,表A_RAW!$C:$I,5,0)) -> 844970 | K17: =IF(ISERROR(VLOOKUP($E17,表A_RAW!$C:$I,7,0)),"",VLOOKUP($E17,表A_RAW!$C:$I,7,0)) -> 3.121558162 | L17: =IF(ISERROR(VLOOKUP($E17,表C_RAW!$C:$I,4,0)),"",VLOOKUP($E17,表C_RAW!$C:$I,4,0)) -> 7437577 | M17: =IF(ISERROR(VLOOKUP($E17,表C_RAW!$C:$I,5,0)),"",VLOOKUP($E17,表C_RAW!$C:$I,5,0)) -> 2578630 | N17: =IF(ISERROR(VLOOKUP($E17,表C_RAW!$C:$I,6,0)),"",VLOOKUP($E17,表C_RAW!$C:$I,6,0)/100) -> 1.8843
D18: 3 | E18: =VLOOKUP($C$16&D18,表A_RAW!A:I,3,0) -> 6103 合邦 | G18: =IF(ISERROR(VLOOKUP($E18,表A_RAW!$C:$I,4,0)),"",VLOOKUP($E18,表A_RAW!$C:$I,4,0)) -> 9454 | H18: =IF(ISERROR(VLOOKUP($E18,表B_RAW!$C:$I,5,0)),"",VLOOKUP($E18,表B_RAW!$C:$I,5,0)) -> 9467 | I18: =IF(ISERROR(VLOOKUP($E18,表B_RAW!$C:$I,6,0)),"",VLOOKUP($E18,表B_RAW!$C:$I,6,0)/100) -> -0.0014 | J18: =IF(ISERROR(VLOOKUP($E18,表A_RAW!$C:$I,5,0)),"",VLOOKUP($E18,表A_RAW!$C:$I,5,0)) -> 2354 | K18: =IF(ISERROR(VLOOKUP($E18,表A_RAW!$C:$I,7,0)),"",VLOOKUP($E18,表A_RAW!$C:$I,7,0)) -> 3.016142736 | L18: =IF(ISERROR(VLOOKUP($E18,表C_RAW!$C:$I,4,0)),"",VLOOKUP($E18,表C_RAW!$C:$I,4,0)) -> 26555 | M18: =IF(ISERROR(VLOOKUP($E18,表C_RAW!$C:$I,5,0)),"",VLOOKUP($E18,表C_RAW!$C:$I,5,0)) -> 8583 | N18: =IF(ISERROR(VLOOKUP($E18,表C_RAW!$C:$I,6,0)),"",VLOOKUP($E18,表C_RAW!$C:$I,6,0)/100) -> 2.0939
C19: =VLOOKUP(B16,表A_RAW!N:T,7,0) -> 26.34684704 | D19: 4 | E19: =VLOOKUP($C$16&D19,表A_RAW!A:I,3,0) -> 5314 世紀* | G19: =IF(ISERROR(VLOOKUP($E19,表A_RAW!$C:$I,4,0)),"",VLOOKUP($E19,表A_RAW!$C:$I,4,0)) -> 193456 | H19: =IF(ISERROR(VLOOKUP($E19,表B_RAW!$C:$I,5,0)),"",VLOOKUP($E19,表B_RAW!$C:$I,5,0)) -> 145007 | I19: =IF(ISERROR(VLOOKUP($E19,表B_RAW!$C:$I,6,0)),"",VLOOKUP($E19,表B_RAW!$C:$I,6,0)/100) -> 0.3341 | J19: =IF(ISERROR(VLOOKUP($E19,表A_RAW!$C:$I,5,0)),"",VLOOKUP($E19,表A_RAW!$C:$I,5,0)) -> 61751 | K19: =IF(ISERROR(VLOOKUP($E19,表A_RAW!$C:$I,7,0)),"",VLOOKUP($E19,表A_RAW!$C:$I,7,0)) -> 2.132839954 | L19: =IF(ISERROR(VLOOKUP($E19,表C_RAW!$C:$I,4,0)),"",VLOOKUP($E19,表C_RAW!$C:$I,4,0)) -> 472521 | M19: =IF(ISERROR(VLOOKUP($E19,表C_RAW!$C:$I,5,0)),"",VLOOKUP($E19,表C_RAW!$C:$I,5,0)) -> 167349 | N19: =IF(ISERROR(VLOOKUP($E19,表C_RAW!$C:$I,6,0)),"",VLOOKUP($E19,表C_RAW!$C:$I,6,0)/100) -> 1.8236
D20: 5 | E20: =VLOOKUP($C$16&D20,表A_RAW!A:I,3,0) -> 6451 訊芯-KY | G20: =IF(ISERROR(VLOOKUP($E20,表A_RAW!$C:$I,4,0)),"",VLOOKUP($E20,表A_RAW!$C:$I,4,0)) -> 768574 | H20: =IF(ISERROR(VLOOKUP($E20,表B_RAW!$C:$I,5,0)),"",VLOOKUP($E20,表B_RAW!$C:$I,5,0)) -> 666004 | I20: =IF(ISERROR(VLOOKUP($E20,表B_RAW!$C:$I,6,0)),"",VLOOKUP($E20,表B_RAW!$C:$I,6,0)/100) -> 0.154 | J20: =IF(ISERROR(VLOOKUP($E20,表A_RAW!$C:$I,5,0)),"",VLOOKUP($E20,表A_RAW!$C:$I,5,0)) -> 303549 | K20: =IF(ISERROR(VLOOKUP($E20,表A_RAW!$C:$I,7,0)),"",VLOOKUP($E20,表A_RAW!$C:$I,7,0)) -> 1.531960244 | L20: =IF(ISERROR(VLOOKUP($E20,表C_RAW!$C:$I,4,0)),"",VLOOKUP($E20,表C_RAW!$C:$I,4,0)) -> 1976833 | M20: =IF(ISERROR(VLOOKUP($E20,表C_RAW!$C:$I,5,0)),"",VLOOKUP($E20,表C_RAW!$C:$I,5,0)) -> 925428 | N20: =IF(ISERROR(VLOOKUP($E20,表C_RAW!$C:$I,6,0)),"",VLOOKUP($E20,表C_RAW!$C:$I,6,0)/100) -> 1.1361
B21: 4 | C21: =VLOOKUP(B21,表A_RAW!N:T,3,0) -> 其他電子業 | D21: 1 | E21: =VLOOKUP($C$21&D21,表A_RAW!A:I,3,FALSE) -> 3093 港建* | G21: =IF(ISERROR(VLOOKUP($E21,表A_RAW!$C:$I,4,0)),"",VLOOKUP($E21,表A_RAW!$C:$I,4,0)) -> 343855 | H21: =IF(ISERROR(VLOOKUP($E21,表B_RAW!$C:$I,5,0)),"",VLOOKUP($E21,表B_RAW!$C:$I,5,0)) -> 160439 | I21: =IF(ISERROR(VLOOKUP($E21,表B_RAW!$C:$I,6,0)),"",VLOOKUP($E21,表B_RAW!$C:$I,6,0)/100) -> 1.1432 | J21: =IF(ISERROR(VLOOKUP($E21,表A_RAW!$C:$I,5,0)),"",VLOOKUP($E21,表A_RAW!$C:$I,5,0)) -> 70038 | K21: =IF(ISERROR(VLOOKUP($E21,表A_RAW!$C:$I,7,0)),"",VLOOKUP($E21,表A_RAW!$C:$I,7,0)) -> 3.909549102 | L21: =IF(ISERROR(VLOOKUP($E21,表C_RAW!$C:$I,4,0)),"",VLOOKUP($E21,表C_RAW!$C:$I,4,0)) -> 572536 | M21: =IF(ISERROR(VLOOKUP($E21,表C_RAW!$C:$I,5,0)),"",VLOOKUP($E21,表C_RAW!$C:$I,5,0)) -> 207808 | N21: =IF(ISERROR(VLOOKUP($E21,表C_RAW!$C:$I,6,0)),"",VLOOKUP($E21,表C_RAW!$C:$I,6,0)/100) -> 1.7551
D22: 2 | E22: =VLOOKUP($C$21&D22,表A_RAW!A:I,3,FALSE) -> 2354 鴻準 | G22: =IF(ISERROR(VLOOKUP($E22,表A_RAW!$C:$I,4,0)),"",VLOOKUP($E22,表A_RAW!$C:$I,4,0)) -> 12051114 | H22: =IF(ISERROR(VLOOKUP($E22,表B_RAW!$C:$I,5,0)),"",VLOOKUP($E22,表B_RAW!$C:$I,5,0)) -> 9418841 | I22: =IF(ISERROR(VLOOKUP($E22,表B_RAW!$C:$I,6,0)),"",VLOOKUP($E22,表B_RAW!$C:$I,6,0)/100) -> 0.2795 | J22: =IF(ISERROR(VLOOKUP($E22,表A_RAW!$C:$I,5,0)),"",VLOOKUP($E22,表A_RAW!$C:$I,5,0)) -> 3164751 | K22: =IF(ISERROR(VLOOKUP($E22,表A_RAW!$C:$I,7,0)),"",VLOOKUP($E22,表A_RAW!$C:$I,7,0)) -> 2.807918538 | L22: =IF(ISERROR(VLOOKUP($E22,表C_RAW!$C:$I,4,0)),"",VLOOKUP($E22,表C_RAW!$C:$I,4,0)) -> 29973018 | M22: =IF(ISERROR(VLOOKUP($E22,表C_RAW!$C:$I,5,0)),"",VLOOKUP($E22,表C_RAW!$C:$I,5,0)) -> 8840076 | N22: =IF(ISERROR(VLOOKUP($E22,表C_RAW!$C:$I,6,0)),"",VLOOKUP($E22,表C_RAW!$C:$I,6,0)/100) -> 2.3906
D23: 3 | E23: =VLOOKUP($C$21&D23,表A_RAW!A:I,3,FALSE) -> 3663 鑫科 | G23: =IF(ISERROR(VLOOKUP($E23,表A_RAW!$C:$I,4,0)),"",VLOOKUP($E23,表A_RAW!$C:$I,4,0)) -> 456378 | H23: =IF(ISERROR(VLOOKUP($E23,表B_RAW!$C:$I,5,0)),"",VLOOKUP($E23,表B_RAW!$C:$I,5,0)) -> 364943 | I23: =IF(ISERROR(VLOOKUP($E23,表B_RAW!$C:$I,6,0)),"",VLOOKUP($E23,表B_RAW!$C:$I,6,0)/100) -> 0.2505 | J23: =IF(ISERROR(VLOOKUP($E23,表A_RAW!$C:$I,5,0)),"",VLOOKUP($E23,表A_RAW!$C:$I,5,0)) -> 164215 | K23: =IF(ISERROR(VLOOKUP($E23,表A_RAW!$C:$I,7,0)),"",VLOOKUP($E23,表A_RAW!$C:$I,7,0)) -> 1.779149286 | L23: =IF(ISERROR(VLOOKUP($E23,表C_RAW!$C:$I,4,0)),"",VLOOKUP($E23,表C_RAW!$C:$I,4,0)) -> 1148937 | M23: =IF(ISERROR(VLOOKUP($E23,表C_RAW!$C:$I,5,0)),"",VLOOKUP($E23,表C_RAW!$C:$I,5,0)) -> 547895 | N23: =IF(ISERROR(VLOOKUP($E23,表C_RAW!$C:$I,6,0)),"",VLOOKUP($E23,表C_RAW!$C:$I,6,0)/100) -> 1.097
C24: =VLOOKUP(B21,表A_RAW!N:T,7,0) -> 23.70638358 | D24: 4 | E24: =VLOOKUP($C$21&D24,表A_RAW!A:I,3,FALSE) -> 6654 天正國際 | G24: =IF(ISERROR(VLOOKUP($E24,表A_RAW!$C:$I,4,0)),"",VLOOKUP($E24,表A_RAW!$C:$I,4,0)) -> 36408 | H24: =IF(ISERROR(VLOOKUP($E24,表B_RAW!$C:$I,5,0)),"",VLOOKUP($E24,表B_RAW!$C:$I,5,0)) -> 31712 | I24: =IF(ISERROR(VLOOKUP($E24,表B_RAW!$C:$I,6,0)),"",VLOOKUP($E24,表B_RAW!$C:$I,6,0)/100) -> 0.1481 | J24: =IF(ISERROR(VLOOKUP($E24,表A_RAW!$C:$I,5,0)),"",VLOOKUP($E24,表A_RAW!$C:$I,5,0)) -> 14927 | K24: =IF(ISERROR(VLOOKUP($E24,表A_RAW!$C:$I,7,0)),"",VLOOKUP($E24,表A_RAW!$C:$I,7,0)) -> 1.439070141 | L24: =IF(ISERROR(VLOOKUP($E24,表C_RAW!$C:$I,4,0)),"",VLOOKUP($E24,表C_RAW!$C:$I,4,0)) -> 84597 | M24: =IF(ISERROR(VLOOKUP($E24,表C_RAW!$C:$I,5,0)),"",VLOOKUP($E24,表C_RAW!$C:$I,5,0)) -> 57823 | N24: =IF(ISERROR(VLOOKUP($E24,表C_RAW!$C:$I,6,0)),"",VLOOKUP($E24,表C_RAW!$C:$I,6,0)/100) -> 0.463
D25: 5 | E25: =VLOOKUP($C$21&D25,表A_RAW!A:I,3,FALSE) -> 3498 陽程 | G25: =IF(ISERROR(VLOOKUP($E25,表A_RAW!$C:$I,4,0)),"",VLOOKUP($E25,表A_RAW!$C:$I,4,0)) -> 29504 | H25: =IF(ISERROR(VLOOKUP($E25,表B_RAW!$C:$I,5,0)),"",VLOOKUP($E25,表B_RAW!$C:$I,5,0)) -> 35979 | I25: =IF(ISERROR(VLOOKUP($E25,表B_RAW!$C:$I,6,0)),"",VLOOKUP($E25,表B_RAW!$C:$I,6,0)/100) -> -0.18 | J25: =IF(ISERROR(VLOOKUP($E25,表A_RAW!$C:$I,5,0)),"",VLOOKUP($E25,表A_RAW!$C:$I,5,0)) -> 13347 | K25: =IF(ISERROR(VLOOKUP($E25,表A_RAW!$C:$I,7,0)),"",VLOOKUP($E25,表A_RAW!$C:$I,7,0)) -> 1.210534202 | L25: =IF(ISERROR(VLOOKUP($E25,表C_RAW!$C:$I,4,0)),"",VLOOKUP($E25,表C_RAW!$C:$I,4,0)) -> 141423 | M25: =IF(ISERROR(VLOOKUP($E25,表C_RAW!$C:$I,5,0)),"",VLOOKUP($E25,表C_RAW!$C:$I,5,0)) -> 66581 | N25: =IF(ISERROR(VLOOKUP($E25,表C_RAW!$C:$I,6,0)),"",VLOOKUP($E25,表C_RAW!$C:$I,6,0)/100) -> 1.1241
B26: 5 | C26: =VLOOKUP(B26,表A_RAW!N:T,3,0) -> 生技醫療業 | D26: 1 | E26: =VLOOKUP($C$26&D26,表A_RAW!A:I,3,FALSE) -> 6541 泰福-KY | G26: =IF(ISERROR(VLOOKUP($E26,表A_RAW!$C:$I,4,0)),"",VLOOKUP($E26,表A_RAW!$C:$I,4,0)) -> 39396 | H26: =IF(ISERROR(VLOOKUP($E26,表B_RAW!$C:$I,5,0)),"",VLOOKUP($E26,表B_RAW!$C:$I,5,0)) -> 7129 | I26: =IF(ISERROR(VLOOKUP($E26,表B_RAW!$C:$I,6,0)),"",VLOOKUP($E26,表B_RAW!$C:$I,6,0)/100) -> 4.5262 | J26: =IF(ISERROR(VLOOKUP($E26,表A_RAW!$C:$I,5,0)),"",VLOOKUP($E26,表A_RAW!$C:$I,5,0)) -> 637 | K26: =IF(ISERROR(VLOOKUP($E26,表A_RAW!$C:$I,7,0)),"",VLOOKUP($E26,表A_RAW!$C:$I,7,0)) -> 60.84615385 | L26: =IF(ISERROR(VLOOKUP($E26,表C_RAW!$C:$I,4,0)),"",VLOOKUP($E26,表C_RAW!$C:$I,4,0)) -> 49862 | M26: =IF(ISERROR(VLOOKUP($E26,表C_RAW!$C:$I,5,0)),"",VLOOKUP($E26,表C_RAW!$C:$I,5,0)) -> 3357 | N26: =IF(ISERROR(VLOOKUP($E26,表C_RAW!$C:$I,6,0)),"",VLOOKUP($E26,表C_RAW!$C:$I,6,0)/100) -> 13.8531
D27: 2 | E27: =VLOOKUP($C$26&D27,表A_RAW!A:I,3,FALSE) -> 6535 順藥 | G27: =IF(ISERROR(VLOOKUP($E27,表A_RAW!$C:$I,4,0)),"",VLOOKUP($E27,表A_RAW!$C:$I,4,0)) -> 8816 | H27: =IF(ISERROR(VLOOKUP($E27,表B_RAW!$C:$I,5,0)),"",VLOOKUP($E27,表B_RAW!$C:$I,5,0)) -> 40 | I27: =IF(ISERROR(VLOOKUP($E27,表B_RAW!$C:$I,6,0)),"",VLOOKUP($E27,表B_RAW!$C:$I,6,0)/100) -> 219.4 | J27: =IF(ISERROR(VLOOKUP($E27,表A_RAW!$C:$I,5,0)),"",VLOOKUP($E27,表A_RAW!$C:$I,5,0)) -> 375 | K27: =IF(ISERROR(VLOOKUP($E27,表A_RAW!$C:$I,7,0)),"",VLOOKUP($E27,表A_RAW!$C:$I,7,0)) -> 22.50933333 | L27: =IF(ISERROR(VLOOKUP($E27,表C_RAW!$C:$I,4,0)),"",VLOOKUP($E27,表C_RAW!$C:$I,4,0)) -> 8896 | M27: =IF(ISERROR(VLOOKUP($E27,表C_RAW!$C:$I,5,0)),"",VLOOKUP($E27,表C_RAW!$C:$I,5,0)) -> 4463 | N27: =IF(ISERROR(VLOOKUP($E27,表C_RAW!$C:$I,6,0)),"",VLOOKUP($E27,表C_RAW!$C:$I,6,0)/100) -> 0.9933
D28: 3 | E28: =VLOOKUP($C$26&D28,表A_RAW!A:I,3,FALSE) -> 4131 浩泰 | G28: =IF(ISERROR(VLOOKUP($E28,表A_RAW!$C:$I,4,0)),"",VLOOKUP($E28,表A_RAW!$C:$I,4,0)) -> 19304 | H28: =IF(ISERROR(VLOOKUP($E28,表B_RAW!$C:$I,5,0)),"",VLOOKUP($E28,表B_RAW!$C:$I,5,0)) -> 27933 | I28: =IF(ISERROR(VLOOKUP($E28,表B_RAW!$C:$I,6,0)),"",VLOOKUP($E28,表B_RAW!$C:$I,6,0)/100) -> -0.3089 | J28: =IF(ISERROR(VLOOKUP($E28,表A_RAW!$C:$I,5,0)),"",VLOOKUP($E28,表A_RAW!$C:$I,5,0)) -> 5921 | K28: =IF(ISERROR(VLOOKUP($E28,表A_RAW!$C:$I,7,0)),"",VLOOKUP($E28,表A_RAW!$C:$I,7,0)) -> 2.260260091 | L28: =IF(ISERROR(VLOOKUP($E28,表C_RAW!$C:$I,4,0)),"",VLOOKUP($E28,表C_RAW!$C:$I,4,0)) -> 69585 | M28: =IF(ISERROR(VLOOKUP($E28,表C_RAW!$C:$I,5,0)),"",VLOOKUP($E28,表C_RAW!$C:$I,5,0)) -> 15767 | N28: =IF(ISERROR(VLOOKUP($E28,表C_RAW!$C:$I,6,0)),"",VLOOKUP($E28,表C_RAW!$C:$I,6,0)/100) -> 3.4133
C29: =VLOOKUP(B26,表A_RAW!N:T,7,0) -> 20.41224569 | D29: 4 | E29: =VLOOKUP($C$26&D29,表A_RAW!A:I,3,FALSE) -> 6649 台生材 | G29: =IF(ISERROR(VLOOKUP($E29,表A_RAW!$C:$I,4,0)),"",VLOOKUP($E29,表A_RAW!$C:$I,4,0)) -> 18669 | H29: =IF(ISERROR(VLOOKUP($E29,表B_RAW!$C:$I,5,0)),"",VLOOKUP($E29,表B_RAW!$C:$I,5,0)) -> 33172 | I29: =IF(ISERROR(VLOOKUP($E29,表B_RAW!$C:$I,6,0)),"",VLOOKUP($E29,表B_RAW!$C:$I,6,0)/100) -> -0.4372 | J29: =IF(ISERROR(VLOOKUP($E29,表A_RAW!$C:$I,5,0)),"",VLOOKUP($E29,表A_RAW!$C:$I,5,0)) -> 5822 | K29: =IF(ISERROR(VLOOKUP($E29,表A_RAW!$C:$I,7,0)),"",VLOOKUP($E29,表A_RAW!$C:$I,7,0)) -> 2.206630024 | L29: =IF(ISERROR(VLOOKUP($E29,表C_RAW!$C:$I,4,0)),"",VLOOKUP($E29,表C_RAW!$C:$I,4,0)) -> 67635 | M29: =IF(ISERROR(VLOOKUP($E29,表C_RAW!$C:$I,5,0)),"",VLOOKUP($E29,表C_RAW!$C:$I,5,0)) -> 18685 | N29: =IF(ISERROR(VLOOKUP($E29,表C_RAW!$C:$I,6,0)),"",VLOOKUP($E29,表C_RAW!$C:$I,6,0)/100) -> 2.6197
D30: 5 | E30: =VLOOKUP($C$26&D30,表A_RAW!A:I,3,FALSE) -> 3176 基亞 | G30: =IF(ISERROR(VLOOKUP($E30,表A_RAW!$C:$I,4,0)),"",VLOOKUP($E30,表A_RAW!$C:$I,4,0)) -> 313021 | H30: =IF(ISERROR(VLOOKUP($E30,表B_RAW!$C:$I,5,0)),"",VLOOKUP($E30,表B_RAW!$C:$I,5,0)) -> 89103 | I30: =IF(ISERROR(VLOOKUP($E30,表B_RAW!$C:$I,6,0)),"",VLOOKUP($E30,表B_RAW!$C:$I,6,0)/100) -> 2.513 | J30: =IF(ISERROR(VLOOKUP($E30,表A_RAW!$C:$I,5,0)),"",VLOOKUP($E30,表A_RAW!$C:$I,5,0)) -> 103322 | K30: =IF(ISERROR(VLOOKUP($E30,表A_RAW!$C:$I,7,0)),"",VLOOKUP($E30,表A_RAW!$C:$I,7,0)) -> 2.029567759 | L30: =IF(ISERROR(VLOOKUP($E30,表C_RAW!$C:$I,4,0)),"",VLOOKUP($E30,表C_RAW!$C:$I,4,0)) -> 499376 | M30: =IF(ISERROR(VLOOKUP($E30,表C_RAW!$C:$I,5,0)),"",VLOOKUP($E30,表C_RAW!$C:$I,5,0)) -> 251316 | N30: =IF(ISERROR(VLOOKUP($E30,表C_RAW!$C:$I,6,0)),"",VLOOKUP($E30,表C_RAW!$C:$I,6,0)/100) -> 0.987
B32: 衰退前五名之產業 YOY(單月)% | D32: 該產業衰退前五名之公司 YOY(單月)% | G32: 單月營收金額(千元) | H32: 本月與上月相較 | J32: 本月與去年同期相較 | L32: 累計營收金額(千元) | M32: 累計營收與去年同期相較
B33: 衰退 排名 | C33: 產業 | D33: 排名 | E33: 公司代號&簡稱 | H33: 上月營收金額(千元) | I33: 較上月變動比率(%) | J33: 去年同期金額(千元) | K33: 較去年同期變動比率(%) | M33: 去年累計營收金額(千元) | N33: 較去年同期變動比率(%)
B34: 1 | C34: =VLOOKUP(B34,表A_RAW!O:T,2,0) -> 金融業 | D34: 1 | E34: =VLOOKUP($C$34&D34,表A_RAW!B:I,2,0) -> 5864 致和證 | G34: =IF(ISERROR(VLOOKUP($E34,表A_RAW!$C:$I,4,0)),"",VLOOKUP($E34,表A_RAW!$C:$I,4,0)) -> -392299 | H34: =IF(ISERROR(VLOOKUP($E34,表B_RAW!$C:$I,5,0)),"",VLOOKUP($E34,表B_RAW!$C:$I,5,0)) -> -51521 | I34: =IF(ISERROR(VLOOKUP($E34,表B_RAW!$C:$I,6,0)),"",VLOOKUP($E34,表B_RAW!$C:$I,6,0)/100) -> -6.6144 | J34: =IF(ISERROR(VLOOKUP($E34,表A_RAW!$C:$I,5,0)),"",VLOOKUP($E34,表A_RAW!$C:$I,5,0)) -> 245262 | K34: =IF(ISERROR(VLOOKUP($E34,表A_RAW!$C:$I,7,0)),"",VLOOKUP($E34,表A_RAW!$C:$I,7,0)) -> -2.599509912 | L34: =IF(ISERROR(VLOOKUP($E34,表C_RAW!$C:$I,4,0)),"",VLOOKUP($E34,表C_RAW!$C:$I,4,0)) -> -426682 | M34: =IF(ISERROR(VLOOKUP($E34,表C_RAW!$C:$I,5,0)),"",VLOOKUP($E34,表C_RAW!$C:$I,5,0)) -> 399591 | N34: =IF(ISERROR(VLOOKUP($E34,表C_RAW!$C:$I,6,0)),"",VLOOKUP($E34,表C_RAW!$C:$I,6,0)/100) -> -2.0678
D35: 2 | E35: =VLOOKUP($C$34&D35,表A_RAW!B:I,2,0) -> 6016 康和證 | G35: =IF(ISERROR(VLOOKUP($E35,表A_RAW!$C:$I,4,0)),"",VLOOKUP($E35,表A_RAW!$C:$I,4,0)) -> -324806 | H35: =IF(ISERROR(VLOOKUP($E35,表B_RAW!$C:$I,5,0)),"",VLOOKUP($E35,表B_RAW!$C:$I,5,0)) -> -2742 | I35: =IF(ISERROR(VLOOKUP($E35,表B_RAW!$C:$I,6,0)),"",VLOOKUP($E35,表B_RAW!$C:$I,6,0)/100) -> -117.4559 | J35: =IF(ISERROR(VLOOKUP($E35,表A_RAW!$C:$I,5,0)),"",VLOOKUP($E35,表A_RAW!$C:$I,5,0)) -> 209179 | K35: =IF(ISERROR(VLOOKUP($E35,表A_RAW!$C:$I,7,0)),"",VLOOKUP($E35,表A_RAW!$C:$I,7,0)) -> -2.552765813 | L35: =IF(ISERROR(VLOOKUP($E35,表C_RAW!$C:$I,4,0)),"",VLOOKUP($E35,表C_RAW!$C:$I,4,0)) -> 159689 | M35: =IF(ISERROR(VLOOKUP($E35,表C_RAW!$C:$I,5,0)),"",VLOOKUP($E35,表C_RAW!$C:$I,5,0)) -> 1410600 | N35: =IF(ISERROR(VLOOKUP($E35,表C_RAW!$C:$I,6,0)),"",VLOOKUP($E35,表C_RAW!$C:$I,6,0)/100) -> -0.8868
D36: 3 | E36: =VLOOKUP($C$34&D36,表A_RAW!B:I,2,0) -> 6021 美好證 | G36: =IF(ISERROR(VLOOKUP($E36,表A_RAW!$C:$I,4,0)),"",VLOOKUP($E36,表A_RAW!$C:$I,4,0)) -> -264125 | H36: =IF(ISERROR(VLOOKUP($E36,表B_RAW!$C:$I,5,0)),"",VLOOKUP($E36,表B_RAW!$C:$I,5,0)) -> -30073 | I36: =IF(ISERROR(VLOOKUP($E36,表B_RAW!$C:$I,6,0)),"",VLOOKUP($E36,表B_RAW!$C:$I,6,0)/100) -> -7.7828 | J36: =IF(ISERROR(VLOOKUP($E36,表A_RAW!$C:$I,5,0)),"",VLOOKUP($E36,表A_RAW!$C:$I,5,0)) -> 229011 | K36: =IF(ISERROR(VLOOKUP($E36,表A_RAW!$C:$I,7,0)),"",VLOOKUP($E36,表A_RAW!$C:$I,7,0)) -> -2.153328879 | L36: =IF(ISERROR(VLOOKUP($E36,表C_RAW!$C:$I,4,0)),"",VLOOKUP($E36,表C_RAW!$C:$I,4,0)) -> -147280 | M36: =IF(ISERROR(VLOOKUP($E36,表C_RAW!$C:$I,5,0)),"",VLOOKUP($E36,表C_RAW!$C:$I,5,0)) -> 455343 | N36: =IF(ISERROR(VLOOKUP($E36,表C_RAW!$C:$I,6,0)),"",VLOOKUP($E36,表C_RAW!$C:$I,6,0)/100) -> -1.3234
C37: =VLOOKUP(B34,表A_RAW!O:T,6,0) -> -6.616854876 | D37: 4 | E37: =VLOOKUP($C$34&D37,表A_RAW!B:I,2,0) -> 6026 福邦證 | G37: =IF(ISERROR(VLOOKUP($E37,表A_RAW!$C:$I,4,0)),"",VLOOKUP($E37,表A_RAW!$C:$I,4,0)) -> -110636 | H37: =IF(ISERROR(VLOOKUP($E37,表B_RAW!$C:$I,5,0)),"",VLOOKUP($E37,表B_RAW!$C:$I,5,0)) -> 69686 | I37: =IF(ISERROR(VLOOKUP($E37,表B_RAW!$C:$I,6,0)),"",VLOOKUP($E37,表B_RAW!$C:$I,6,0)/100) -> -2.5876 | J37: =IF(ISERROR(VLOOKUP($E37,表A_RAW!$C:$I,5,0)),"",VLOOKUP($E37,表A_RAW!$C:$I,5,0)) -> 118732 | K37: =IF(ISERROR(VLOOKUP($E37,表A_RAW!$C:$I,7,0)),"",VLOOKUP($E37,表A_RAW!$C:$I,7,0)) -> -1.931812822 | L37: =IF(ISERROR(VLOOKUP($E37,表C_RAW!$C:$I,4,0)),"",VLOOKUP($E37,表C_RAW!$C:$I,4,0)) -> 185680 | M37: =IF(ISERROR(VLOOKUP($E37,表C_RAW!$C:$I,5,0)),"",VLOOKUP($E37,表C_RAW!$C:$I,5,0)) -> 395753 | N37: =IF(ISERROR(VLOOKUP($E37,表C_RAW!$C:$I,6,0)),"",VLOOKUP($E37,表C_RAW!$C:$I,6,0)/100) -> -0.5308
D38: 5 | E38: =VLOOKUP($C$34&D38,表A_RAW!B:I,2,0) -> 6020 大展證 | G38: =IF(ISERROR(VLOOKUP($E38,表A_RAW!$C:$I,4,0)),"",VLOOKUP($E38,表A_RAW!$C:$I,4,0)) -> -23724 | H38: =IF(ISERROR(VLOOKUP($E38,表B_RAW!$C:$I,5,0)),"",VLOOKUP($E38,表B_RAW!$C:$I,5,0)) -> 22082 | I38: =IF(ISERROR(VLOOKUP($E38,表B_RAW!$C:$I,6,0)),"",VLOOKUP($E38,表B_RAW!$C:$I,6,0)/100) -> -2.0744 | J38: =IF(ISERROR(VLOOKUP($E38,表A_RAW!$C:$I,5,0)),"",VLOOKUP($E38,表A_RAW!$C:$I,5,0)) -> 56428 | K38: =IF(ISERROR(VLOOKUP($E38,表A_RAW!$C:$I,7,0)),"",VLOOKUP($E38,表A_RAW!$C:$I,7,0)) -> -1.420429574 | L38: =IF(ISERROR(VLOOKUP($E38,表C_RAW!$C:$I,4,0)),"",VLOOKUP($E38,表C_RAW!$C:$I,4,0)) -> -5900 | M38: =IF(ISERROR(VLOOKUP($E38,表C_RAW!$C:$I,5,0)),"",VLOOKUP($E38,表C_RAW!$C:$I,5,0)) -> 121618 | N38: =IF(ISERROR(VLOOKUP($E38,表C_RAW!$C:$I,6,0)),"",VLOOKUP($E38,表C_RAW!$C:$I,6,0)/100) -> -1.0485
B39: 2 | C39: =VLOOKUP(B39,表A_RAW!O:T,2,0) -> 汽車工業 | D39: 1 | E39: =VLOOKUP($C$39&D39,表A_RAW!B:I,2,0) -> 2227 裕日車 | G39: =IF(ISERROR(VLOOKUP($E39,表A_RAW!$C:$I,4,0)),"",VLOOKUP($E39,表A_RAW!$C:$I,4,0)) -> 1468046 | H39: =IF(ISERROR(VLOOKUP($E39,表B_RAW!$C:$I,5,0)),"",VLOOKUP($E39,表B_RAW!$C:$I,5,0)) -> 1156938 | I39: =IF(ISERROR(VLOOKUP($E39,表B_RAW!$C:$I,6,0)),"",VLOOKUP($E39,表B_RAW!$C:$I,6,0)/100) -> 0.2689 | J39: =IF(ISERROR(VLOOKUP($E39,表A_RAW!$C:$I,5,0)),"",VLOOKUP($E39,表A_RAW!$C:$I,5,0)) -> 2380519 | K39: =IF(ISERROR(VLOOKUP($E39,表A_RAW!$C:$I,7,0)),"",VLOOKUP($E39,表A_RAW!$C:$I,7,0)) -> -0.3833084298 | L39: =IF(ISERROR(VLOOKUP($E39,表C_RAW!$C:$I,4,0)),"",VLOOKUP($E39,表C_RAW!$C:$I,4,0)) -> 4552305 | M39: =IF(ISERROR(VLOOKUP($E39,表C_RAW!$C:$I,5,0)),"",VLOOKUP($E39,表C_RAW!$C:$I,5,0)) -> 7596059 | N39: =IF(ISERROR(VLOOKUP($E39,表C_RAW!$C:$I,6,0)),"",VLOOKUP($E39,表C_RAW!$C:$I,6,0)/100) -> -0.4007
D40: 2 | E40: =VLOOKUP($C$39&D40,表A_RAW!B:I,2,0) -> 2204 中華 | G40: =IF(ISERROR(VLOOKUP($E40,表A_RAW!$C:$I,4,0)),"",VLOOKUP($E40,表A_RAW!$C:$I,4,0)) -> 3056790 | H40: =IF(ISERROR(VLOOKUP($E40,表B_RAW!$C:$I,5,0)),"",VLOOKUP($E40,表B_RAW!$C:$I,5,0)) -> 2241297 | I40: =IF(ISERROR(VLOOKUP($E40,表B_RAW!$C:$I,6,0)),"",VLOOKUP($E40,表B_RAW!$C:$I,6,0)/100) -> 0.3638 | J40: =IF(ISERROR(VLOOKUP($E40,表A_RAW!$C:$I,5,0)),"",VLOOKUP($E40,表A_RAW!$C:$I,5,0)) -> 4328327 | K40: =IF(ISERROR(VLOOKUP($E40,表A_RAW!$C:$I,7,0)),"",VLOOKUP($E40,表A_RAW!$C:$I,7,0)) -> -0.2937710113 | L40: =IF(ISERROR(VLOOKUP($E40,表C_RAW!$C:$I,4,0)),"",VLOOKUP($E40,表C_RAW!$C:$I,4,0)) -> 7949854 | M40: =IF(ISERROR(VLOOKUP($E40,表C_RAW!$C:$I,5,0)),"",VLOOKUP($E40,表C_RAW!$C:$I,5,0)) -> 12255673 | N40: =IF(ISERROR(VLOOKUP($E40,表C_RAW!$C:$I,6,0)),"",VLOOKUP($E40,表C_RAW!$C:$I,6,0)/100) -> -0.3513
D41: 3 | E41: =VLOOKUP($C$39&D41,表A_RAW!B:I,2,0) -> 1536 和大 | G41: =IF(ISERROR(VLOOKUP($E41,表A_RAW!$C:$I,4,0)),"",VLOOKUP($E41,表A_RAW!$C:$I,4,0)) -> 401748 | H41: =IF(ISERROR(VLOOKUP($E41,表B_RAW!$C:$I,5,0)),"",VLOOKUP($E41,表B_RAW!$C:$I,5,0)) -> 454999 | I41: =IF(ISERROR(VLOOKUP($E41,表B_RAW!$C:$I,6,0)),"",VLOOKUP($E41,表B_RAW!$C:$I,6,0)/100) -> -0.117 | J41: =IF(ISERROR(VLOOKUP($E41,表A_RAW!$C:$I,5,0)),"",VLOOKUP($E41,表A_RAW!$C:$I,5,0)) -> 486261 | K41: =IF(ISERROR(VLOOKUP($E41,表A_RAW!$C:$I,7,0)),"",VLOOKUP($E41,表A_RAW!$C:$I,7,0)) -> -0.1738017238 | L41: =IF(ISERROR(VLOOKUP($E41,表C_RAW!$C:$I,4,0)),"",VLOOKUP($E41,表C_RAW!$C:$I,4,0)) -> 1234196 | M41: =IF(ISERROR(VLOOKUP($E41,表C_RAW!$C:$I,5,0)),"",VLOOKUP($E41,表C_RAW!$C:$I,5,0)) -> 1487471 | N41: =IF(ISERROR(VLOOKUP($E41,表C_RAW!$C:$I,6,0)),"",VLOOKUP($E41,表C_RAW!$C:$I,6,0)/100) -> -0.1703
C42: =VLOOKUP(B39,表A_RAW!O:T,6,0) -> -4.29689941 | D42: 4 | E42: =VLOOKUP($C$39&D42,表A_RAW!B:I,2,0) -> 2247 汎德永業 | G42: =IF(ISERROR(VLOOKUP($E42,表A_RAW!$C:$I,4,0)),"",VLOOKUP($E42,表A_RAW!$C:$I,4,0)) -> 4204874 | H42: =IF(ISERROR(VLOOKUP($E42,表B_RAW!$C:$I,5,0)),"",VLOOKUP($E42,表B_RAW!$C:$I,5,0)) -> 3661530 | I42: =IF(ISERROR(VLOOKUP($E42,表B_RAW!$C:$I,6,0)),"",VLOOKUP($E42,表B_RAW!$C:$I,6,0)/100) -> 0.1484 | J42: =IF(ISERROR(VLOOKUP($E42,表A_RAW!$C:$I,5,0)),"",VLOOKUP($E42,表A_RAW!$C:$I,5,0)) -> 4898395 | K42: =IF(ISERROR(VLOOKUP($E42,表A_RAW!$C:$I,7,0)),"",VLOOKUP($E42,表A_RAW!$C:$I,7,0)) -> -0.141581273 | L42: =IF(ISERROR(VLOOKUP($E42,表C_RAW!$C:$I,4,0)),"",VLOOKUP($E42,表C_RAW!$C:$I,4,0)) -> 13150715 | M42: =IF(ISERROR(VLOOKUP($E42,表C_RAW!$C:$I,5,0)),"",VLOOKUP($E42,表C_RAW!$C:$I,5,0)) -> 13468972 | N42: =IF(ISERROR(VLOOKUP($E42,表C_RAW!$C:$I,6,0)),"",VLOOKUP($E42,表C_RAW!$C:$I,6,0)/100) -> -0.0236
D43: 5 | E43: =VLOOKUP($C$39&D43,表A_RAW!B:I,2,0) -> 2201 裕隆 | G43: =IF(ISERROR(VLOOKUP($E43,表A_RAW!$C:$I,4,0)),"",VLOOKUP($E43,表A_RAW!$C:$I,4,0)) -> 6396110 | H43: =IF(ISERROR(VLOOKUP($E43,表B_RAW!$C:$I,5,0)),"",VLOOKUP($E43,表B_RAW!$C:$I,5,0)) -> 5460715 | I43: =IF(ISERROR(VLOOKUP($E43,表B_RAW!$C:$I,6,0)),"",VLOOKUP($E43,表B_RAW!$C:$I,6,0)/100) -> 0.1713 | J43: =IF(ISERROR(VLOOKUP($E43,表A_RAW!$C:$I,5,0)),"",VLOOKUP($E43,表A_RAW!$C:$I,5,0)) -> 7161331 | K43: =IF(ISERROR(VLOOKUP($E43,表A_RAW!$C:$I,7,0)),"",VLOOKUP($E43,表A_RAW!$C:$I,7,0)) -> -0.1068545777 | L43: =IF(ISERROR(VLOOKUP($E43,表C_RAW!$C:$I,4,0)),"",VLOOKUP($E43,表C_RAW!$C:$I,4,0)) -> 17870958 | M43: =IF(ISERROR(VLOOKUP($E43,表C_RAW!$C:$I,5,0)),"",VLOOKUP($E43,表C_RAW!$C:$I,5,0)) -> 20644211 | N43: =IF(ISERROR(VLOOKUP($E43,表C_RAW!$C:$I,6,0)),"",VLOOKUP($E43,表C_RAW!$C:$I,6,0)/100) -> -0.1343
B44: 3 | C44: =VLOOKUP(B44,表A_RAW!O:T,2,0) -> 其他 | D44: 1 | E44: =VLOOKUP($C$44&D44,表A_RAW!B:I,2,0) -> 6901 鑽石投資 | G44: =IF(ISERROR(VLOOKUP($E44,表A_RAW!$C:$I,4,0)),"",VLOOKUP($E44,表A_RAW!$C:$I,4,0)) -> -646593 | H44: =IF(ISERROR(VLOOKUP($E44,表B_RAW!$C:$I,5,0)),"",VLOOKUP($E44,表B_RAW!$C:$I,5,0)) -> 409484 | I44: =IF(ISERROR(VLOOKUP($E44,表B_RAW!$C:$I,6,0)),"",VLOOKUP($E44,表B_RAW!$C:$I,6,0)/100) -> -2.579 | J44: =IF(ISERROR(VLOOKUP($E44,表A_RAW!$C:$I,5,0)),"",VLOOKUP($E44,表A_RAW!$C:$I,5,0)) -> -167545 | K44: =IF(ISERROR(VLOOKUP($E44,表A_RAW!$C:$I,7,0)),"",VLOOKUP($E44,表A_RAW!$C:$I,7,0)) -> -2.859219911 | L44: =IF(ISERROR(VLOOKUP($E44,表C_RAW!$C:$I,4,0)),"",VLOOKUP($E44,表C_RAW!$C:$I,4,0)) -> -546353 | M44: =IF(ISERROR(VLOOKUP($E44,表C_RAW!$C:$I,5,0)),"",VLOOKUP($E44,表C_RAW!$C:$I,5,0)) -> -773701 | N44: =IF(ISERROR(VLOOKUP($E44,表C_RAW!$C:$I,6,0)),"",VLOOKUP($E44,表C_RAW!$C:$I,6,0)/100) -> 0.2938
D45: 2 | E45: =VLOOKUP($C$44&D45,表A_RAW!B:I,2,0) -> 1516 川飛 | G45: =IF(ISERROR(VLOOKUP($E45,表A_RAW!$C:$I,4,0)),"",VLOOKUP($E45,表A_RAW!$C:$I,4,0)) -> 9841 | H45: =IF(ISERROR(VLOOKUP($E45,表B_RAW!$C:$I,5,0)),"",VLOOKUP($E45,表B_RAW!$C:$I,5,0)) -> 6993 | I45: =IF(ISERROR(VLOOKUP($E45,表B_RAW!$C:$I,6,0)),"",VLOOKUP($E45,表B_RAW!$C:$I,6,0)/100) -> 0.4073 | J45: =IF(ISERROR(VLOOKUP($E45,表A_RAW!$C:$I,5,0)),"",VLOOKUP($E45,表A_RAW!$C:$I,5,0)) -> 119142 | K45: =IF(ISERROR(VLOOKUP($E45,表A_RAW!$C:$I,7,0)),"",VLOOKUP($E45,表A_RAW!$C:$I,7,0)) -> -0.9174010844 | L45: =IF(ISERROR(VLOOKUP($E45,表C_RAW!$C:$I,4,0)),"",VLOOKUP($E45,表C_RAW!$C:$I,4,0)) -> 21864 | M45: =IF(ISERROR(VLOOKUP($E45,表C_RAW!$C:$I,5,0)),"",VLOOKUP($E45,表C_RAW!$C:$I,5,0)) -> 290617 | N45: =IF(ISERROR(VLOOKUP($E45,表C_RAW!$C:$I,6,0)),"",VLOOKUP($E45,表C_RAW!$C:$I,6,0)/100) -> -0.9248
D46: 3 | E46: =VLOOKUP($C$44&D46,表A_RAW!B:I,2,0) -> 1435 中福 | G46: =IF(ISERROR(VLOOKUP($E46,表A_RAW!$C:$I,4,0)),"",VLOOKUP($E46,表A_RAW!$C:$I,4,0)) -> 498 | H46: =IF(ISERROR(VLOOKUP($E46,表B_RAW!$C:$I,5,0)),"",VLOOKUP($E46,表B_RAW!$C:$I,5,0)) -> 499 | I46: =IF(ISERROR(VLOOKUP($E46,表B_RAW!$C:$I,6,0)),"",VLOOKUP($E46,表B_RAW!$C:$I,6,0)/100) -> -0.002 | J46: =IF(ISERROR(VLOOKUP($E46,表A_RAW!$C:$I,5,0)),"",VLOOKUP($E46,表A_RAW!$C:$I,5,0)) -> 1020 | K46: =IF(ISERROR(VLOOKUP($E46,表A_RAW!$C:$I,7,0)),"",VLOOKUP($E46,表A_RAW!$C:$I,7,0)) -> -0.5117647059 | L46: =IF(ISERROR(VLOOKUP($E46,表C_RAW!$C:$I,4,0)),"",VLOOKUP($E46,表C_RAW!$C:$I,4,0)) -> 1495 | M46: =IF(ISERROR(VLOOKUP($E46,表C_RAW!$C:$I,5,0)),"",VLOOKUP($E46,表C_RAW!$C:$I,5,0)) -> 2650 | N46: =IF(ISERROR(VLOOKUP($E46,表C_RAW!$C:$I,6,0)),"",VLOOKUP($E46,表C_RAW!$C:$I,6,0)/100) -> -0.4358
C47: =VLOOKUP(B44,表A_RAW!O:T,6,0) -> -4.062951216 | D47: 4 | E47: =VLOOKUP($C$44&D47,表A_RAW!B:I,2,0) -> 5398 慕康生醫 | G47: =IF(ISERROR(VLOOKUP($E47,表A_RAW!$C:$I,4,0)),"",VLOOKUP($E47,表A_RAW!$C:$I,4,0)) -> 10309 | H47: =IF(ISERROR(VLOOKUP($E47,表B_RAW!$C:$I,5,0)),"",VLOOKUP($E47,表B_RAW!$C:$I,5,0)) -> 6488 | I47: =IF(ISERROR(VLOOKUP($E47,表B_RAW!$C:$I,6,0)),"",VLOOKUP($E47,表B_RAW!$C:$I,6,0)/100) -> 0.5889 | J47: =IF(ISERROR(VLOOKUP($E47,表A_RAW!$C:$I,5,0)),"",VLOOKUP($E47,表A_RAW!$C:$I,5,0)) -> 20887 | K47: =IF(ISERROR(VLOOKUP($E47,表A_RAW!$C:$I,7,0)),"",VLOOKUP($E47,表A_RAW!$C:$I,7,0)) -> -0.5064394121 | L47: =IF(ISERROR(VLOOKUP($E47,表C_RAW!$C:$I,4,0)),"",VLOOKUP($E47,表C_RAW!$C:$I,4,0)) -> 25850 | M47: =IF(ISERROR(VLOOKUP($E47,表C_RAW!$C:$I,5,0)),"",VLOOKUP($E47,表C_RAW!$C:$I,5,0)) -> 38851 | N47: =IF(ISERROR(VLOOKUP($E47,表C_RAW!$C:$I,6,0)),"",VLOOKUP($E47,表C_RAW!$C:$I,6,0)/100) -> -0.3346
D48: 5 | E48: =VLOOKUP($C$44&D48,表A_RAW!B:I,2,0) -> 6957 裕慶-KY | G48: =IF(ISERROR(VLOOKUP($E48,表A_RAW!$C:$I,4,0)),"",VLOOKUP($E48,表A_RAW!$C:$I,4,0)) -> 282585 | H48: =IF(ISERROR(VLOOKUP($E48,表B_RAW!$C:$I,5,0)),"",VLOOKUP($E48,表B_RAW!$C:$I,5,0)) -> 153041 | I48: =IF(ISERROR(VLOOKUP($E48,表B_RAW!$C:$I,6,0)),"",VLOOKUP($E48,表B_RAW!$C:$I,6,0)/100) -> 0.8465 | J48: =IF(ISERROR(VLOOKUP($E48,表A_RAW!$C:$I,5,0)),"",VLOOKUP($E48,表A_RAW!$C:$I,5,0)) -> 514607 | K48: =IF(ISERROR(VLOOKUP($E48,表A_RAW!$C:$I,7,0)),"",VLOOKUP($E48,表A_RAW!$C:$I,7,0)) -> -0.450872219 | L48: =IF(ISERROR(VLOOKUP($E48,表C_RAW!$C:$I,4,0)),"",VLOOKUP($E48,表C_RAW!$C:$I,4,0)) -> 783602 | M48: =IF(ISERROR(VLOOKUP($E48,表C_RAW!$C:$I,5,0)),"",VLOOKUP($E48,表C_RAW!$C:$I,5,0)) -> 984008 | N48: =IF(ISERROR(VLOOKUP($E48,表C_RAW!$C:$I,6,0)),"",VLOOKUP($E48,表C_RAW!$C:$I,6,0)/100) -> -0.2037
B49: 4 | C49: =VLOOKUP(B49,表A_RAW!O:T,2,0) -> 鋼鐵工業 | D49: 1 | E49: =VLOOKUP($C$49&D49,表A_RAW!B:I,2,0) -> 2025 千興 | G49: =IF(ISERROR(VLOOKUP($E49,表A_RAW!$C:$I,4,0)),"",VLOOKUP($E49,表A_RAW!$C:$I,4,0)) -> 71370 | H49: =IF(ISERROR(VLOOKUP($E49,表B_RAW!$C:$I,5,0)),"",VLOOKUP($E49,表B_RAW!$C:$I,5,0)) -> 61032 | I49: =IF(ISERROR(VLOOKUP($E49,表B_RAW!$C:$I,6,0)),"",VLOOKUP($E49,表B_RAW!$C:$I,6,0)/100) -> 0.1694 | J49: =IF(ISERROR(VLOOKUP($E49,表A_RAW!$C:$I,5,0)),"",VLOOKUP($E49,表A_RAW!$C:$I,5,0)) -> 109119 | K49: =IF(ISERROR(VLOOKUP($E49,表A_RAW!$C:$I,7,0)),"",VLOOKUP($E49,表A_RAW!$C:$I,7,0)) -> -0.3459434196 | L49: =IF(ISERROR(VLOOKUP($E49,表C_RAW!$C:$I,4,0)),"",VLOOKUP($E49,表C_RAW!$C:$I,4,0)) -> 192726 | M49: =IF(ISERROR(VLOOKUP($E49,表C_RAW!$C:$I,5,0)),"",VLOOKUP($E49,表C_RAW!$C:$I,5,0)) -> 294897 | N49: =IF(ISERROR(VLOOKUP($E49,表C_RAW!$C:$I,6,0)),"",VLOOKUP($E49,表C_RAW!$C:$I,6,0)/100) -> -0.3465
D50: 2 | E50: =VLOOKUP($C$49&D50,表A_RAW!B:I,2,0) -> 6248 沛波 | G50: =IF(ISERROR(VLOOKUP($E50,表A_RAW!$C:$I,4,0)),"",VLOOKUP($E50,表A_RAW!$C:$I,4,0)) -> 703024 | H50: =IF(ISERROR(VLOOKUP($E50,表B_RAW!$C:$I,5,0)),"",VLOOKUP($E50,表B_RAW!$C:$I,5,0)) -> 651973 | I50: =IF(ISERROR(VLOOKUP($E50,表B_RAW!$C:$I,6,0)),"",VLOOKUP($E50,表B_RAW!$C:$I,6,0)/100) -> 0.0783 | J50: =IF(ISERROR(VLOOKUP($E50,表A_RAW!$C:$I,5,0)),"",VLOOKUP($E50,表A_RAW!$C:$I,5,0)) -> 941555 | K50: =IF(ISERROR(VLOOKUP($E50,表A_RAW!$C:$I,7,0)),"",VLOOKUP($E50,表A_RAW!$C:$I,7,0)) -> -0.2533372984 | L50: =IF(ISERROR(VLOOKUP($E50,表C_RAW!$C:$I,4,0)),"",VLOOKUP($E50,表C_RAW!$C:$I,4,0)) -> 1939895 | M50: =IF(ISERROR(VLOOKUP($E50,表C_RAW!$C:$I,5,0)),"",VLOOKUP($E50,表C_RAW!$C:$I,5,0)) -> 2200590 | N50: =IF(ISERROR(VLOOKUP($E50,表C_RAW!$C:$I,6,0)),"",VLOOKUP($E50,表C_RAW!$C:$I,6,0)/100) -> -0.1185
D51: 3 | E51: =VLOOKUP($C$49&D51,表A_RAW!B:I,2,0) -> 2014 中鴻 | G51: =IF(ISERROR(VLOOKUP($E51,表A_RAW!$C:$I,4,0)),"",VLOOKUP($E51,表A_RAW!$C:$I,4,0)) -> 2233729 | H51: =IF(ISERROR(VLOOKUP($E51,表B_RAW!$C:$I,5,0)),"",VLOOKUP($E51,表B_RAW!$C:$I,5,0)) -> 1853010 | I51: =IF(ISERROR(VLOOKUP($E51,表B_RAW!$C:$I,6,0)),"",VLOOKUP($E51,表B_RAW!$C:$I,6,0)/100) -> 0.2055 | J51: =IF(ISERROR(VLOOKUP($E51,表A_RAW!$C:$I,5,0)),"",VLOOKUP($E51,表A_RAW!$C:$I,5,0)) -> 2908348 | K51: =IF(ISERROR(VLOOKUP($E51,表A_RAW!$C:$I,7,0)),"",VLOOKUP($E51,表A_RAW!$C:$I,7,0)) -> -0.2319595179 | L51: =IF(ISERROR(VLOOKUP($E51,表C_RAW!$C:$I,4,0)),"",VLOOKUP($E51,表C_RAW!$C:$I,4,0)) -> 5760132 | M51: =IF(ISERROR(VLOOKUP($E51,表C_RAW!$C:$I,5,0)),"",VLOOKUP($E51,表C_RAW!$C:$I,5,0)) -> 9148184 | N51: =IF(ISERROR(VLOOKUP($E51,表C_RAW!$C:$I,6,0)),"",VLOOKUP($E51,表C_RAW!$C:$I,6,0)/100) -> -0.3704
C52: =VLOOKUP(B49,表A_RAW!O:T,6,0) -> -1.959720274 | D52: 4 | E52: =VLOOKUP($C$49&D52,表A_RAW!B:I,2,0) -> 2028 威致 | G52: =IF(ISERROR(VLOOKUP($E52,表A_RAW!$C:$I,4,0)),"",VLOOKUP($E52,表A_RAW!$C:$I,4,0)) -> 861024 | H52: =IF(ISERROR(VLOOKUP($E52,表B_RAW!$C:$I,5,0)),"",VLOOKUP($E52,表B_RAW!$C:$I,5,0)) -> 749269 | I52: =IF(ISERROR(VLOOKUP($E52,表B_RAW!$C:$I,6,0)),"",VLOOKUP($E52,表B_RAW!$C:$I,6,0)/100) -> 0.1492 | J52: =IF(ISERROR(VLOOKUP($E52,表A_RAW!$C:$I,5,0)),"",VLOOKUP($E52,表A_RAW!$C:$I,5,0)) -> 1032765 | K52: =IF(ISERROR(VLOOKUP($E52,表A_RAW!$C:$I,7,0)),"",VLOOKUP($E52,表A_RAW!$C:$I,7,0)) -> -0.1662924286 | L52: =IF(ISERROR(VLOOKUP($E52,表C_RAW!$C:$I,4,0)),"",VLOOKUP($E52,表C_RAW!$C:$I,4,0)) -> 2199149 | M52: =IF(ISERROR(VLOOKUP($E52,表C_RAW!$C:$I,5,0)),"",VLOOKUP($E52,表C_RAW!$C:$I,5,0)) -> 2874076 | N52: =IF(ISERROR(VLOOKUP($E52,表C_RAW!$C:$I,6,0)),"",VLOOKUP($E52,表C_RAW!$C:$I,6,0)/100) -> -0.2348
D53: 5 | E53: =VLOOKUP($C$49&D53,表A_RAW!B:I,2,0) -> 5009 榮剛 | G53: =IF(ISERROR(VLOOKUP($E53,表A_RAW!$C:$I,4,0)),"",VLOOKUP($E53,表A_RAW!$C:$I,4,0)) -> 1083832 | H53: =IF(ISERROR(VLOOKUP($E53,表B_RAW!$C:$I,5,0)),"",VLOOKUP($E53,表B_RAW!$C:$I,5,0)) -> 993372 | I53: =IF(ISERROR(VLOOKUP($E53,表B_RAW!$C:$I,6,0)),"",VLOOKUP($E53,表B_RAW!$C:$I,6,0)/100) -> 0.0911 | J53: =IF(ISERROR(VLOOKUP($E53,表A_RAW!$C:$I,5,0)),"",VLOOKUP($E53,表A_RAW!$C:$I,5,0)) -> 1268919 | K53: =IF(ISERROR(VLOOKUP($E53,表A_RAW!$C:$I,7,0)),"",VLOOKUP($E53,表A_RAW!$C:$I,7,0)) -> -0.1458619502 | L53: =IF(ISERROR(VLOOKUP($E53,表C_RAW!$C:$I,4,0)),"",VLOOKUP($E53,表C_RAW!$C:$I,4,0)) -> 3036192 | M53: =IF(ISERROR(VLOOKUP($E53,表C_RAW!$C:$I,5,0)),"",VLOOKUP($E53,表C_RAW!$C:$I,5,0)) -> 3413139 | N53: =IF(ISERROR(VLOOKUP($E53,表C_RAW!$C:$I,6,0)),"",VLOOKUP($E53,表C_RAW!$C:$I,6,0)/100) -> -0.1104
B54: 5 | C54: =VLOOKUP(B54,表A_RAW!O:T,2,0) -> 塑膠工業 | D54: 1 | E54: =VLOOKUP($C$54&D54,表A_RAW!B:I,2,0) -> 1337 再生-KY | G54: =IF(ISERROR(VLOOKUP($E54,表A_RAW!$C:$I,4,0)),"",VLOOKUP($E54,表A_RAW!$C:$I,4,0)) -> 45670 | H54: =IF(ISERROR(VLOOKUP($E54,表B_RAW!$C:$I,5,0)),"",VLOOKUP($E54,表B_RAW!$C:$I,5,0)) -> 61049 | I54: =IF(ISERROR(VLOOKUP($E54,表B_RAW!$C:$I,6,0)),"",VLOOKUP($E54,表B_RAW!$C:$I,6,0)/100) -> -0.2519 | J54: =IF(ISERROR(VLOOKUP($E54,表A_RAW!$C:$I,5,0)),"",VLOOKUP($E54,表A_RAW!$C:$I,5,0)) -> 80603 | K54: =IF(ISERROR(VLOOKUP($E54,表A_RAW!$C:$I,7,0)),"",VLOOKUP($E54,表A_RAW!$C:$I,7,0)) -> -0.4333957793 | L54: =IF(ISERROR(VLOOKUP($E54,表C_RAW!$C:$I,4,0)),"",VLOOKUP($E54,表C_RAW!$C:$I,4,0)) -> 182332 | M54: =IF(ISERROR(VLOOKUP($E54,表C_RAW!$C:$I,5,0)),"",VLOOKUP($E54,表C_RAW!$C:$I,5,0)) -> 257771 | N54: =IF(ISERROR(VLOOKUP($E54,表C_RAW!$C:$I,6,0)),"",VLOOKUP($E54,表C_RAW!$C:$I,6,0)/100) -> -0.2927
D55: 2 | E55: =VLOOKUP($C$54&D55,表A_RAW!B:I,2,0) -> 1323 永裕 | G55: =IF(ISERROR(VLOOKUP($E55,表A_RAW!$C:$I,4,0)),"",VLOOKUP($E55,表A_RAW!$C:$I,4,0)) -> 194938 | H55: =IF(ISERROR(VLOOKUP($E55,表B_RAW!$C:$I,5,0)),"",VLOOKUP($E55,表B_RAW!$C:$I,5,0)) -> 143000 | I55: =IF(ISERROR(VLOOKUP($E55,表B_RAW!$C:$I,6,0)),"",VLOOKUP($E55,表B_RAW!$C:$I,6,0)/100) -> 0.3632 | J55: =IF(ISERROR(VLOOKUP($E55,表A_RAW!$C:$I,5,0)),"",VLOOKUP($E55,表A_RAW!$C:$I,5,0)) -> 265123 | K55: =IF(ISERROR(VLOOKUP($E55,表A_RAW!$C:$I,7,0)),"",VLOOKUP($E55,表A_RAW!$C:$I,7,0)) -> -0.2647261837 | L55: =IF(ISERROR(VLOOKUP($E55,表C_RAW!$C:$I,4,0)),"",VLOOKUP($E55,表C_RAW!$C:$I,4,0)) -> 527053 | M55: =IF(ISERROR(VLOOKUP($E55,表C_RAW!$C:$I,5,0)),"",VLOOKUP($E55,表C_RAW!$C:$I,5,0)) -> 765077 | N55: =IF(ISERROR(VLOOKUP($E55,表C_RAW!$C:$I,6,0)),"",VLOOKUP($E55,表C_RAW!$C:$I,6,0)/100) -> -0.3111
D56: 3 | E56: =VLOOKUP($C$54&D56,表A_RAW!B:I,2,0) -> 1314 中石化 | G56: =IF(ISERROR(VLOOKUP($E56,表A_RAW!$C:$I,4,0)),"",VLOOKUP($E56,表A_RAW!$C:$I,4,0)) -> 2109730 | H56: =IF(ISERROR(VLOOKUP($E56,表B_RAW!$C:$I,5,0)),"",VLOOKUP($E56,表B_RAW!$C:$I,5,0)) -> 2043929 | I56: =IF(ISERROR(VLOOKUP($E56,表B_RAW!$C:$I,6,0)),"",VLOOKUP($E56,表B_RAW!$C:$I,6,0)/100) -> 0.0322 | J56: =IF(ISERROR(VLOOKUP($E56,表A_RAW!$C:$I,5,0)),"",VLOOKUP($E56,表A_RAW!$C:$I,5,0)) -> 2729534 | K56: =IF(ISERROR(VLOOKUP($E56,表A_RAW!$C:$I,7,0)),"",VLOOKUP($E56,表A_RAW!$C:$I,7,0)) -> -0.2270731927 | L56: =IF(ISERROR(VLOOKUP($E56,表C_RAW!$C:$I,4,0)),"",VLOOKUP($E56,表C_RAW!$C:$I,4,0)) -> 6529282 | M56: =IF(ISERROR(VLOOKUP($E56,表C_RAW!$C:$I,5,0)),"",VLOOKUP($E56,表C_RAW!$C:$I,5,0)) -> 8191861 | N56: =IF(ISERROR(VLOOKUP($E56,表C_RAW!$C:$I,6,0)),"",VLOOKUP($E56,表C_RAW!$C:$I,6,0)/100) -> -0.203
C57: =VLOOKUP(B54,表A_RAW!O:T,6,0) -> -1.682515584 | D57: 4 | E57: =VLOOKUP($C$54&D57,表A_RAW!B:I,2,0) -> 1313 聯成 | G57: =IF(ISERROR(VLOOKUP($E57,表A_RAW!$C:$I,4,0)),"",VLOOKUP($E57,表A_RAW!$C:$I,4,0)) -> 5864531 | H57: =IF(ISERROR(VLOOKUP($E57,表B_RAW!$C:$I,5,0)),"",VLOOKUP($E57,表B_RAW!$C:$I,5,0)) -> 4286677 | I57: =IF(ISERROR(VLOOKUP($E57,表B_RAW!$C:$I,6,0)),"",VLOOKUP($E57,表B_RAW!$C:$I,6,0)/100) -> 0.3681 | J57: =IF(ISERROR(VLOOKUP($E57,表A_RAW!$C:$I,5,0)),"",VLOOKUP($E57,表A_RAW!$C:$I,5,0)) -> 7295577 | K57: =IF(ISERROR(VLOOKUP($E57,表A_RAW!$C:$I,7,0)),"",VLOOKUP($E57,表A_RAW!$C:$I,7,0)) -> -0.1961525456 | L57: =IF(ISERROR(VLOOKUP($E57,表C_RAW!$C:$I,4,0)),"",VLOOKUP($E57,表C_RAW!$C:$I,4,0)) -> 14552511 | M57: =IF(ISERROR(VLOOKUP($E57,表C_RAW!$C:$I,5,0)),"",VLOOKUP($E57,表C_RAW!$C:$I,5,0)) -> 17826114 | N57: =IF(ISERROR(VLOOKUP($E57,表C_RAW!$C:$I,6,0)),"",VLOOKUP($E57,表C_RAW!$C:$I,6,0)/100) -> -0.1836
D58: 5 | E58: =IFERROR(VLOOKUP($C$54&D58,表A_RAW!B:I,2,0),"") -> 1340 勝悅-KY | G58: =IF(ISERROR(VLOOKUP($E58,表A_RAW!$C:$I,4,0)),"",VLOOKUP($E58,表A_RAW!$C:$I,4,0)) -> 28561 | H58: =IF(ISERROR(VLOOKUP($E58,表B_RAW!$C:$I,5,0)),"",VLOOKUP($E58,表B_RAW!$C:$I,5,0)) -> 15979 | I58: =IF(ISERROR(VLOOKUP($E58,表B_RAW!$C:$I,6,0)),"",VLOOKUP($E58,表B_RAW!$C:$I,6,0)/100) -> 0.7874 | J58: =IF(ISERROR(VLOOKUP($E58,表A_RAW!$C:$I,5,0)),"",VLOOKUP($E58,表A_RAW!$C:$I,5,0)) -> 34727 | K58: =IF(ISERROR(VLOOKUP($E58,表A_RAW!$C:$I,7,0)),"",VLOOKUP($E58,表A_RAW!$C:$I,7,0)) -> -0.1775563682 | L58: =IF(ISERROR(VLOOKUP($E58,表C_RAW!$C:$I,4,0)),"",VLOOKUP($E58,表C_RAW!$C:$I,4,0)) -> 61054 | M58: =IF(ISERROR(VLOOKUP($E58,表C_RAW!$C:$I,5,0)),"",VLOOKUP($E58,表C_RAW!$C:$I,5,0)) -> 76198 | N58: =IF(ISERROR(VLOOKUP($E58,表C_RAW!$C:$I,6,0)),"",VLOOKUP($E58,表C_RAW!$C:$I,6,0)/100) -> -0.1987

Sheet YOY(累計)
B1: =YEAR(表A_RAW!F2)&"年"&MONTH(表A_RAW!F2)&"月" -> 2025年3月
C2: 成長及衰退前五名之產業YOY%(累計)
B4: 成長前五名之產業 YOY(累計)% | D4: 該產業成長前五名之公司 YOY(累計)% | G4: 單月營收金額(千元) | H4: 本月與上月相較 | J4: 本月與去年同期相較 | L4: 累計營收金額(千元) | M4: 累計營收與去年同期相較
B5: 成長 排名 | C5: 產業 | D5: 排名 | E5: 公司代號&簡稱 | H5: 上月營收金額(千元) | I5: 較上月變動比率(%) | J5: 去年同期金額(千元) | K5: 較去年同期變動比率(%) | M5: 去年累計營收金額(千元) | N5: 較去年同期變動比率(%)
B6: 1 | C6: =VLOOKUP(B6,表C_RAW!N:P,3,0) -> 電腦及週邊設備業 | D6: 1 | E6: =IFERROR(VLOOKUP($C$6&D6,表C_RAW!A:D,3,0),"") -> 8114 振樺電 | G6: =IF(ISERROR(VLOOKUP($E6,表B_RAW!$C:$I,4,0)),"",VLOOKUP($E6,表B_RAW!$C:$I,4,0)) -> 2634495 | H6: =IF(ISERROR(VLOOKUP($E6,表B_RAW!$C:$I,5,0)),"",VLOOKUP($E6,表B_RAW!$C:$I,5,0)) -> 1899152 | I6: =IF(ISERROR(VLOOKUP($E6,表B_RAW!$C:$I,6,0)),"",VLOOKUP($E6,表B_RAW!$C:$I,6,0)/100) -> 0.3872 | J6: =IF(ISERROR(VLOOKUP($E6,表A_RAW!$C:$I,5,0)),"",VLOOKUP($E6,表A_RAW!$C:$I,5,0)) -> 870731 | K6: =IF(ISERROR(VLOOKUP($E6,表A_RAW!$C:$I,7,0)),"",VLOOKUP($E6,表A_RAW!$C:$I,7,0)) -> 2.025612962 | L6: =IF(ISERROR(VLOOKUP($E6,表C_RAW!$C:$I,4,0)),"",VLOOKUP($E6,表C_RAW!$C:$I,4,0)) -> 5918982 | M6: =IF(ISERROR(VLOOKUP($E6,表C_RAW!$C:$I,5,0)),"",VLOOKUP($E6,表C_RAW!$C:$I,5,0)) -> 2215951 | N6: =IF(ISERROR(VLOOKUP($E6,表C_RAW!$C:$I,6,0)),"",VLOOKUP($E6,表C_RAW!$C:$I,6,0)/100) -> 1.6711
D7: 2 | E7: =IFERROR(VLOOKUP($C$6&D7,表C_RAW!A:D,3,0),"") -> 3706 神達 | G7: =IF(ISERROR(VLOOKUP($E7,表B_RAW!$C:$I,4,0)),"",VLOOKUP($E7,表B_RAW!$C:$I,4,0)) -> 8490733 | H7: =IF(ISERROR(VLOOKUP($E7,表B_RAW!$C:$I,5,0)),"",VLOOKUP($E7,表B_RAW!$C:$I,5,0)) -> 7532350 | I7: =IF(ISERROR(VLOOKUP($E7,表B_RAW!$C:$I,6,0)),"",VLOOKUP($E7,表B_RAW!$C:$I,6,0)/100) -> 0.1272 | J7: =IF(ISERROR(VLOOKUP($E7,表A_RAW!$C:$I,5,0)),"",VLOOKUP($E7,表A_RAW!$C:$I,5,0)) -> 3447128 | K7: =IF(ISERROR(VLOOKUP($E7,表A_RAW!$C:$I,7,0)),"",VLOOKUP($E7,表A_RAW!$C:$I,7,0)) -> 1.463132498 | L7: =IF(ISERROR(VLOOKUP($E7,表C_RAW!$C:$I,4,0)),"",VLOOKUP($E7,表C_RAW!$C:$I,4,0)) -> 23665159 | M7: =IF(ISERROR(VLOOKUP($E7,表C_RAW!$C:$I,5,0)),"",VLOOKUP($E7,表C_RAW!$C:$I,5,0)) -> 9653944 | N7: =IF(ISERROR(VLOOKUP($E7,表C_RAW!$C:$I,6,0)),"",VLOOKUP($E7,表C_RAW!$C:$I,6,0)/100) -> 1.4513
D8: 3 | E8: =IFERROR(VLOOKUP($C$6&D8,表C_RAW!A:D,3,0),"") -> 6669 緯穎 | G8: =IF(ISERROR(VLOOKUP($E8,表B_RAW!$C:$I,4,0)),"",VLOOKUP($E8,表B_RAW!$C:$I,4,0)) -> 86632073 | H8: =IF(ISERROR(VLOOKUP($E8,表B_RAW!$C:$I,5,0)),"",VLOOKUP($E8,表B_RAW!$C:$I,5,0)) -> 46516815 | I8: =IF(ISERROR(VLOOKUP($E8,表B_RAW!$C:$I,6,0)),"",VLOOKUP($E8,表B_RAW!$C:$I,6,0)/100) -> 0.8624 | J8: =IF(ISERROR(VLOOKUP($E8,表A_RAW!$C:$I,5,0)),"",VLOOKUP($E8,表A_RAW!$C:$I,5,0)) -> 26514171 | K8: =IF(ISERROR(VLOOKUP($E8,表A_RAW!$C:$I,7,0)),"",VLOOKUP($E8,表A_RAW!$C:$I,7,0)) -> 2.267387579 | L8: =IF(ISERROR(VLOOKUP($E8,表C_RAW!$C:$I,4,0)),"",VLOOKUP($E8,表C_RAW!$C:$I,4,0)) -> 170655284 | M8: =IF(ISERROR(VLOOKUP($E8,表C_RAW!$C:$I,5,0)),"",VLOOKUP($E8,表C_RAW!$C:$I,5,0)) -> 69628237 | N8: =IF(ISERROR(VLOOKUP($E8,表C_RAW!$C:$I,6,0)),"",VLOOKUP($E8,表C_RAW!$C:$I,6,0)/100) -> 1.4509
C9: =VLOOKUP(B6,表C_RAW!N:T,7,0) -> 34.74 | D9: 4 | E9: =IFERROR(VLOOKUP($C$6&D9,表C_RAW!A:D,3,0),"") -> 3515 華擎 | G9: =IF(ISERROR(VLOOKUP($E9,表B_RAW!$C:$I,4,0)),"",VLOOKUP($E9,表B_RAW!$C:$I,4,0)) -> 3179611 | H9: =IF(ISERROR(VLOOKUP($E9,表B_RAW!$C:$I,5,0)),"",VLOOKUP($E9,表B_RAW!$C:$I,5,0)) -> 2567264 | I9: =IF(ISERROR(VLOOKUP($E9,表B_RAW!$C:$I,6,0)),"",VLOOKUP($E9,表B_RAW!$C:$I,6,0)/100) -> 0.2385 | J9: =IF(ISERROR(VLOOKUP($E9,表A_RAW!$C:$I,5,0)),"",VLOOKUP($E9,表A_RAW!$C:$I,5,0)) -> 1604981 | K9: =IF(ISERROR(VLOOKUP($E9,表A_RAW!$C:$I,7,0)),"",VLOOKUP($E9,表A_RAW!$C:$I,7,0)) -> 0.9810894958 | L9: =IF(ISERROR(VLOOKUP($E9,表C_RAW!$C:$I,4,0)),"",VLOOKUP($E9,表C_RAW!$C:$I,4,0)) -> 10462205 | M9: =IF(ISERROR(VLOOKUP($E9,表C_RAW!$C:$I,5,0)),"",VLOOKUP($E9,表C_RAW!$C:$I,5,0)) -> 4953220 | N9: =IF(ISERROR(VLOOKUP($E9,表C_RAW!$C:$I,6,0)),"",VLOOKUP($E9,表C_RAW!$C:$I,6,0)/100) -> 1.1122
D10: 5 | E10: =IFERROR(VLOOKUP($C$6&D10,表C_RAW!A:D,3,0),"") -> 6228 全譜 | G10: =IF(ISERROR(VLOOKUP($E10,表B_RAW!$C:$I,4,0)),"",VLOOKUP($E10,表B_RAW!$C:$I,4,0)) -> 7616 | H10: =IF(ISERROR(VLOOKUP($E10,表B_RAW!$C:$I,5,0)),"",VLOOKUP($E10,表B_RAW!$C:$I,5,0)) -> 4719 | I10: =IF(ISERROR(VLOOKUP($E10,表B_RAW!$C:$I,6,0)),"",VLOOKUP($E10,表B_RAW!$C:$I,6,0)/100) -> 0.6139 | J10: =IF(ISERROR(VLOOKUP($E10,表A_RAW!$C:$I,5,0)),"",VLOOKUP($E10,表A_RAW!$C:$I,5,0)) -> 3461 | K10: =IF(ISERROR(VLOOKUP($E10,表A_RAW!$C:$I,7,0)),"",VLOOKUP($E10,表A_RAW!$C:$I,7,0)) -> 1.200520081 | L10: =IF(ISERROR(VLOOKUP($E10,表C_RAW!$C:$I,4,0)),"",VLOOKUP($E10,表C_RAW!$C:$I,4,0)) -> 17970 | M10: =IF(ISERROR(VLOOKUP($E10,表C_RAW!$C:$I,5,0)),"",VLOOKUP($E10,表C_RAW!$C:$I,5,0)) -> 8635 | N10: =IF(ISERROR(VLOOKUP($E10,表C_RAW!$C:$I,6,0)),"",VLOOKUP($E10,表C_RAW!$C:$I,6,0)/100) -> 1.0811
B11: 2 | C11: =VLOOKUP(B11,表C_RAW!N:P,3,0) -> 綠能環保 | D11: 1 | E11: =VLOOKUP($C$11&D11,表C_RAW!A:D,3,0) -> 6692 進能服 | G11: =IF(ISERROR(VLOOKUP($E11,表B_RAW!$C:$I,4,0)),"",VLOOKUP($E11,表B_RAW!$C:$I,4,0)) -> 219216 | H11: =IF(ISERROR(VLOOKUP($E11,表B_RAW!$C:$I,5,0)),"",VLOOKUP($E11,表B_RAW!$C:$I,5,0)) -> 344327 | I11: =IF(ISERROR(VLOOKUP($E11,表B_RAW!$C:$I,6,0)),"",VLOOKUP($E11,表B_RAW!$C:$I,6,0)/100) -> -0.3633 | J11: =IF(ISERROR(VLOOKUP($E11,表A_RAW!$C:$I,5,0)),"",VLOOKUP($E11,表A_RAW!$C:$I,5,0)) -> 85195 | K11: =IF(ISERROR(VLOOKUP($E11,表A_RAW!$C:$I,7,0)),"",VLOOKUP($E11,表A_RAW!$C:$I,7,0)) -> 1.573108751 | L11: =IF(ISERROR(VLOOKUP($E11,表C_RAW!$C:$I,4,0)),"",VLOOKUP($E11,表C_RAW!$C:$I,4,0)) -> 762255 | M11: =IF(ISERROR(VLOOKUP($E11,表C_RAW!$C:$I,5,0)),"",VLOOKUP($E11,表C_RAW!$C:$I,5,0)) -> 263239 | N11: =IF(ISERROR(VLOOKUP($E11,表C_RAW!$C:$I,6,0)),"",VLOOKUP($E11,表C_RAW!$C:$I,6,0)/100) -> 1.8957
D12: 2 | E12: =VLOOKUP($C$11&D12,表C_RAW!A:D,3,0) -> 6806 森崴能源 | G12: =IF(ISERROR(VLOOKUP($E12,表B_RAW!$C:$I,4,0)),"",VLOOKUP($E12,表B_RAW!$C:$I,4,0)) -> 1212976 | H12: =IF(ISERROR(VLOOKUP($E12,表B_RAW!$C:$I,5,0)),"",VLOOKUP($E12,表B_RAW!$C:$I,5,0)) -> 1694170 | I12: =IF(ISERROR(VLOOKUP($E12,表B_RAW!$C:$I,6,0)),"",VLOOKUP($E12,表B_RAW!$C:$I,6,0)/100) -> -0.284 | J12: =IF(ISERROR(VLOOKUP($E12,表A_RAW!$C:$I,5,0)),"",VLOOKUP($E12,表A_RAW!$C:$I,5,0)) -> 780975 | K12: =IF(ISERROR(VLOOKUP($E12,表A_RAW!$C:$I,7,0)),"",VLOOKUP($E12,表A_RAW!$C:$I,7,0)) -> 0.5531559909 | L12: =IF(ISERROR(VLOOKUP($E12,表C_RAW!$C:$I,4,0)),"",VLOOKUP($E12,表C_RAW!$C:$I,4,0)) -> 5694103 | M12: =IF(ISERROR(VLOOKUP($E12,表C_RAW!$C:$I,5,0)),"",VLOOKUP($E12,表C_RAW!$C:$I,5,0)) -> 2331338 | N12: =IF(ISERROR(VLOOKUP($E12,表C_RAW!$C:$I,6,0)),"",VLOOKUP($E12,表C_RAW!$C:$I,6,0)/100) -> 1.4424
D13: 3 | E13: =VLOOKUP($C$11&D13,表C_RAW!A:D,3,0) -> 6873 泓德能源 | G13: =IF(ISERROR(VLOOKUP($E13,表B_RAW!$C:$I,4,0)),"",VLOOKUP($E13,表B_RAW!$C:$I,4,0)) -> 712753 | H13: =IF(ISERROR(VLOOKUP($E13,表B_RAW!$C:$I,5,0)),"",VLOOKUP($E13,表B_RAW!$C:$I,5,0)) -> 317217 | I13: =IF(ISERROR(VLOOKUP($E13,表B_RAW!$C:$I,6,0)),"",VLOOKUP($E13,表B_RAW!$C:$I,6,0)/100) -> 1.2469 | J13: =IF(ISERROR(VLOOKUP($E13,表A_RAW!$C:$I,5,0)),"",VLOOKUP($E13,表A_RAW!$C:$I,5,0)) -> 517067 | K13: =IF(ISERROR(VLOOKUP($E13,表A_RAW!$C:$I,7,0)),"",VLOOKUP($E13,表A_RAW!$C:$I,7,0)) -> 0.3784538561 | L13: =IF(ISERROR(VLOOKUP($E13,表C_RAW!$C:$I,4,0)),"",VLOOKUP($E13,表C_RAW!$C:$I,4,0)) -> 1466866 | M13: =IF(ISERROR(VLOOKUP($E13,表C_RAW!$C:$I,5,0)),"",VLOOKUP($E13,表C_RAW!$C:$I,5,0)) -> 883581 | N13: =IF(ISERROR(VLOOKUP($E13,表C_RAW!$C:$I,6,0)),"",VLOOKUP($E13,表C_RAW!$C:$I,6,0)/100) -> 0.6601
C14: =VLOOKUP(B11,表C_RAW!N:T,7,0) -> 31.44 | D14: 4 | E14: =VLOOKUP($C$11&D14,表C_RAW!A:D,3,0) -> 8473 山林水 | G14: =IF(ISERROR(VLOOKUP($E14,表B_RAW!$C:$I,4,0)),"",VLOOKUP($E14,表B_RAW!$C:$I,4,0)) -> 595228 | H14: =IF(ISERROR(VLOOKUP($E14,表B_RAW!$C:$I,5,0)),"",VLOOKUP($E14,表B_RAW!$C:$I,5,0)) -> 269665 | I14: =IF(ISERROR(VLOOKUP($E14,表B_RAW!$C:$I,6,0)),"",VLOOKUP($E14,表B_RAW!$C:$I,6,0)/100) -> 1.2073 | J14: =IF(ISERROR(VLOOKUP($E14,表A_RAW!$C:$I,5,0)),"",VLOOKUP($E14,表A_RAW!$C:$I,5,0)) -> 273282 | K14: =IF(ISERROR(VLOOKUP($E14,表A_RAW!$C:$I,7,0)),"",VLOOKUP($E14,表A_RAW!$C:$I,7,0)) -> 1.178072467 | L14: =IF(ISERROR(VLOOKUP($E14,表C_RAW!$C:$I,4,0)),"",VLOOKUP($E14,表C_RAW!$C:$I,4,0)) -> 1169199 | M14: =IF(ISERROR(VLOOKUP($E14,表C_RAW!$C:$I,5,0)),"",VLOOKUP($E14,表C_RAW!$C:$I,5,0)) -> 745052 | N14: =IF(ISERROR(VLOOKUP($E14,表C_RAW!$C:$I,6,0)),"",VLOOKUP($E14,表C_RAW!$C:$I,6,0)/100) -> 0.5693
D15: 5 | E15: =VLOOKUP($C$11&D15,表C_RAW!A:D,3,0) -> 6624 萬年清 | G15: =IF(ISERROR(VLOOKUP($E15,表B_RAW!$C:$I,4,0)),"",VLOOKUP($E15,表B_RAW!$C:$I,4,0)) -> 45021 | H15: =IF(ISERROR(VLOOKUP($E15,表B_RAW!$C:$I,5,0)),"",VLOOKUP($E15,表B_RAW!$C:$I,5,0)) -> 19974 | I15: =IF(ISERROR(VLOOKUP($E15,表B_RAW!$C:$I,6,0)),"",VLOOKUP($E15,表B_RAW!$C:$I,6,0)/100) -> 1.254 | J15: =IF(ISERROR(VLOOKUP($E15,表A_RAW!$C:$I,5,0)),"",VLOOKUP($E15,表A_RAW!$C:$I,5,0)) -> 31744 | K15: =IF(ISERROR(VLOOKUP($E15,表A_RAW!$C:$I,7,0)),"",VLOOKUP($E15,表A_RAW!$C:$I,7,0)) -> 0.4182522681 | L15: =IF(ISERROR(VLOOKUP($E15,表C_RAW!$C:$I,4,0)),"",VLOOKUP($E15,表C_RAW!$C:$I,4,0)) -> 100360 | M15: =IF(ISERROR(VLOOKUP($E15,表C_RAW!$C:$I,5,0)),"",VLOOKUP($E15,表C_RAW!$C:$I,5,0)) -> 64721 | N15: =IF(ISERROR(VLOOKUP($E15,表C_RAW!$C:$I,6,0)),"",VLOOKUP($E15,表C_RAW!$C:$I,6,0)/100) -> 0.5507
B16: 3 | C16: =VLOOKUP(B16,表C_RAW!N:P,3,0) -> 半導體業 | D16: 1 | E16: =VLOOKUP($C$16&D16,表C_RAW!A:D,3,0) -> 2363 矽統 | G16: =IF(ISERROR(VLOOKUP($E16,表B_RAW!$C:$I,4,0)),"",VLOOKUP($E16,表B_RAW!$C:$I,4,0)) -> 193776 | H16: =IF(ISERROR(VLOOKUP($E16,表B_RAW!$C:$I,5,0)),"",VLOOKUP($E16,表B_RAW!$C:$I,5,0)) -> 119575 | I16: =IF(ISERROR(VLOOKUP($E16,表B_RAW!$C:$I,6,0)),"",VLOOKUP($E16,表B_RAW!$C:$I,6,0)/100) -> 0.6205 | J16: =IF(ISERROR(VLOOKUP($E16,表A_RAW!$C:$I,5,0)),"",VLOOKUP($E16,表A_RAW!$C:$I,5,0)) -> 12717 | K16: =IF(ISERROR(VLOOKUP($E16,表A_RAW!$C:$I,7,0)),"",VLOOKUP($E16,表A_RAW!$C:$I,7,0)) -> 14.23755603 | L16: =IF(ISERROR(VLOOKUP($E16,表C_RAW!$C:$I,4,0)),"",VLOOKUP($E16,表C_RAW!$C:$I,4,0)) -> 469683 | M16: =IF(ISERROR(VLOOKUP($E16,表C_RAW!$C:$I,5,0)),"",VLOOKUP($E16,表C_RAW!$C:$I,5,0)) -> 34293 | N16: =IF(ISERROR(VLOOKUP($E16,表C_RAW!$C:$I,6,0)),"",VLOOKUP($E16,表C_RAW!$C:$I,6,0)/100) -> 12.6962
D17: 2 | E17: =VLOOKUP($C$16&D17,表C_RAW!A:D,3,0) -> 6103 合邦 | G17: =IF(ISERROR(VLOOKUP($E17,表B_RAW!$C:$I,4,0)),"",VLOOKUP($E17,表B_RAW!$C:$I,4,0)) -> 9454 | H17: =IF(ISERROR(VLOOKUP($E17,表B_RAW!$C:$I,5,0)),"",VLOOKUP($E17,表B_RAW!$C:$I,5,0)) -> 9467 | I17: =IF(ISERROR(VLOOKUP($E17,表B_RAW!$C:$I,6,0)),"",VLOOKUP($E17,表B_RAW!$C:$I,6,0)/100) -> -0.0014 | J17: =IF(ISERROR(VLOOKUP($E17,表A_RAW!$C:$I,5,0)),"",VLOOKUP($E17,表A_RAW!$C:$I,5,0)) -> 2354 | K17: =IF(ISERROR(VLOOKUP($E17,表A_RAW!$C:$I,7,0)),"",VLOOKUP($E17,表A_RAW!$C:$I,7,0)) -> 3.016142736 | L17: =IF(ISERROR(VLOOKUP($E17,表C_RAW!$C:$I,4,0)),"",VLOOKUP($E17,表C_RAW!$C:$I,4,0)) -> 26555 | M17: =IF(ISERROR(VLOOKUP($E17,表C_RAW!$C:$I,5,0)),"",VLOOKUP($E17,表C_RAW!$C:$I,5,0)) -> 8583 | N17: =IF(ISERROR(VLOOKUP($E17,表C_RAW!$C:$I,6,0)),"",VLOOKUP($E17,表C_RAW!$C:$I,6,0)/100) -> 2.0939
D18: 3 | E18: =VLOOKUP($C$16&D18,表C_RAW!A:D,3,0) -> 3035 智原 | G18: =IF(ISERROR(VLOOKUP($E18,表B_RAW!$C:$I,4,0)),"",VLOOKUP($E18,表B_RAW!$C:$I,4,0)) -> 3482593 | H18: =IF(ISERROR(VLOOKUP($E18,表B_RAW!$C:$I,5,0)),"",VLOOKUP($E18,表B_RAW!$C:$I,5,0)) -> 2836864 | I18: =IF(ISERROR(VLOOKUP($E18,表B_RAW!$C:$I,6,0)),"",VLOOKUP($E18,表B_RAW!$C:$I,6,0)/100) -> 0.2276 | J18: =IF(ISERROR(VLOOKUP($E18,表A_RAW!$C:$I,5,0)),"",VLOOKUP($E18,表A_RAW!$C:$I,5,0)) -> 844970 | K18: =IF(ISERROR(VLOOKUP($E18,表A_RAW!$C:$I,7,0)),"",VLOOKUP($E18,表A_RAW!$C:$I,7,0)) -> 3.121558162 | L18: =IF(ISERROR(VLOOKUP($E18,表C_RAW!$C:$I,4,0)),"",VLOOKUP($E18,表C_RAW!$C:$I,4,0)) -> 7437577 | M18: =IF(ISERROR(VLOOKUP($E18,表C_RAW!$C:$I,5,0)),"",VLOOKUP($E18,表C_RAW!$C:$I,5,0)) -> 2578630 | N18: =IF(ISERROR(VLOOKUP($E18,表C_RAW!$C:$I,6,0)),"",VLOOKUP($E18,表C_RAW!$C:$I,6,0)/100) -> 1.8843
C19: =VLOOKUP(B16,表C_RAW!N:T,7,0) -> 24.39 | D19: 4 | E19: =VLOOKUP($C$16&D19,表C_RAW!A:D,3,0) -> 5314 世紀* | G19: =IF(ISERROR(VLOOKUP($E19,表B_RAW!$C:$I,4,0)),"",VLOOKUP($E19,表B_RAW!$C:$I,4,0)) -> 193456 | H19: =IF(ISERROR(VLOOKUP($E19,表B_RAW!$C:$I,5,0)),"",VLOOKUP($E19,表B_RAW!$C:$I,5,0)) -> 145007 | I19: =IF(ISERROR(VLOOKUP($E19,表B_RAW!$C:$I,6,0)),"",VLOOKUP($E19,表B_RAW!$C:$I,6,0)/100) -> 0.3341 | J19: =IF(ISERROR(VLOOKUP($E19,表A_RAW!$C:$I,5,0)),"",VLOOKUP($E19,表A_RAW!$C:$I,5,0)) -> 61751 | K19: =IF(ISERROR(VLOOKUP($E19,表A_RAW!$C:$I,7,0)),"",VLOOKUP($E19,表A_RAW!$C:$I,7,0)) -> 2.132839954 | L19: =IF(ISERROR(VLOOKUP($E19,表C_RAW!$C:$I,4,0)),"",VLOOKUP($E19,表C_RAW!$C:$I,4,0)) -> 472521 | M19: =IF(ISERROR(VLOOKUP($E19,表C_RAW!$C:$I,5,0)),"",VLOOKUP($E19,表C_RAW!$C:$I,5,0)) -> 167349 | N19: =IF(ISERROR(VLOOKUP($E19,表C_RAW!$C:$I,6,0)),"",VLOOKUP($E19,表C_RAW!$C:$I,6,0)/100) -> 1.8236
D20: 5 | E20: =VLOOKUP($C$16&D20,表C_RAW!A:D,3,0) -> 3450 聯鈞 | G20: =IF(ISERROR(VLOOKUP($E20,表B_RAW!$C:$I,4,0)),"",VLOOKUP($E20,表B_RAW!$C:$I,4,0)) -> 977959 | H20: =IF(ISERROR(VLOOKUP($E20,表B_RAW!$C:$I,5,0)),"",VLOOKUP($E20,表B_RAW!$C:$I,5,0)) -> 958464 | I20: =IF(ISERROR(VLOOKUP($E20,表B_RAW!$C:$I,6,0)),"",VLOOKUP($E20,表B_RAW!$C:$I,6,0)/100) -> 0.0203 | J20: =IF(ISERROR(VLOOKUP($E20,表A_RAW!$C:$I,5,0)),"",VLOOKUP($E20,表A_RAW!$C:$I,5,0)) -> 477340 | K20: =IF(ISERROR(VLOOKUP($E20,表A_RAW!$C:$I,7,0)),"",VLOOKUP($E20,表A_RAW!$C:$I,7,0)) -> 1.048768174 | L20: =IF(ISERROR(VLOOKUP($E20,表C_RAW!$C:$I,4,0)),"",VLOOKUP($E20,表C_RAW!$C:$I,4,0)) -> 2758002 | M20: =IF(ISERROR(VLOOKUP($E20,表C_RAW!$C:$I,5,0)),"",VLOOKUP($E20,表C_RAW!$C:$I,5,0)) -> 1285488 | N20: =IF(ISERROR(VLOOKUP($E20,表C_RAW!$C:$I,6,0)),"",VLOOKUP($E20,表C_RAW!$C:$I,6,0)/100) -> 1.1455
B21: 4 | C21: =VLOOKUP(B21,表C_RAW!N:P,3,0) -> 其他電子業 | D21: 1 | E21: =VLOOKUP($C$21&D21,表C_RAW!A:D,3,0) -> 2354 鴻準 | G21: =IF(ISERROR(VLOOKUP($E21,表B_RAW!$C:$I,4,0)),"",VLOOKUP($E21,表B_RAW!$C:$I,4,0)) -> 12051114 | H21: =IF(ISERROR(VLOOKUP($E21,表B_RAW!$C:$I,5,0)),"",VLOOKUP($E21,表B_RAW!$C:$I,5,0)) -> 9418841 | I21: =IF(ISERROR(VLOOKUP($E21,表B_RAW!$C:$I,6,0)),"",VLOOKUP($E21,表B_RAW!$C:$I,6,0)/100) -> 0.2795 | J21: =IF(ISERROR(VLOOKUP($E21,表A_RAW!$C:$I,5,0)),"",VLOOKUP($E21,表A_RAW!$C:$I,5,0)) -> 3164751 | K21: =IF(ISERROR(VLOOKUP($E21,表A_RAW!$C:$I,7,0)),"",VLOOKUP($E21,表A_RAW!$C:$I,7,0)) -> 2.807918538 | L21: =IF(ISERROR(VLOOKUP($E21,表C_RAW!$C:$I,4,0)),"",VLOOKUP($E21,表C_RAW!$C:$I,4,0)) -> 29973018 | M21: =IF(ISERROR(VLOOKUP($E21,表C_RAW!$C:$I,5,0)),"",VLOOKUP($E21,表C_RAW!$C:$I,5,0)) -> 8840076 | N21: =IF(ISERROR(VLOOKUP($E21,表C_RAW!$C:$I,6,0)),"",VLOOKUP($E21,表C_RAW!$C:$I,6,0)/100) -> 2.3906
D22: 2 | E22: =VLOOKUP($C$21&D22,表C_RAW!A:D,3,0) -> 3093 港建* | G22: =IF(ISERROR(VLOOKUP($E22,表B_RAW!$C:$I,4,0)),"",VLOOKUP($E22,表B_RAW!$C:$I,4,0)) -> 343855 | H22: =IF(ISERROR(VLOOKUP($E22,表B_RAW!$C:$I,5,0)),"",VLOOKUP($E22,表B_RAW!$C:$I,5,0)) -> 160439 | I22: =IF(ISERROR(VLOOKUP($E22,表B_RAW!$C:$I,6,0)),"",VLOOKUP($E22,表B_RAW!$C:$I,6,0)/100) -> 1.1432 | J22: =IF(ISERROR(VLOOKUP($E22,表A_RAW!$C:$I,5,0)),"",VLOOKUP($E22,表A_RAW!$C:$I,5,0)) -> 70038 | K22: =IF(ISERROR(VLOOKUP($E22,表A_RAW!$C:$I,7,0)),"",VLOOKUP($E22,表A_RAW!$C:$I,7,0)) -> 3.909549102 | L22: =IF(ISERROR(VLOOKUP($E22,表C_RAW!$C:$I,4,0)),"",VLOOKUP($E22,表C_RAW!$C:$I,4,0)) -> 572536 | M22: =IF(ISERROR(VLOOKUP($E22,表C_RAW!$C:$I,5,0)),"",VLOOKUP($E22,表C_RAW!$C:$I,5,0)) -> 207808 | N22: =IF(ISERROR(VLOOKUP($E22,表C_RAW!$C:$I,6,0)),"",VLOOKUP($E22,表C_RAW!$C:$I,6,0)/100) -> 1.7551
D23: 3 | E23: =VLOOKUP($C$21&D23,表C_RAW!A:D,3,0) -> 3498 陽程 | G23: =IF(ISERROR(VLOOKUP($E23,表B_RAW!$C:$I,4,0)),"",VLOOKUP($E23,表B_RAW!$C:$I,4,0)) -> 29504 | H23: =IF(ISERROR(VLOOKUP($E23,表B_RAW!$C:$I,5,0)),"",VLOOKUP($E23,表B_RAW!$C:$I,5,0)) -> 35979 | I23: =IF(ISERROR(VLOOKUP($E23,表B_RAW!$C:$I,6,0)),"",VLOOKUP($E23,表B_RAW!$C:$I,6,0)/100) -> -0.18 | J23: =IF(ISERROR(VLOOKUP($E23,表A_RAW!$C:$I,5,0)),"",VLOOKUP($E23,表A_RAW!$C:$I,5,0)) -> 13347 | K23: =IF(ISERROR(VLOOKUP($E23,表A_RAW!$C:$I,7,0)),"",VLOOKUP($E23,表A_RAW!$C:$I,7,0)) -> 1.210534202 | L23: =IF(ISERROR(VLOOKUP($E23,表C_RAW!$C:$I,4,0)),"",VLOOKUP($E23,表C_RAW!$C:$I,4,0)) -> 141423 | M23: =IF(ISERROR(VLOOKUP($E23,表C_RAW!$C:$I,5,0)),"",VLOOKUP($E23,表C_RAW!$C:$I,5,0)) -> 66581 | N23: =IF(ISERROR(VLOOKUP($E23,表C_RAW!$C:$I,6,0)),"",VLOOKUP($E23,表C_RAW!$C:$I,6,0)/100) -> 1.1241
C24: =VLOOKUP(B21,表C_RAW!N:T,7,0) -> 24.2 | D24: 4 | E24: =VLOOKUP($C$21&D24,表C_RAW!A:D,3,0) -> 6667 信紘科 | G24: =IF(ISERROR(VLOOKUP($E24,表B_RAW!$C:$I,4,0)),"",VLOOKUP($E24,表B_RAW!$C:$I,4,0)) -> 476692 | H24: =IF(ISERROR(VLOOKUP($E24,表B_RAW!$C:$I,5,0)),"",VLOOKUP($E24,表B_RAW!$C:$I,5,0)) -> 512448 | I24: =IF(ISERROR(VLOOKUP($E24,表B_RAW!$C:$I,6,0)),"",VLOOKUP($E24,表B_RAW!$C:$I,6,0)/100) -> -0.0698 | J24: =IF(ISERROR(VLOOKUP($E24,表A_RAW!$C:$I,5,0)),"",VLOOKUP($E24,表A_RAW!$C:$I,5,0)) -> 243942 | K24: =IF(ISERROR(VLOOKUP($E24,表A_RAW!$C:$I,7,0)),"",VLOOKUP($E24,表A_RAW!$C:$I,7,0)) -> 0.9541202417 | L24: =IF(ISERROR(VLOOKUP($E24,表C_RAW!$C:$I,4,0)),"",VLOOKUP($E24,表C_RAW!$C:$I,4,0)) -> 1354255 | M24: =IF(ISERROR(VLOOKUP($E24,表C_RAW!$C:$I,5,0)),"",VLOOKUP($E24,表C_RAW!$C:$I,5,0)) -> 641489 | N24: =IF(ISERROR(VLOOKUP($E24,表C_RAW!$C:$I,6,0)),"",VLOOKUP($E24,表C_RAW!$C:$I,6,0)/100) -> 1.1111
D25: 5 | E25: =VLOOKUP($C$21&D25,表C_RAW!A:D,3,0) -> 3663 鑫科 | G25: =IF(ISERROR(VLOOKUP($E25,表B_RAW!$C:$I,4,0)),"",VLOOKUP($E25,表B_RAW!$C:$I,4,0)) -> 456378 | H25: =IF(ISERROR(VLOOKUP($E25,表B_RAW!$C:$I,5,0)),"",VLOOKUP($E25,表B_RAW!$C:$I,5,0)) -> 364943 | I25: =IF(ISERROR(VLOOKUP($E25,表B_RAW!$C:$I,6,0)),"",VLOOKUP($E25,表B_RAW!$C:$I,6,0)/100) -> 0.2505 | J25: =IF(ISERROR(VLOOKUP($E25,表A_RAW!$C:$I,5,0)),"",VLOOKUP($E25,表A_RAW!$C:$I,5,0)) -> 164215 | K25: =IF(ISERROR(VLOOKUP($E25,表A_RAW!$C:$I,7,0)),"",VLOOKUP($E25,表A_RAW!$C:$I,7,0)) -> 1.779149286 | L25: =IF(ISERROR(VLOOKUP($E25,表C_RAW!$C:$I,4,0)),"",VLOOKUP($E25,表C_RAW!$C:$I,4,0)) -> 1148937 | M25: =IF(ISERROR(VLOOKUP($E25,表C_RAW!$C:$I,5,0)),"",VLOOKUP($E25,表C_RAW!$C:$I,5,0)) -> 547895 | N25: =IF(ISERROR(VLOOKUP($E25,表C_RAW!$C:$I,6,0)),"",VLOOKUP($E25,表C_RAW!$C:$I,6,0)/100) -> 1.097
B26: 5 | C26: =VLOOKUP(B26,表C_RAW!N:P,3,0) -> 水泥工業 | D26: 1 | E26: =VLOOKUP($C$26&D26,表C_RAW!A:D,3,0) -> 1101 台泥 | G26: =IF(ISERROR(VLOOKUP($E26,表B_RAW!$C:$I,4,0)),"",VLOOKUP($E26,表B_RAW!$C:$I,4,0)) -> 13635386 | H26: =IF(ISERROR(VLOOKUP($E26,表B_RAW!$C:$I,5,0)),"",VLOOKUP($E26,表B_RAW!$C:$I,5,0)) -> 9123490 | I26: =IF(ISERROR(VLOOKUP($E26,表B_RAW!$C:$I,6,0)),"",VLOOKUP($E26,表B_RAW!$C:$I,6,0)/100) -> 0.4945 | J26: =IF(ISERROR(VLOOKUP($E26,表A_RAW!$C:$I,5,0)),"",VLOOKUP($E26,表A_RAW!$C:$I,5,0)) -> 13649152 | K26: =IF(ISERROR(VLOOKUP($E26,表A_RAW!$C:$I,7,0)),"",VLOOKUP($E26,表A_RAW!$C:$I,7,0)) -> -0.001008560825 | L26: =IF(ISERROR(VLOOKUP($E26,表C_RAW!$C:$I,4,0)),"",VLOOKUP($E26,表C_RAW!$C:$I,4,0)) -> 34972226 | M26: =IF(ISERROR(VLOOKUP($E26,表C_RAW!$C:$I,5,0)),"",VLOOKUP($E26,表C_RAW!$C:$I,5,0)) -> 25685663 | N26: =IF(ISERROR(VLOOKUP($E26,表C_RAW!$C:$I,6,0)),"",VLOOKUP($E26,表C_RAW!$C:$I,6,0)/100) -> 0.3615
D27: 2 | E27: =VLOOKUP($C$26&D27,表C_RAW!A:D,3,0) -> 1110 東泥 | G27: =IF(ISERROR(VLOOKUP($E27,表B_RAW!$C:$I,4,0)),"",VLOOKUP($E27,表B_RAW!$C:$I,4,0)) -> 274954 | H27: =IF(ISERROR(VLOOKUP($E27,表B_RAW!$C:$I,5,0)),"",VLOOKUP($E27,表B_RAW!$C:$I,5,0)) -> 228781 | I27: =IF(ISERROR(VLOOKUP($E27,表B_RAW!$C:$I,6,0)),"",VLOOKUP($E27,表B_RAW!$C:$I,6,0)/100) -> 0.2018 | J27: =IF(ISERROR(VLOOKUP($E27,表A_RAW!$C:$I,5,0)),"",VLOOKUP($E27,表A_RAW!$C:$I,5,0)) -> 221172 | K27: =IF(ISERROR(VLOOKUP($E27,表A_RAW!$C:$I,7,0)),"",VLOOKUP($E27,表A_RAW!$C:$I,7,0)) -> 0.243168213 | L27: =IF(ISERROR(VLOOKUP($E27,表C_RAW!$C:$I,4,0)),"",VLOOKUP($E27,表C_RAW!$C:$I,4,0)) -> 740524 | M27: =IF(ISERROR(VLOOKUP($E27,表C_RAW!$C:$I,5,0)),"",VLOOKUP($E27,表C_RAW!$C:$I,5,0)) -> 576896 | N27: =IF(ISERROR(VLOOKUP($E27,表C_RAW!$C:$I,6,0)),"",VLOOKUP($E27,表C_RAW!$C:$I,6,0)/100) -> 0.2836
D28: 3 | E28: =VLOOKUP($C$26&D28,表C_RAW!A:D,3,0) -> 1103 嘉泥 | G28: =IF(ISERROR(VLOOKUP($E28,表B_RAW!$C:$I,4,0)),"",VLOOKUP($E28,表B_RAW!$C:$I,4,0)) -> 266282 | H28: =IF(ISERROR(VLOOKUP($E28,表B_RAW!$C:$I,5,0)),"",VLOOKUP($E28,表B_RAW!$C:$I,5,0)) -> 218169 | I28: =IF(ISERROR(VLOOKUP($E28,表B_RAW!$C:$I,6,0)),"",VLOOKUP($E28,表B_RAW!$C:$I,6,0)/100) -> 0.2205 | J28: =IF(ISERROR(VLOOKUP($E28,表A_RAW!$C:$I,5,0)),"",VLOOKUP($E28,表A_RAW!$C:$I,5,0)) -> 254887 | K28: =IF(ISERROR(VLOOKUP($E28,表A_RAW!$C:$I,7,0)),"",VLOOKUP($E28,表A_RAW!$C:$I,7,0)) -> 0.04470608544 | L28: =IF(ISERROR(VLOOKUP($E28,表C_RAW!$C:$I,4,0)),"",VLOOKUP($E28,表C_RAW!$C:$I,4,0)) -> 752454 | M28: =IF(ISERROR(VLOOKUP($E28,表C_RAW!$C:$I,5,0)),"",VLOOKUP($E28,表C_RAW!$C:$I,5,0)) -> 699142 | N28: =IF(ISERROR(VLOOKUP($E28,表C_RAW!$C:$I,6,0)),"",VLOOKUP($E28,表C_RAW!$C:$I,6,0)/100) -> 0.0763
C29: =VLOOKUP(B26,表C_RAW!N:T,7,0) -> 20 | D29: 4 | E29: =VLOOKUP($C$26&D29,表C_RAW!A:D,3,0) -> 1108 幸福 | G29: =IF(ISERROR(VLOOKUP($E29,表B_RAW!$C:$I,4,0)),"",VLOOKUP($E29,表B_RAW!$C:$I,4,0)) -> 408312 | H29: =IF(ISERROR(VLOOKUP($E29,表B_RAW!$C:$I,5,0)),"",VLOOKUP($E29,表B_RAW!$C:$I,5,0)) -> 356169 | I29: =IF(ISERROR(VLOOKUP($E29,表B_RAW!$C:$I,6,0)),"",VLOOKUP($E29,表B_RAW!$C:$I,6,0)/100) -> 0.1464 | J29: =IF(ISERROR(VLOOKUP($E29,表A_RAW!$C:$I,5,0)),"",VLOOKUP($E29,表A_RAW!$C:$I,5,0)) -> 449482 | K29: =IF(ISERROR(VLOOKUP($E29,表A_RAW!$C:$I,7,0)),"",VLOOKUP($E29,表A_RAW!$C:$I,7,0)) -> -0.09159432413 | L29: =IF(ISERROR(VLOOKUP($E29,表C_RAW!$C:$I,4,0)),"",VLOOKUP($E29,表C_RAW!$C:$I,4,0)) -> 1212710 | M29: =IF(ISERROR(VLOOKUP($E29,表C_RAW!$C:$I,5,0)),"",VLOOKUP($E29,表C_RAW!$C:$I,5,0)) -> 1192968 | N29: =IF(ISERROR(VLOOKUP($E29,表C_RAW!$C:$I,6,0)),"",VLOOKUP($E29,表C_RAW!$C:$I,6,0)/100) -> 0.0165
D30: 5 | E30: =VLOOKUP($C$26&D30,表C_RAW!A:D,3,0) -> 1104 環泥 | G30: =IF(ISERROR(VLOOKUP($E30,表B_RAW!$C:$I,4,0)),"",VLOOKUP($E30,表B_RAW!$C:$I,4,0)) -> 702215 | H30: =IF(ISERROR(VLOOKUP($E30,表B_RAW!$C:$I,5,0)),"",VLOOKUP($E30,表B_RAW!$C:$I,5,0)) -> 538636 | I30: =IF(ISERROR(VLOOKUP($E30,表B_RAW!$C:$I,6,0)),"",VLOOKUP($E30,表B_RAW!$C:$I,6,0)/100) -> 0.3037 | J30: =IF(ISERROR(VLOOKUP($E30,表A_RAW!$C:$I,5,0)),"",VLOOKUP($E30,表A_RAW!$C:$I,5,0)) -> 750456 | K30: =IF(ISERROR(VLOOKUP($E30,表A_RAW!$C:$I,7,0)),"",VLOOKUP($E30,表A_RAW!$C:$I,7,0)) -> -0.06428224973 | L30: =IF(ISERROR(VLOOKUP($E30,表C_RAW!$C:$I,4,0)),"",VLOOKUP($E30,表C_RAW!$C:$I,4,0)) -> 1928654 | M30: =IF(ISERROR(VLOOKUP($E30,表C_RAW!$C:$I,5,0)),"",VLOOKUP($E30,表C_RAW!$C:$I,5,0)) -> 1908572 | N30: =IF(ISERROR(VLOOKUP($E30,表C_RAW!$C:$I,6,0)),"",VLOOKUP($E30,表C_RAW!$C:$I,6,0)/100) -> 0.0105
B32: 衰退前五名之產業 YOY(累計)% | D32: 該產業衰退前五名之公司 YOY(累計)% | G32: 單月營收金額(千元) | H32: 本月與上月相較 | J32: 本月與去年同期相較 | L32: 累計營收金額(千元) | M32: 累計營收與去年同期相較
B33: 衰退 排名 | C33: 產業 | D33: 排名 | E33: 公司代號&簡稱 | H33: 上月營收金額(千元) | I33: 較上月變動比率(%) | J33: 去年同期金額(千元) | K33: 較去年同期變動比率(%) | M33: 去年累計營收金額(千元) | N33: 較去年同期變動比率(%)
B34: 1 | C34: =VLOOKUP(B34,表C_RAW!O:P,2,0) -> 貿易百貨 | D34: 1 | E34: =VLOOKUP($C$34&D34,表C_RAW!B:D,2,0) -> 2905 三商 | G34: =IF(ISERROR(VLOOKUP($E34,表B_RAW!$C:$I,4,0)),"",VLOOKUP($E34,表B_RAW!$C:$I,4,0)) -> 21143581 | H34: =IF(ISERROR(VLOOKUP($E34,表B_RAW!$C:$I,5,0)),"",VLOOKUP($E34,表B_RAW!$C:$I,5,0)) -> 12746179 | I34: =IF(ISERROR(VLOOKUP($E34,表B_RAW!$C:$I,6,0)),"",VLOOKUP($E34,表B_RAW!$C:$I,6,0)/100) -> 0.6588 | J34: =IF(ISERROR(VLOOKUP($E34,表A_RAW!$C:$I,5,0)),"",VLOOKUP($E34,表A_RAW!$C:$I,5,0)) -> 20903939 | K34: =IF(ISERROR(VLOOKUP($E34,表A_RAW!$C:$I,7,0)),"",VLOOKUP($E34,表A_RAW!$C:$I,7,0)) -> 0.0114639638 | L34: =IF(ISERROR(VLOOKUP($E34,表C_RAW!$C:$I,4,0)),"",VLOOKUP($E34,表C_RAW!$C:$I,4,0)) -> 50607313 | M34: =IF(ISERROR(VLOOKUP($E34,表C_RAW!$C:$I,5,0)),"",VLOOKUP($E34,表C_RAW!$C:$I,5,0)) -> 64883688 | N34: =IF(ISERROR(VLOOKUP($E34,表C_RAW!$C:$I,6,0)),"",VLOOKUP($E34,表C_RAW!$C:$I,6,0)/100) -> -0.22
D35: 2 | E35: =VLOOKUP($C$34&D35,表C_RAW!B:D,2,0) -> 5907 大洋-KY | G35: =IF(ISERROR(VLOOKUP($E35,表B_RAW!$C:$I,4,0)),"",VLOOKUP($E35,表B_RAW!$C:$I,4,0)) -> 257284 | H35: =IF(ISERROR(VLOOKUP($E35,表B_RAW!$C:$I,5,0)),"",VLOOKUP($E35,表B_RAW!$C:$I,5,0)) -> 230936 | I35: =IF(ISERROR(VLOOKUP($E35,表B_RAW!$C:$I,6,0)),"",VLOOKUP($E35,表B_RAW!$C:$I,6,0)/100) -> 0.1141 | J35: =IF(ISERROR(VLOOKUP($E35,表A_RAW!$C:$I,5,0)),"",VLOOKUP($E35,表A_RAW!$C:$I,5,0)) -> 297017 | K35: =IF(ISERROR(VLOOKUP($E35,表A_RAW!$C:$I,7,0)),"",VLOOKUP($E35,表A_RAW!$C:$I,7,0)) -> -0.1337734877 | L35: =IF(ISERROR(VLOOKUP($E35,表C_RAW!$C:$I,4,0)),"",VLOOKUP($E35,表C_RAW!$C:$I,4,0)) -> 796329 | M35: =IF(ISERROR(VLOOKUP($E35,表C_RAW!$C:$I,5,0)),"",VLOOKUP($E35,表C_RAW!$C:$I,5,0)) -> 910990 | N35: =IF(ISERROR(VLOOKUP($E35,表C_RAW!$C:$I,6,0)),"",VLOOKUP($E35,表C_RAW!$C:$I,6,0)/100) -> -0.1259
D36: 3 | E36: =VLOOKUP($C$34&D36,表C_RAW!B:D,2,0) -> 2911 麗嬰房 | G36: =IF(ISERROR(VLOOKUP($E36,表B_RAW!$C:$I,4,0)),"",VLOOKUP($E36,表B_RAW!$C:$I,4,0)) -> 211165 | H36: =IF(ISERROR(VLOOKUP($E36,表B_RAW!$C:$I,5,0)),"",VLOOKUP($E36,表B_RAW!$C:$I,5,0)) -> 176704 | I36: =IF(ISERROR(VLOOKUP($E36,表B_RAW!$C:$I,6,0)),"",VLOOKUP($E36,表B_RAW!$C:$I,6,0)/100) -> 0.195 | J36: =IF(ISERROR(VLOOKUP($E36,表A_RAW!$C:$I,5,0)),"",VLOOKUP($E36,表A_RAW!$C:$I,5,0)) -> 223900 | K36: =IF(ISERROR(VLOOKUP($E36,表A_RAW!$C:$I,7,0)),"",VLOOKUP($E36,表A_RAW!$C:$I,7,0)) -> -0.05687807057 | L36: =IF(ISERROR(VLOOKUP($E36,表C_RAW!$C:$I,4,0)),"",VLOOKUP($E36,表C_RAW!$C:$I,4,0)) -> 658670 | M36: =IF(ISERROR(VLOOKUP($E36,表C_RAW!$C:$I,5,0)),"",VLOOKUP($E36,表C_RAW!$C:$I,5,0)) -> 742751 | N36: =IF(ISERROR(VLOOKUP($E36,表C_RAW!$C:$I,6,0)),"",VLOOKUP($E36,表C_RAW!$C:$I,6,0)/100) -> -0.1132
C37: =VLOOKUP(B34,表C_RAW!O:T,6,0) -> -6.6 | D37: 4 | E37: =VLOOKUP($C$34&D37,表C_RAW!B:D,2,0) -> 2601 益航 | G37: =IF(ISERROR(VLOOKUP($E37,表B_RAW!$C:$I,4,0)),"",VLOOKUP($E37,表B_RAW!$C:$I,4,0)) -> 384908 | H37: =IF(ISERROR(VLOOKUP($E37,表B_RAW!$C:$I,5,0)),"",VLOOKUP($E37,表B_RAW!$C:$I,5,0)) -> 337602 | I37: =IF(ISERROR(VLOOKUP($E37,表B_RAW!$C:$I,6,0)),"",VLOOKUP($E37,表B_RAW!$C:$I,6,0)/100) -> 0.1401 | J37: =IF(ISERROR(VLOOKUP($E37,表A_RAW!$C:$I,5,0)),"",VLOOKUP($E37,表A_RAW!$C:$I,5,0)) -> 427976 | K37: =IF(ISERROR(VLOOKUP($E37,表A_RAW!$C:$I,7,0)),"",VLOOKUP($E37,表A_RAW!$C:$I,7,0)) -> -0.1006318111 | L37: =IF(ISERROR(VLOOKUP($E37,表C_RAW!$C:$I,4,0)),"",VLOOKUP($E37,表C_RAW!$C:$I,4,0)) -> 1159027 | M37: =IF(ISERROR(VLOOKUP($E37,表C_RAW!$C:$I,5,0)),"",VLOOKUP($E37,表C_RAW!$C:$I,5,0)) -> 1293154 | N37: =IF(ISERROR(VLOOKUP($E37,表C_RAW!$C:$I,6,0)),"",VLOOKUP($E37,表C_RAW!$C:$I,6,0)/100) -> -0.1037
D38: 5 | E38: =VLOOKUP($C$34&D38,表C_RAW!B:D,2,0) -> 2901 欣欣 | G38: =IF(ISERROR(VLOOKUP($E38,表B_RAW!$C:$I,4,0)),"",VLOOKUP($E38,表B_RAW!$C:$I,4,0)) -> 10237 | H38: =IF(ISERROR(VLOOKUP($E38,表B_RAW!$C:$I,5,0)),"",VLOOKUP($E38,表B_RAW!$C:$I,5,0)) -> 9373 | I38: =IF(ISERROR(VLOOKUP($E38,表B_RAW!$C:$I,6,0)),"",VLOOKUP($E38,表B_RAW!$C:$I,6,0)/100) -> 0.0922 | J38: =IF(ISERROR(VLOOKUP($E38,表A_RAW!$C:$I,5,0)),"",VLOOKUP($E38,表A_RAW!$C:$I,5,0)) -> 10605 | K38: =IF(ISERROR(VLOOKUP($E38,表A_RAW!$C:$I,7,0)),"",VLOOKUP($E38,表A_RAW!$C:$I,7,0)) -> -0.03470061292 | L38: =IF(ISERROR(VLOOKUP($E38,表C_RAW!$C:$I,4,0)),"",VLOOKUP($E38,表C_RAW!$C:$I,4,0)) -> 30893 | M38: =IF(ISERROR(VLOOKUP($E38,表C_RAW!$C:$I,5,0)),"",VLOOKUP($E38,表C_RAW!$C:$I,5,0)) -> 34326 | N38: =IF(ISERROR(VLOOKUP($E38,表C_RAW!$C:$I,6,0)),"",VLOOKUP($E38,表C_RAW!$C:$I,6,0)/100) -> -0.1
B39: 2 | C39: =VLOOKUP(B39,表C_RAW!O:P,2,0) -> 農業科技 | D39: 1 | E39: =VLOOKUP($C$39&D39,表C_RAW!B:D,2,0) -> 6578 達邦蛋白 | G39: =IF(ISERROR(VLOOKUP($E39,表B_RAW!$C:$I,4,0)),"",VLOOKUP($E39,表B_RAW!$C:$I,4,0)) -> 27399 | H39: =IF(ISERROR(VLOOKUP($E39,表B_RAW!$C:$I,5,0)),"",VLOOKUP($E39,表B_RAW!$C:$I,5,0)) -> 15950 | I39: =IF(ISERROR(VLOOKUP($E39,表B_RAW!$C:$I,6,0)),"",VLOOKUP($E39,表B_RAW!$C:$I,6,0)/100) -> 0.7178 | J39: =IF(ISERROR(VLOOKUP($E39,表A_RAW!$C:$I,5,0)),"",VLOOKUP($E39,表A_RAW!$C:$I,5,0)) -> 34409 | K39: =IF(ISERROR(VLOOKUP($E39,表A_RAW!$C:$I,7,0)),"",VLOOKUP($E39,表A_RAW!$C:$I,7,0)) -> -0.2037257694 | L39: =IF(ISERROR(VLOOKUP($E39,表C_RAW!$C:$I,4,0)),"",VLOOKUP($E39,表C_RAW!$C:$I,4,0)) -> 68597 | M39: =IF(ISERROR(VLOOKUP($E39,表C_RAW!$C:$I,5,0)),"",VLOOKUP($E39,表C_RAW!$C:$I,5,0)) -> 101181 | N39: =IF(ISERROR(VLOOKUP($E39,表C_RAW!$C:$I,6,0)),"",VLOOKUP($E39,表C_RAW!$C:$I,6,0)/100) -> -0.322
D40: 2 | E40: =VLOOKUP($C$39&D40,表C_RAW!B:D,2,0) -> 1240 茂生農經 | G40: =IF(ISERROR(VLOOKUP($E40,表B_RAW!$C:$I,4,0)),"",VLOOKUP($E40,表B_RAW!$C:$I,4,0)) -> 249994 | H40: =IF(ISERROR(VLOOKUP($E40,表B_RAW!$C:$I,5,0)),"",VLOOKUP($E40,表B_RAW!$C:$I,5,0)) -> 202227 | I40: =IF(ISERROR(VLOOKUP($E40,表B_RAW!$C:$I,6,0)),"",VLOOKUP($E40,表B_RAW!$C:$I,6,0)/100) -> 0.2362 | J40: =IF(ISERROR(VLOOKUP($E40,表A_RAW!$C:$I,5,0)),"",VLOOKUP($E40,表A_RAW!$C:$I,5,0)) -> 229752 | K40: =IF(ISERROR(VLOOKUP($E40,表A_RAW!$C:$I,7,0)),"",VLOOKUP($E40,表A_RAW!$C:$I,7,0)) -> 0.08810369442 | L40: =IF(ISERROR(VLOOKUP($E40,表C_RAW!$C:$I,4,0)),"",VLOOKUP($E40,表C_RAW!$C:$I,4,0)) -> 683656 | M40: =IF(ISERROR(VLOOKUP($E40,表C_RAW!$C:$I,5,0)),"",VLOOKUP($E40,表C_RAW!$C:$I,5,0)) -> 714830 | N40: =IF(ISERROR(VLOOKUP($E40,表C_RAW!$C:$I,6,0)),"",VLOOKUP($E40,表C_RAW!$C:$I,6,0)/100) -> -0.0436
D41: 3 | E41: =VLOOKUP($C$39&D41,表C_RAW!B:D,2,0) -> 6508 惠光 | G41: =IF(ISERROR(VLOOKUP($E41,表B_RAW!$C:$I,4,0)),"",VLOOKUP($E41,表B_RAW!$C:$I,4,0)) -> 200950 | H41: =IF(ISERROR(VLOOKUP($E41,表B_RAW!$C:$I,5,0)),"",VLOOKUP($E41,表B_RAW!$C:$I,5,0)) -> 117273 | I41: =IF(ISERROR(VLOOKUP($E41,表B_RAW!$C:$I,6,0)),"",VLOOKUP($E41,表B_RAW!$C:$I,6,0)/100) -> 0.7135 | J41: =IF(ISERROR(VLOOKUP($E41,表A_RAW!$C:$I,5,0)),"",VLOOKUP($E41,表A_RAW!$C:$I,5,0)) -> 192644 | K41: =IF(ISERROR(VLOOKUP($E41,表A_RAW!$C:$I,7,0)),"",VLOOKUP($E41,表A_RAW!$C:$I,7,0)) -> 0.04311579909 | L41: =IF(ISERROR(VLOOKUP($E41,表C_RAW!$C:$I,4,0)),"",VLOOKUP($E41,表C_RAW!$C:$I,4,0)) -> 435396 | M41: =IF(ISERROR(VLOOKUP($E41,表C_RAW!$C:$I,5,0)),"",VLOOKUP($E41,表C_RAW!$C:$I,5,0)) -> 432793 | N41: =IF(ISERROR(VLOOKUP($E41,表C_RAW!$C:$I,6,0)),"",VLOOKUP($E41,表C_RAW!$C:$I,6,0)/100) -> 0.006
C42: =VLOOKUP(B39,表C_RAW!O:T,6,0) -> -4.22 | D42: 4 | E42: =VLOOKUP($C$39&D42,表C_RAW!B:D,2,0) -> 4171 瑞基 | G42: =IF(ISERROR(VLOOKUP($E42,表B_RAW!$C:$I,4,0)),"",VLOOKUP($E42,表B_RAW!$C:$I,4,0)) -> 18624 | H42: =IF(ISERROR(VLOOKUP($E42,表B_RAW!$C:$I,5,0)),"",VLOOKUP($E42,表B_RAW!$C:$I,5,0)) -> 24586 | I42: =IF(ISERROR(VLOOKUP($E42,表B_RAW!$C:$I,6,0)),"",VLOOKUP($E42,表B_RAW!$C:$I,6,0)/100) -> -0.2425 | J42: =IF(ISERROR(VLOOKUP($E42,表A_RAW!$C:$I,5,0)),"",VLOOKUP($E42,表A_RAW!$C:$I,5,0)) -> 11256 | K42: =IF(ISERROR(VLOOKUP($E42,表A_RAW!$C:$I,7,0)),"",VLOOKUP($E42,表A_RAW!$C:$I,7,0)) -> 0.6545842217 | L42: =IF(ISERROR(VLOOKUP($E42,表C_RAW!$C:$I,4,0)),"",VLOOKUP($E42,表C_RAW!$C:$I,4,0)) -> 52467 | M42: =IF(ISERROR(VLOOKUP($E42,表C_RAW!$C:$I,5,0)),"",VLOOKUP($E42,表C_RAW!$C:$I,5,0)) -> 45905 | N42: =IF(ISERROR(VLOOKUP($E42,表C_RAW!$C:$I,6,0)),"",VLOOKUP($E42,表C_RAW!$C:$I,6,0)/100) -> 0.1429
D43: 5 | E43: =IFERROR(VLOOKUP($C$39&D43,表C_RAW!B:D,2,0),"") ->  | G43: =IF(ISERROR(VLOOKUP($E43,表B_RAW!$C:$I,4,0)),"",VLOOKUP($E43,表B_RAW!$C:$I,4,0)) ->  | H43: =IF(ISERROR(VLOOKUP($E43,表B_RAW!$C:$I,5,0)),"",VLOOKUP($E43,表B_RAW!$C:$I,5,0)) ->  | I43: =IF(ISERROR(VLOOKUP($E43,表B_RAW!$C:$I,6,0)),"",VLOOKUP($E43,表B_RAW!$C:$I,6,0)/100) ->  | J43: =IF(ISERROR(VLOOKUP($E43,表A_RAW!$C:$I,5,0)),"",VLOOKUP($E43,表A_RAW!$C:$I,5,0)) ->  | K43: =IF(ISERROR(VLOOKUP($E43,表A_RAW!$C:$I,7,0)),"",VLOOKUP($E43,表A_RAW!$C:$I,7,0)) ->  | L43: =IF(ISERROR(VLOOKUP($E43,表C_RAW!$C:$I,4,0)),"",VLOOKUP($E43,表C_RAW!$C:$I,4,0)) ->  | M43: =IF(ISERROR(VLOOKUP($E43,表C_RAW!$C:$I,5,0)),"",VLOOKUP($E43,表C_RAW!$C:$I,5,0)) ->  | N43: =IF(ISERROR(VLOOKUP($E43,表C_RAW!$C:$I,6,0)),"",VLOOKUP($E43,表C_RAW!$C:$I,6,0)/100) -> 
B44: 3 | C44: =VLOOKUP(B44,表C_RAW!O:P,2,0) -> 其他 | D44: 1 | E44: =VLOOKUP($C$44&D44,表C_RAW!B:D,2,0) -> 3313 斐成 | G44: =IF(ISERROR(VLOOKUP($E44,表B_RAW!$C:$I,4,0)),"",VLOOKUP($E44,表B_RAW!$C:$I,4,0)) -> 183 | H44: =IF(ISERROR(VLOOKUP($E44,表B_RAW!$C:$I,5,0)),"",VLOOKUP($E44,表B_RAW!$C:$I,5,0)) -> 177 | I44: =IF(ISERROR(VLOOKUP($E44,表B_RAW!$C:$I,6,0)),"",VLOOKUP($E44,表B_RAW!$C:$I,6,0)/100) -> 0.0339 | J44: =IF(ISERROR(VLOOKUP($E44,表A_RAW!$C:$I,5,0)),"",VLOOKUP($E44,表A_RAW!$C:$I,5,0)) -> 195 | K44: =IF(ISERROR(VLOOKUP($E44,表A_RAW!$C:$I,7,0)),"",VLOOKUP($E44,表A_RAW!$C:$I,7,0)) -> -0.06153846154 | L44: =IF(ISERROR(VLOOKUP($E44,表C_RAW!$C:$I,4,0)),"",VLOOKUP($E44,表C_RAW!$C:$I,4,0)) -> 537 | M44: =IF(ISERROR(VLOOKUP($E44,表C_RAW!$C:$I,5,0)),"",VLOOKUP($E44,表C_RAW!$C:$I,5,0)) -> 12430 | N44: =IF(ISERROR(VLOOKUP($E44,表C_RAW!$C:$I,6,0)),"",VLOOKUP($E44,表C_RAW!$C:$I,6,0)/100) -> -0.9568
D45: 2 | E45: =VLOOKUP($C$44&D45,表C_RAW!B:D,2,0) -> 1516 川飛 | G45: =IF(ISERROR(VLOOKUP($E45,表B_RAW!$C:$I,4,0)),"",VLOOKUP($E45,表B_RAW!$C:$I,4,0)) -> 9841 | H45: =IF(ISERROR(VLOOKUP($E45,表B_RAW!$C:$I,5,0)),"",VLOOKUP($E45,表B_RAW!$C:$I,5,0)) -> 6993 | I45: =IF(ISERROR(VLOOKUP($E45,表B_RAW!$C:$I,6,0)),"",VLOOKUP($E45,表B_RAW!$C:$I,6,0)/100) -> 0.4073 | J45: =IF(ISERROR(VLOOKUP($E45,表A_RAW!$C:$I,5,0)),"",VLOOKUP($E45,表A_RAW!$C:$I,5,0)) -> 119142 | K45: =IF(ISERROR(VLOOKUP($E45,表A_RAW!$C:$I,7,0)),"",VLOOKUP($E45,表A_RAW!$C:$I,7,0)) -> -0.9174010844 | L45: =IF(ISERROR(VLOOKUP($E45,表C_RAW!$C:$I,4,0)),"",VLOOKUP($E45,表C_RAW!$C:$I,4,0)) -> 21864 | M45: =IF(ISERROR(VLOOKUP($E45,表C_RAW!$C:$I,5,0)),"",VLOOKUP($E45,表C_RAW!$C:$I,5,0)) -> 290617 | N45: =IF(ISERROR(VLOOKUP($E45,表C_RAW!$C:$I,6,0)),"",VLOOKUP($E45,表C_RAW!$C:$I,6,0)/100) -> -0.9248
D46: 3 | E46: =VLOOKUP($C$44&D46,表C_RAW!B:D,2,0) -> 9902 台火 | G46: =IF(ISERROR(VLOOKUP($E46,表B_RAW!$C:$I,4,0)),"",VLOOKUP($E46,表B_RAW!$C:$I,4,0)) -> 2395 | H46: =IF(ISERROR(VLOOKUP($E46,表B_RAW!$C:$I,5,0)),"",VLOOKUP($E46,表B_RAW!$C:$I,5,0)) -> 58284 | I46: =IF(ISERROR(VLOOKUP($E46,表B_RAW!$C:$I,6,0)),"",VLOOKUP($E46,表B_RAW!$C:$I,6,0)/100) -> -0.9589 | J46: =IF(ISERROR(VLOOKUP($E46,表A_RAW!$C:$I,5,0)),"",VLOOKUP($E46,表A_RAW!$C:$I,5,0)) -> 3880 | K46: =IF(ISERROR(VLOOKUP($E46,表A_RAW!$C:$I,7,0)),"",VLOOKUP($E46,表A_RAW!$C:$I,7,0)) -> -0.3827319588 | L46: =IF(ISERROR(VLOOKUP($E46,表C_RAW!$C:$I,4,0)),"",VLOOKUP($E46,表C_RAW!$C:$I,4,0)) -> 63156 | M46: =IF(ISERROR(VLOOKUP($E46,表C_RAW!$C:$I,5,0)),"",VLOOKUP($E46,表C_RAW!$C:$I,5,0)) -> 142919 | N46: =IF(ISERROR(VLOOKUP($E46,表C_RAW!$C:$I,6,0)),"",VLOOKUP($E46,表C_RAW!$C:$I,6,0)/100) -> -0.5581
C47: =VLOOKUP(B44,表C_RAW!O:T,6,0) -> -4.02 | D47: 4 | E47: =VLOOKUP($C$44&D47,表C_RAW!B:D,2,0) -> 1435 中福 | G47: =IF(ISERROR(VLOOKUP($E47,表B_RAW!$C:$I,4,0)),"",VLOOKUP($E47,表B_RAW!$C:$I,4,0)) -> 498 | H47: =IF(ISERROR(VLOOKUP($E47,表B_RAW!$C:$I,5,0)),"",VLOOKUP($E47,表B_RAW!$C:$I,5,0)) -> 499 | I47: =IF(ISERROR(VLOOKUP($E47,表B_RAW!$C:$I,6,0)),"",VLOOKUP($E47,表B_RAW!$C:$I,6,0)/100) -> -0.002 | J47: =IF(ISERROR(VLOOKUP($E47,表A_RAW!$C:$I,5,0)),"",VLOOKUP($E47,表A_RAW!$C:$I,5,0)) -> 1020 | K47: =IF(ISERROR(VLOOKUP($E47,表A_RAW!$C:$I,7,0)),"",VLOOKUP($E47,表A_RAW!$C:$I,7,0)) -> -0.5117647059 | L47: =IF(ISERROR(VLOOKUP($E47,表C_RAW!$C:$I,4,0)),"",VLOOKUP($E47,表C_RAW!$C:$I,4,0)) -> 1495 | M47: =IF(ISERROR(VLOOKUP($E47,表C_RAW!$C:$I,5,0)),"",VLOOKUP($E47,表C_RAW!$C:$I,5,0)) -> 2650 | N47: =IF(ISERROR(VLOOKUP($E47,表C_RAW!$C:$I,6,0)),"",VLOOKUP($E47,表C_RAW!$C:$I,6,0)/100) -> -0.4358
D48: 5 | E48: =IFERROR(VLOOKUP($C$44&D48,表C_RAW!B:D,2,0),"") -> 5209 新鼎 | G48: =IF(ISERROR(VLOOKUP($E48,表B_RAW!$C:$I,4,0)),"",VLOOKUP($E48,表B_RAW!$C:$I,4,0)) -> 361061 | H48: =IF(ISERROR(VLOOKUP($E48,表B_RAW!$C:$I,5,0)),"",VLOOKUP($E48,表B_RAW!$C:$I,5,0)) -> 361827 | I48: =IF(ISERROR(VLOOKUP($E48,表B_RAW!$C:$I,6,0)),"",VLOOKUP($E48,表B_RAW!$C:$I,6,0)/100) -> -0.0021 | J48: =IF(ISERROR(VLOOKUP($E48,表A_RAW!$C:$I,5,0)),"",VLOOKUP($E48,表A_RAW!$C:$I,5,0)) -> 564720 | K48: =IF(ISERROR(VLOOKUP($E48,表A_RAW!$C:$I,7,0)),"",VLOOKUP($E48,表A_RAW!$C:$I,7,0)) -> -0.3606371299 | L48: =IF(ISERROR(VLOOKUP($E48,表C_RAW!$C:$I,4,0)),"",VLOOKUP($E48,表C_RAW!$C:$I,4,0)) -> 1094757 | M48: =IF(ISERROR(VLOOKUP($E48,表C_RAW!$C:$I,5,0)),"",VLOOKUP($E48,表C_RAW!$C:$I,5,0)) -> 1685377 | N48: =IF(ISERROR(VLOOKUP($E48,表C_RAW!$C:$I,6,0)),"",VLOOKUP($E48,表C_RAW!$C:$I,6,0)/100) -> -0.3504
B49: 4 | C49: =VLOOKUP(B49,表C_RAW!O:P,2,0) -> 汽車工業 | D49: 1 | E49: =VLOOKUP($C$49&D49,表C_RAW!B:D,2,0) -> 2227 裕日車 | G49: =IF(ISERROR(VLOOKUP($E49,表B_RAW!$C:$I,4,0)),"",VLOOKUP($E49,表B_RAW!$C:$I,4,0)) -> 1468046 | H49: =IF(ISERROR(VLOOKUP($E49,表B_RAW!$C:$I,5,0)),"",VLOOKUP($E49,表B_RAW!$C:$I,5,0)) -> 1156938 | I49: =IF(ISERROR(VLOOKUP($E49,表B_RAW!$C:$I,6,0)),"",VLOOKUP($E49,表B_RAW!$C:$I,6,0)/100) -> 0.2689 | J49: =IF(ISERROR(VLOOKUP($E49,表A_RAW!$C:$I,5,0)),"",VLOOKUP($E49,表A_RAW!$C:$I,5,0)) -> 2380519 | K49: =IF(ISERROR(VLOOKUP($E49,表A_RAW!$C:$I,7,0)),"",VLOOKUP($E49,表A_RAW!$C:$I,7,0)) -> -0.3833084298 | L49: =IF(ISERROR(VLOOKUP($E49,表C_RAW!$C:$I,4,0)),"",VLOOKUP($E49,表C_RAW!$C:$I,4,0)) -> 4552305 | M49: =IF(ISERROR(VLOOKUP($E49,表C_RAW!$C:$I,5,0)),"",VLOOKUP($E49,表C_RAW!$C:$I,5,0)) -> 7596059 | N49: =IF(ISERROR(VLOOKUP($E49,表C_RAW!$C:$I,6,0)),"",VLOOKUP($E49,表C_RAW!$C:$I,6,0)/100) -> -0.4007
D50: 2 | E50: =VLOOKUP($C$49&D50,表C_RAW!B:D,2,0) -> 2204 中華 | G50: =IF(ISERROR(VLOOKUP($E50,表B_RAW!$C:$I,4,0)),"",VLOOKUP($E50,表B_RAW!$C:$I,4,0)) -> 3056790 | H50: =IF(ISERROR(VLOOKUP($E50,表B_RAW!$C:$I,5,0)),"",VLOOKUP($E50,表B_RAW!$C:$I,5,0)) -> 2241297 | I50: =IF(ISERROR(VLOOKUP($E50,表B_RAW!$C:$I,6,0)),"",VLOOKUP($E50,表B_RAW!$C:$I,6,0)/100) -> 0.3638 | J50: =IF(ISERROR(VLOOKUP($E50,表A_RAW!$C:$I,5,0)),"",VLOOKUP($E50,表A_RAW!$C:$I,5,0)) -> 4328327 | K50: =IF(ISERROR(VLOOKUP($E50,表A_RAW!$C:$I,7,0)),"",VLOOKUP($E50,表A_RAW!$C:$I,7,0)) -> -0.2937710113 | L50: =IF(ISERROR(VLOOKUP($E50,表C_RAW!$C:$I,4,0)),"",VLOOKUP($E50,表C_RAW!$C:$I,4,0)) -> 7949854 | M50: =IF(ISERROR(VLOOKUP($E50,表C_RAW!$C:$I,5,0)),"",VLOOKUP($E50,表C_RAW!$C:$I,5,0)) -> 12255673 | N50: =IF(ISERROR(VLOOKUP($E50,表C_RAW!$C:$I,6,0)),"",VLOOKUP($E50,表C_RAW!$C:$I,6,0)/100) -> -0.3513
D51: 3 | E51: =VLOOKUP($C$49&D51,表C_RAW!B:D,2,0) -> 2231 為升 | G51: =IF(ISERROR(VLOOKUP($E51,表B_RAW!$C:$I,4,0)),"",VLOOKUP($E51,表B_RAW!$C:$I,4,0)) -> 334081 | H51: =IF(ISERROR(VLOOKUP($E51,表B_RAW!$C:$I,5,0)),"",VLOOKUP($E51,表B_RAW!$C:$I,5,0)) -> 237095 | I51: =IF(ISERROR(VLOOKUP($E51,表B_RAW!$C:$I,6,0)),"",VLOOKUP($E51,表B_RAW!$C:$I,6,0)/100) -> 0.4091 | J51: =IF(ISERROR(VLOOKUP($E51,表A_RAW!$C:$I,5,0)),"",VLOOKUP($E51,表A_RAW!$C:$I,5,0)) -> 340217 | K51: =IF(ISERROR(VLOOKUP($E51,表A_RAW!$C:$I,7,0)),"",VLOOKUP($E51,表A_RAW!$C:$I,7,0)) -> -0.0180355479 | L51: =IF(ISERROR(VLOOKUP($E51,表C_RAW!$C:$I,4,0)),"",VLOOKUP($E51,表C_RAW!$C:$I,4,0)) -> 881220 | M51: =IF(ISERROR(VLOOKUP($E51,表C_RAW!$C:$I,5,0)),"",VLOOKUP($E51,表C_RAW!$C:$I,5,0)) -> 1062690 | N51: =IF(ISERROR(VLOOKUP($E51,表C_RAW!$C:$I,6,0)),"",VLOOKUP($E51,表C_RAW!$C:$I,6,0)/100) -> -0.1708
C52: =VLOOKUP(B49,表C_RAW!O:T,6,0) -> -3.47 | D52: 4 | E52: =VLOOKUP($C$49&D52,表C_RAW!B:D,2,0) -> 1536 和大 | G52: =IF(ISERROR(VLOOKUP($E52,表B_RAW!$C:$I,4,0)),"",VLOOKUP($E52,表B_RAW!$C:$I,4,0)) -> 401748 | H52: =IF(ISERROR(VLOOKUP($E52,表B_RAW!$C:$I,5,0)),"",VLOOKUP($E52,表B_RAW!$C:$I,5,0)) -> 454999 | I52: =IF(ISERROR(VLOOKUP($E52,表B_RAW!$C:$I,6,0)),"",VLOOKUP($E52,表B_RAW!$C:$I,6,0)/100) -> -0.117 | J52: =IF(ISERROR(VLOOKUP($E52,表A_RAW!$C:$I,5,0)),"",VLOOKUP($E52,表A_RAW!$C:$I,5,0)) -> 486261 | K52: =IF(ISERROR(VLOOKUP($E52,表A_RAW!$C:$I,7,0)),"",VLOOKUP($E52,表A_RAW!$C:$I,7,0)) -> -0.1738017238 | L52: =IF(ISERROR(VLOOKUP($E52,表C_RAW!$C:$I,4,0)),"",VLOOKUP($E52,表C_RAW!$C:$I,4,0)) -> 1234196 | M52: =IF(ISERROR(VLOOKUP($E52,表C_RAW!$C:$I,5,0)),"",VLOOKUP($E52,表C_RAW!$C:$I,5,0)) -> 1487471 | N52: =IF(ISERROR(VLOOKUP($E52,表C_RAW!$C:$I,6,0)),"",VLOOKUP($E52,表C_RAW!$C:$I,6,0)/100) -> -0.1703
D53: 5 | E53: =VLOOKUP($C$49&D53,表C_RAW!B:D,2,0) -> 1521 大億 | G53: =IF(ISERROR(VLOOKUP($E53,表B_RAW!$C:$I,4,0)),"",VLOOKUP($E53,表B_RAW!$C:$I,4,0)) -> 314171 | H53: =IF(ISERROR(VLOOKUP($E53,表B_RAW!$C:$I,5,0)),"",VLOOKUP($E53,表B_RAW!$C:$I,5,0)) -> 317037 | I53: =IF(ISERROR(VLOOKUP($E53,表B_RAW!$C:$I,6,0)),"",VLOOKUP($E53,表B_RAW!$C:$I,6,0)/100) -> -0.009 | J53: =IF(ISERROR(VLOOKUP($E53,表A_RAW!$C:$I,5,0)),"",VLOOKUP($E53,表A_RAW!$C:$I,5,0)) -> 339671 | K53: =IF(ISERROR(VLOOKUP($E53,表A_RAW!$C:$I,7,0)),"",VLOOKUP($E53,表A_RAW!$C:$I,7,0)) -> -0.07507264382 | L53: =IF(ISERROR(VLOOKUP($E53,表C_RAW!$C:$I,4,0)),"",VLOOKUP($E53,表C_RAW!$C:$I,4,0)) -> 888287 | M53: =IF(ISERROR(VLOOKUP($E53,表C_RAW!$C:$I,5,0)),"",VLOOKUP($E53,表C_RAW!$C:$I,5,0)) -> 1063991 | N53: =IF(ISERROR(VLOOKUP($E53,表C_RAW!$C:$I,6,0)),"",VLOOKUP($E53,表C_RAW!$C:$I,6,0)/100) -> -0.1651
B54: 5 | C54: =VLOOKUP(B54,表C_RAW!O:P,2,0) -> 鋼鐵工業 | D54: 1 | E54: =VLOOKUP($C$54&D54,表C_RAW!B:D,2,0) -> 2014 中鴻 | G54: =IF(ISERROR(VLOOKUP($E54,表B_RAW!$C:$I,4,0)),"",VLOOKUP($E54,表B_RAW!$C:$I,4,0)) -> 2233729 | H54: =IF(ISERROR(VLOOKUP($E54,表B_RAW!$C:$I,5,0)),"",VLOOKUP($E54,表B_RAW!$C:$I,5,0)) -> 1853010 | I54: =IF(ISERROR(VLOOKUP($E54,表B_RAW!$C:$I,6,0)),"",VLOOKUP($E54,表B_RAW!$C:$I,6,0)/100) -> 0.2055 | J54: =IF(ISERROR(VLOOKUP($E54,表A_RAW!$C:$I,5,0)),"",VLOOKUP($E54,表A_RAW!$C:$I,5,0)) -> 2908348 | K54: =IF(ISERROR(VLOOKUP($E54,表A_RAW!$C:$I,7,0)),"",VLOOKUP($E54,表A_RAW!$C:$I,7,0)) -> -0.2319595179 | L54: =IF(ISERROR(VLOOKUP($E54,表C_RAW!$C:$I,4,0)),"",VLOOKUP($E54,表C_RAW!$C:$I,4,0)) -> 5760132 | M54: =IF(ISERROR(VLOOKUP($E54,表C_RAW!$C:$I,5,0)),"",VLOOKUP($E54,表C_RAW!$C:$I,5,0)) -> 9148184 | N54: =IF(ISERROR(VLOOKUP($E54,表C_RAW!$C:$I,6,0)),"",VLOOKUP($E54,表C_RAW!$C:$I,6,0)/100) -> -0.3704
D55: 2 | E55: =VLOOKUP($C$54&D55,表C_RAW!B:D,2,0) -> 2025 千興 | G55: =IF(ISERROR(VLOOKUP($E55,表B_RAW!$C:$I,4,0)),"",VLOOKUP($E55,表B_RAW!$C:$I,4,0)) -> 71370 | H55: =IF(ISERROR(VLOOKUP($E55,表B_RAW!$C:$I,5,0)),"",VLOOKUP($E55,表B_RAW!$C:$I,5,0)) -> 61032 | I55: =IF(ISERROR(VLOOKUP($E55,表B_RAW!$C:$I,6,0)),"",VLOOKUP($E55,表B_RAW!$C:$I,6,0)/100) -> 0.1694 | J55: =IF(ISERROR(VLOOKUP($E55,表A_RAW!$C:$I,5,0)),"",VLOOKUP($E55,表A_RAW!$C:$I,5,0)) -> 109119 | K55: =IF(ISERROR(VLOOKUP($E55,表A_RAW!$C:$I,7,0)),"",VLOOKUP($E55,表A_RAW!$C:$I,7,0)) -> -0.3459434196 | L55: =IF(ISERROR(VLOOKUP($E55,表C_RAW!$C:$I,4,0)),"",VLOOKUP($E55,表C_RAW!$C:$I,4,0)) -> 192726 | M55: =IF(ISERROR(VLOOKUP($E55,表C_RAW!$C:$I,5,0)),"",VLOOKUP($E55,表C_RAW!$C:$I,5,0)) -> 294897 | N55: =IF(ISERROR(VLOOKUP($E55,表C_RAW!$C:$I,6,0)),"",VLOOKUP($E55,表C_RAW!$C:$I,6,0)/100) -> -0.3465
D56: 3 | E56: =VLOOKUP($C$54&D56,表C_RAW!B:D,2,0) -> 2028 威致 | G56: =IF(ISERROR(VLOOKUP($E56,表B_RAW!$C:$I,4,0)),"",VLOOKUP($E56,表B_RAW!$C:$I,4,0)) -> 861024 | H56: =IF(ISERROR(VLOOKUP($E56,表B_RAW!$C:$I,5,0)),"",VLOOKUP($E56,表B_RAW!$C:$I,5,0)) -> 749269 | I56: =IF(ISERROR(VLOOKUP($E56,表B_RAW!$C:$I,6,0)),"",VLOOKUP($E56,表B_RAW!$C:$I,6,0)/100) -> 0.1492 | J56: =IF(ISERROR(VLOOKUP($E56,表A_RAW!$C:$I,5,0)),"",VLOOKUP($E56,表A_RAW!$C:$I,5,0)) -> 1032765 | K56: =IF(ISERROR(VLOOKUP($E56,表A_RAW!$C:$I,7,0)),"",VLOOKUP($E56,表A_RAW!$C:$I,7,0)) -> -0.1662924286 | L56: =IF(ISERROR(VLOOKUP($E56,表C_RAW!$C:$I,4,0)),"",VLOOKUP($E56,表C_RAW!$C:$I,4,0)) -> 2199149 | M56: =IF(ISERROR(VLOOKUP($E56,表C_RAW!$C:$I,5,0)),"",VLOOKUP($E56,表C_RAW!$C:$I,5,0)) -> 2874076 | N56: =IF(ISERROR(VLOOKUP($E56,表C_RAW!$C:$I,6,0)),"",VLOOKUP($E56,表C_RAW!$C:$I,6,0)/100) -> -0.2348
C57: =VLOOKUP(B54,表C_RAW!O:T,6,0) -> -3.29 | D57: 4 | E57: =VLOOKUP($C$54&D57,表C_RAW!B:D,2,0) -> 2020 美亞 | G57: =IF(ISERROR(VLOOKUP($E57,表B_RAW!$C:$I,4,0)),"",VLOOKUP($E57,表B_RAW!$C:$I,4,0)) -> 423216 | H57: =IF(ISERROR(VLOOKUP($E57,表B_RAW!$C:$I,5,0)),"",VLOOKUP($E57,表B_RAW!$C:$I,5,0)) -> 356598 | I57: =IF(ISERROR(VLOOKUP($E57,表B_RAW!$C:$I,6,0)),"",VLOOKUP($E57,表B_RAW!$C:$I,6,0)/100) -> 0.1868 | J57: =IF(ISERROR(VLOOKUP($E57,表A_RAW!$C:$I,5,0)),"",VLOOKUP($E57,表A_RAW!$C:$I,5,0)) -> 458141 | K57: =IF(ISERROR(VLOOKUP($E57,表A_RAW!$C:$I,7,0)),"",VLOOKUP($E57,表A_RAW!$C:$I,7,0)) -> -0.07623198971 | L57: =IF(ISERROR(VLOOKUP($E57,表C_RAW!$C:$I,4,0)),"",VLOOKUP($E57,表C_RAW!$C:$I,4,0)) -> 1090633 | M57: =IF(ISERROR(VLOOKUP($E57,表C_RAW!$C:$I,5,0)),"",VLOOKUP($E57,表C_RAW!$C:$I,5,0)) -> 1421407 | N57: =IF(ISERROR(VLOOKUP($E57,表C_RAW!$C:$I,6,0)),"",VLOOKUP($E57,表C_RAW!$C:$I,6,0)/100) -> -0.2327
D58: 5 | E58: =VLOOKUP($C$54&D58,表C_RAW!B:D,2,0) -> 2063 世鎧 | G58: =IF(ISERROR(VLOOKUP($E58,表B_RAW!$C:$I,4,0)),"",VLOOKUP($E58,表B_RAW!$C:$I,4,0)) -> 108726 | H58: =IF(ISERROR(VLOOKUP($E58,表B_RAW!$C:$I,5,0)),"",VLOOKUP($E58,表B_RAW!$C:$I,5,0)) -> 69262 | I58: =IF(ISERROR(VLOOKUP($E58,表B_RAW!$C:$I,6,0)),"",VLOOKUP($E58,表B_RAW!$C:$I,6,0)/100) -> 0.5698 | J58: =IF(ISERROR(VLOOKUP($E58,表A_RAW!$C:$I,5,0)),"",VLOOKUP($E58,表A_RAW!$C:$I,5,0)) -> 116147 | K58: =IF(ISERROR(VLOOKUP($E58,表A_RAW!$C:$I,7,0)),"",VLOOKUP($E58,表A_RAW!$C:$I,7,0)) -> -0.06389316986 | L58: =IF(ISERROR(VLOOKUP($E58,表C_RAW!$C:$I,4,0)),"",VLOOKUP($E58,表C_RAW!$C:$I,4,0)) -> 257435 | M58: =IF(ISERROR(VLOOKUP($E58,表C_RAW!$C:$I,5,0)),"",VLOOKUP($E58,表C_RAW!$C:$I,5,0)) -> 293678 | N58: =IF(ISERROR(VLOOKUP($E58,表C_RAW!$C:$I,6,0)),"",VLOOKUP($E58,表C_RAW!$C:$I,6,0)/100) -> -0.1234

Sheet 表A_RAW
D1: TSE新產業_名稱 | E1: TSE新產業_代碼 | F1: 單月營收(千元) | G1: 去年單月營收(千元) | H1: 本月較去年同期變動金額 | I1: 較去年同期變動比率(%) | J1: 產業位址 | K1: 產業家數 | L1: 排名(正向) | M1: 排名(反向) | N1: 排名(正向) | O1: 排名(反向) | P1: 產業營收 | Q1: 單月營收(千元) | R1: 去年單月營收(千元) | S1: 本月較去年同期變動金額 | T1: 較去年同期變動比率(%) | U1: 排名(正向) | V1: 排名(反向)
A2: 排名(正向) | B2: 排名(反向) | C2: 公司 | E2: 2025-03-31 | F2: 2025-03-31 | G2: 2025-03-31 | N2: =U2 -> 27 | O2: =V2 -> 8 | P2: =_xlfn.UNIQUE($D$3:$D$1900,FALSE,FALSE) -> 水泥工業 | Q2: =SUMIF($D:$D,$P2,F:F) -> 22266520 | R2: =SUMIF($D:$D,$P2,G:G) -> 22138169 | S2: =Q2-R2 -> 128351 | T2: =S2/R2*100 -> 0.5797724283 | U2: =RANK(T2,T:T) -> 27 | V2: =RANK(T2,T:T,1) -> 8
A3: =$D3&L3 -> 水泥工業5 | B3: =$D3&M3 -> 水泥工業3 | C3: 1101 台泥 | D3: 水泥工業 | E3: M1100 | F3: 13635386 | G3: 13649152 | H3: =F3-G3 -> -13766 | I3: =IF(ISERROR((H3/G3)*100),"",(H3/(ABS(G3)))) -> -0.001008560825 | J3: =IF(E3="","",MATCH(E3,E:E,0)) -> 3 | K3: =COUNTIF(D:D,D3) -> 7 | L3: =IF(I3="","",RANK(I3,OFFSET(I$1,$J3-1,,$K3,),0)) -> 5 | M3: =IF(I3="","",RANK(I3,OFFSET(I$1,$J3-1,,$K3,),1)) -> 3 | N3: =U3 -> 20 | O3: =V3 -> 15 | P3: 食品工業 | Q3: =SUMIF($D:$D,$P3,F:F) -> 83812554 | R3: 80323467 | S3: =Q3-R3 -> 3489087 | T3: =S3/R3*100 -> 4.343795319 | U3: =RANK(T3,T:T) -> 20 | V3: 15
A4: 水泥工業4 | B4: 水泥工業4 | C4: 1102 亞泥 | D4: 水泥工業 | E4: M1100 | F4: 6532662 | G4: 6409280 | H4: =F4-G4 -> 123382 | I4: =IF(ISERROR((H4/G4)*100),"",(H4/(ABS(G4)))) -> 0.01925052424 | J4: =IF(E4="","",MATCH(E4,E:E,0)) -> 3 | K4: =COUNTIF(D:D,D4) -> 7 | L4: =IF(I4="","",RANK(I4,OFFSET(I$1,$J4-1,,$K4,),0)) -> 4 | M4: =IF(I4="","",RANK(I4,OFFSET(I$1,$J4-1,,$K4,),1)) -> 4 | N4: 30 | O4: 5 | P4: 塑膠工業 | Q4: 90009656 | R4: 91549999 | S4: -1540343 | T4: -1.682515584 | U4: 30 | V4: 5
A5: 水泥工業3 | B5: 水泥工業5 | C5: 1103 嘉泥 | D5: 水泥工業 | E5: M1100 | F5: 266282 | G5: 254887 | H5: 11395 | I5: 0.04470608544 | J5: 3 | K5: 7 | L5: =IF(I5="","",RANK(I5,OFFSET(I$1,$J5-1,,$K5,),0)) -> 3 | M5: 5 | N5: 26 | O5: 9 | P5: 紡織纖維 | Q5: 52135060 | R5: 51339555 | S5: 795505 | T5: 1.549497264 | U5: 26 | V5: 9
A6: 水泥工業6 | B6: 水泥工業2 | C6: 1104 環泥 | D6: 水泥工業 | E6: M1100 | F6: 702215 | G6: 750456 | H6: -48241 | I6: -0.06428224973 | J6: 3 | K6: 7 | L6: 6 | M6: 2 | N6: 22 | O6: 13 | P6: 電機機械 | Q6: 45782684 | R6: 44029933 | S6: 1752751 | T6: 3.980816868 | U6: 22 | V6: 13
A7: 水泥工業7 | B7: 水泥工業1 | C7: 1108 幸福 | D7: 水泥工業 | E7: M1100 | F7: 408312 | G7: 449482 | H7: -41170 | I7: -0.09159432413 | J7: 3 | K7: 7 | L7: 7 | M7: 1 | N7: 16 | O7: 19 | P7: 電器電纜 | Q7: 25734407 | R7: 24457525 | S7: 1276882 | T7: 5.220814453 | U7: 16 | V7: 19
A8: 水泥工業2 | B8: 水泥工業6 | C8: 1109 信大 | D8: 水泥工業 | E8: M1100 | F8: 446709 | G8: 403740 | H8: 42969 | I8: 0.1064274038 | J8: 3 | K8: 7 | L8: 2 | M8: 6 | N8: 13 | O8: 22 | P8: 化學工業 | Q8: 28144115 | R8: 26391354 | S8: 1752761 | T8: 6.641421278 | U8: 13 | V8: 22
A9: 水泥工業1 | B9: 水泥工業7 | C9: 1110 東泥 | D9: 水泥工業 | E9: M1100 | F9: 274954 | G9: 221172 | H9: 53782 | I9: 0.243168213 | J9: 3 | K9: 7 | L9: 1 | M9: 7 | N9: 5 | O9: 30 | P9: 生技醫療業 | Q9: 27895333 | R9: 23166525 | S9: 4728808 | T9: 20.41224569 | U9: 5 | V9: 30
A10: 食品工業15 | B10: 食品工業15 | C10: 1201 味全 | D10: 食品工業 | E10: M1200 | F10: 1773075 | G10: 1781603 | H10: -8528 | I10: -0.004786700516 | J10: 10 | K10: 29 | L10: 15 | M10: 15 | N10: 29 | O10: 6 | P10: 玻璃陶瓷 | Q10: 4755831 | R10: 4747303 | S10: 8528 | T10: 0.1796388391 | U10: 29 | V10: 6
A11: 食品工業16 | B11: 食品工業14 | C11: 1203 味王 | D11: 食品工業 | E11: M1200 | F11: 521527 | G11: 524884 | H11: -3357 | I11: -0.006395698859 | J11: 10 | K11: 29 | L11: 16 | M11: 14 | N11: 28 | O11: 7 | P11: 造紙工業 | Q11: 17494302 | R11: 17418680 | S11: 75622 | T11: 0.4341431153 | U11: 28 | V11: 7
A12: 食品工業11 | B12: 食品工業19 | C12: 1210 大成 | D12: 食品工業 | E12: M1200 | F12: 8770327 | G12: 8587702 | H12: 182625 | I12: 0.02126587532 | J12: 10 | K12: 29 | L12: 11 | M12: 19 | N12: 31 | O12: 4 | P12: 鋼鐵工業 | Q12: 85879585 | R12: 87596226 | S12: -1716641 | T12: -1.959720274 | U12: 31 | V12: 4
A13: 食品工業1 | B13: 食品工業29 | C13: 1213 大飲 | D13: 食品工業 | E13: M1200 | F13: 19695 | G13: 7927 | H13: 11768 | I13: 1.484546487 | J13: 10 | K13: 29 | L13: 1 | M13: 29 | N13: 25 | O13: 10 | P13: 橡膠工業 | Q13: 19037112 | R13: 18674729 | S13: 362383 | T13: 1.940499378 | U13: 25 | V13: 10
A14: 食品工業18 | B14: 食品工業12 | C14: 1215 卜蜂 | D14: 食品工業 | E14: M1200 | F14: 2335353 | G14: 2376299 | H14: -40946 | I14: -0.0172309966 | J14: 10 | K14: 29 | L14: 18 | M14: 12 | N14: 33 | O14: 2 | P14: 汽車工業 | Q14: 61108250 | R14: 63851902 | S14: -2743652 | T14: -4.29689941 | U14: 33 | V14: 2
A15: 食品工業8 | B15: 食品工業22 | C15: 1216 統一 | D15: 食品工業 | E15: M1200 | F15: 55935541 | G15: 52191829 | H15: 3743712 | I15: 0.07172984875 | J15: 10 | K15: 29 | L15: 8 | M15: 22 | N15: 3 | O15: 32 | P15: 半導體業 | Q15: 574767737 | R15: 454912608 | S15: 119855129 | T15: 26.34684704 | U15: 3 | V15: 32
A16: 食品工業6 | B16: 食品工業24 | C16: 1217 愛之味 | D16: 食品工業 | E16: M1200 | F16: 402634 | G16: 373002 | H16: 29632 | I16: 0.07944193329 | J16: 10 | K16: 29 | L16: 6 | M16: 24 | N16: 1 | O16: 34 | P16: 電腦及週邊設備業 | Q16: 915730277 | R16: 639469980 | S16: 276260297 | T16: 43.20144896 | U16: 1 | V16: 34
A17: 食品工業20 | B17: 食品工業10 | C17: 1218 泰山 | D17: 食品工業 | E17: M1200 | F17: 825493 | G17: 866051 | H17: -40558 | I17: -0.0468309603 | J17: 10 | K17: 29 | L17: 20 | M17: 10 | N17: 12 | O17: 23 | P17: 光電業 | Q17: 109506084 | R17: 102455510 | S17: 7050574 | T17: 6.881595729 | U17: 12 | V17: 23
A18: 食品工業7 | B18: 食品工業23 | C18: 1219 福壽 | D18: 食品工業 | E18: M1200 | F18: 1294322 | G18: 1202605 | H18: 91717 | I18: 0.07626527413 | J18: 10 | K18: 29 | L18: 7 | M18: 23 | N18: 9 | O18: 26 | P18: 通訊網路業 | Q18: 108813895 | R18: 96736700 | S18: 12077195 | T18: 12.48460512 | U18: 9 | V18: 26
A19: 食品工業21 | B19: 食品工業9 | C19: 1220 台榮 | D19: 食品工業 | E19: M1200 | F19: 269636 | G19: 286684 | H19: -17048 | I19: -0.05946617181 | J19: 10 | K19: 29 | L19: 21 | M19: 9 | N19: 7 | O19: 28 | P19: 電子零組件 | Q19: 222688554 | R19: 186402696 | S19: 36285858 | T19: 19.46638046 | U19: 7 | V19: 28
A20: 食品工業24 | B20: 食品工業6 | C20: 1225 福懋油 | D20: 食品工業 | E20: M1200 | F20: 1061994 | G20: 1151247 | H20: -89253 | I20: -0.07752723786 | J20: 10 | K20: 29 | L20: 24 | M20: 6 | N20: 2 | O20: 33 | P20: 電子通路業 | Q20: 316472892 | R20: 250285357 | S20: =Q20-R20 -> 66187535 | T20: 26.44482913 | U20: 2 | V20: 33
A21: 食品工業19 | B21: 食品工業11 | C21: 1227 佳格 | D21: 食品工業 | E21: M1200 | F21: 2006555 | G21: 2068129 | H21: -61574 | I21: -0.02977280431 | J21: 10 | K21: 29 | L21: 19 | M21: 11 | N21: 10 | O21: 25 | P21: 資訊服務業 | Q21: 15905367 | R21: 14223276 | S21: 1682091 | T21: 11.82632609 | U21: 10 | V21: 25
A22: 食品工業28 | B22: 食品工業2 | C22: 1229 聯華 | D22: 食品工業 | E22: M1200 | F22: 768711 | G22: 1202405 | H22: -433694 | I22: -0.3606887862 | J22: 10 | K22: 29 | L22: 28 | M22: 2 | N22: 4 | O22: 31 | P22: 其他電子業 | Q22: 633903662 | R22: 512425991 | S22: 121477671 | T22: 23.70638358 | U22: 4 | V22: 31
A23: 食品工業5 | B23: 食品工業25 | C23: 1231 聯華食 | D23: 食品工業 | E23: M1200 | F23: 1001578 | G23: 908144 | H23: 93434 | I23: 0.1028845646 | J23: 10 | K23: 29 | L23: 5 | M23: 25 | N23: 8 | O23: 27 | P23: 建材營造 | Q23: 45710471 | R23: 40305097 | S23: 5405374 | T23: 13.41114252 | U23: 8 | V23: 27
A24: 食品工業14 | B24: 食品工業16 | C24: 1232 大統益 | D24: 食品工業 | E24: M1200 | F24: 1935400 | G24: 1911693 | H24: 23707 | I24: 0.01240104975 | J24: 10 | K24: 29 | L24: 14 | M24: 16 | N24: 18 | O24: 17 | P24: 航運業 | Q24: 123896516 | R24: 118138322 | S24: 5758194 | T24: 4.874111891 | U24: 18 | V24: 17
A25: 食品工業25 | B25: 食品工業5 | C25: 1233 天仁 | D25: 食品工業 | E25: M1200 | F25: 169134 | G25: 189036 | H25: -19902 | I25: -0.1052815337 | J25: 10 | K25: 29 | L25: 25 | M25: 5 | N25: 17 | O25: 18 | P25: 觀光餐旅 | Q25: 15395190 | R25: 14633363 | S25: 761827 | T25: 5.206096507 | U25: 17 | V25: 18
A26: 食品工業22 | B26: 食品工業8 | C26: 1234 黑松 | D26: 食品工業 | E26: M1200 | F26: 609760 | G26: 650704 | H26: -40944 | I26: -0.06292261919 | J26: 10 | K26: 29 | L26: 22 | M26: 8 | N26: 34 | O26: 1 | P26: 金融業 | Q26: 180863833 | R26: 193679312 | S26: -12815479 | T26: -6.616854876 | U26: 34 | V26: 1
A27: 食品工業2 | B27: 食品工業28 | C27: 1235 興泰 | D27: 食品工業 | E27: M1200 | F27: 18067 | G27: 9674 | H27: 8393 | I27: 0.8675832127 | J27: 10 | K27: 29 | L27: 2 | M27: 28 | N27: 24 | O27: 11 | P27: 貿易百貨 | Q27: 59190901 | R27: 58055343 | S27: 1135558 | T27: 1.955992233 | U27: 24 | V27: 11
A28: 食品工業12 | B28: 食品工業18 | C28: 1236 宏亞 | D28: 食品工業 | E28: M1200 | F28: 133073 | G28: 130365 | H28: 2708 | I28: 0.02077244659 | J28: 10 | K28: 29 | L28: 12 | M28: 18 | N28: 19 | O28: 16 | P28: 文化創意業 | Q28: 5325882 | R28: 5092716 | S28: 233166 | T28: 4.578421416 | U28: 19 | V28: 16
A29: 食品工業23 | B29: 食品工業7 | C29: 1256 鮮活果汁-KY | D29: 食品工業 | E29: M1200 | F29: 226637 | G29: 242623 | H29: -15986 | I29: -0.06588822989 | J29: 10 | K29: 29 | L29: 23 | M29: 7 | N29: 14 | O29: 21 | P29: 農業科技 | Q29: 496967 | R29: 468061 | S29: 28906 | T29: 6.175690775 | U29: 14 | V29: 21
A30: 食品工業9 | B30: 食品工業21 | C30: 1264 德麥 | D30: 食品工業 | E30: M1200 | F30: 554832 | G30: 522003 | H30: 32829 | I30: 0.06289044316 | J30: 10 | K30: 29 | L30: 9 | M30: 21 | N30: =U30 -> 6 | O30: =V30 -> 29 | P30: 綠能環保 | Q30: =SUMIF($D:$D,$P30,F:F) -> 9979878 | R30: =SUMIF($D:$D,$P30,G:G) -> 8347719 | S30: =Q30-R30 -> 1632159 | T30: =S30/R30*100 -> 19.5521555 | U30: =RANK(T30,T:T) -> 6 | V30: =RANK(T30,T:T,1) -> 29
A31: 食品工業4 | B31: 食品工業26 | C31: 1294 漢田生技 | D31: 食品工業 | E31: M1200 | F31: 73692 | G31: 62666 | H31: 11026 | I31: 0.1759486803 | J31: 10 | K31: 29 | L31: 4 | M31: 26 | N31: 21 | O31: 14 | P31: 數位雲端 | Q31: 17690492 | R31: 16954538 | S31: 735954 | T31: 4.340749362 | U31: 21 | V31: 14
A32: 食品工業10 | B32: 食品工業20 | C32: 1702 南僑 | D32: 食品工業 | E32: M1200 | F32: 2054601 | G32: 1959060 | H32: 95541 | I32: 0.04876879728 | J32: 10 | K32: 29 | L32: 10 | M32: 20 | N32: 11 | O32: 24 | P32: 運動休閒 | Q32: 61705637 | R32: 56693299 | S32: 5012338 | T32: 8.84114717 | U32: 11 | V32: 24
A33: 食品工業27 | B33: 食品工業3 | C33: 1737 臺鹽 | D33: 食品工業 | E33: M1200 | F33: 249440 | G33: 278862 | H33: -29422 | I33: -0.1055073836 | J33: 10 | K33: 29 | L33: 27 | M33: 3 | N33: 15 | O33: 20 | P33: 居家生活 | Q33: 22694343 | R33: 21504027 | S33: 1190316 | T33: 5.535316711 | U33: 15 | V33: 20
A34: 食品工業3 | B34: 食品工業27 | C34: 1796 金穎生技 | D34: 食品工業 | E34: M1200 | F34: 60579 | G34: 34371 | H34: 26208 | I34: 0.7625032731 | J34: 10 | K34: 29 | L34: 3 | M34: 27 | N34: 23 | O34: 12 | P34: 油電燃氣業 | Q34: 65799895 | R34: 64446974 | S34: 1352921 | T34: 2.099277772 | U34: 23 | V34: 12
A35: 食品工業29 | B35: 食品工業1 | C35: 3054 立萬利 | D35: 食品工業 | E35: M1200 | F35: 5427 | G35: 12312 | H35: -6885 | I35: -0.5592105263 | J35: 10 | K35: 29 | L35: 29 | M35: 1 | N35: 32 | O35: 3 | P35: 其他 | Q35: 56621791 | R35: 59019734 | S35: -2397943 | T35: -4.062951216 | U35: 32 | V35: 3
A36: 食品工業13 | B36: 食品工業17 | C36: 4205 中華食 | D36: 食品工業 | E36: M1200 | F36: 161331 | G36: 158955 | H36: 2376 | I36: 0.01494762669 | J36: 10 | K36: 29 | L36: 13 | M36: 17 | N36: 0 | O36: 0 | P36: 存託憑證
A37: 食品工業26 | B37: 食品工業4 | C37: 4207 環泰 | D37: 食品工業 | E37: M1200 | F37: 491655 | G37: 549531 | H37: -57876 | I37: -0.1053188992 | J37: 10 | K37: 29 | L37: 26 | M37: 4 | N37: 0 | O37: 0 | P37: 0
A38: 食品工業17 | B38: 食品工業13 | C38: 6846 綠茵 | D38: 食品工業 | E38: M1200 | F38: 82485 | G38: 83101 | H38: -616 | I38: -0.007412666514 | J38: 10 | K38: 29 | L38: 17 | M38: 13 | N38: 0 | O38: 0
A39: 塑膠工業12 | B39: 塑膠工業14 | C39: 1301 台塑 | D39: 塑膠工業 | E39: M1300 | F39: 17092363 | G39: 17659603 | H39: -567240 | I39: -0.03212076738 | J39: 39 | K39: 25 | L39: 12 | M39: 14 | N39: 0 | O39: 0
A40: 塑膠工業9 | B40: 塑膠工業17 | C40: 1303 南亞 | D40: 塑膠工業 | E40: M1300 | F40: 23012738 | G40: 21525681 | H40: 1487057 | I40: 0.06908292472 | J40: 39 | K40: 25 | L40: 9 | M40: 17 | N40: 0 | O40: 0
A41: 塑膠工業10 | B41: 塑膠工業16 | C41: 1304 台聚 | D41: 塑膠工業 | E41: M1300 | F41: 4296504 | G41: 4086049 | H41: 210455 | I41: 0.05150574553 | J41: 39 | K41: 25 | L41: 10 | M41: 16 | N41: 0 | O41: 0
A42: 塑膠工業19 | B42: 塑膠工業7 | C42: 1305 華夏 | D42: 塑膠工業 | E42: M1300 | F42: 836342 | G42: 981137 | H42: -144795 | I42: -0.1475787785 | J42: 39 | K42: 25 | L42: 19 | M42: 7 | N42: 0 | O42: 0
A43: 塑膠工業8 | B43: 塑膠工業18 | C43: 1307 三芳 | D43: 塑膠工業 | E43: M1300 | F43: 1022024 | G43: 934620 | H43: 87404 | I43: 0.09351822131 | J43: 39 | K43: 25 | L43: 8 | M43: 18 | N43: 0 | O43: 0
A44: 塑膠工業5 | B44: 塑膠工業21 | C44: 1308 亞聚 | D44: 塑膠工業 | E44: M1300 | F44: 564425 | G44: 486263 | H44: 78162 | I44: 0.1607401756 | J44: 39 | K44: 25 | L44: 5 | M44: 21 | N44: 0 | O44: 0
A45: 塑膠工業6 | B45: 塑膠工業20 | C45: 1309 台達化 | D45: 塑膠工業 | E45: M1300 | F45: 1502160 | G45: 1359122 | H45: 143038 | I45: 0.1052429436 | J45: 39 | K45: 25 | L45: 6 | M45: 20 | N45: 0 | O45: 0
A46: 塑膠工業7 | B46: 塑膠工業19 | C46: 1310 台苯 | D46: 塑膠工業 | E46: M1300 | F46: 695651 | G46: 634841 | H46: 60810 | I46: 0.09578776418 | J46: 39 | K46: 25 | L46: 7 | M46: 19 | N46: 0 | O46: 0
A47: 塑膠工業2 | B47: 塑膠工業24 | C47: 1312 國喬 | D47: 塑膠工業 | E47: M1300 | F47: 2647259 | G47: 916497 | H47: 1730762 | I47: 1.888453536 | J47: 39 | K47: 25 | L47: 2 | M47: 24 | N47: 0 | O47: 0
A48: 塑膠工業22 | B48: 塑膠工業4 | C48: 1313 聯成 | D48: 塑膠工業 | E48: M1300 | F48: 5864531 | G48: 7295577 | H48: -1431046 | I48: -0.1961525456 | J48: 39 | K48: 25 | L48: 22 | M48: 4 | N48: 0 | O48: 0
A49: 塑膠工業23 | B49: 塑膠工業3 | C49: 1314 中石化 | D49: 塑膠工業 | E49: M1300 | F49: 2109730 | G49: 2729534 | H49: -619804 | I49: -0.2270731927 | J49: 39 | K49: 25 | L49: 23 | M49: 3 | N49: 0 | O49: 0
A50: 塑膠工業4 | B50: 塑膠工業22 | C50: 1315 達新 | D50: 塑膠工業 | E50: M1300 | F50: 154471 | G50: 130875 | H50: 23596 | I50: 0.1802941738 | J50: 39 | K50: 25 | L50: 4 | M50: 22 | N50: 0 | O50: 0
A51: 塑膠工業20 | B51: 塑膠工業6 | C51: 1321 大洋 | D51: 塑膠工業 | E51: M1300 | F51: 367145 | G51: 442099 | H51: -74954 | I51: -0.1695412114 | J51: 39 | K51: 25 | L51: 20 | M51: 6 | N51: 0 | O51: 0
A52: 塑膠工業24 | B52: 塑膠工業2 | C52: 1323 永裕 | D52: 塑膠工業 | E52: M1300 | F52: 194938 | G52: 265123 | H52: -70185 | I52: -0.2647261837 | J52: 39 | K52: 25 | L52: 24 | M52: 2 | N52: 0 | O52: 0
A53: 塑膠工業18 | B53: 塑膠工業8 | C53: 1324 地球 | D53: 塑膠工業 | E53: M1300 | F53: 67682 | G53: 76322 | H53: -8640 | I53: -0.1132045806 | J53: 39 | K53: 25 | L53: 18 | M53: 8 | N53: 0 | O53: 0
A54: 塑膠工業3 | B54: 塑膠工業23 | C54: 1325 恒大 | D54: 塑膠工業 | E54: M1300 | F54: 29830 | G54: 24418 | H54: 5412 | I54: 0.2216397739 | J54: 39 | K54: 25 | L54: 3 | M54: 23 | N54: 0 | O54: 0
A55: 塑膠工業16 | B55: 塑膠工業10 | C55: 1326 台化 | D55: 塑膠工業 | E55: M1300 | F55: 27746732 | G55: 30076914 | H55: -2330182 | I55: -0.07747410522 | J55: 39 | K55: 25 | L55: 16 | M55: 10 | N55: 0 | O55: 0
A56: 塑膠工業25 | B56: 塑膠工業1 | C56: 1337 再生-KY | D56: 塑膠工業 | E56: M1300 | F56: 45670 | G56: 80603 | H56: -34933 | I56: -0.4333957793 | J56: 39 | K56: 25 | L56: 25 | M56: 1 | N56: 0 | O56: 0
A57: 塑膠工業21 | B57: 塑膠工業5 | C57: 1340 勝悅-KY | D57: 塑膠工業 | E57: M1300 | F57: 28561 | G57: 34727 | H57: -6166 | I57: -0.1775563682 | J57: 39 | K57: 25 | L57: 21 | M57: 5 | N57: 0 | O57: 0
A58: 塑膠工業11 | B58: 塑膠工業15 | C58: 1341 富林-KY | D58: 塑膠工業 | E58: M1300 | F58: 267873 | G58: 267624 | H58: 249 | I58: 0.0009304098287 | J58: 39 | K58: 25 | L58: 11 | M58: 15 | N58: 0 | O58: 0
A59: 塑膠工業1 | B59: 塑膠工業25 | C59: 4303 信立 | D59: 塑膠工業 | E59: M1300 | F59: 75568 | G59: 20379 | H59: 55189 | I59: 2.708130919 | J59: 39 | K59: 25 | L59: 1 | M59: 25 | N59: 0 | O59: 0
A60: 塑膠工業14 | B60: 塑膠工業12 | C60: 4304 勝昱 | D60: 塑膠工業 | E60: M1300 | F60: 30265 | G60: 32335 | H60: -2070 | I60: -0.06401731869 | J60: 39 | K60: 25 | L60: 14 | M60: 12 | N60: 0 | O60: 0
A61: 塑膠工業15 | B61: 塑膠工業11 | C61: 4305 世坤 | D61: 塑膠工業 | E61: M1300 | F61: 92067 | G61: 98487 | H61: -6420 | I61: -0.06518626824 | J61: 39 | K61: 25 | L61: 15 | M61: 11 | N61: 0 | O61: 0
A62: 塑膠工業17 | B62: 塑膠工業9 | C62: 4306 炎洲 | D62: 塑膠工業 | E62: M1300 | F62: 1080099 | G62: 1196080 | H62: -115981 | I62: -0.09696759414 | J62: 39 | K62: 25 | L62: 17 | M62: 9 | N62: 0 | O62: 0
A63: 塑膠工業13 | B63: 塑膠工業13 | C63: 9950 萬國通 | D63: 塑膠工業 | E63: M1300 | F63: 185028 | G63: 195089 | H63: -10061 | I63: -0.05157133411 | J63: 39 | K63: 25 | L63: 13 | M63: 13 | N63: 0 | O63: 0
A64: 紡織纖維30 | B64: 紡織纖維22 | C64: 1402 遠東新 | D64: 紡織纖維 | E64: M1400 | F64: 22109493 | G64: 22855745 | H64: -746252 | I64: -0.03265052178 | J64: 64 | K64: 51 | L64: 30 | M64: 22 | N64: 0 | O64: 0
A65: 紡織纖維34 | B65: 紡織纖維18 | C65: 1409 新纖 | D65: 紡織纖維 | E65: M1400 | F65: 3763379 | G65: 4061424 | H65: -298045 | I65: -0.07338435977 | J65: 64 | K65: 51 | L65: 34 | M65: 18 | N65: 0 | O65: 0
A66: 紡織纖維24 | B66: 紡織纖維28 | C66: 1410 南染 | D66: 紡織纖維 | E66: M1400 | F66: 19090 | G66: 18776 | H66: 314 | I66: 0.01672347678 | J66: 64 | K66: 51 | L66: 24 | M66: 28 | N66: 0 | O66: 0
A67: =$D67&L67 -> 紡織纖維27 | B67: =$D67&M67 -> 紡織纖維25 | C67: 1413 宏洲 | D67: 紡織纖維 | E67: M1400 | F67: 225392 | G67: 223241 | H67: 2151 | I67: 0.009635326844 | J67: =IF(E67="","",MATCH(E67,E:E,0)) -> 64 | K67: =COUNTIF(D:D,D67) -> 51 | L67: 27 | M67: 25 | N67: 0 | O67: 0
A68: 紡織纖維33 | B68: 紡織纖維19 | C68: 1414 東和 | D68: 紡織纖維 | E68: M1400 | F68: 52596 | G68: 54426 | H68: =F68-G68 -> -1830 | I68: =IF(ISERROR((H68/G68)*100),"",(H68/(ABS(G68)))) -> -0.03362363576 | J68: 64 | K68: 51 | L68: =IF(I68="","",RANK(I68,OFFSET(I$1,$J68-1,,$K68,),0)) -> 33 | M68: =IF(I68="","",RANK(I68,OFFSET(I$1,$J68-1,,$K68,),1)) -> 19 | N68: 0 | O68: 0
A69: 紡織纖維51 | B69: 紡織纖維1 | C69: 1417 嘉裕 | D69: 紡織纖維 | E69: M1400 | F69: 18799 | G69: 73532 | H69: -54733 | I69: -0.7443425991 | J69: 64 | K69: 51 | L69: 51 | M69: 1 | N69: 0 | O69: 0
A70: 紡織纖維50 | B70: 紡織纖維2 | C70: 1418 東華 | D70: 紡織纖維 | E70: M1400 | F70: 849 | G70: 2609 | H70: -1760 | I70: -0.6745879647 | J70: 64 | K70: 51 | L70: 50 | M70: 2 | N70: 0 | O70: 0
A71: 紡織纖維13 | B71: 紡織纖維39 | C71: 1419 新紡 | D71: 紡織纖維 | E71: M1400 | F71: 396037 | G71: 324322 | H71: 71715 | I71: 0.2211228347 | J71: 64 | K71: 51 | L71: 13 | M71: 39 | N71: 0 | O71: 0
A72: 紡織纖維39 | B72: 紡織纖維13 | C72: 1423 利華 | D72: 紡織纖維 | E72: M1400 | F72: 10615 | G72: 12496 | H72: -1881 | I72: -0.150528169 | J72: 64 | K72: 51 | L72: 39 | M72: 13 | N72: 0 | O72: 0
A73: 紡織纖維22 | B73: 紡織纖維30 | C73: 1434 福懋 | D73: 紡織纖維 | E73: M1400 | F73: 2815178 | G73: 2630038 | H73: 185140 | I73: 0.07039442016 | J73: 64 | K73: 51 | L73: 22 | M73: 30 | N73: 0 | O73: 0
A74: 紡織纖維32 | B74: 紡織纖維20 | C74: 1440 南紡 | D74: 紡織纖維 | E74: M1400 | F74: 1459502 | G74: 1509864 | H74: -50362 | I74: -0.03335532207 | J74: 64 | K74: 51 | L74: 32 | M74: 20 | N74: 0 | O74: 0
A75: 紡織纖維1 | B75: 紡織纖維51 | C75: 1441 大東 | D75: 紡織纖維 | E75: M1400 | F75: 159859 | G75: 86088 | H75: 73771 | I75: 0.8569254716 | J75: 64 | K75: 51 | L75: 1 | M75: 51 | N75: 0 | O75: 0
A76: 紡織纖維38 | B76: 紡織纖維14 | C76: 1444 力麗 | D76: 紡織纖維 | E76: M1400 | F76: 717018 | G76: 826103 | H76: -109085 | I76: -0.1320476987 | J76: 64 | K76: 51 | L76: 38 | M76: 14 | N76: 0 | O76: 0
A77: 紡織纖維43 | B77: 紡織纖維9 | C77: 1445 大宇 | D77: 紡織纖維 | E77: M1400 | F77: 70057 | G77: 84994 | H77: -14937 | I77: -0.1757418171 | J77: 64 | K77: 51 | L77: 43 | M77: 9 | N77: 0 | O77: 0
A78: 紡織纖維49 | B78: 紡織纖維3 | C78: 1446 宏和 | D78: 紡織纖維 | E78: M1400 | F78: 139973 | G78: 202432 | H78: -62459 | I78: -0.3085431157 | J78: 64 | K78: 51 | L78: 49 | M78: 3 | N78: 0 | O78: 0
A79: 紡織纖維21 | B79: 紡織纖維31 | C79: 1447 力鵬 | D79: 紡織纖維 | E79: M1400 | F79: 2854108 | G79: 2665152 | H79: 188956 | I79: 0.0708987705 | J79: 64 | K79: 51 | L79: 21 | M79: 31 | N79: 0 | O79: 0
A80: 紡織纖維45 | B80: 紡織纖維7 | C80: 1449 佳和 | D80: 紡織纖維 | E80: M1400 | F80: 209648 | G80: 261183 | H80: -51535 | I80: -0.1973137608 | J80: 64 | K80: 51 | L80: 45 | M80: 7 | N80: 0 | O80: 0
A81: 紡織纖維46 | B81: 紡織纖維6 | C81: 1451 年興 | D81: 紡織纖維 | E81: M1400 | F81: 454137 | G81: 626031 | H81: -171894 | I81: -0.274577457 | J81: 64 | K81: 51 | L81: 46 | M81: 6 | N81: 0 | O81: 0
A82: 紡織纖維41 | B82: 紡織纖維11 | C82: 1452 宏益 | D82: 紡織纖維 | E82: M1400 | F82: 114758 | G82: 135810 | H82: -21052 | I82: -0.1550106767 | J82: 64 | K82: 51 | L82: 41 | M82: 11 | N82: 0 | O82: 0
A83: 紡織纖維31 | B83: 紡織纖維21 | C83: 1454 台富 | D83: 紡織纖維 | E83: M1400 | F83: 150716 | G83: 155911 | H83: -5195 | I83: -0.0333202917 | J83: 64 | K83: 51 | L83: 31 | M83: 21 | N83: 0 | O83: 0
A84: 紡織纖維42 | B84: 紡織纖維10 | C84: 1455 集盛 | D84: 紡織纖維 | E84: M1400 | F84: 670533 | G84: 794897 | H84: -124364 | I84: -0.1564529744 | J84: 64 | K84: 51 | L84: 42 | M84: 10 | N84: 0 | O84: 0
A85: 紡織纖維28 | B85: 紡織纖維24 | C85: 1457 宜進 | D85: 紡織纖維 | E85: M1400 | F85: 316845 | G85: 315226 | H85: 1619 | I85: 0.005135997665 | J85: 64 | K85: 51 | L85: 28 | M85: 24 | N85: 0 | O85: 0
A86: 紡織纖維25 | B86: 紡織纖維27 | C86: 1459 聯發 | D86: 紡織纖維 | E86: M1400 | F86: 142301 | G86: 140289 | H86: 2012 | I86: 0.01434182295 | J86: 64 | K86: 51 | L86: 25 | M86: 27 | N86: 0 | O86: 0
A87: 紡織纖維12 | B87: 紡織纖維40 | C87: 1460 宏遠 | D87: 紡織纖維 | E87: M1400 | F87: 758415 | G87: 603014 | H87: 155401 | I87: 0.2577071179 | J87: 64 | K87: 51 | L87: 12 | M87: 40 | N87: 0 | O87: 0
A88: 紡織纖維44 | B88: 紡織纖維8 | C88: 1463 強盛新 | D88: 紡織纖維 | E88: M1400 | F88: 25315 | G88: 31314 | H88: -5999 | I88: -0.1915756531 | J88: 64 | K88: 51 | L88: 44 | M88: 8 | N88: 0 | O88: 0
A89: 紡織纖維14 | B89: 紡織纖維38 | C89: 1464 得力 | D89: 紡織纖維 | E89: M1400 | F89: 1224006 | G89: 1010778 | H89: 213228 | I89: 0.2109543342 | J89: 64 | K89: 51 | L89: 14 | M89: 38 | N89: 0 | O89: 0
A90: 紡織纖維48 | B90: 紡織纖維4 | C90: 1465 偉全 | D90: 紡織纖維 | E90: M1400 | F90: 25046 | G90: 35004 | H90: -9958 | I90: -0.2844817735 | J90: 64 | K90: 51 | L90: 48 | M90: 4 | N90: 0 | O90: 0
A91: 紡織纖維29 | B91: 紡織纖維23 | C91: 1466 聚隆 | D91: 紡織纖維 | E91: M1400 | F91: 230134 | G91: 231734 | H91: -1600 | I91: -0.006904468054 | J91: 64 | K91: 51 | L91: 29 | M91: 23 | N91: 0 | O91: 0
A92: 紡織纖維35 | B92: 紡織纖維17 | C92: 1467 南緯 | D92: 紡織纖維 | E92: M1400 | F92: 401238 | G92: 441260 | H92: -40022 | I92: -0.09069936092 | J92: 64 | K92: 51 | L92: 35 | M92: 17 | N92: 0 | O92: 0
A93: 紡織纖維11 | B93: 紡織纖維41 | C93: 1468 昶和 | D93: 紡織纖維 | E93: M1400 | F93: 121656 | G93: 93076 | H93: 28580 | I93: 0.3070608965 | J93: 64 | K93: 51 | L93: 11 | M93: 41 | N93: 0 | O93: 0
A94: 紡織纖維8 | B94: 紡織纖維44 | C94: 1470 大統新創 | D94: 紡織纖維 | E94: M1400 | F94: 90888 | G94: 64543 | H94: 26345 | I94: 0.4081774941 | J94: 64 | K94: 51 | L94: 8 | M94: 44 | N94: =U94 -> 0 | O94: =V94 -> 0
A95: 紡織纖維19 | B95: 紡織纖維33 | C95: 1473 台南 | D95: 紡織纖維 | E95: M1400 | F95: 729893 | G95: 651311 | H95: 78582 | I95: 0.1206520387 | J95: 64 | K95: 51 | L95: 19 | M95: 33 | N95: 0 | O95: 0
A96: 紡織纖維36 | B96: 紡織纖維16 | C96: 1474 弘裕 | D96: 紡織纖維 | E96: M1400 | F96: 272895 | G96: 302186 | H96: -29291 | I96: -0.09693036739 | J96: 64 | K96: 51 | L96: 36 | M96: 16 | N96: 0 | O96: 0
A97: 紡織纖維47 | B97: 紡織纖維5 | C97: 1475 業旺 | D97: 紡織纖維 | E97: M1400 | F97: 109086 | G97: 151176 | H97: -42090 | I97: -0.2784172091 | J97: 64 | K97: 51 | L97: 47 | M97: 5 | N97: 0 | O97: 0
A98: 紡織纖維16 | B98: 紡織纖維36 | C98: 1476 儒鴻 | D98: 紡織纖維 | E98: M1400 | F98: 3410647 | G98: 2821844 | H98: 588803 | I98: 0.2086589478 | J98: 64 | K98: 51 | L98: 16 | M98: 36 | N98: 0 | O98: 0
A99: 紡織纖維20 | B99: 紡織纖維32 | C99: 1477 聚陽 | D99: 紡織纖維 | E99: M1400 | F99: 3453770 | G99: 3127137 | H99: 326633 | I99: 0.1044511321 | J99: 64 | K99: 51 | L99: 20 | M99: 32 | N99: 0 | O99: 0
A100: 紡織纖維18 | B100: 紡織纖維34 | C100: 4401 東隆興 | D100: 紡織纖維 | E100: M1400 | F100: 363879 | G100: 317281 | H100: 46598 | I100: 0.1468666576 | J100: 64 | K100: 51 | L100: 18 | M100: 34 | N100: 0 | O100: 0
A101: 紡織纖維9 | B101: 紡織纖維43 | C101: 4402 郡都開發 | D101: 紡織纖維 | E101: M1400 | F101: 3153 | G101: 2348 | H101: 805 | I101: 0.3428449744 | J101: 64 | K101: 51 | L101: 9 | M101: 43 | N101: 0 | O101: 0
A102: 紡織纖維4 | B102: 紡織纖維48 | C102: 4406 新昕纖 | D102: 紡織纖維 | E102: M1400 | F102: 42998 | G102: 28220 | H102: 14778 | I102: 0.5236711552 | J102: 64 | K102: 51 | L102: 4 | M102: 48 | N102: 0 | O102: 0
A103: 紡織纖維2 | B103: 紡織纖維50 | C103: 4413 飛寶企業 | D103: 紡織纖維 | E103: M1400 | F103: 47022 | G103: 25610 | H103: 21412 | I103: 0.8360796564 | J103: 64 | K103: 51 | L103: 2 | M103: 50 | N103: 0 | O103: 0
A104: 紡織纖維26 | B104: 紡織纖維26 | C104: 4414 如興 | D104: 紡織纖維 | E104: M1400 | F104: 913361 | G104: 902689 | H104: 10672 | I104: 0.01182245491 | J104: 64 | K104: 51 | L104: 26 | M104: 26 | N104: 0 | O104: 0
A105: 紡織纖維5 | B105: 紡織纖維47 | C105: 4417 金洲 | D105: 紡織纖維 | E105: M1400 | F105: 312829 | G105: 205926 | H105: 106903 | I105: 0.5191330866 | J105: 64 | K105: 51 | L105: 5 | M105: 47 | N105: 0 | O105: 0
A106: 紡織纖維3 | B106: 紡織纖維49 | C106: 4420 光明 | D106: 紡織纖維 | E106: M1400 | F106: 104144 | G106: 63998 | H106: 40146 | I106: 0.6273008532 | J106: 64 | K106: 51 | L106: 3 | M106: 49 | N106: 0 | O106: 0
A107: 紡織纖維37 | B107: 紡織纖維15 | C107: 4426 利勤 | D107: 紡織纖維 | E107: M1400 | F107: 83247 | G107: 95627 | H107: -12380 | I107: -0.1294613446 | J107: 64 | K107: 51 | L107: 37 | M107: 15 | N107: 0 | O107: 0
A108: 紡織纖維7 | B108: 紡織纖維45 | C108: 4432 銘旺實 | D108: 紡織纖維 | E108: M1400 | F108: 59177 | G108: 41625 | H108: 17552 | I108: 0.4216696697 | J108: 64 | K108: 51 | L108: 7 | M108: 45 | N108: 0 | O108: 0
A109: 紡織纖維15 | B109: 紡織纖維37 | C109: 4433 興采 | D109: 紡織纖維 | E109: M1400 | F109: 316391 | G109: 261516 | H109: 54875 | I109: 0.2098341975 | J109: 64 | K109: 51 | L109: 15 | M109: 37 | N109: 0 | O109: 0
A110: 紡織纖維17 | B110: 紡織纖維35 | C110: 4438 廣越 | D110: 紡織纖維 | E110: M1400 | F110: 914980 | G110: 765473 | H110: 149507 | I110: 0.1953132246 | J110: 64 | K110: 51 | L110: 17 | M110: 35 | N110: 0 | O110: 0
A111: 紡織纖維10 | B111: 紡織纖維42 | C111: 4439 冠星-KY | D111: 紡織纖維 | E111: M1400 | F111: 791355 | G111: 602278 | H111: 189077 | I111: 0.3139364214 | J111: 64 | K111: 51 | L111: 10 | M111: 42 | N111: 0 | O111: 0
A112: 紡織纖維40 | B112: 紡織纖維12 | C112: 4440 宜新實業 | D112: 紡織纖維 | E112: M1400 | F112: 73356 | G112: 86711 | H112: -13355 | I112: -0.154017368 | J112: 64 | K112: 51 | L112: 40 | M112: 12 | N112: 0 | O112: 0
A113: 紡織纖維6 | B113: 紡織纖維46 | C113: 4442 竣邦-KY | D113: 紡織纖維 | E113: M1400 | F113: 182741 | G113: 123687 | H113: 59054 | I113: 0.4774471044 | J113: 64 | K113: 51 | L113: 6 | M113: 46 | N113: 0 | O113: 0
A114: 紡織纖維23 | B114: 紡織纖維29 | C114: 6506 雙邦 | D114: 紡織纖維 | E114: M1400 | F114: 202555 | G114: 191600 | H114: 10955 | I114: 0.05717640919 | J114: 64 | K114: 51 | L114: 23 | M114: 29 | N114: 0 | O114: 0
A115: 電機機械61 | B115: 電機機械37 | C115: 1503 士電 | D115: 電機機械 | E115: M1500 | F115: 3125640 | G115: 3140811 | H115: -15171 | I115: -0.004830281096 | J115: 115 | K115: 97 | L115: 61 | M115: 37 | N115: 0 | O115: 0
A116: 電機機械50 | B116: 電機機械48 | C116: 1504 東元 | D116: 電機機械 | E116: M1500 | F116: 4962534 | G116: 4652251 | H116: 310283 | I116: 0.06669524065 | J116: 115 | K116: 97 | L116: 50 | M116: 48 | N116: 0 | O116: 0
A117: 電機機械34 | B117: 電機機械64 | C117: 1506 正道 | D117: 電機機械 | E117: M1500 | F117: 96330 | G117: 83739 | H117: 12591 | I117: 0.1503600473 | J117: 115 | K117: 97 | L117: 34 | M117: 64 | N117: 0 | O117: 0
A118: 電機機械56 | B118: 電機機械42 | C118: 1513 中興電 | D118: 電機機械 | E118: M1500 | F118: 2363392 | G118: 2334931 | H118: 28461 | I118: 0.01218922529 | J118: 115 | K118: 97 | L118: 56 | M118: 42 | N118: 0 | O118: 0
A119: 電機機械71 | B119: 電機機械27 | C119: 1514 亞力 | D119: 電機機械 | E119: M1500 | F119: 769323 | G119: 851243 | H119: -81920 | I119: -0.09623573997 | J119: 115 | K119: 97 | L119: 71 | M119: 27 | N119: 0 | O119: 0
A120: 電機機械93 | B120: 電機機械5 | C120: 1515 力山 | D120: 電機機械 | E120: M1500 | F120: 439032 | G120: 790913 | H120: -351881 | I120: -0.4449048125 | J120: 115 | K120: 97 | L120: 93 | M120: 5 | N120: 0 | O120: 0
A121: 電機機械22 | B121: 電機機械76 | C121: 1517 利奇 | D121: 電機機械 | E121: M1500 | F121: 208301 | G121: 167359 | H121: 40942 | I121: 0.244635783 | J121: 115 | K121: 97 | L121: 22 | M121: 76 | N121: 0 | O121: 0
A122: 電機機械19 | B122: 電機機械79 | C122: 1519 華城 | D122: 電機機械 | E122: M1500 | F122: 1969871 | G122: 1557966 | H122: 411905 | I122: 0.2643863858 | J122: 115 | K122: 97 | L122: 19 | M122: 79 | N122: 0 | O122: 0
A123: 電機機械49 | B123: 電機機械49 | C123: 1526 日馳 | D123: 電機機械 | E123: M1500 | F123: 70882 | G123: 66255 | H123: 4627 | I123: 0.06983623877 | J123: 115 | K123: 97 | L123: 49 | M123: 49 | N123: 0 | O123: 0
A124: 電機機械54 | B124: 電機機械44 | C124: 1527 鑽全 | D124: 電機機械 | E124: M1500 | F124: 254845 | G124: 246826 | H124: 8019 | I124: 0.03248847366 | J124: 115 | K124: 97 | L124: 54 | M124: 44 | N124: 0 | O124: 0
A125: 電機機械89 | B125: 電機機械9 | C125: 1528 恩德 | D125: 電機機械 | E125: M1500 | F125: 211641 | G125: 308898 | H125: -97257 | I125: -0.3148515044 | J125: 115 | K125: 97 | L125: 89 | M125: 9 | N125: 0 | O125: 0
A126: 電機機械29 | B126: 電機機械69 | C126: 1529 樂事綠能 | D126: 電機機械 | E126: M1500 | F126: 106410 | G126: 88388 | H126: 18022 | I126: 0.2038964565 | J126: 115 | K126: 97 | L126: 29 | M126: 69 | N126: 0 | O126: 0
A127: 電機機械73 | B127: 電機機械25 | C127: 1530 亞崴 | D127: 電機機械 | E127: M1500 | F127: 173725 | G127: 198605 | H127: -24880 | I127: -0.1252737846 | J127: 115 | K127: 97 | L127: 73 | M127: 25 | N127: 0 | O127: 0
A128: 電機機械32 | B128: 電機機械66 | C128: 1531 高林股 | D128: 電機機械 | E128: M1500 | F128: 160176 | G128: 137710 | H128: 22466 | I128: 0.1631399317 | J128: 115 | K128: 97 | L128: 32 | M128: 66 | N128: 0 | O128: 0
A129: 電機機械96 | B129: 電機機械2 | C129: 1532 勤美 | D129: 電機機械 | E129: M1500 | F129: 1084321 | G129: 2155532 | H129: -1071211 | I129: -0.4969589874 | J129: 115 | K129: 97 | L129: 96 | M129: 2 | N129: 0 | O129: 0
A130: 電機機械70 | B130: 電機機械28 | C130: 1535 中宇 | D130: 電機機械 | E130: M1500 | F130: 855310 | G130: 941888 | H130: -86578 | I130: -0.09191963376 | J130: 115 | K130: 97 | L130: 70 | M130: 28 | N130: 0 | O130: 0
A131: =$D131&L131 -> 電機機械58 | B131: =$D131&M131 -> 電機機械40 | C131: 1537 廣隆 | D131: 電機機械 | E131: M1500 | F131: 598654 | G131: 591722 | H131: 6932 | I131: 0.01171496074 | J131: =IF(E131="","",MATCH(E131,E:E,0)) -> 115 | K131: =COUNTIF(D:D,D131) -> 97 | L131: 58 | M131: 40 | N131: 0 | O131: 0
A132: 電機機械37 | B132: 電機機械61 | C132: 1538 正峰 | D132: 電機機械 | E132: M1500 | F132: 10092 | G132: 8999 | H132: =F132-G132 -> 1093 | I132: =IF(ISERROR((H132/G132)*100),"",(H132/(ABS(G132)))) -> 0.1214579398 | J132: 115 | K132: 97 | L132: =IF(I132="","",RANK(I132,OFFSET(I$1,$J132-1,,$K132,),0)) -> 37 | M132: =IF(I132="","",RANK(I132,OFFSET(I$1,$J132-1,,$K132,),1)) -> 61 | N132: 0 | O132: 0
A133: 電機機械66 | B133: 電機機械32 | C133: 1539 巨庭 | D133: 電機機械 | E133: M1500 | F133: 116572 | G133: 122124 | H133: -5552 | I133: -0.04546198945 | J133: 115 | K133: 97 | L133: 66 | M133: 32 | N133: 0 | O133: 0
A134: 電機機械39 | B134: 電機機械59 | C134: 1540 喬福 | D134: 電機機械 | E134: M1500 | F134: 47758 | G134: 43107 | H134: 4651 | I134: 0.1078943095 | J134: 115 | K134: 97 | L134: 39 | M134: 59 | N134: 0 | O134: 0
A135: 電機機械25 | B135: 電機機械73 | C135: 1541 錩泰 | D135: 電機機械 | E135: M1500 | F135: 337239 | G135: 275638 | H135: 61601 | I135: 0.2234851508 | J135: 115 | K135: 97 | L135: 25 | M135: 73 | N135: 0 | O135: 0
A136: 電機機械62 | B136: 電機機械36 | C136: 1558 伸興 | D136: 電機機械 | E136: M1500 | F136: 659913 | G136: 664262 | H136: -4349 | I136: -0.006547115445 | J136: 115 | K136: 97 | L136: 62 | M136: 36 | N136: 0 | O136: 0
A137: 電機機械42 | B137: 電機機械56 | C137: 1560 中砂 | D137: 電機機械 | E137: M1500 | F137: 601745 | G137: 549351 | H137: 52394 | I137: 0.09537435993 | J137: 115 | K137: 97 | L137: 42 | M137: 56 | N137: 0 | O137: 0
A138: 電機機械47 | B138: 電機機械51 | C138: 1570 力肯 | D138: 電機機械 | E138: M1500 | F138: 37267 | G138: 34666 | H138: 2601 | I138: 0.07503028904 | J138: 115 | K138: 97 | L138: 47 | M138: 51 | N138: 0 | O138: 0
A139: 電機機械17 | B139: 電機機械81 | C139: 1580 新麥 | D139: 電機機械 | E139: M1500 | F139: 414021 | G139: 320799 | H139: 93222 | I139: 0.2905931752 | J139: 115 | K139: 97 | L139: 17 | M139: 81 | N139: 0 | O139: 0
A140: 電機機械87 | B140: 電機機械11 | C140: 1583 程泰 | D140: 電機機械 | E140: M1500 | F140: 287153 | G140: 396503 | H140: -109350 | I140: -0.2757860596 | J140: 115 | K140: 97 | L140: 87 | M140: 11 | N140: 0 | O140: 0
A141: 電機機械76 | B141: 電機機械22 | C141: 1586 和勤 | D141: 電機機械 | E141: M1500 | F141: 197556 | G141: 230643 | H141: -33087 | I141: -0.1434554701 | J141: 115 | K141: 97 | L141: 76 | M141: 22 | N141: 0 | O141: 0
A142: 電機機械24 | B142: 電機機械74 | C142: 1589 永冠-KY | D142: 電機機械 | E142: M1500 | F142: 677836 | G142: 551134 | H142: 126702 | I142: 0.2298932746 | J142: 115 | K142: 97 | L142: 24 | M142: 74 | N142: 0 | O142: 0
A143: 電機機械30 | B143: 電機機械68 | C143: 1590 亞德客-KY | D143: 電機機械 | E143: M1500 | F143: 3505568 | G143: 2930797 | H143: 574771 | I143: 0.196114231 | J143: 115 | K143: 97 | L143: 30 | M143: 68 | N143: 0 | O143: 0
A144: 電機機械97 | B144: 電機機械1 | C144: 1591 駿吉-KY | D144: 電機機械 | E144: M1500 | F144: 2158 | G144: 19782 | H144: -17624 | I144: -0.8909109291 | J144: 115 | K144: 97 | L144: 97 | M144: 1 | N144: 0 | O144: 0
A145: 電機機械81 | B145: 電機機械17 | C145: 1597 直得 | D145: 電機機械 | E145: M1500 | F145: 86976 | G145: 106201 | H145: -19225 | I145: -0.1810246608 | J145: 115 | K145: 97 | L145: 81 | M145: 17 | N145: 0 | O145: 0
A146: 電機機械51 | B146: 電機機械47 | C146: 1599 宏佳騰 | D146: 電機機械 | E146: M1500 | F146: 197084 | G146: 185847 | H146: 11237 | I146: 0.06046371478 | J146: 115 | K146: 97 | L146: 51 | M146: 47 | N146: 0 | O146: 0
A147: 電機機械60 | B147: 電機機械38 | C147: 2049 上銀 | D147: 電機機械 | E147: M1500 | F147: 2008012 | G147: 2001328 | H147: 6684 | I147: 0.003339782384 | J147: 115 | K147: 97 | L147: 60 | M147: 38 | N147: 0 | O147: 0
A148: 電機機械68 | B148: 電機機械30 | C148: 2066 世德 | D148: 電機機械 | E148: M1500 | F148: 248354 | G148: 263804 | H148: -15450 | I148: -0.05856620825 | J148: 115 | K148: 97 | L148: 68 | M148: 30 | N148: 0 | O148: 0
A149: 電機機械43 | B149: 電機機械55 | C149: 2067 嘉鋼 | D149: 電機機械 | E149: M1500 | F149: 102404 | G149: 93752 | H149: 8652 | I149: 0.09228603123 | J149: 115 | K149: 97 | L149: 43 | M149: 55 | N149: 0 | O149: 0
A150: 電機機械45 | B150: 電機機械53 | C150: 2070 精湛 | D150: 電機機械 | E150: M1500 | F150: 61612 | G150: 56464 | H150: 5148 | I150: 0.09117313687 | J150: 115 | K150: 97 | L150: 45 | M150: 53 | N150: 0 | O150: 0
A151: 電機機械79 | B151: 電機機械19 | C151: 2230 泰茂 | D151: 電機機械 | E151: M1500 | F151: 77600 | G151: 93675 | H151: -16075 | I151: -0.1716039498 | J151: 115 | K151: 97 | L151: 79 | M151: 19 | N151: 0 | O151: 0
A152: 電機機械18 | B152: 電機機械80 | C152: 2235 謚源 | D152: 電機機械 | E152: M1500 | F152: 65835 | G152: 51851 | H152: 13984 | I152: 0.2696958593 | J152: 115 | K152: 97 | L152: 18 | M152: 80 | N152: 0 | O152: 0
A153: 電機機械48 | B153: 電機機械50 | C153: 2371 大同 | D153: 電機機械 | E153: M1500 | F153: 3930070 | G153: 3670767 | H153: 259303 | I153: 0.07064000521 | J153: 115 | K153: 97 | L153: 48 | M153: 50 | N153: 0 | O153: 0
A154: 電機機械3 | B154: 電機機械95 | C154: 3162 精確 | D154: 電機機械 | E154: M1500 | F154: 638159 | G154: 278241 | H154: 359918 | I154: 1.29354768 | J154: 115 | K154: 97 | L154: 3 | M154: 95 | N154: 0 | O154: 0
A155: 電機機械4 | B155: 電機機械94 | C155: 3167 大量 | D155: 電機機械 | E155: M1500 | F155: 313349 | G155: 154019 | H155: 159330 | I155: 1.034482759 | J155: 115 | K155: 97 | L155: 4 | M155: 94 | N155: 0 | O155: 0
A156: 電機機械82 | B156: 電機機械16 | C156: 3226 龍鋒 | D156: 電機機械 | E156: M1500 | F156: 160549 | G156: 199123 | H156: -38574 | I156: -0.1937194598 | J156: 115 | K156: 97 | L156: 82 | M156: 16 | N156: 0 | O156: 0
A157: 電機機械1 | B157: 電機機械97 | C157: 3379 彬台 | D157: 電機機械 | E157: M1500 | F157: 95351 | G157: 33866 | H157: 61485 | I157: 1.815537707 | J157: 115 | K157: 97 | L157: 1 | M157: 97 | N157: 0 | O157: 0
A158: 電機機械63 | B158: 電機機械35 | C158: 3426 台興 | D158: 電機機械 | E158: M1500 | F158: 70685 | G158: 71365 | H158: -680 | I158: -0.009528480348 | J158: 115 | K158: 97 | L158: 63 | M158: 35 | N158: =U158 -> 0 | O158: =V158 -> 0
A159: 電機機械75 | B159: 電機機械23 | C159: 3685 元創精密 | D159: 電機機械 | E159: M1500 | F159: 88860 | G159: 102594 | H159: -13734 | I159: -0.1338674776 | J159: 115 | K159: 97 | L159: 75 | M159: 23 | N159: 0 | O159: 0
A160: 電機機械94 | B160: 電機機械4 | C160: 4502 健信 | D160: 電機機械 | E160: M1500 | F160: 67004 | G160: 121315 | H160: -54311 | I160: -0.4476857767 | J160: 115 | K160: 97 | L160: 94 | M160: 4 | N160: 0 | O160: 0
A161: 電機機械2 | B161: 電機機械96 | C161: 4503 金雨 | D161: 電機機械 | E161: M1500 | F161: 43391 | G161: 17208 | H161: 26183 | I161: 1.52155974 | J161: 115 | K161: 97 | L161: 2 | M161: 96 | N161: 0 | O161: 0
A162: 電機機械13 | B162: 電機機械85 | C162: 4506 崇友 | D162: 電機機械 | E162: M1500 | F162: 632409 | G162: 452182 | H162: 180227 | I162: 0.398571814 | J162: 115 | K162: 97 | L162: 13 | M162: 85 | N162: 0 | O162: 0
A163: 電機機械83 | B163: 電機機械15 | C163: 4510 高鋒 | D163: 電機機械 | E163: M1500 | F163: 106589 | G163: 138693 | H163: -32104 | I163: -0.2314752727 | J163: 115 | K163: 97 | L163: 83 | M163: 15 | N163: 0 | O163: 0
A164: 電機機械92 | B164: 電機機械6 | C164: 4513 福裕 | D164: 電機機械 | E164: M1500 | F164: 86120 | G164: 153167 | H164: -67047 | I164: -0.4377378939 | J164: 115 | K164: 97 | L164: 92 | M164: 6 | N164: 0 | O164: 0
A165: 電機機械16 | B165: 電機機械82 | C165: 4523 永彰 | D165: 電機機械 | E165: M1500 | F165: 71328 | G165: 52618 | H165: 18710 | I165: 0.3555817401 | J165: 115 | K165: 97 | L165: 16 | M165: 82 | N165: 0 | O165: 0
A166: 電機機械27 | B166: 電機機械71 | C166: 4526 東台 | D166: 電機機械 | E166: M1500 | F166: 693718 | G166: 571241 | H166: 122477 | I166: 0.2144051285 | J166: 115 | K166: 97 | L166: 27 | M166: 71 | N166: 0 | O166: 0
A167: 電機機械85 | B167: 電機機械13 | C167: 4527 方方土霖 | D167: 電機機械 | E167: M1500 | F167: 268823 | G167: 359045 | H167: -90222 | I167: -0.2512832653 | J167: 115 | K167: 97 | L167: 85 | M167: 13 | N167: 0 | O167: 0
A168: 電機機械59 | B168: 電機機械39 | C168: 4528 江興鍛 | D168: 電機機械 | E168: M1500 | F168: 120588 | G168: 119427 | H168: 1161 | I168: 0.009721419779 | J168: 115 | K168: 97 | L168: 59 | M168: 39 | N168: 0 | O168: 0
A169: 電機機械26 | B169: 電機機械72 | C169: 4532 瑞智 | D169: 電機機械 | E169: M1500 | F169: 2367041 | G169: 1936222 | H169: 430819 | I169: 0.2225049607 | J169: 115 | K169: 97 | L169: 26 | M169: 72 | N169: 0 | O169: 0
A170: 電機機械95 | B170: 電機機械3 | C170: 4533 協易機 | D170: 電機機械 | E170: M1500 | F170: 217571 | G170: 412272 | H170: -194701 | I170: -0.4722634571 | J170: 115 | K170: 97 | L170: 95 | M170: 3 | N170: 0 | O170: 0
A171: 電機機械40 | B171: 電機機械58 | C171: 4534 慶騰 | D171: 電機機械 | E171: M1500 | F171: 70641 | G171: 63787 | H171: 6854 | I171: 0.1074513616 | J171: 115 | K171: 97 | L171: 40 | M171: 58 | N171: 0 | O171: 0
A172: 電機機械69 | B172: 電機機械29 | C172: 4535 至興 | D172: 電機機械 | E172: M1500 | F172: 219690 | G172: 238545 | H172: -18855 | I172: -0.07904169025 | J172: 115 | K172: 97 | L172: 69 | M172: 29 | N172: 0 | O172: 0
A173: 電機機械10 | B173: 電機機械88 | C173: 4538 大詠城 | D173: 電機機械 | E173: M1500 | F173: 29646 | G173: 20373 | H173: 9273 | I173: 0.4551612428 | J173: 115 | K173: 97 | L173: 10 | M173: 88 | N173: 0 | O173: 0
A174: 電機機械67 | B174: 電機機械31 | C174: 4540 全球傳動 | D174: 電機機械 | E174: M1500 | F174: 198168 | G174: 208994 | H174: -10826 | I174: -0.05180053016 | J174: 115 | K174: 97 | L174: 67 | M174: 31 | N174: 0 | O174: 0
A175: 電機機械80 | B175: 電機機械18 | C175: 4543 萬在 | D175: 電機機械 | E175: M1500 | F175: 69020 | G175: 84036 | H175: -15016 | I175: -0.1786853253 | J175: 115 | K175: 97 | L175: 80 | M175: 18 | N175: 0 | O175: 0
A176: 電機機械77 | B176: 電機機械21 | C176: 4549 桓達 | D176: 電機機械 | E176: M1500 | F176: 103069 | G176: 120779 | H176: -17710 | I176: -0.1466314508 | J176: 115 | K176: 97 | L176: 77 | M176: 21 | N176: 0 | O176: 0
A177: 電機機械90 | B177: 電機機械8 | C177: 4550 長佳 | D177: 電機機械 | E177: M1500 | F177: 59385 | G177: 93284 | H177: -33899 | I177: -0.363395652 | J177: 115 | K177: 97 | L177: 90 | M177: 8 | N177: 0 | O177: 0
A178: 電機機械53 | B178: 電機機械45 | C178: 4552 力達-KY | D178: 電機機械 | E178: M1500 | F178: 341046 | G178: 328853 | H178: 12193 | I178: 0.03707735675 | J178: 115 | K178: 97 | L178: 53 | M178: 45 | N178: 0 | O178: 0
A179: 電機機械14 | B179: 電機機械84 | C179: 4555 氣立 | D179: 電機機械 | E179: M1500 | F179: 142103 | G179: 101932 | H179: 40171 | I179: 0.394096064 | J179: 115 | K179: 97 | L179: 14 | M179: 84 | N179: 0 | O179: 0
A180: 電機機械74 | B180: 電機機械24 | C180: 4558 寶緯 | D180: 電機機械 | E180: M1500 | F180: 165031 | G180: 188973 | H180: -23942 | I180: -0.126695348 | J180: 115 | K180: 97 | L180: 74 | M180: 24 | N180: 0 | O180: 0
A181: 電機機械11 | B181: 電機機械87 | C181: 4560 強信-KY | D181: 電機機械 | E181: M1500 | F181: 173989 | G181: 120108 | H181: 53881 | I181: 0.4486045892 | J181: 115 | K181: 97 | L181: 11 | M181: 87 | N181: 0 | O181: 0
A182: 電機機械65 | B182: 電機機械33 | C182: 4561 健椿 | D182: 電機機械 | E182: M1500 | F182: 87456 | G182: 91218 | H182: -3762 | I182: -0.04124186016 | J182: 115 | K182: 97 | L182: 65 | M182: 33 | N182: 0 | O182: 0
A183: 電機機械64 | B183: 電機機械34 | C183: 4562 穎漢 | D183: 電機機械 | E183: M1500 | F183: 68645 | G183: 69568 | H183: -923 | I183: -0.0132675943 | J183: 115 | K183: 97 | L183: 64 | M183: 34 | N183: 0 | O183: 0
A184: 電機機械20 | B184: 電機機械78 | C184: 4563 百德 | D184: 電機機械 | E184: M1500 | F184: 330276 | G184: 261664 | H184: 68612 | I184: 0.2622141372 | J184: 115 | K184: 97 | L184: 20 | M184: 78 | N184: 0 | O184: 0
A185: 電機機械6 | B185: 電機機械92 | C185: 4564 元翎 | D185: 電機機械 | E185: M1500 | F185: 92143 | G185: 58051 | H185: 34092 | I185: 0.587276705 | J185: 115 | K185: 97 | L185: 6 | M185: 92 | N185: 0 | O185: 0
A186: 電機機械28 | B186: 電機機械70 | C186: 4566 時碩工業 | D186: 電機機械 | E186: M1500 | F186: 414675 | G186: 342661 | H186: 72014 | I186: 0.210161063 | J186: 115 | K186: 97 | L186: 28 | M186: 70 | N186: 0 | O186: 0
A187: 電機機械23 | B187: 電機機械75 | C187: 4568 科際精密 | D187: 電機機械 | E187: M1500 | F187: 89915 | G187: 72562 | H187: 17353 | I187: 0.239147212 | J187: 115 | K187: 97 | L187: 23 | M187: 75 | N187: 0 | O187: 0
A188: 電機機械33 | B188: 電機機械65 | C188: 4571 鈞興-KY | D188: 電機機械 | E188: M1500 | F188: 285379 | G188: 247359 | H188: 38020 | I188: 0.1537037262 | J188: 115 | K188: 97 | L188: 33 | M188: 65 | N188: 0 | O188: 0
A189: 電機機械84 | B189: 電機機械14 | C189: 4572 駐龍 | D189: 電機機械 | E189: M1500 | F189: 58426 | G189: 76763 | H189: -18337 | I189: -0.2388781053 | J189: 115 | K189: 97 | L189: 84 | M189: 14 | N189: 0 | O189: 0
A190: 電機機械35 | B190: 電機機械63 | C190: 4576 大銀微系統 | D190: 電機機械 | E190: M1500 | F190: 215070 | G190: 189888 | H190: 25182 | I190: 0.1326150152 | J190: 115 | K190: 97 | L190: 35 | M190: 63 | N190: 0 | O190: 0
A191: 電機機械72 | B191: 電機機械26 | C191: 4580 捷流閥業 | D191: 電機機械 | E191: M1500 | F191: 176100 | G191: 197840 | H191: -21740 | I191: -0.1098867772 | J191: 115 | K191: 97 | L191: 72 | M191: 26 | N191: 0 | O191: 0
A192: 電機機械41 | B192: 電機機械57 | C192: 4583 台灣精銳 | D192: 電機機械 | E192: M1500 | F192: 299100 | G192: 271089 | H192: 28011 | I192: 0.1033276894 | J192: 115 | K192: 97 | L192: 41 | M192: 57 | N192: 0 | O192: 0
A193: 電機機械52 | B193: 電機機械46 | C193: 4584 君帆 | D193: 電機機械 | E193: M1500 | F193: 123398 | G193: 117840 | H193: 5558 | I193: 0.04716564834 | J193: 115 | K193: 97 | L193: 52 | M193: 46 | N193: 0 | O193: 0
A194: 電機機械36 | B194: 電機機械62 | C194: 5288 豐祥-KY | D194: 電機機械 | E194: M1500 | F194: 678636 | G194: 604356 | H194: 74280 | I194: 0.1229076902 | J194: 115 | K194: 97 | L194: 36 | M194: 62 | N194: 0 | O194: 0
A195: =$D195&L195 -> 電機機械21 | B195: =$D195&M195 -> 電機機械77 | C195: 6122 擎邦 | D195: 電機機械 | E195: M1500 | F195: 371892 | G195: 294869 | H195: 77023 | I195: 0.2612109106 | J195: =IF(E195="","",MATCH(E195,E:E,0)) -> 115 | K195: =COUNTIF(D:D,D195) -> 97 | L195: 21 | M195: 77 | N195: 0 | O195: 0
A196: 電機機械86 | B196: 電機機械12 | C196: 6425 易發 | D196: 電機機械 | E196: M1500 | F196: 158681 | G196: 216563 | H196: =F196-G196 -> -57882 | I196: =IF(ISERROR((H196/G196)*100),"",(H196/(ABS(G196)))) -> -0.2672755734 | J196: 115 | K196: 97 | L196: =IF(I196="","",RANK(I196,OFFSET(I$1,$J196-1,,$K196,),0)) -> 86 | M196: =IF(I196="","",RANK(I196,OFFSET(I$1,$J196-1,,$K196,),1)) -> 12 | N196: 0 | O196: 0
A197: 電機機械78 | B197: 電機機械20 | C197: 6603 富強鑫 | D197: 電機機械 | E197: M1500 | F197: 405392 | G197: 487259 | H197: -81867 | I197: -0.1680153676 | J197: 115 | K197: 97 | L197: 78 | M197: 20 | N197: 0 | O197: 0
A198: 電機機械57 | B198: 電機機械41 | C198: 6606 建德工業 | D198: 電機機械 | E198: M1500 | F198: 73038 | G198: 72188 | H198: 850 | I198: 0.01177481022 | J198: 115 | K198: 97 | L198: 57 | M198: 41 | N198: 0 | O198: 0
A199: 電機機械55 | B199: 電機機械43 | C199: 6609 瀧澤科 | D199: 電機機械 | E199: M1500 | F199: 208411 | G199: 204237 | H199: 4174 | I199: 0.02043704128 | J199: 115 | K199: 97 | L199: 55 | M199: 43 | N199: 0 | O199: 0
A200: 電機機械8 | B200: 電機機械90 | C200: 6829 千附精密 | D200: 電機機械 | E200: M1500 | F200: 135672 | G200: 87103 | H200: 48569 | I200: 0.5576042157 | J200: 115 | K200: 97 | L200: 8 | M200: 90 | N200: 0 | O200: 0
... 2800 more rows

Sheet 表B_RAW
A1: 排名(正向) | B1: 排名(反向) | D1: TSE新產業_名稱 | E1: TSE新產業_代碼 | F1: 單月營收(千元) | G1: 單月營收(千元) | H1: 單月營收與上月比％ | J1: 產業位址 | K1: 產業家數 | L1: 排名(正向) | M1: 排名(反向) | N1: 排名(正向) | O1: 排名(反向) | P1: 產業營收 | Q1: 單月營收(千元) | R1: 上月單月營收(千元) | S1: 本月較上月變動金額 | T1: 單月營收與上月比％ | U1: 排名(正向) | V1: 排名(反向)
C2: 公司 | F2: 2025-03-31 | G2: 2025-02-27 | H2: 2025-03-31 | N2: =U2 -> 1 | O2: =V2 -> 34 | P2: =_xlfn.UNIQUE($D$3:$D$1900,FALSE,FALSE) -> 水泥工業 | Q2: =SUMIF($D:$D,$P2,F:F) -> 22266520 | R2: =SUMIF($D:$D,$P2,G:G) -> 14888263 | S2: =Q2-R2 -> 7378257 | T2: =ROUND(S2/R2*100,2) -> 49.56 | U2: =RANK(T2,T:T) -> 1 | V2: =RANK(T2,T:T,1) -> 34
A3: =D3&L3 -> 水泥工業3 | B3: =D3&M3 -> 水泥工業5 | C3: 1101 台泥 | D3: 水泥工業 | E3: M1100 | F3: 13635386 | G3: 9123490 | H3: 49.45 | I3: =F3-G3 -> 4511896 | J3: =IF(E3="","",MATCH(E3,E:E,0)) -> 3 | K3: =COUNTIF(D:D,D3) -> 7 | L3: =IF(H3="","",RANK(H3,OFFSET(H$1,$J3-1,,$K3,),0)) -> 3 | M3: =IF(H3="","",RANK(H3,OFFSET(H$1,$J3-1,,$K3,),1)) -> 5 | N3: =U3 -> 14 | O3: =V3 -> 21 | P3: 食品工業 | Q3: =SUMIF($D:$D,$P3,F:F) -> 83812554 | R3: =SUMIF($D:$D,$P3,G:G) -> 72472900 | S3: =Q3-R3 -> 11339654 | T3: =ROUND(S3/R3*100,2) -> 15.65 | U3: =RANK(T3,T:T) -> 14 | V3: 21
A4: =D4&L4 -> 水泥工業2 | B4: =D4&M4 -> 水泥工業6 | C4: 1102 亞泥 | D4: 水泥工業 | E4: M1100 | F4: 6532662 | G4: 4184371 | H4: 56.12 | I4: =F4-G4 -> 2348291 | J4: =IF(E4="","",MATCH(E4,E:E,0)) -> 3 | K4: =COUNTIF(D:D,D4) -> 7 | L4: =IF(H4="","",RANK(H4,OFFSET(H$1,$J4-1,,$K4,),0)) -> 2 | M4: =IF(H4="","",RANK(H4,OFFSET(H$1,$J4-1,,$K4,),1)) -> 6 | N4: 29 | O4: 6 | P4: 塑膠工業 | Q4: 90009656 | R4: 84462036 | S4: 5547620 | T4: 6.57 | U4: 29 | V4: 6
A5: 水泥工業5 | B5: 水泥工業3 | C5: 1103 嘉泥 | D5: 水泥工業 | E5: M1100 | F5: 266282 | G5: 218169 | H5: 22.05 | I5: 48113 | J5: 3 | K5: 7 | L5: 5 | M5: 3 | N5: 16 | O5: 19 | P5: 紡織纖維 | Q5: 52135060 | R5: 45955478 | S5: 6179582 | T5: 13.45 | U5: 16 | V5: 19
A6: 水泥工業4 | B6: 水泥工業4 | C6: 1104 環泥 | D6: 水泥工業 | E6: M1100 | F6: 702215 | G6: 538636 | H6: 30.37 | I6: 163579 | J6: 3 | K6: 7 | L6: 4 | M6: 4 | N6: 9 | O6: 26 | P6: 電機機械 | Q6: 45782684 | R6: 37944480 | S6: 7838204 | T6: 20.66 | U6: 9 | V6: 26
A7: 水泥工業7 | B7: 水泥工業1 | C7: 1108 幸福 | D7: 水泥工業 | E7: M1100 | F7: 408312 | G7: 356169 | H7: 14.64 | I7: 52143 | J7: 3 | K7: 7 | L7: 7 | M7: 1 | N7: 28 | O7: 7 | P7: 電器電纜 | Q7: 25734407 | R7: 23993219 | S7: 1741188 | T7: 7.26 | U7: 28 | V7: 7
A8: 水泥工業1 | B8: 水泥工業7 | C8: 1109 信大 | D8: 水泥工業 | E8: M1100 | F8: 446709 | G8: 238647 | H8: 87.18 | I8: 208062 | J8: 3 | K8: 7 | L8: 1 | M8: 7 | N8: 19 | O8: 16 | P8: 化學工業 | Q8: 28144115 | R8: 25081085 | S8: 3063030 | T8: 12.21 | U8: 19 | V8: 16
A9: 水泥工業6 | B9: 水泥工業2 | C9: 1110 東泥 | D9: 水泥工業 | E9: M1100 | F9: 274954 | G9: 228781 | H9: 20.18 | I9: 46173 | J9: 3 | K9: 7 | L9: 6 | M9: 2 | N9: 10 | O9: 25 | P9: 生技醫療業 | Q9: 27895333 | R9: 23531548 | S9: 4363785 | T9: 18.54 | U9: 10 | V9: 25
A10: 食品工業13 | B10: 食品工業17 | C10: 1201 味全 | D10: 食品工業 | E10: M1200 | F10: 1773075 | G10: 1529280 | H10: 15.94 | I10: 243795 | J10: 10 | K10: 29 | L10: 13 | M10: 17 | N10: 7 | O10: 27 | P10: 玻璃陶瓷 | Q10: 4755831 | R10: 3936854 | S10: 818977 | T10: 20.8 | U10: 7 | V10: 27
A11: 食品工業18 | B11: 食品工業12 | C11: 1203 味王 | D11: 食品工業 | E11: M1200 | F11: 521527 | G11: 470623 | H11: 10.82 | I11: 50904 | J11: 10 | K11: 29 | L11: 18 | M11: 12 | N11: 11 | O11: 24 | P11: 造紙工業 | Q11: 17494302 | R11: 14958676 | S11: 2535626 | T11: 16.95 | U11: 11 | V11: 24
A12: 食品工業19 | B12: 食品工業11 | C12: 1210 大成 | D12: 食品工業 | E12: M1200 | F12: 8770327 | G12: 8087375 | H12: 8.44 | I12: 682952 | J12: 10 | K12: 29 | L12: 19 | M12: 11 | N12: 24 | O12: 11 | P12: 鋼鐵工業 | Q12: 85879585 | R12: 79015354 | S12: 6864231 | T12: 8.69 | U12: 24 | V12: 11
A13: 食品工業27 | B13: 食品工業3 | C13: 1213 大飲 | D13: 食品工業 | E13: M1200 | F13: 19695 | G13: 24067 | H13: -18.17 | I13: -4372 | J13: 10 | K13: 29 | L13: 27 | M13: 3 | N13: 22 | O13: 13 | P13: 橡膠工業 | Q13: 19037112 | R13: 17108860 | S13: 1928252 | T13: 11.27 | U13: 22 | V13: 13
A14: 食品工業14 | B14: 食品工業16 | C14: 1215 卜蜂 | D14: 食品工業 | E14: M1200 | F14: 2335353 | G14: 2030712 | H14: 15 | I14: 304641 | J14: 10 | K14: 29 | L14: 14 | M14: 16 | N14: 18 | O14: 17 | P14: 汽車工業 | Q14: 61108250 | R14: 53982782 | S14: 7125468 | T14: 13.2 | U14: 18 | V14: 17
A15: 食品工業12 | B15: 食品工業18 | C15: 1216 統一 | D15: 食品工業 | E15: M1200 | F15: 55935541 | G15: 47574945 | H15: 17.57 | I15: 8360596 | J15: 10 | K15: 29 | L15: 12 | M15: 18 | N15: 20 | O15: 15 | P15: 半導體業 | Q15: 574767737 | R15: 512492205 | S15: 62275532 | T15: 12.15 | U15: 20 | V15: 15
A16: 食品工業5 | B16: 食品工業25 | C16: 1217 愛之味 | D16: 食品工業 | E16: M1200 | F16: 402634 | G16: 313901 | H16: 28.27 | I16: 88733 | J16: 10 | K16: 29 | L16: 5 | M16: 25 | N16: 4 | O16: 31 | P16: 電腦及週邊設備業 | Q16: 915730277 | R16: 709669289 | S16: 206060988 | T16: 29.04 | U16: 4 | V16: 31
A17: 食品工業20 | B17: 食品工業10 | C17: 1218 泰山 | D17: 食品工業 | E17: M1200 | F17: 825493 | G17: 786116 | H17: 5.01 | I17: 39377 | J17: 10 | K17: 29 | L17: 20 | M17: 10 | N17: 23 | O17: 12 | P17: 光電業 | Q17: 109506084 | R17: 98538964 | S17: 10967120 | T17: 11.13 | U17: 23 | V17: 12
A18: 食品工業16 | B18: 食品工業14 | C18: 1219 福壽 | D18: 食品工業 | E18: M1200 | F18: 1294322 | G18: 1162280 | H18: 11.36 | I18: 132042 | J18: 10 | K18: 29 | L18: 16 | M18: 14 | N18: 21 | O18: 14 | P18: 通訊網路業 | Q18: 108813895 | R18: 97260924 | S18: 11552971 | T18: 11.88 | U18: 21 | V18: 14
A19: 食品工業23 | B19: 食品工業7 | C19: 1220 台榮 | D19: 食品工業 | E19: M1200 | F19: 269636 | G19: 270707 | H19: -0.4 | I19: -1071 | J19: 10 | K19: 29 | L19: 23 | M19: 7 | N19: 17 | O19: 18 | P19: 電子零組件 | Q19: 222688554 | R19: 196380310 | S19: 26308244 | T19: 13.4 | U19: 17 | V19: 18
A20: 食品工業24 | B20: 食品工業6 | C20: 1225 福懋油 | D20: 食品工業 | E20: M1200 | F20: 1061994 | G20: 1068503 | H20: -0.61 | I20: -6509 | J20: 10 | K20: 29 | L20: 24 | M20: 6 | N20: 6 | O20: 29 | P20: 電子通路業 | Q20: 316472892 | R20: 248978309 | S20: 67494583 | T20: 27.11 | U20: 6 | V20: 29
A21: 食品工業8 | B21: 食品工業22 | C21: 1227 佳格 | D21: 食品工業 | E21: M1200 | F21: 2006555 | G21: 1605125 | H21: 25.01 | I21: 401430 | J21: 10 | K21: 29 | L21: 8 | M21: 22 | N21: 32 | O21: 3 | P21: 資訊服務業 | Q21: 15905367 | R21: 15539762 | S21: 365605 | T21: 2.35 | U21: 32 | V21: 3
A22: 食品工業25 | B22: 食品工業5 | C22: 1229 聯華 | D22: 食品工業 | E22: M1200 | F22: 768711 | G22: 789043 | H22: -2.58 | I22: -20332 | J22: 10 | K22: 29 | L22: 25 | M22: 5 | N22: 33 | O22: 2 | P22: 其他電子業 | Q22: 633903662 | R22: 619963205 | S22: 13940457 | T22: 2.25 | U22: 33 | V22: 2
A23: 食品工業10 | B23: 食品工業20 | C23: 1231 聯華食 | D23: 食品工業 | E23: M1200 | F23: 1001578 | G23: 834848 | H23: 19.97 | I23: 166730 | J23: 10 | K23: 29 | L23: 10 | M23: 20 | N23: 3 | O23: 32 | P23: 建材營造 | Q23: 45710471 | R23: 33141286 | S23: 12569185 | T23: 37.93 | U23: 3 | V23: 32
A24: 食品工業11 | B24: 食品工業19 | C24: 1232 大統益 | D24: 食品工業 | E24: M1200 | F24: 1935400 | G24: 1633429 | H24: 18.49 | I24: 301971 | J24: 10 | K24: 29 | L24: 11 | M24: 19 | N24: 31 | O24: 4 | P24: 航運業 | Q24: 123896516 | R24: 118008204 | S24: 5888312 | T24: 4.99 | U24: 31 | V24: 4
A25: 食品工業21 | B25: 食品工業9 | C25: 1233 天仁 | D25: 食品工業 | E25: M1200 | F25: 169134 | G25: 161766 | H25: 4.55 | I25: 7368 | J25: 10 | K25: 29 | L25: 21 | M25: 9 | N25: 25 | O25: 10 | P25: 觀光餐旅 | Q25: 15395190 | R25: 14247354 | S25: 1147836 | T25: 8.06 | U25: 25 | V25: 10
A26: 食品工業29 | B26: 食品工業1 | C26: 1234 黑松 | D26: 食品工業 | E26: M1200 | F26: 609760 | G26: 777480 | H26: -21.57 | I26: -167720 | J26: 10 | K26: 29 | L26: 29 | M26: 1 | N26: 34 | O26: 1 | P26: 金融業 | Q26: 180863833 | R26: 201575581 | S26: -20711748 | T26: -10.27 | U26: 34 | V26: 1
A27: 食品工業1 | B27: 食品工業29 | C27: 1235 興泰 | D27: 食品工業 | E27: M1200 | F27: 18067 | G27: 1746 | H27: 934.77 | I27: 16321 | J27: 10 | K27: 29 | L27: 1 | M27: 29 | N27: 5 | O27: 30 | P27: 貿易百貨 | Q27: 59190901 | R27: 46321457 | S27: 12869444 | T27: 27.78 | U27: 5 | V27: 30
A28: 食品工業2 | B28: 食品工業28 | C28: 1236 宏亞 | D28: 食品工業 | E28: M1200 | F28: 133073 | G28: 87822 | H28: 51.53 | I28: 45251 | J28: 10 | K28: 29 | L28: 2 | M28: 28 | N28: 30 | O28: 5 | P28: 文化創意業 | Q28: 5325882 | R28: 5026601 | S28: 299281 | T28: 5.95 | U28: 30 | V28: 5
A29: 食品工業6 | B29: 食品工業24 | C29: 1256 鮮活果汁-KY | D29: 食品工業 | E29: M1200 | F29: 226637 | G29: 179442 | H29: 26.3 | I29: 47195 | J29: 10 | K29: 29 | L29: 6 | M29: 24 | N29: 2 | O29: 33 | P29: 農業科技 | Q29: 496967 | R29: 360036 | S29: 136931 | T29: 38.03 | U29: 2 | V29: 33
A30: 食品工業4 | B30: 食品工業26 | C30: 1264 德麥 | D30: 食品工業 | E30: M1200 | F30: 554832 | G30: 412565 | H30: 34.48 | I30: 142267 | J30: 10 | K30: 29 | L30: 4 | M30: 26 | N30: =U30 -> 12 | O30: =V30 -> 23 | P30: 綠能環保 | Q30: =SUMIF($D:$D,$P30,F:F) -> 9979878 | R30: =SUMIF($D:$D,$P30,G:G) -> 8538615 | S30: =Q30-R30 -> 1441263 | T30: =ROUND(S30/R30*100,2) -> 16.88 | U30: =RANK(T30,T:T) -> 12 | V30: =RANK(T30,T:T,1) -> 23
A31: 食品工業9 | B31: 食品工業21 | C31: 1294 漢田生技 | D31: 食品工業 | E31: M1200 | F31: 73692 | G31: 59494 | H31: 23.86 | I31: 14198 | J31: 10 | K31: 29 | L31: 9 | M31: 21 | N31: 27 | O31: 8 | P31: 數位雲端 | Q31: 17690492 | R31: 16477828 | S31: 1212664 | T31: 7.36 | U31: 27 | V31: 8
A32: 食品工業7 | B32: 食品工業23 | C32: 1702 南僑 | D32: 食品工業 | E32: M1200 | F32: 2054601 | G32: 1633026 | H32: 25.82 | I32: 421575 | J32: 10 | K32: 29 | L32: 7 | M32: 23 | N32: 7 | O32: 27 | P32: 運動休閒 | Q32: 61705637 | R32: 51082234 | S32: 10623403 | T32: 20.8 | U32: 7 | V32: 27
A33: 食品工業22 | B33: 食品工業8 | C33: 1737 臺鹽 | D33: 食品工業 | E33: M1200 | F33: 249440 | G33: 241915 | H33: 3.11 | I33: 7525 | J33: 10 | K33: 29 | L33: 22 | M33: 8 | N33: 13 | O33: 22 | P33: 居家生活 | Q33: 22694343 | R33: 19418985 | S33: 3275358 | T33: 16.87 | U33: 13 | V33: 22
A34: 食品工業3 | B34: 食品工業27 | C34: 1796 金穎生技 | D34: 食品工業 | E34: M1200 | F34: 60579 | G34: 44823 | H34: 35.15 | I34: 15756 | J34: 10 | K34: 29 | L34: 3 | M34: 27 | N34: 26 | O34: 9 | P34: 油電燃氣業 | Q34: 65799895 | R34: 61071100 | S34: 4728795 | T34: 7.74 | U34: 26 | V34: 9
A35: 食品工業28 | B35: 食品工業2 | C35: 3054 立萬利 | D35: 食品工業 | E35: M1200 | F35: 5427 | G35: 6793 | H35: -20.11 | I35: -1366 | J35: 10 | K35: 29 | L35: 28 | M35: 2 | N35: 15 | O35: 20 | P35: 其他 | Q35: 56621791 | R35: 49619290 | S35: 7002501 | T35: 14.11 | U35: 15 | V35: 20
A36: 食品工業15 | B36: 食品工業15 | C36: 4205 中華食 | D36: 食品工業 | E36: M1200 | F36: 161331 | G36: 143809 | H36: 12.18 | I36: 17522 | J36: 10 | K36: 29 | L36: 15 | M36: 15 | N36: 0 | O36: 0 | P36: 存託憑證
A37: 食品工業17 | B37: 食品工業13 | C37: 4207 環泰 | D37: 食品工業 | E37: M1200 | F37: 491655 | G37: 443554 | H37: 10.84 | I37: 48101 | J37: 10 | K37: 29 | L37: 17 | M37: 13 | N37: 0 | O37: 0 | P37: 0
A38: 食品工業26 | B38: 食品工業4 | C38: 6846 綠茵 | D38: 食品工業 | E38: M1200 | F38: 82485 | G38: 97711 | H38: -15.58 | I38: -15226 | J38: 10 | K38: 29 | L38: 26 | M38: 4 | N38: 0 | O38: 0
A39: 塑膠工業14 | B39: 塑膠工業12 | C39: 1301 台塑 | D39: 塑膠工業 | E39: M1300 | F39: 17092363 | G39: 16129819 | H39: 5.97 | I39: 962544 | J39: 39 | K39: 25 | L39: 14 | M39: 12 | N39: 0 | O39: 0
A40: 塑膠工業15 | B40: 塑膠工業11 | C40: 1303 南亞 | D40: 塑膠工業 | E40: M1300 | F40: 23012738 | G40: 22080604 | H40: 4.22 | I40: 932134 | J40: 39 | K40: 25 | L40: 15 | M40: 11 | N40: 0 | O40: 0
A41: 塑膠工業18 | B41: 塑膠工業8 | C41: 1304 台聚 | D41: 塑膠工業 | E41: M1300 | F41: 4296504 | G41: 4165011 | H41: 3.16 | I41: 131493 | J41: 39 | K41: 25 | L41: 18 | M41: 8 | N41: 0 | O41: 0
A42: 塑膠工業21 | B42: 塑膠工業5 | C42: 1305 華夏 | D42: 塑膠工業 | E42: M1300 | F42: 836342 | G42: 850423 | H42: -1.66 | I42: -14081 | J42: 39 | K42: 25 | L42: 21 | M42: 5 | N42: 0 | O42: 0
A43: 塑膠工業11 | B43: 塑膠工業15 | C43: 1307 三芳 | D43: 塑膠工業 | E43: M1300 | F43: 1022024 | G43: 949002 | H43: 7.69 | I43: 73022 | J43: 39 | K43: 25 | L43: 11 | M43: 15 | N43: 0 | O43: 0
A44: 塑膠工業13 | B44: 塑膠工業13 | C44: 1308 亞聚 | D44: 塑膠工業 | E44: M1300 | F44: 564425 | G44: 532521 | H44: 5.99 | I44: 31904 | J44: 39 | K44: 25 | L44: 13 | M44: 13 | N44: 0 | O44: 0
A45: 塑膠工業16 | B45: 塑膠工業10 | C45: 1309 台達化 | D45: 塑膠工業 | E45: M1300 | F45: 1502160 | G45: 1445653 | H45: 3.91 | I45: 56507 | J45: 39 | K45: 25 | L45: 16 | M45: 10 | N45: 0 | O45: 0
A46: 塑膠工業22 | B46: 塑膠工業4 | C46: 1310 台苯 | D46: 塑膠工業 | E46: M1300 | F46: 695651 | G46: 720506 | H46: -3.45 | I46: -24855 | J46: 39 | K46: 25 | L46: 22 | M46: 4 | N46: 0 | O46: 0
A47: 塑膠工業2 | B47: 塑膠工業24 | C47: 1312 國喬 | D47: 塑膠工業 | E47: M1300 | F47: 2647259 | G47: 1791123 | H47: 47.8 | I47: 856136 | J47: 39 | K47: 25 | L47: 2 | M47: 24 | N47: 0 | O47: 0
A48: 塑膠工業4 | B48: 塑膠工業22 | C48: 1313 聯成 | D48: 塑膠工業 | E48: M1300 | F48: 5864531 | G48: 4286677 | H48: 36.81 | I48: 1577854 | J48: 39 | K48: 25 | L48: 4 | M48: 22 | N48: 0 | O48: 0
A49: 塑膠工業17 | B49: 塑膠工業9 | C49: 1314 中石化 | D49: 塑膠工業 | E49: M1300 | F49: 2109730 | G49: 2043929 | H49: 3.22 | I49: 65801 | J49: 39 | K49: 25 | L49: 17 | M49: 9 | N49: 0 | O49: 0
A50: 塑膠工業24 | B50: 塑膠工業2 | C50: 1315 達新 | D50: 塑膠工業 | E50: M1300 | F50: 154471 | G50: 184467 | H50: -16.26 | I50: -29996 | J50: 39 | K50: 25 | L50: 24 | M50: 2 | N50: 0 | O50: 0
A51: 塑膠工業7 | B51: 塑膠工業19 | C51: 1321 大洋 | D51: 塑膠工業 | E51: M1300 | F51: 367145 | G51: 304849 | H51: 20.44 | I51: 62296 | J51: 39 | K51: 25 | L51: 7 | M51: 19 | N51: 0 | O51: 0
A52: 塑膠工業5 | B52: 塑膠工業21 | C52: 1323 永裕 | D52: 塑膠工業 | E52: M1300 | F52: 194938 | G52: 143000 | H52: 36.32 | I52: 51938 | J52: 39 | K52: 25 | L52: 5 | M52: 21 | N52: 0 | O52: 0
A53: 塑膠工業10 | B53: 塑膠工業16 | C53: 1324 地球 | D53: 塑膠工業 | E53: M1300 | F53: 67682 | G53: 62235 | H53: 8.75 | I53: 5447 | J53: 39 | K53: 25 | L53: 10 | M53: 16 | N53: 0 | O53: 0
A54: 塑膠工業6 | B54: 塑膠工業20 | C54: 1325 恒大 | D54: 塑膠工業 | E54: M1300 | F54: 29830 | G54: 23183 | H54: 28.67 | I54: 6647 | J54: 39 | K54: 25 | L54: 6 | M54: 20 | N54: 0 | O54: 0
A55: 塑膠工業19 | B55: 塑膠工業7 | C55: 1326 台化 | D55: 塑膠工業 | E55: M1300 | F55: 27746732 | G55: 27143490 | H55: 2.22 | I55: 603242 | J55: 39 | K55: 25 | L55: 19 | M55: 7 | N55: 0 | O55: 0
A56: 塑膠工業25 | B56: 塑膠工業1 | C56: 1337 再生-KY | D56: 塑膠工業 | E56: M1300 | F56: 45670 | G56: 61049 | H56: -25.19 | I56: -15379 | J56: 39 | K56: 25 | L56: 25 | M56: 1 | N56: 0 | O56: 0
A57: 塑膠工業1 | B57: 塑膠工業25 | C57: 1340 勝悅-KY | D57: 塑膠工業 | E57: M1300 | F57: 28561 | G57: 15979 | H57: 78.74 | I57: 12582 | J57: 39 | K57: 25 | L57: 1 | M57: 25 | N57: 0 | O57: 0
A58: 塑膠工業3 | B58: 塑膠工業23 | C58: 1341 富林-KY | D58: 塑膠工業 | E58: M1300 | F58: 267873 | G58: 187099 | H58: 43.17 | I58: 80774 | J58: 39 | K58: 25 | L58: 3 | M58: 23 | N58: 0 | O58: 0
A59: 塑膠工業23 | B59: 塑膠工業3 | C59: 4303 信立 | D59: 塑膠工業 | E59: M1300 | F59: 75568 | G59: 84663 | H59: -10.74 | I59: -9095 | J59: 39 | K59: 25 | L59: 23 | M59: 3 | N59: 0 | O59: 0
A60: 塑膠工業20 | B60: 塑膠工業6 | C60: 4304 勝昱 | D60: 塑膠工業 | E60: M1300 | F60: 30265 | G60: 30112 | H60: 0.51 | I60: 153 | J60: 39 | K60: 25 | L60: 20 | M60: 6 | N60: 0 | O60: 0
A61: 塑膠工業8 | B61: 塑膠工業18 | C61: 4305 世坤 | D61: 塑膠工業 | E61: M1300 | F61: 92067 | G61: 82577 | H61: 11.49 | I61: 9490 | J61: 39 | K61: 25 | L61: 8 | M61: 18 | N61: 0 | O61: 0
A62: 塑膠工業9 | B62: 塑膠工業17 | C62: 4306 炎洲 | D62: 塑膠工業 | E62: M1300 | F62: 1080099 | G62: 969662 | H62: 11.39 | I62: 110437 | J62: 39 | K62: 25 | L62: 9 | M62: 17 | N62: 0 | O62: 0
A63: 塑膠工業12 | B63: 塑膠工業14 | C63: 9950 萬國通 | D63: 塑膠工業 | E63: M1300 | F63: 185028 | G63: 174403 | H63: 6.09 | I63: 10625 | J63: 39 | K63: 25 | L63: 12 | M63: 14 | N63: 0 | O63: 0
A64: 紡織纖維25 | B64: 紡織纖維27 | C64: 1402 遠東新 | D64: 紡織纖維 | E64: M1400 | F64: 22109493 | G64: 19649054 | H64: 12.52 | I64: 2460439 | J64: 64 | K64: 51 | L64: 25 | M64: 27 | N64: 0 | O64: 0
A65: 紡織纖維26 | B65: 紡織纖維26 | C65: 1409 新纖 | D65: 紡織纖維 | E65: M1400 | F65: 3763379 | G65: 3391760 | H65: 10.96 | I65: 371619 | J65: 64 | K65: 51 | L65: 26 | M65: 26 | N65: 0 | O65: 0
A66: 紡織纖維41 | B66: 紡織纖維11 | C66: 1410 南染 | D66: 紡織纖維 | E66: M1400 | F66: 19090 | G66: 19688 | H66: -3.04 | I66: -598 | J66: 64 | K66: 51 | L66: 41 | M66: 11 | N66: 0 | O66: 0
A67: 紡織纖維17 | B67: 紡織纖維35 | C67: 1413 宏洲 | D67: 紡織纖維 | E67: M1400 | F67: 225392 | G67: 178124 | H67: 26.54 | I67: 47268 | J67: 64 | K67: 51 | L67: 17 | M67: 35 | N67: 0 | O67: 0
A68: =D68&L68 -> 紡織纖維16 | B68: =D68&M68 -> 紡織纖維36 | C68: 1414 東和 | D68: 紡織纖維 | E68: M1400 | F68: 52596 | G68: 40915 | H68: 28.55 | I68: =F68-G68 -> 11681 | J68: =IF(E68="","",MATCH(E68,E:E,0)) -> 64 | K68: =COUNTIF(D:D,D68) -> 51 | L68: =IF(H68="","",RANK(H68,OFFSET(H$1,$J68-1,,$K68,),0)) -> 16 | M68: =IF(H68="","",RANK(H68,OFFSET(H$1,$J68-1,,$K68,),1)) -> 36 | N68: 0 | O68: 0
A69: 紡織纖維24 | B69: 紡織纖維28 | C69: 1417 嘉裕 | D69: 紡織纖維 | E69: M1400 | F69: 18799 | G69: 16382 | H69: 14.75 | I69: 2417 | J69: 64 | K69: 51 | L69: 24 | M69: 28 | N69: 0 | O69: 0
A70: 紡織纖維50 | B70: 紡織纖維2 | C70: 1418 東華 | D70: 紡織纖維 | E70: M1400 | F70: 849 | G70: 1312 | H70: -35.29 | I70: -463 | J70: 64 | K70: 51 | L70: 50 | M70: 2 | N70: 0 | O70: 0
A71: 紡織纖維21 | B71: 紡織纖維31 | C71: 1419 新紡 | D71: 紡織纖維 | E71: M1400 | F71: 396037 | G71: 330627 | H71: 19.78 | I71: 65410 | J71: 64 | K71: 51 | L71: 21 | M71: 31 | N71: 0 | O71: 0
A72: 紡織纖維42 | B72: 紡織纖維10 | C72: 1423 利華 | D72: 紡織纖維 | E72: M1400 | F72: 10615 | G72: 11062 | H72: -4.04 | I72: -447 | J72: 64 | K72: 51 | L72: 42 | M72: 10 | N72: 0 | O72: 0
A73: 紡織纖維29 | B73: 紡織纖維23 | C73: 1434 福懋 | D73: 紡織纖維 | E73: M1400 | F73: 2815178 | G73: 2564073 | H73: 9.79 | I73: 251105 | J73: 64 | K73: 51 | L73: 29 | M73: 23 | N73: 0 | O73: 0
A74: 紡織纖維36 | B74: 紡織纖維16 | C74: 1440 南紡 | D74: 紡織纖維 | E74: M1400 | F74: 1459502 | G74: 1418665 | H74: 2.88 | I74: 40837 | J74: 64 | K74: 51 | L74: 36 | M74: 16 | N74: 0 | O74: 0
A75: 紡織纖維11 | B75: 紡織纖維41 | C75: 1441 大東 | D75: 紡織纖維 | E75: M1400 | F75: 159859 | G75: 108493 | H75: 47.34 | I75: 51366 | J75: 64 | K75: 51 | L75: 11 | M75: 41 | N75: 0 | O75: 0
A76: 紡織纖維19 | B76: 紡織纖維33 | C76: 1444 力麗 | D76: 紡織纖維 | E76: M1400 | F76: 717018 | G76: 583534 | H76: 22.88 | I76: 133484 | J76: 64 | K76: 51 | L76: 19 | M76: 33 | N76: 0 | O76: 0
A77: 紡織纖維13 | B77: 紡織纖維39 | C77: 1445 大宇 | D77: 紡織纖維 | E77: M1400 | F77: 70057 | G77: 50509 | H77: 38.7 | I77: 19548 | J77: 64 | K77: 51 | L77: 13 | M77: 39 | N77: 0 | O77: 0
A78: 紡織纖維1 | B78: 紡織纖維51 | C78: 1446 宏和 | D78: 紡織纖維 | E78: M1400 | F78: 139973 | G78: 10852 | H78: 1189.84 | I78: 129121 | J78: 64 | K78: 51 | L78: 1 | M78: 51 | N78: 0 | O78: 0
A79: 紡織纖維5 | B79: 紡織纖維47 | C79: 1447 力鵬 | D79: 紡織纖維 | E79: M1400 | F79: 2854108 | G79: 1714781 | H79: 66.44 | I79: 1139327 | J79: 64 | K79: 51 | L79: 5 | M79: 47 | N79: 0 | O79: 0
A80: 紡織纖維43 | B80: 紡織纖維9 | C80: 1449 佳和 | D80: 紡織纖維 | E80: M1400 | F80: 209648 | G80: 232350 | H80: -9.77 | I80: -22702 | J80: 64 | K80: 51 | L80: 43 | M80: 9 | N80: 0 | O80: 0
A81: 紡織纖維35 | B81: 紡織纖維17 | C81: 1451 年興 | D81: 紡織纖維 | E81: M1400 | F81: 454137 | G81: 438156 | H81: 3.65 | I81: 15981 | J81: 64 | K81: 51 | L81: 35 | M81: 17 | N81: 0 | O81: 0
A82: 紡織纖維44 | B82: 紡織纖維8 | C82: 1452 宏益 | D82: 紡織纖維 | E82: M1400 | F82: 114758 | G82: 129933 | H82: -11.68 | I82: -15175 | J82: 64 | K82: 51 | L82: 44 | M82: 8 | N82: 0 | O82: 0
A83: 紡織纖維28 | B83: 紡織纖維24 | C83: 1454 台富 | D83: 紡織纖維 | E83: M1400 | F83: 150716 | G83: 136416 | H83: 10.48 | I83: 14300 | J83: 64 | K83: 51 | L83: 28 | M83: 24 | N83: 0 | O83: 0
A84: 紡織纖維32 | B84: 紡織纖維20 | C84: 1455 集盛 | D84: 紡織纖維 | E84: M1400 | F84: 670533 | G84: 641314 | H84: 4.56 | I84: 29219 | J84: 64 | K84: 51 | L84: 32 | M84: 20 | N84: 0 | O84: 0
A85: 紡織纖維18 | B85: 紡織纖維34 | C85: 1457 宜進 | D85: 紡織纖維 | E85: M1400 | F85: 316845 | G85: 254736 | H85: 24.38 | I85: 62109 | J85: 64 | K85: 51 | L85: 18 | M85: 34 | N85: 0 | O85: 0
A86: 紡織纖維22 | B86: 紡織纖維30 | C86: 1459 聯發 | D86: 紡織纖維 | E86: M1400 | F86: 142301 | G86: 121057 | H86: 17.55 | I86: 21244 | J86: 64 | K86: 51 | L86: 22 | M86: 30 | N86: 0 | O86: 0
A87: 紡織纖維34 | B87: 紡織纖維18 | C87: 1460 宏遠 | D87: 紡織纖維 | E87: M1400 | F87: 758415 | G87: 729701 | H87: 3.94 | I87: 28714 | J87: 64 | K87: 51 | L87: 34 | M87: 18 | N87: 0 | O87: 0
A88: 紡織纖維51 | B88: 紡織纖維1 | C88: 1463 強盛新 | D88: 紡織纖維 | E88: M1400 | F88: 25315 | G88: 178204 | H88: -85.79 | I88: -152889 | J88: 64 | K88: 51 | L88: 51 | M88: 1 | N88: 0 | O88: 0
A89: 紡織纖維37 | B89: 紡織纖維15 | C89: 1464 得力 | D89: 紡織纖維 | E89: M1400 | F89: 1224006 | G89: 1202274 | H89: 1.81 | I89: 21732 | J89: 64 | K89: 51 | L89: 37 | M89: 15 | N89: 0 | O89: 0
A90: 紡織纖維9 | B90: 紡織纖維43 | C90: 1465 偉全 | D90: 紡織纖維 | E90: M1400 | F90: 25046 | G90: 15920 | H90: 57.32 | I90: 9126 | J90: 64 | K90: 51 | L90: 9 | M90: 43 | N90: 0 | O90: 0
A91: 紡織纖維39 | B91: 紡織纖維13 | C91: 1466 聚隆 | D91: 紡織纖維 | E91: M1400 | F91: 230134 | G91: 232850 | H91: -1.17 | I91: -2716 | J91: 64 | K91: 51 | L91: 39 | M91: 13 | N91: 0 | O91: 0
A92: 紡織纖維45 | B92: 紡織纖維7 | C92: 1467 南緯 | D92: 紡織纖維 | E92: M1400 | F92: 401238 | G92: 469955 | H92: -14.62 | I92: -68717 | J92: 64 | K92: 51 | L92: 45 | M92: 7 | N92: 0 | O92: 0
A93: 紡織纖維4 | B93: 紡織纖維48 | C93: 1468 昶和 | D93: 紡織纖維 | E93: M1400 | F93: 121656 | G93: 69212 | H93: 75.77 | I93: 52444 | J93: 64 | K93: 51 | L93: 4 | M93: 48 | N93: 0 | O93: 0
A94: 紡織纖維7 | B94: 紡織纖維45 | C94: 1470 大統新創 | D94: 紡織纖維 | E94: M1400 | F94: 90888 | G94: 55157 | H94: 64.78 | I94: 35731 | J94: 64 | K94: 51 | L94: 7 | M94: 45 | N94: =U94 -> 0 | O94: =V94 -> 0
A95: 紡織纖維49 | B95: 紡織纖維3 | C95: 1473 台南 | D95: 紡織纖維 | E95: M1400 | F95: 729893 | G95: 977784 | H95: -25.35 | I95: -247891 | J95: 64 | K95: 51 | L95: 49 | M95: 3 | N95: 0 | O95: 0
A96: 紡織纖維30 | B96: 紡織纖維22 | C96: 1474 弘裕 | D96: 紡織纖維 | E96: M1400 | F96: 272895 | G96: 251702 | H96: 8.42 | I96: 21193 | J96: 64 | K96: 51 | L96: 30 | M96: 22 | N96: 0 | O96: 0
A97: 紡織纖維47 | B97: 紡織纖維5 | C97: 1475 業旺 | D97: 紡織纖維 | E97: M1400 | F97: 109086 | G97: 146029 | H97: -25.3 | I97: -36943 | J97: 64 | K97: 51 | L97: 47 | M97: 5 | N97: 0 | O97: 0
A98: 紡織纖維15 | B98: 紡織纖維37 | C98: 1476 儒鴻 | D98: 紡織纖維 | E98: M1400 | F98: 3410647 | G98: 2633763 | H98: 29.5 | I98: 776884 | J98: 64 | K98: 51 | L98: 15 | M98: 37 | N98: 0 | O98: 0
A99: 紡織纖維23 | B99: 紡織纖維29 | C99: 1477 聚陽 | D99: 紡織纖維 | E99: M1400 | F99: 3453770 | G99: 2969487 | H99: 16.31 | I99: 484283 | J99: 64 | K99: 51 | L99: 23 | M99: 29 | N99: 0 | O99: 0
A100: 紡織纖維33 | B100: 紡織纖維19 | C100: 4401 東隆興 | D100: 紡織纖維 | E100: M1400 | F100: 363879 | G100: 348724 | H100: 4.35 | I100: 15155 | J100: 64 | K100: 51 | L100: 33 | M100: 19 | N100: 0 | O100: 0
A101: 紡織纖維2 | B101: 紡織纖維50 | C101: 4402 郡都開發 | D101: 紡織纖維 | E101: M1400 | F101: 3153 | G101: 1287 | H101: 144.99 | I101: 1866 | J101: 64 | K101: 51 | L101: 2 | M101: 50 | N101: 0 | O101: 0
A102: 紡織纖維40 | B102: 紡織纖維12 | C102: 4406 新昕纖 | D102: 紡織纖維 | E102: M1400 | F102: 42998 | G102: 43656 | H102: -1.51 | I102: -658 | J102: 64 | K102: 51 | L102: 40 | M102: 12 | N102: 0 | O102: 0
A103: 紡織纖維46 | B103: 紡織纖維6 | C103: 4413 飛寶企業 | D103: 紡織纖維 | E103: M1400 | F103: 47022 | G103: 57975 | H103: -18.89 | I103: -10953 | J103: 64 | K103: 51 | L103: 46 | M103: 6 | N103: 0 | O103: 0
A104: 紡織纖維48 | B104: 紡織纖維4 | C104: 4414 如興 | D104: 紡織纖維 | E104: M1400 | F104: 913361 | G104: 1223003 | H104: -25.32 | I104: -309642 | J104: 64 | K104: 51 | L104: 48 | M104: 4 | N104: 0 | O104: 0
A105: 紡織纖維6 | B105: 紡織纖維46 | C105: 4417 金洲 | D105: 紡織纖維 | E105: M1400 | F105: 312829 | G105: 188568 | H105: 65.9 | I105: 124261 | J105: 64 | K105: 51 | L105: 6 | M105: 46 | N105: 0 | O105: 0
A106: 紡織纖維12 | B106: 紡織纖維40 | C106: 4420 光明 | D106: 紡織纖維 | E106: M1400 | F106: 104144 | G106: 74540 | H106: 39.72 | I106: 29604 | J106: 64 | K106: 51 | L106: 12 | M106: 40 | N106: 0 | O106: 0
A107: 紡織纖維31 | B107: 紡織纖維21 | C107: 4426 利勤 | D107: 紡織纖維 | E107: M1400 | F107: 83247 | G107: 79501 | H107: 4.71 | I107: 3746 | J107: 64 | K107: 51 | L107: 31 | M107: 21 | N107: 0 | O107: 0
A108: 紡織纖維8 | B108: 紡織纖維44 | C108: 4432 銘旺實 | D108: 紡織纖維 | E108: M1400 | F108: 59177 | G108: 37475 | H108: 57.91 | I108: 21702 | J108: 64 | K108: 51 | L108: 8 | M108: 44 | N108: 0 | O108: 0
A109: 紡織纖維14 | B109: 紡織纖維38 | C109: 4433 興采 | D109: 紡織纖維 | E109: M1400 | F109: 316391 | G109: 238982 | H109: 32.39 | I109: 77409 | J109: 64 | K109: 51 | L109: 14 | M109: 38 | N109: 0 | O109: 0
A110: 紡織纖維27 | B110: 紡織纖維25 | C110: 4438 廣越 | D110: 紡織纖維 | E110: M1400 | F110: 914980 | G110: 826547 | H110: 10.7 | I110: 88433 | J110: 64 | K110: 51 | L110: 27 | M110: 25 | N110: 0 | O110: 0
A111: 紡織纖維10 | B111: 紡織纖維42 | C111: 4439 冠星-KY | D111: 紡織纖維 | E111: M1400 | F111: 791355 | G111: 531352 | H111: 48.93 | I111: 260003 | J111: 64 | K111: 51 | L111: 10 | M111: 42 | N111: 0 | O111: 0
A112: 紡織纖維38 | B112: 紡織纖維14 | C112: 4440 宜新實業 | D112: 紡織纖維 | E112: M1400 | F112: 73356 | G112: 72812 | H112: 0.75 | I112: 544 | J112: 64 | K112: 51 | L112: 38 | M112: 14 | N112: 0 | O112: 0
A113: 紡織纖維3 | B113: 紡織纖維49 | C113: 4442 竣邦-KY | D113: 紡織纖維 | E113: M1400 | F113: 182741 | G113: 90145 | H113: 102.72 | I113: 92596 | J113: 64 | K113: 51 | L113: 3 | M113: 49 | N113: 0 | O113: 0
A114: 紡織纖維20 | B114: 紡織纖維32 | C114: 6506 雙邦 | D114: 紡織纖維 | E114: M1400 | F114: 202555 | G114: 165080 | H114: 22.7 | I114: 37475 | J114: 64 | K114: 51 | L114: 20 | M114: 32 | N114: 0 | O114: 0
A115: 電機機械66 | B115: 電機機械32 | C115: 1503 士電 | D115: 電機機械 | E115: M1500 | F115: 3125640 | G115: 2920936 | H115: 7.01 | I115: 204704 | J115: 115 | K115: 97 | L115: 66 | M115: 32 | N115: 0 | O115: 0
A116: 電機機械57 | B116: 電機機械41 | C116: 1504 東元 | D116: 電機機械 | E116: M1500 | F116: 4962534 | G116: 4435229 | H116: 11.89 | I116: 527305 | J116: 115 | K116: 97 | L116: 57 | M116: 41 | N116: 0 | O116: 0
A117: 電機機械43 | B117: 電機機械54 | C117: 1506 正道 | D117: 電機機械 | E117: M1500 | F117: 96330 | G117: 80734 | H117: 19.32 | I117: 15596 | J117: 115 | K117: 97 | L117: 43 | M117: 54 | N117: 0 | O117: 0
A118: 電機機械61 | B118: 電機機械37 | C118: 1513 中興電 | D118: 電機機械 | E118: M1500 | F118: 2363392 | G118: 2155049 | H118: 9.67 | I118: 208343 | J118: 115 | K118: 97 | L118: 61 | M118: 37 | N118: 0 | O118: 0
A119: 電機機械52 | B119: 電機機械46 | C119: 1514 亞力 | D119: 電機機械 | E119: M1500 | F119: 769323 | G119: 679782 | H119: 13.17 | I119: 89541 | J119: 115 | K119: 97 | L119: 52 | M119: 46 | N119: 0 | O119: 0
A120: 電機機械6 | B120: 電機機械92 | C120: 1515 力山 | D120: 電機機械 | E120: M1500 | F120: 439032 | G120: 239627 | H120: 83.21 | I120: 199405 | J120: 115 | K120: 97 | L120: 6 | M120: 92 | N120: 0 | O120: 0
A121: 電機機械34 | B121: 電機機械64 | C121: 1517 利奇 | D121: 電機機械 | E121: M1500 | F121: 208301 | G121: 163301 | H121: 27.56 | I121: 45000 | J121: 115 | K121: 97 | L121: 34 | M121: 64 | N121: 0 | O121: 0
A122: 電機機械10 | B122: 電機機械88 | C122: 1519 華城 | D122: 電機機械 | E122: M1500 | F122: 1969871 | G122: 1176341 | H122: 67.46 | I122: 793530 | J122: 115 | K122: 97 | L122: 10 | M122: 88 | N122: 0 | O122: 0
A123: 電機機械77 | B123: 電機機械21 | C123: 1526 日馳 | D123: 電機機械 | E123: M1500 | F123: 70882 | G123: 68759 | H123: 3.09 | I123: 2123 | J123: 115 | K123: 97 | L123: 77 | M123: 21 | N123: 0 | O123: 0
A124: 電機機械90 | B124: 電機機械8 | C124: 1527 鑽全 | D124: 電機機械 | E124: M1500 | F124: 254845 | G124: 267891 | H124: -4.87 | I124: -13046 | J124: 115 | K124: 97 | L124: 90 | M124: 8 | N124: 0 | O124: 0
A125: 電機機械51 | B125: 電機機械47 | C125: 1528 恩德 | D125: 電機機械 | E125: M1500 | F125: 211641 | G125: 186120 | H125: 13.71 | I125: 25521 | J125: 115 | K125: 97 | L125: 51 | M125: 47 | N125: 0 | O125: 0
A126: 電機機械91 | B126: 電機機械7 | C126: 1529 樂事綠能 | D126: 電機機械 | E126: M1500 | F126: 106410 | G126: 118552 | H126: -10.24 | I126: -12142 | J126: 115 | K126: 97 | L126: 91 | M126: 7 | N126: 0 | O126: 0
A127: 電機機械81 | B127: 電機機械17 | C127: 1530 亞崴 | D127: 電機機械 | E127: M1500 | F127: 173725 | G127: 171648 | H127: 1.21 | I127: 2077 | J127: 115 | K127: 97 | L127: 81 | M127: 17 | N127: 0 | O127: 0
A128: 電機機械23 | B128: 電機機械75 | C128: 1531 高林股 | D128: 電機機械 | E128: M1500 | F128: 160176 | G128: 114415 | H128: 40 | I128: 45761 | J128: 115 | K128: 97 | L128: 23 | M128: 75 | N128: 0 | O128: 0
A129: 電機機械30 | B129: 電機機械68 | C129: 1532 勤美 | D129: 電機機械 | E129: M1500 | F129: 1084321 | G129: 837571 | H129: 29.46 | I129: 246750 | J129: 115 | K129: 97 | L129: 30 | M129: 68 | N129: 0 | O129: 0
A130: 電機機械64 | B130: 電機機械34 | C130: 1535 中宇 | D130: 電機機械 | E130: M1500 | F130: 855310 | G130: 793174 | H130: 7.83 | I130: 62136 | J130: 115 | K130: 97 | L130: 64 | M130: 34 | N130: 0 | O130: 0
A131: 電機機械45 | B131: 電機機械53 | C131: 1537 廣隆 | D131: 電機機械 | E131: M1500 | F131: 598654 | G131: 501917 | H131: 19.27 | I131: 96737 | J131: 115 | K131: 97 | L131: 45 | M131: 53 | N131: 0 | O131: 0
A132: =D132&L132 -> 電機機械93 | B132: =D132&M132 -> 電機機械5 | C132: 1538 正峰 | D132: 電機機械 | E132: M1500 | F132: 10092 | G132: 11618 | H132: -13.13 | I132: =F132-G132 -> -1526 | J132: =IF(E132="","",MATCH(E132,E:E,0)) -> 115 | K132: =COUNTIF(D:D,D132) -> 97 | L132: =IF(H132="","",RANK(H132,OFFSET(H$1,$J132-1,,$K132,),0)) -> 93 | M132: =IF(H132="","",RANK(H132,OFFSET(H$1,$J132-1,,$K132,),1)) -> 5 | N132: 0 | O132: 0
A133: 電機機械32 | B133: 電機機械66 | C133: 1539 巨庭 | D133: 電機機械 | E133: M1500 | F133: 116572 | G133: 90103 | H133: 29.38 | I133: 26469 | J133: 115 | K133: 97 | L133: 32 | M133: 66 | N133: 0 | O133: 0
A134: 電機機械11 | B134: 電機機械87 | C134: 1540 喬福 | D134: 電機機械 | E134: M1500 | F134: 47758 | G134: 28572 | H134: 67.15 | I134: 19186 | J134: 115 | K134: 97 | L134: 11 | M134: 87 | N134: 0 | O134: 0
A135: 電機機械7 | B135: 電機機械91 | C135: 1541 錩泰 | D135: 電機機械 | E135: M1500 | F135: 337239 | G135: 186643 | H135: 80.69 | I135: 150596 | J135: 115 | K135: 97 | L135: 7 | M135: 91 | N135: 0 | O135: 0
A136: 電機機械60 | B136: 電機機械38 | C136: 1558 伸興 | D136: 電機機械 | E136: M1500 | F136: 659913 | G136: 600591 | H136: 9.88 | I136: 59322 | J136: 115 | K136: 97 | L136: 60 | M136: 38 | N136: 0 | O136: 0
A137: 電機機械86 | B137: 電機機械12 | C137: 1560 中砂 | D137: 電機機械 | E137: M1500 | F137: 601745 | G137: 604077 | H137: -0.39 | I137: -2332 | J137: 115 | K137: 97 | L137: 86 | M137: 12 | N137: 0 | O137: 0
A138: 電機機械31 | B138: 電機機械67 | C138: 1570 力肯 | D138: 電機機械 | E138: M1500 | F138: 37267 | G138: 28798 | H138: 29.41 | I138: 8469 | J138: 115 | K138: 97 | L138: 31 | M138: 67 | N138: 0 | O138: 0
A139: 電機機械22 | B139: 電機機械76 | C139: 1580 新麥 | D139: 電機機械 | E139: M1500 | F139: 414021 | G139: 293518 | H139: 41.05 | I139: 120503 | J139: 115 | K139: 97 | L139: 22 | M139: 76 | N139: 0 | O139: 0
A140: 電機機械68 | B140: 電機機械30 | C140: 1583 程泰 | D140: 電機機械 | E140: M1500 | F140: 287153 | G140: 270309 | H140: 6.23 | I140: 16844 | J140: 115 | K140: 97 | L140: 68 | M140: 30 | N140: 0 | O140: 0
A141: 電機機械37 | B141: 電機機械61 | C141: 1586 和勤 | D141: 電機機械 | E141: M1500 | F141: 197556 | G141: 157756 | H141: 25.23 | I141: 39800 | J141: 115 | K141: 97 | L141: 37 | M141: 61 | N141: 0 | O141: 0
A142: 電機機械28 | B142: 電機機械70 | C142: 1589 永冠-KY | D142: 電機機械 | E142: M1500 | F142: 677836 | G142: 507677 | H142: 33.52 | I142: 170159 | J142: 115 | K142: 97 | L142: 28 | M142: 70 | N142: 0 | O142: 0
A143: 電機機械17 | B143: 電機機械81 | C143: 1590 亞德客-KY | D143: 電機機械 | E143: M1500 | F143: 3505568 | G143: 2371072 | H143: 47.85 | I143: 1134496 | J143: 115 | K143: 97 | L143: 17 | M143: 81 | N143: 0 | O143: 0
A144: 電機機械97 | B144: 電機機械1 | C144: 1591 駿吉-KY | D144: 電機機械 | E144: M1500 | F144: 2158 | G144: 7415 | H144: -70.9 | I144: -5257 | J144: 115 | K144: 97 | L144: 97 | M144: 1 | N144: 0 | O144: 0
A145: 電機機械89 | B145: 電機機械9 | C145: 1597 直得 | D145: 電機機械 | E145: M1500 | F145: 86976 | G145: 89452 | H145: -2.77 | I145: -2476 | J145: 115 | K145: 97 | L145: 89 | M145: 9 | N145: 0 | O145: 0
A146: 電機機械27 | B146: 電機機械71 | C146: 1599 宏佳騰 | D146: 電機機械 | E146: M1500 | F146: 197084 | G146: 146222 | H146: 34.78 | I146: 50862 | J146: 115 | K146: 97 | L146: 27 | M146: 71 | N146: 0 | O146: 0
A147: 電機機械74 | B147: 電機機械24 | C147: 2049 上銀 | D147: 電機機械 | E147: M1500 | F147: 2008012 | G147: 1930542 | H147: 4.01 | I147: 77470 | J147: 115 | K147: 97 | L147: 74 | M147: 24 | N147: 0 | O147: 0
A148: 電機機械59 | B148: 電機機械39 | C148: 2066 世德 | D148: 電機機械 | E148: M1500 | F148: 248354 | G148: 224989 | H148: 10.38 | I148: 23365 | J148: 115 | K148: 97 | L148: 59 | M148: 39 | N148: 0 | O148: 0
A149: 電機機械18 | B149: 電機機械80 | C149: 2067 嘉鋼 | D149: 電機機械 | E149: M1500 | F149: 102404 | G149: 70760 | H149: 44.72 | I149: 31644 | J149: 115 | K149: 97 | L149: 18 | M149: 80 | N149: 0 | O149: 0
A150: 電機機械20 | B150: 電機機械78 | C150: 2070 精湛 | D150: 電機機械 | E150: M1500 | F150: 61612 | G150: 42905 | H150: 43.6 | I150: 18707 | J150: 115 | K150: 97 | L150: 20 | M150: 78 | N150: 0 | O150: 0
A151: 電機機械96 | B151: 電機機械2 | C151: 2230 泰茂 | D151: 電機機械 | E151: M1500 | F151: 77600 | G151: 134304 | H151: -42.22 | I151: -56704 | J151: 115 | K151: 97 | L151: 96 | M151: 2 | N151: 0 | O151: 0
A152: 電機機械16 | B152: 電機機械82 | C152: 2235 謚源 | D152: 電機機械 | E152: M1500 | F152: 65835 | G152: 44278 | H152: 48.69 | I152: 21557 | J152: 115 | K152: 97 | L152: 16 | M152: 82 | N152: 0 | O152: 0
A153: 電機機械33 | B153: 電機機械65 | C153: 2371 大同 | D153: 電機機械 | E153: M1500 | F153: 3930070 | G153: 3041720 | H153: 29.21 | I153: 888350 | J153: 115 | K153: 97 | L153: 33 | M153: 65 | N153: 0 | O153: 0
A154: 電機機械80 | B154: 電機機械18 | C154: 3162 精確 | D154: 電機機械 | E154: M1500 | F154: 638159 | G154: 629045 | H154: 1.45 | I154: 9114 | J154: 115 | K154: 97 | L154: 80 | M154: 18 | N154: 0 | O154: 0
A155: 電機機械39 | B155: 電機機械59 | C155: 3167 大量 | D155: 電機機械 | E155: M1500 | F155: 313349 | G155: 256117 | H155: 22.35 | I155: 57232 | J155: 115 | K155: 97 | L155: 39 | M155: 59 | N155: 0 | O155: 0
A156: 電機機械92 | B156: 電機機械6 | C156: 3226 龍鋒 | D156: 電機機械 | E156: M1500 | F156: 160549 | G156: 183710 | H156: -12.61 | I156: -23161 | J156: 115 | K156: 97 | L156: 92 | M156: 6 | N156: 0 | O156: 0
A157: 電機機械56 | B157: 電機機械42 | C157: 3379 彬台 | D157: 電機機械 | E157: M1500 | F157: 95351 | G157: 85211 | H157: 11.9 | I157: 10140 | J157: 115 | K157: 97 | L157: 56 | M157: 42 | N157: 0 | O157: 0
A158: 電機機械65 | B158: 電機機械33 | C158: 3426 台興 | D158: 電機機械 | E158: M1500 | F158: 70685 | G158: 65569 | H158: 7.8 | I158: 5116 | J158: 115 | K158: 97 | L158: 65 | M158: 33 | N158: =U158 -> 0 | O158: =V158 -> 0
A159: 電機機械40 | B159: 電機機械58 | C159: 3685 元創精密 | D159: 電機機械 | E159: M1500 | F159: 88860 | G159: 72966 | H159: 21.78 | I159: 15894 | J159: 115 | K159: 97 | L159: 40 | M159: 58 | N159: 0 | O159: 0
A160: 電機機械46 | B160: 電機機械52 | C160: 4502 健信 | D160: 電機機械 | E160: M1500 | F160: 67004 | G160: 56704 | H160: 18.16 | I160: 10300 | J160: 115 | K160: 97 | L160: 46 | M160: 52 | N160: 0 | O160: 0
A161: 電機機械75 | B161: 電機機械23 | C161: 4503 金雨 | D161: 電機機械 | E161: M1500 | F161: 43391 | G161: 41741 | H161: 3.95 | I161: 1650 | J161: 115 | K161: 97 | L161: 75 | M161: 23 | N161: 0 | O161: 0
A162: 電機機械8 | B162: 電機機械90 | C162: 4506 崇友 | D162: 電機機械 | E162: M1500 | F162: 632409 | G162: 363964 | H162: 73.76 | I162: 268445 | J162: 115 | K162: 97 | L162: 8 | M162: 90 | N162: 0 | O162: 0
A163: 電機機械71 | B163: 電機機械27 | C163: 4510 高鋒 | D163: 電機機械 | E163: M1500 | F163: 106589 | G163: 101945 | H163: 4.56 | I163: 4644 | J163: 115 | K163: 97 | L163: 71 | M163: 27 | N163: 0 | O163: 0
A164: 電機機械76 | B164: 電機機械22 | C164: 4513 福裕 | D164: 電機機械 | E164: M1500 | F164: 86120 | G164: 82872 | H164: 3.92 | I164: 3248 | J164: 115 | K164: 97 | L164: 76 | M164: 22 | N164: 0 | O164: 0
A165: 電機機械9 | B165: 電機機械89 | C165: 4523 永彰 | D165: 電機機械 | E165: M1500 | F165: 71328 | G165: 41835 | H165: 70.5 | I165: 29493 | J165: 115 | K165: 97 | L165: 9 | M165: 89 | N165: 0 | O165: 0
A166: 電機機械5 | B166: 電機機械93 | C166: 4526 東台 | D166: 電機機械 | E166: M1500 | F166: 693718 | G166: 369586 | H166: 87.7 | I166: 324132 | J166: 115 | K166: 97 | L166: 5 | M166: 93 | N166: 0 | O166: 0
A167: 電機機械12 | B167: 電機機械86 | C167: 4527 方方土霖 | D167: 電機機械 | E167: M1500 | F167: 268823 | G167: 161864 | H167: 66.08 | I167: 106959 | J167: 115 | K167: 97 | L167: 12 | M167: 86 | N167: 0 | O167: 0
A168: 電機機械70 | B168: 電機機械28 | C168: 4528 江興鍛 | D168: 電機機械 | E168: M1500 | F168: 120588 | G168: 114265 | H168: 5.53 | I168: 6323 | J168: 115 | K168: 97 | L168: 70 | M168: 28 | N168: 0 | O168: 0
A169: 電機機械47 | B169: 電機機械51 | C169: 4532 瑞智 | D169: 電機機械 | E169: M1500 | F169: 2367041 | G169: 2011265 | H169: 17.69 | I169: 355776 | J169: 115 | K169: 97 | L169: 47 | M169: 51 | N169: 0 | O169: 0
A170: 電機機械95 | B170: 電機機械3 | C170: 4533 協易機 | D170: 電機機械 | E170: M1500 | F170: 217571 | G170: 353612 | H170: -38.47 | I170: -136041 | J170: 115 | K170: 97 | L170: 95 | M170: 3 | N170: 0 | O170: 0
A171: 電機機械29 | B171: 電機機械69 | C171: 4534 慶騰 | D171: 電機機械 | E171: M1500 | F171: 70641 | G171: 54527 | H171: 29.55 | I171: 16114 | J171: 115 | K171: 97 | L171: 29 | M171: 69 | N171: 0 | O171: 0
A172: 電機機械58 | B172: 電機機械40 | C172: 4535 至興 | D172: 電機機械 | E172: M1500 | F172: 219690 | G172: 197459 | H172: 11.26 | I172: 22231 | J172: 115 | K172: 97 | L172: 58 | M172: 40 | N172: 0 | O172: 0
A173: 電機機械42 | B173: 電機機械56 | C173: 4538 大詠城 | D173: 電機機械 | E173: M1500 | F173: 29646 | G173: 24788 | H173: 19.6 | I173: 4858 | J173: 115 | K173: 97 | L173: 42 | M173: 56 | N173: 0 | O173: 0
A174: 電機機械14 | B174: 電機機械84 | C174: 4540 全球傳動 | D174: 電機機械 | E174: M1500 | F174: 198168 | G174: 128136 | H174: 54.65 | I174: 70032 | J174: 115 | K174: 97 | L174: 14 | M174: 84 | N174: 0 | O174: 0
A175: 電機機械50 | B175: 電機機械48 | C175: 4543 萬在 | D175: 電機機械 | E175: M1500 | F175: 69020 | G175: 60454 | H175: 14.17 | I175: 8566 | J175: 115 | K175: 97 | L175: 50 | M175: 48 | N175: 0 | O175: 0
A176: 電機機械82 | B176: 電機機械16 | C176: 4549 桓達 | D176: 電機機械 | E176: M1500 | F176: 103069 | G176: 102178 | H176: 0.87 | I176: 891 | J176: 115 | K176: 97 | L176: 82 | M176: 16 | N176: 0 | O176: 0
A177: 電機機械94 | B177: 電機機械4 | C177: 4550 長佳 | D177: 電機機械 | E177: M1500 | F177: 59385 | G177: 83666 | H177: -29.02 | I177: -24281 | J177: 115 | K177: 97 | L177: 94 | M177: 4 | N177: 0 | O177: 0
A178: 電機機械4 | B178: 電機機械94 | C178: 4552 力達-KY | D178: 電機機械 | E178: M1500 | F178: 341046 | G178: 176395 | H178: 93.34 | I178: 164651 | J178: 115 | K178: 97 | L178: 4 | M178: 94 | N178: 0 | O178: 0
A179: 電機機械48 | B179: 電機機械50 | C179: 4555 氣立 | D179: 電機機械 | E179: M1500 | F179: 142103 | G179: 121516 | H179: 16.94 | I179: 20587 | J179: 115 | K179: 97 | L179: 48 | M179: 50 | N179: 0 | O179: 0
A180: 電機機械26 | B180: 電機機械72 | C180: 4558 寶緯 | D180: 電機機械 | E180: M1500 | F180: 165031 | G180: 121167 | H180: 36.2 | I180: 43864 | J180: 115 | K180: 97 | L180: 26 | M180: 72 | N180: 0 | O180: 0
A181: 電機機械35 | B181: 電機機械63 | C181: 4560 強信-KY | D181: 電機機械 | E181: M1500 | F181: 173989 | G181: 136942 | H181: 27.05 | I181: 37047 | J181: 115 | K181: 97 | L181: 35 | M181: 63 | N181: 0 | O181: 0
A182: 電機機械53 | B182: 電機機械45 | C182: 4561 健椿 | D182: 電機機械 | E182: M1500 | F182: 87456 | G182: 77574 | H182: 12.74 | I182: 9882 | J182: 115 | K182: 97 | L182: 53 | M182: 45 | N182: 0 | O182: 0
A183: 電機機械38 | B183: 電機機械60 | C183: 4562 穎漢 | D183: 電機機械 | E183: M1500 | F183: 68645 | G183: 55512 | H183: 23.66 | I183: 13133 | J183: 115 | K183: 97 | L183: 38 | M183: 60 | N183: 0 | O183: 0
A184: 電機機械36 | B184: 電機機械62 | C184: 4563 百德 | D184: 電機機械 | E184: M1500 | F184: 330276 | G184: 261523 | H184: 26.29 | I184: 68753 | J184: 115 | K184: 97 | L184: 36 | M184: 62 | N184: 0 | O184: 0
A185: 電機機械72 | B185: 電機機械26 | C185: 4564 元翎 | D185: 電機機械 | E185: M1500 | F185: 92143 | G185: 88513 | H185: 4.1 | I185: 3630 | J185: 115 | K185: 97 | L185: 72 | M185: 26 | N185: 0 | O185: 0
A186: 電機機械69 | B186: 電機機械29 | C186: 4566 時碩工業 | D186: 電機機械 | E186: M1500 | F186: 414675 | G186: 390743 | H186: 6.12 | I186: 23932 | J186: 115 | K186: 97 | L186: 69 | M186: 29 | N186: 0 | O186: 0
A187: 電機機械54 | B187: 電機機械44 | C187: 4568 科際精密 | D187: 電機機械 | E187: M1500 | F187: 89915 | G187: 80032 | H187: 12.35 | I187: 9883 | J187: 115 | K187: 97 | L187: 54 | M187: 44 | N187: 0 | O187: 0
A188: 電機機械21 | B188: 電機機械77 | C188: 4571 鈞興-KY | D188: 電機機械 | E188: M1500 | F188: 285379 | G188: 199950 | H188: 42.73 | I188: 85429 | J188: 115 | K188: 97 | L188: 21 | M188: 77 | N188: 0 | O188: 0
A189: 電機機械49 | B189: 電機機械49 | C189: 4572 駐龍 | D189: 電機機械 | E189: M1500 | F189: 58426 | G189: 50134 | H189: 16.54 | I189: 8292 | J189: 115 | K189: 97 | L189: 49 | M189: 49 | N189: 0 | O189: 0
A190: 電機機械79 | B190: 電機機械19 | C190: 4576 大銀微系統 | D190: 電機機械 | E190: M1500 | F190: 215070 | G190: 208836 | H190: 2.99 | I190: 6234 | J190: 115 | K190: 97 | L190: 79 | M190: 19 | N190: 0 | O190: 0
A191: 電機機械85 | B191: 電機機械13 | C191: 4580 捷流閥業 | D191: 電機機械 | E191: M1500 | F191: 176100 | G191: 176367 | H191: -0.15 | I191: -267 | J191: 115 | K191: 97 | L191: 85 | M191: 13 | N191: 0 | O191: 0
A192: 電機機械62 | B192: 電機機械36 | C192: 4583 台灣精銳 | D192: 電機機械 | E192: M1500 | F192: 299100 | G192: 274018 | H192: 9.15 | I192: 25082 | J192: 115 | K192: 97 | L192: 62 | M192: 36 | N192: 0 | O192: 0
A193: 電機機械67 | B193: 電機機械31 | C193: 4584 君帆 | D193: 電機機械 | E193: M1500 | F193: 123398 | G193: 115995 | H193: 6.38 | I193: 7403 | J193: 115 | K193: 97 | L193: 67 | M193: 31 | N193: 0 | O193: 0
A194: 電機機械41 | B194: 電機機械57 | C194: 5288 豐祥-KY | D194: 電機機械 | E194: M1500 | F194: 678636 | G194: 563988 | H194: 20.33 | I194: 114648 | J194: 115 | K194: 97 | L194: 41 | M194: 57 | N194: 0 | O194: 0
A195: 電機機械24 | B195: 電機機械74 | C195: 6122 擎邦 | D195: 電機機械 | E195: M1500 | F195: 371892 | G195: 269583 | H195: 37.95 | I195: 102309 | J195: 115 | K195: 97 | L195: 24 | M195: 74 | N195: 0 | O195: 0
A196: =D196&L196 -> 電機機械1 | B196: =D196&M196 -> 電機機械97 | C196: 6425 易發 | D196: 電機機械 | E196: M1500 | F196: 158681 | G196: 60446 | H196: 162.52 | I196: =F196-G196 -> 98235 | J196: =IF(E196="","",MATCH(E196,E:E,0)) -> 115 | K196: =COUNTIF(D:D,D196) -> 97 | L196: =IF(H196="","",RANK(H196,OFFSET(H$1,$J196-1,,$K196,),0)) -> 1 | M196: =IF(H196="","",RANK(H196,OFFSET(H$1,$J196-1,,$K196,),1)) -> 97 | N196: 0 | O196: 0
A197: 電機機械13 | B197: 電機機械85 | C197: 6603 富強鑫 | D197: 電機機械 | E197: M1500 | F197: 405392 | G197: 247154 | H197: 64.02 | I197: 158238 | J197: 115 | K197: 97 | L197: 13 | M197: 85 | N197: 0 | O197: 0
A198: 電機機械2 | B198: 電機機械96 | C198: 6606 建德工業 | D198: 電機機械 | E198: M1500 | F198: 73038 | G198: 37431 | H198: 95.13 | I198: 35607 | J198: 115 | K198: 97 | L198: 2 | M198: 96 | N198: 0 | O198: 0
A199: 電機機械88 | B199: 電機機械10 | C199: 6609 瀧澤科 | D199: 電機機械 | E199: M1500 | F199: 208411 | G199: 213747 | H199: -2.5 | I199: -5336 | J199: 115 | K199: 97 | L199: 88 | M199: 10 | N199: 0 | O199: 0
A200: 電機機械83 | B200: 電機機械15 | C200: 6829 千附精密 | D200: 電機機械 | E200: M1500 | F200: 135672 | G200: 134535 | H200: 0.85 | I200: 1137 | J200: 115 | K200: 97 | L200: 83 | M200: 15 | N200: 0 | O200: 0
... 2800 more rows

Sheet 表C_RAW
A1: 排名(正向) | B1: 排名(反向) | D1: TSE新產業_名稱 | E1: TSE新產業_代碼 | F1: 累計營收(千元) | G1: 去年累計營收(千元) | H1: 累計營收成長率％ | J1: 產業位址 | K1: 產業家數 | L1: 排名(正向) | M1: 排名(反向) | N1: 排名(正向) | O1: 排名(反向) | P1: 產業營收 | Q1: 單月營收(千元) | R1: 上月單月營收(千元) | S1: 本月較上月變動金額 | T1: 單月營收與上月比％ | U1: 排名(正向) | V1: 排名(反向)
C2: 公司 | E2: 2025-03-31 | F2: 2025-03-31 | G2: 2025-03-31 | H2: 2025-03-31 | N2: =U2 -> 5 | O2: =V2 -> 30 | P2: =_xlfn.UNIQUE($D$3:$D$1900,FALSE,FALSE) -> 水泥工業 | Q2: =SUMIF($D:$D,$P2,F:F) -> 57191186 | R2: =SUMIF($D:$D,$P2,G:G) -> 47660143 | S2: =Q2-R2 -> 9531043 | T2: =ROUND(S2/R2*100,2) -> 20 | U2: =RANK(T2,T:T) -> 5 | V2: =RANK(T2,T:T,1) -> 30
A3: =D3&L3 -> 水泥工業1 | B3: =D3&M3 -> 水泥工業7 | C3: 1101 台泥 | D3: 水泥工業 | E3: M1100 | F3: 34972226 | G3: 25685663 | H3: 36.15 | I3: =F3-G3 -> 9286563 | J3: =IF(E3="","",MATCH(E3,E:E,0)) -> 3 | K3: =COUNTIF(D:D,D3) -> 7 | L3: =IF(H3="","",RANK(H3,OFFSET(H$1,$J3-1,,$K3,),0)) -> 1 | M3: =IF(H3="","",RANK(H3,OFFSET(H$1,$J3-1,,$K3,),1)) -> 7 | N3: =U3 -> 21 | O3: 14 | P3: 食品工業 | Q3: =SUMIF($D:$D,$P3,F:F) -> 252264041 | R3: 242966578 | S3: =Q3-R3 -> 9297463 | T3: =ROUND(S3/R3*100,2) -> 3.83 | U3: =RANK(T3,T:T) -> 21 | V3: 14
A4: =D4&L4 -> 水泥工業6 | B4: =D4&M4 -> 水泥工業2 | C4: 1102 亞泥 | D4: 水泥工業 | E4: M1100 | F4: 16594707 | G4: 16499832 | H4: 0.58 | I4: =F4-G4 -> 94875 | J4: =IF(E4="","",MATCH(E4,E:E,0)) -> 3 | K4: =COUNTIF(D:D,D4) -> 7 | L4: =IF(H4="","",RANK(H4,OFFSET(H$1,$J4-1,,$K4,),0)) -> 6 | M4: =IF(H4="","",RANK(H4,OFFSET(H$1,$J4-1,,$K4,),1)) -> 2 | N4: 27 | O4: 8 | P4: 塑膠工業 | Q4: 251454773 | R4: 252756102 | S4: -1301329 | T4: -0.51 | U4: 27 | V4: 8
A5: 水泥工業3 | B5: 水泥工業5 | C5: 1103 嘉泥 | D5: 水泥工業 | E5: M1100 | F5: 752454 | G5: 699142 | H5: 7.63 | I5: 53312 | J5: 3 | K5: 7 | L5: 3 | M5: 5 | N5: 25 | O5: 10 | P5: 紡織纖維 | Q5: 147945521 | R5: 146341584 | S5: 1603937 | T5: 1.1 | U5: 25 | V5: 10
A6: 水泥工業5 | B6: 水泥工業3 | C6: 1104 環泥 | D6: 水泥工業 | E6: M1100 | F6: 1928654 | G6: 1908572 | H6: 1.05 | I6: 20082 | J6: 3 | K6: 7 | L6: 5 | M6: 3 | N6: 16 | O6: 19 | P6: 電機機械 | Q6: 125139606 | R6: 118087199 | S6: 7052407 | T6: 5.97 | U6: 16 | V6: 19
A7: 水泥工業4 | B7: 水泥工業4 | C7: 1108 幸福 | D7: 水泥工業 | E7: M1100 | F7: 1212710 | G7: 1192968 | H7: 1.65 | I7: 19742 | J7: 3 | K7: 7 | L7: 4 | M7: 4 | N7: 12 | O7: 23 | P7: 電器電纜 | Q7: 72074131 | R7: 65193662 | S7: 6880469 | T7: 10.55 | U7: 12 | V7: 23
A8: 水泥工業7 | B8: 水泥工業1 | C8: 1109 信大 | D8: 水泥工業 | E8: M1100 | F8: 989911 | G8: 1097070 | H8: -9.77 | I8: -107159 | J8: 3 | K8: 7 | L8: 7 | M8: 1 | N8: 17 | O8: 18 | P8: 化學工業 | Q8: 79112378 | R8: 74665192 | S8: 4447186 | T8: 5.96 | U8: 17 | V8: 18
A9: 水泥工業2 | B9: 水泥工業6 | C9: 1110 東泥 | D9: 水泥工業 | E9: M1100 | F9: 740524 | G9: 576896 | H9: 28.36 | I9: 163628 | J9: 3 | K9: 7 | L9: 2 | M9: 6 | N9: 9 | O9: 26 | P9: 生技醫療業 | Q9: 77058942 | R9: 67438723 | S9: 9620219 | T9: 14.27 | U9: 9 | V9: 26
A10: 食品工業17 | B10: 食品工業13 | C10: 1201 味全 | D10: 食品工業 | E10: M1200 | F10: 5215369 | G10: 5334449 | H10: -2.23 | I10: -119080 | J10: 10 | K10: 29 | L10: 17 | M10: 13 | N10: 29 | O10: 6 | P10: 玻璃陶瓷 | Q10: 12808286 | R10: 13019602 | S10: -211316 | T10: -1.62 | U10: 29 | V10: 6
A11: 食品工業16 | B11: 食品工業14 | C11: 1203 味王 | D11: 食品工業 | E11: M1200 | F11: 1532412 | G11: 1558661 | H11: -1.68 | I11: -26249 | J11: 10 | K11: 29 | L11: 16 | M11: 14 | N11: 28 | O11: 7 | P11: 造紙工業 | Q11: 46959624 | R11: 47686413 | S11: -726789 | T11: -1.52 | U11: 28 | V11: 7
A12: 食品工業13 | B12: 食品工業17 | C12: 1210 大成 | D12: 食品工業 | E12: M1200 | F12: 25542326 | G12: 25304092 | H12: 0.94 | I12: 238234 | J12: 10 | K12: 29 | L12: 13 | M12: 17 | N12: 30 | O12: 5 | P12: 鋼鐵工業 | Q12: 239169578 | R12: 247309845 | S12: -8140267 | T12: -3.29 | U12: 30 | V12: 5
A13: 食品工業1 | B13: 食品工業29 | C13: 1213 大飲 | D13: 食品工業 | E13: M1200 | F13: 66141 | G13: 33348 | H13: 98.34 | I13: 32793 | J13: 10 | K13: 29 | L13: 1 | M13: 29 | N13: 19 | O13: 15 | P13: 橡膠工業 | Q13: 53106804 | R13: 50958896 | S13: 2147908 | T13: 4.21 | U13: 19 | V13: 15
A14: 食品工業19 | B14: 食品工業11 | C14: 1215 卜蜂 | D14: 食品工業 | E14: M1200 | F14: 6697082 | G14: 6912107 | H14: -3.11 | I14: -215025 | J14: 10 | K14: 29 | L14: 19 | M14: 11 | N14: 31 | O14: 4 | P14: 汽車工業 | Q14: 177629948 | R14: 184006107 | S14: -6376159 | T14: -3.47 | U14: 31 | V14: 4
A15: 食品工業6 | B15: 食品工業24 | C15: 1216 統一 | D15: 食品工業 | E15: M1200 | F15: 169266002 | G15: 158758007 | H15: 6.62 | I15: 10507995 | J15: 10 | K15: 29 | L15: 6 | M15: 24 | N15: 3 | O15: 32 | P15: 半導體業 | Q15: 1638344994 | R15: 1317155152 | S15: 321189842 | T15: 24.39 | U15: 3 | V15: 32
A16: 食品工業9 | B16: 食品工業21 | C16: 1217 愛之味 | D16: 食品工業 | E16: M1200 | F16: 1185670 | G16: 1159178 | H16: 2.29 | I16: 26492 | J16: 10 | K16: 29 | L16: 9 | M16: 21 | N16: 1 | O16: 34 | P16: 電腦及週邊設備業 | Q16: 2306222954 | R16: 1711658639 | S16: 594564315 | T16: 34.74 | U16: 1 | V16: 34
A17: 食品工業24 | B17: 食品工業6 | C17: 1218 泰山 | D17: 食品工業 | E17: M1200 | F17: 2499326 | G17: 2756848 | H17: -9.34 | I17: -257522 | J17: 10 | K17: 29 | L17: 24 | M17: 6 | N17: 14 | O17: 21 | P17: 光電業 | Q17: 307283648 | R17: 279035430 | S17: 28248218 | T17: 10.12 | U17: 14 | V17: 21
A18: 食品工業11 | B18: 食品工業19 | C18: 1219 福壽 | D18: 食品工業 | E18: M1200 | F18: 3635481 | G18: 3570935 | H18: 1.81 | I18: 64546 | J18: 10 | K18: 29 | L18: 11 | M18: 19 | N18: 13 | O18: 22 | P18: 通訊網路業 | Q18: 305202340 | R18: 276426344 | S18: 28775996 | T18: 10.41 | U18: 13 | V18: 22
A19: 食品工業15 | B19: 食品工業15 | C19: 1220 台榮 | D19: 食品工業 | E19: M1200 | F19: 758249 | G19: 765369 | H19: -0.93 | I19: -7120 | J19: 10 | K19: 29 | L19: 15 | M19: 15 | N19: 7 | O19: 28 | P19: 電子零組件 | Q19: 621351032 | R19: 527790327 | S19: 93560705 | T19: 17.73 | U19: 7 | V19: 28
A20: 食品工業20 | B20: 食品工業10 | C20: 1225 福懋油 | D20: 食品工業 | E20: M1200 | F20: 3220752 | G20: 3343898 | H20: -3.68 | I20: -123146 | J20: 10 | K20: 29 | L20: 20 | M20: 10 | N20: 6 | O20: 29 | P20: 電子通路業 | Q20: 813626049 | R20: 683858392 | S20: 129767657 | T20: 18.98 | U20: 6 | V20: 29
A21: 食品工業12 | B21: 食品工業18 | C21: 1227 佳格 | D21: 食品工業 | E21: M1200 | F21: 6880311 | G21: 6795849 | H21: 1.24 | I21: 84462 | J21: 10 | K21: 29 | L21: 12 | M21: 18 | N21: 8 | O21: 27 | P21: 資訊服務業 | Q21: 46111438 | R21: 39355518 | S21: 6755920 | T21: 17.17 | U21: 8 | V21: 27
A22: 食品工業28 | B22: 食品工業2 | C22: 1229 聯華 | D22: 食品工業 | E22: M1200 | F22: 2421955 | G22: 3050501 | H22: -20.6 | I22: -628546 | J22: 10 | K22: 29 | L22: 28 | M22: 2 | N22: 4 | O22: 31 | P22: 其他電子業 | Q22: 1865968859 | R22: 1502415296 | S22: 363553563 | T22: 24.2 | U22: 4 | V22: 31
A23: 食品工業4 | B23: 食品工業26 | C23: 1231 聯華食 | D23: 食品工業 | E23: M1200 | F23: 3125895 | G23: 2905460 | H23: 7.59 | I23: 220435 | J23: 10 | K23: 29 | L23: 4 | M23: 26 | N23: 18 | O23: 17 | P23: 建材營造 | Q23: 109238614 | R23: 103572080 | S23: 5666534 | T23: 5.47 | U23: 18 | V23: 17
A24: 食品工業21 | B24: 食品工業9 | C24: 1232 大統益 | D24: 食品工業 | E24: M1200 | F24: 5397170 | G24: 5626346 | H24: -4.07 | I24: -229176 | J24: 10 | K24: 29 | L24: 21 | M24: 9 | N24: 10 | O24: 25 | P24: 航運業 | Q24: 385083798 | R24: 342002540 | S24: 43081258 | T24: 12.6 | U24: 10 | V24: 25
A25: 食品工業23 | B25: 食品工業7 | C25: 1233 天仁 | D25: 食品工業 | E25: M1200 | F25: 551138 | G25: 581191 | H25: -5.17 | I25: -30053 | J25: 10 | K25: 29 | L25: 23 | M25: 7 | N25: 15 | O25: 20 | P25: 觀光餐旅 | Q25: 46846620 | R25: 43609779 | S25: 3236841 | T25: 7.42 | U25: 15 | V25: 20
A26: 食品工業26 | B26: 食品工業4 | C26: 1234 黑松 | D26: 食品工業 | E26: M1200 | F26: 2229771 | G26: 2639399 | H26: -15.52 | I26: -409628 | J26: 10 | K26: 29 | L26: 26 | M26: 4 | N26: 23 | O26: 12 | P26: 金融業 | Q26: 590213969 | R26: 577084939 | S26: 13129030 | T26: 2.28 | U26: 23 | V26: 12
A27: 食品工業2 | B27: 食品工業28 | C27: 1235 興泰 | D27: 食品工業 | E27: M1200 | F27: 28420 | G27: 17261 | H27: 64.65 | I27: 11159 | J27: 10 | K27: 29 | L27: 2 | M27: 28 | N27: 34 | O27: 1 | P27: 貿易百貨 | Q27: 163442080 | R27: 174991686 | S27: -11549606 | T27: -6.6 | U27: 34 | V27: 1
A28: 食品工業25 | B28: 食品工業5 | C28: 1236 宏亞 | D28: 食品工業 | E28: M1200 | F28: 515973 | G28: 573602 | H28: -10.05 | I28: -57629 | J28: 10 | K28: 29 | L28: 25 | M28: 5 | N28: 19 | O28: 15 | P28: 文化創意業 | Q28: 15829992 | R28: 15190947 | S28: 639045 | T28: 4.21 | U28: 19 | V28: 15
A29: 食品工業27 | B29: 食品工業3 | C29: 1256 鮮活果汁-KY | D29: 食品工業 | E29: M1200 | F29: 735498 | G29: 871130 | H29: -15.57 | I29: -135632 | J29: 10 | K29: 29 | L29: 27 | M29: 3 | N29: 33 | O29: 2 | P29: 農業科技 | Q29: 1240116 | R29: 1294709 | S29: -54593 | T29: -4.22 | U29: 33 | V29: 2
A30: 食品工業5 | B30: 食品工業25 | C30: 1264 德麥 | D30: 食品工業 | E30: M1200 | F30: 1648839 | G30: 1544513 | H30: 6.75 | I30: 104326 | J30: 10 | K30: 29 | L30: 5 | M30: 25 | N30: =U30 -> 2 | O30: =V30 -> 33 | P30: 綠能環保 | Q30: =SUMIF($D:$D,$P30,F:F) -> 28565610 | R30: =SUMIF($D:$D,$P30,G:G) -> 21732003 | S30: =Q30-R30 -> 6833607 | T30: =ROUND(S30/R30*100,2) -> 31.44 | U30: =RANK(T30,T:T) -> 2 | V30: =RANK(T30,T:T,1) -> 33
A31: 食品工業18 | B31: 食品工業12 | C31: 1294 漢田生技 | D31: 食品工業 | E31: M1200 | F31: 174677 | G31: 179882 | H31: -2.89 | I31: -5205 | J31: 10 | K31: 29 | L31: 18 | M31: 12 | N31: 24 | O31: 11 | P31: 數位雲端 | Q31: 51930063 | R31: 51087753 | S31: 842310 | T31: 1.65 | U31: 24 | V31: 11
A32: 食品工業7 | B32: 食品工業23 | C32: 1702 南僑 | D32: 食品工業 | E32: M1200 | F32: 5857242 | G32: 5586072 | H32: 4.85 | I32: 271170 | J32: 10 | K32: 29 | L32: 7 | M32: 23 | N32: 11 | O32: 24 | P32: 運動休閒 | Q32: 176157960 | R32: 157920523 | S32: 18237437 | T32: 11.55 | U32: 11 | V32: 24
A33: 食品工業14 | B33: 食品工業16 | C33: 1737 臺鹽 | D33: 食品工業 | E33: M1200 | F33: 819189 | G33: 813297 | H33: 0.72 | I33: 5892 | J33: 10 | K33: 29 | L33: 14 | M33: 16 | N33: 22 | O33: 13 | P33: 居家生活 | Q33: 65275445 | R33: 62969420 | S33: 2306025 | T33: 3.66 | U33: 22 | V33: 13
A34: 食品工業3 | B34: 食品工業27 | C34: 1796 金穎生技 | D34: 食品工業 | E34: M1200 | F34: 166427 | G34: 118386 | H34: 40.58 | I34: 48041 | J34: 10 | K34: 29 | L34: 3 | M34: 27 | N34: 26 | O34: 9 | P34: 油電燃氣業 | Q34: 192440767 | R34: 190668930 | S34: 1771837 | T34: 0.93 | U34: 26 | V34: 9
A35: 食品工業29 | B35: 食品工業1 | C35: 3054 立萬利 | D35: 食品工業 | E35: M1200 | F35: 18272 | G35: 35050 | H35: -47.87 | I35: -16778 | J35: 10 | K35: 29 | L35: 29 | M35: 1 | N35: 32 | O35: 3 | P35: 其他 | Q35: 156116809 | R35: 162651542 | S35: -6534733 | T35: -4.02 | U35: 32 | V35: 3
A36: 食品工業10 | B36: 食品工業20 | C36: 4205 中華食 | D36: 食品工業 | E36: M1200 | F36: 483991 | G36: 474668 | H36: 1.96 | I36: 9323 | J36: 10 | K36: 29 | L36: 10 | M36: 20 | N36: 0 | O36: 0 | P36: 存託憑證
A37: 食品工業22 | B37: 食品工業8 | C37: 4207 環泰 | D37: 食品工業 | E37: M1200 | F37: 1357702 | G37: 1430918 | H37: -5.12 | I37: -73216 | J37: 10 | K37: 29 | L37: 22 | M37: 8 | N37: 0 | O37: 0 | P37: 0
A38: 食品工業8 | B38: 食品工業22 | C38: 6846 綠茵 | D38: 食品工業 | E38: M1200 | F38: 232761 | G38: 226161 | H38: 2.92 | I38: 6600 | J38: 10 | K38: 29 | L38: 8 | M38: 22 | N38: 0 | O38: 0
A39: 塑膠工業13 | B39: 塑膠工業13 | C39: 1301 台塑 | D39: 塑膠工業 | E39: M1300 | F39: 47202204 | G39: 48108493 | H39: -1.88 | I39: -906289 | J39: 39 | K39: 25 | L39: 13 | M39: 13 | N39: 0 | O39: 0
A40: 塑膠工業7 | B40: 塑膠工業19 | C40: 1303 南亞 | D40: 塑膠工業 | E40: M1300 | F40: 65551631 | G40: 58629908 | H40: 11.81 | I40: 6921723 | J40: 39 | K40: 25 | L40: 7 | M40: 19 | N40: 0 | O40: 0
A41: 塑膠工業11 | B41: 塑膠工業15 | C41: 1304 台聚 | D41: 塑膠工業 | E41: M1300 | F41: 12147296 | G41: 12024563 | H41: 1.02 | I41: 122733 | J41: 39 | K41: 25 | L41: 11 | M41: 15 | N41: 0 | O41: 0
A42: 塑膠工業20 | B42: 塑膠工業6 | C42: 1305 華夏 | D42: 塑膠工業 | E42: M1300 | F42: 2462111 | G42: 2904504 | H42: -15.23 | I42: -442393 | J42: 39 | K42: 25 | L42: 20 | M42: 6 | N42: 0 | O42: 0
A43: 塑膠工業6 | B43: 塑膠工業20 | C43: 1307 三芳 | D43: 塑膠工業 | E43: M1300 | F43: 2931014 | G43: 2604110 | H43: 12.55 | I43: 326904 | J43: 39 | K43: 25 | L43: 6 | M43: 20 | N43: 0 | O43: 0
A44: 塑膠工業12 | B44: 塑膠工業14 | C44: 1308 亞聚 | D44: 塑膠工業 | E44: M1300 | F44: 1534396 | G44: 1561230 | H44: -1.72 | I44: -26834 | J44: 39 | K44: 25 | L44: 12 | M44: 14 | N44: 0 | O44: 0
A45: 塑膠工業8 | B45: 塑膠工業18 | C45: 1309 台達化 | D45: 塑膠工業 | E45: M1300 | F45: 4232841 | G45: 3790933 | H45: 11.66 | I45: 441908 | J45: 39 | K45: 25 | L45: 8 | M45: 18 | N45: 0 | O45: 0
A46: 塑膠工業10 | B46: 塑膠工業16 | C46: 1310 台苯 | D46: 塑膠工業 | E46: M1300 | F46: 2293712 | G46: 2223134 | H46: 3.17 | I46: 70578 | J46: 39 | K46: 25 | L46: 10 | M46: 16 | N46: 0 | O46: 0
A47: 塑膠工業2 | B47: 塑膠工業24 | C47: 1312 國喬 | D47: 塑膠工業 | E47: M1300 | F47: 5697446 | G47: 3255096 | H47: 75.03 | I47: 2442350 | J47: 39 | K47: 25 | L47: 2 | M47: 24 | N47: 0 | O47: 0
A48: 塑膠工業21 | B48: 塑膠工業5 | C48: 1313 聯成 | D48: 塑膠工業 | E48: M1300 | F48: 14552511 | G48: 17826114 | H48: -18.36 | I48: -3273603 | J48: 39 | K48: 25 | L48: 21 | M48: 5 | N48: 0 | O48: 0
A49: 塑膠工業23 | B49: 塑膠工業3 | C49: 1314 中石化 | D49: 塑膠工業 | E49: M1300 | F49: 6529282 | G49: 8191861 | H49: -20.3 | I49: -1662579 | J49: 39 | K49: 25 | L49: 23 | M49: 3 | N49: 0 | O49: 0
A50: 塑膠工業3 | B50: 塑膠工業23 | C50: 1315 達新 | D50: 塑膠工業 | E50: M1300 | F50: 541182 | G50: 455272 | H50: 18.87 | I50: 85910 | J50: 39 | K50: 25 | L50: 3 | M50: 23 | N50: 0 | O50: 0
A51: 塑膠工業17 | B51: 塑膠工業9 | C51: 1321 大洋 | D51: 塑膠工業 | E51: M1300 | F51: 998185 | G51: 1112113 | H51: -10.24 | I51: -113928 | J51: 39 | K51: 25 | L51: 17 | M51: 9 | N51: 0 | O51: 0
A52: 塑膠工業25 | B52: 塑膠工業1 | C52: 1323 永裕 | D52: 塑膠工業 | E52: M1300 | F52: 527053 | G52: 765077 | H52: -31.11 | I52: -238024 | J52: 39 | K52: 25 | L52: 25 | M52: 1 | N52: 0 | O52: 0
A53: 塑膠工業16 | B53: 塑膠工業10 | C53: 1324 地球 | D53: 塑膠工業 | E53: M1300 | F53: 184764 | G53: 199156 | H53: -7.23 | I53: -14392 | J53: 39 | K53: 25 | L53: 16 | M53: 10 | N53: 0 | O53: 0
A54: 塑膠工業19 | B54: 塑膠工業7 | C54: 1325 恒大 | D54: 塑膠工業 | E54: M1300 | F54: 82236 | G54: 96377 | H54: -14.67 | I54: -14141 | J54: 39 | K54: 25 | L54: 19 | M54: 7 | N54: 0 | O54: 0
A55: 塑膠工業15 | B55: 塑膠工業11 | C55: 1326 台化 | D55: 塑膠工業 | E55: M1300 | F55: 78909389 | G55: 83941693 | H55: -5.99 | I55: -5032304 | J55: 39 | K55: 25 | L55: 15 | M55: 11 | N55: 0 | O55: 0
A56: 塑膠工業24 | B56: 塑膠工業2 | C56: 1337 再生-KY | D56: 塑膠工業 | E56: M1300 | F56: 182332 | G56: 257771 | H56: -29.27 | I56: -75439 | J56: 39 | K56: 25 | L56: 24 | M56: 2 | N56: 0 | O56: 0
A57: 塑膠工業22 | B57: 塑膠工業4 | C57: 1340 勝悅-KY | D57: 塑膠工業 | E57: M1300 | F57: 61054 | G57: 76198 | H57: -19.87 | I57: -15144 | J57: 39 | K57: 25 | L57: 22 | M57: 4 | N57: 0 | O57: 0
A58: 塑膠工業4 | B58: 塑膠工業22 | C58: 1341 富林-KY | D58: 塑膠工業 | E58: M1300 | F58: 689275 | G58: 605623 | H58: 13.81 | I58: 83652 | J58: 39 | K58: 25 | L58: 4 | M58: 22 | N58: 0 | O58: 0
A59: 塑膠工業1 | B59: 塑膠工業25 | C59: 4303 信立 | D59: 塑膠工業 | E59: M1300 | F59: 224223 | G59: 52407 | H59: 327.85 | I59: 171816 | J59: 39 | K59: 25 | L59: 1 | M59: 25 | N59: 0 | O59: 0
A60: 塑膠工業9 | B60: 塑膠工業17 | C60: 4304 勝昱 | D60: 塑膠工業 | E60: M1300 | F60: 94573 | G60: 87199 | H60: 8.46 | I60: 7374 | J60: 39 | K60: 25 | L60: 9 | M60: 17 | N60: 0 | O60: 0
A61: 塑膠工業5 | B61: 塑膠工業21 | C61: 4305 世坤 | D61: 塑膠工業 | E61: M1300 | F61: 248406 | G61: 220510 | H61: 12.65 | I61: 27896 | J61: 39 | K61: 25 | L61: 5 | M61: 21 | N61: 0 | O61: 0
A62: 塑膠工業14 | B62: 塑膠工業12 | C62: 4306 炎洲 | D62: 塑膠工業 | E62: M1300 | F62: 2999371 | G62: 3107990 | H62: -3.49 | I62: -108619 | J62: 39 | K62: 25 | L62: 14 | M62: 12 | N62: 0 | O62: 0
A63: 塑膠工業18 | B63: 塑膠工業8 | C63: 9950 萬國通 | D63: 塑膠工業 | E63: M1300 | F63: 578286 | G63: 658770 | H63: -12.22 | I63: -80484 | J63: 39 | K63: 25 | L63: 18 | M63: 8 | N63: 0 | O63: 0
A64: 紡織纖維30 | B64: 紡織纖維22 | C64: 1402 遠東新 | D64: 紡織纖維 | E64: M1400 | F64: 63803549 | G64: 65409190 | H64: -2.45 | I64: -1605641 | J64: 64 | K64: 51 | L64: 30 | M64: 22 | N64: 0 | O64: 0
A65: 紡織纖維33 | B65: 紡織纖維19 | C65: 1409 新纖 | D65: 紡織纖維 | E65: M1400 | F65: 10542162 | G65: 10886899 | H65: -3.17 | I65: -344737 | J65: 64 | K65: 51 | L65: 33 | M65: 19 | N65: 0 | O65: 0
A66: 紡織纖維39 | B66: 紡織纖維13 | C66: 1410 南染 | D66: 紡織纖維 | E66: M1400 | F66: 50765 | G66: 54735 | H66: -7.25 | I66: -3970 | J66: 64 | K66: 51 | L66: 39 | M66: 13 | N66: 0 | O66: 0
A67: 紡織纖維35 | B67: 紡織纖維17 | C67: 1413 宏洲 | D67: 紡織纖維 | E67: M1400 | F67: 599962 | G67: 623372 | H67: -3.76 | I67: -23410 | J67: 64 | K67: 51 | L67: 35 | M67: 17 | N67: 0 | O67: 0
A68: =D68&L68 -> 紡織纖維36 | B68: =D68&M68 -> 紡織纖維16 | C68: 1414 東和 | D68: 紡織纖維 | E68: M1400 | F68: 133301 | G68: 140121 | H68: -4.87 | I68: =F68-G68 -> -6820 | J68: =IF(E68="","",MATCH(E68,E:E,0)) -> 64 | K68: =COUNTIF(D:D,D68) -> 51 | L68: =IF(H68="","",RANK(H68,OFFSET(H$1,$J68-1,,$K68,),0)) -> 36 | M68: =IF(H68="","",RANK(H68,OFFSET(H$1,$J68-1,,$K68,),1)) -> 16 | N68: 0 | O68: 0
A69: 紡織纖維51 | B69: 紡織纖維1 | C69: 1417 嘉裕 | D69: 紡織纖維 | E69: M1400 | F69: 55141 | G69: 237622 | H69: -76.79 | I69: -182481 | J69: 64 | K69: 51 | L69: 51 | M69: 1 | N69: 0 | O69: 0
A70: 紡織纖維46 | B70: 紡織纖維6 | C70: 1418 東華 | D70: 紡織纖維 | E70: M1400 | F70: 2840 | G70: 3862 | H70: -26.46 | I70: -1022 | J70: 64 | K70: 51 | L70: 46 | M70: 6 | N70: 0 | O70: 0
A71: 紡織纖維11 | B71: 紡織纖維41 | C71: 1419 新紡 | D71: 紡織纖維 | E71: M1400 | F71: 1063760 | G71: 861625 | H71: 23.46 | I71: 202135 | J71: 64 | K71: 51 | L71: 11 | M71: 41 | N71: 0 | O71: 0
A72: 紡織纖維49 | B72: 紡織纖維3 | C72: 1423 利華 | D72: 紡織纖維 | E72: M1400 | F72: 28389 | G72: 40188 | H72: -29.36 | I72: -11799 | J72: 64 | K72: 51 | L72: 49 | M72: 3 | N72: 0 | O72: 0
A73: 紡織纖維21 | B73: 紡織纖維31 | C73: 1434 福懋 | D73: 紡織纖維 | E73: M1400 | F73: 7687773 | G73: 7169831 | H73: 7.22 | I73: 517942 | J73: 64 | K73: 51 | L73: 21 | M73: 31 | N73: 0 | O73: 0
A74: 紡織纖維28 | B74: 紡織纖維24 | C74: 1440 南紡 | D74: 紡織纖維 | E74: M1400 | F74: 4192369 | G74: 4225407 | H74: -0.78 | I74: -33038 | J74: 64 | K74: 51 | L74: 28 | M74: 24 | N74: 0 | O74: 0
A75: 紡織纖維2 | B75: 紡織纖維50 | C75: 1441 大東 | D75: 紡織纖維 | E75: M1400 | F75: 403126 | G75: 226508 | H75: 77.97 | I75: 176618 | J75: 64 | K75: 51 | L75: 2 | M75: 50 | N75: 0 | O75: 0
A76: 紡織纖維37 | B76: 紡織纖維15 | C76: 1444 力麗 | D76: 紡織纖維 | E76: M1400 | F76: 1932178 | G76: 2072534 | H76: -6.77 | I76: -140356 | J76: 64 | K76: 51 | L76: 37 | M76: 15 | N76: 0 | O76: 0
A77: 紡織纖維41 | B77: 紡織纖維10 | C77: 1445 大宇 | D77: 紡織纖維 | E77: M1400 | F77: 200423 | G77: 241801 | H77: -17.11 | I77: -41378 | J77: 64 | K77: 51 | L77: 41 | M77: 10 | N77: 0 | O77: 0
A78: 紡織纖維50 | B78: 紡織纖維2 | C78: 1446 宏和 | D78: 紡織纖維 | E78: M1400 | F78: 293912 | G78: 717551 | H78: -59.04 | I78: -423639 | J78: 64 | K78: 51 | L78: 50 | M78: 2 | N78: 0 | O78: 0
A79: 紡織纖維45 | B79: 紡織纖維7 | C79: 1447 力鵬 | D79: 紡織纖維 | E79: M1400 | F79: 6937551 | G79: 9277897 | H79: -25.22 | I79: -2340346 | J79: 64 | K79: 51 | L79: 45 | M79: 7 | N79: 0 | O79: 0
A80: 紡織纖維47 | B80: 紡織纖維5 | C80: 1449 佳和 | D80: 紡織纖維 | E80: M1400 | F80: 649112 | G80: 884726 | H80: -26.63 | I80: -235614 | J80: 64 | K80: 51 | L80: 47 | M80: 5 | N80: 0 | O80: 0
A81: 紡織纖維43 | B81: 紡織纖維9 | C81: 1451 年興 | D81: 紡織纖維 | E81: M1400 | F81: 1350745 | G81: 1685335 | H81: -19.85 | I81: -334590 | J81: 64 | K81: 51 | L81: 43 | M81: 9 | N81: 0 | O81: 0
A82: 紡織纖維24 | B82: 紡織纖維28 | C82: 1452 宏益 | D82: 紡織纖維 | E82: M1400 | F82: 350094 | G82: 332004 | H82: 5.45 | I82: 18090 | J82: 64 | K82: 51 | L82: 24 | M82: 28 | N82: 0 | O82: 0
A83: 紡織纖維25 | B83: 紡織纖維27 | C83: 1454 台富 | D83: 紡織纖維 | E83: M1400 | F83: 404599 | G83: 390125 | H83: 3.71 | I83: 14474 | J83: 64 | K83: 51 | L83: 25 | M83: 27 | N83: 0 | O83: 0
A84: 紡織纖維41 | B84: 紡織纖維10 | C84: 1455 集盛 | D84: 紡織纖維 | E84: M1400 | F84: 1859817 | G84: 2243617 | H84: -17.11 | I84: -383800 | J84: 64 | K84: 51 | L84: 41 | M84: 10 | N84: 0 | O84: 0
A85: 紡織纖維32 | B85: 紡織纖維20 | C85: 1457 宜進 | D85: 紡織纖維 | E85: M1400 | F85: 856262 | G85: 880344 | H85: -2.74 | I85: -24082 | J85: 64 | K85: 51 | L85: 32 | M85: 20 | N85: 0 | O85: 0
A86: 紡織纖維31 | B86: 紡織纖維21 | C86: 1459 聯發 | D86: 紡織纖維 | E86: M1400 | F86: 362646 | G86: 372385 | H86: -2.62 | I86: -9739 | J86: 64 | K86: 51 | L86: 31 | M86: 21 | N86: 0 | O86: 0
A87: 紡織纖維17 | B87: 紡織纖維35 | C87: 1460 宏遠 | D87: 紡織纖維 | E87: M1400 | F87: 2172665 | G87: 1933101 | H87: 12.39 | I87: 239564 | J87: 64 | K87: 51 | L87: 17 | M87: 35 | N87: 0 | O87: 0
A88: 紡織纖維1 | B88: 紡織纖維51 | C88: 1463 強盛新 | D88: 紡織纖維 | E88: M1400 | F88: 654241 | G88: 80001 | H88: 717.79 | I88: 574240 | J88: 64 | K88: 51 | L88: 1 | M88: 51 | N88: 0 | O88: 0
A89: 紡織纖維7 | B89: 紡織纖維45 | C89: 1464 得力 | D89: 紡織纖維 | E89: M1400 | F89: 3462317 | G89: 2537655 | H89: 36.44 | I89: 924662 | J89: 64 | K89: 51 | L89: 7 | M89: 45 | N89: 0 | O89: 0
A90: 紡織纖維44 | B90: 紡織纖維8 | C90: 1465 偉全 | D90: 紡織纖維 | E90: M1400 | F90: 83853 | G90: 111329 | H90: -24.68 | I90: -27476 | J90: 64 | K90: 51 | L90: 44 | M90: 8 | N90: 0 | O90: 0
A91: 紡織纖維14 | B91: 紡織纖維38 | C91: 1466 聚隆 | D91: 紡織纖維 | E91: M1400 | F91: 686681 | G91: 593559 | H91: 15.69 | I91: 93122 | J91: 64 | K91: 51 | L91: 14 | M91: 38 | N91: 0 | O91: 0
A92: 紡織纖維27 | B92: 紡織纖維25 | C92: 1467 南緯 | D92: 紡織纖維 | E92: M1400 | F92: 1243203 | G92: 1238185 | H92: 0.41 | I92: 5018 | J92: 64 | K92: 51 | L92: 27 | M92: 25 | N92: 0 | O92: 0
A93: 紡織纖維29 | B93: 紡織纖維23 | C93: 1468 昶和 | D93: 紡織纖維 | E93: M1400 | F93: 246458 | G93: 249581 | H93: -1.25 | I93: -3123 | J93: 64 | K93: 51 | L93: 29 | M93: 23 | N93: 0 | O93: 0
A94: 紡織纖維16 | B94: 紡織纖維36 | C94: 1470 大統新創 | D94: 紡織纖維 | E94: M1400 | F94: 213942 | G94: 190250 | H94: 12.45 | I94: 23692 | J94: 64 | K94: 51 | L94: 16 | M94: 36 | N94: =U94 -> 0 | O94: =V94 -> 0
A95: 紡織纖維20 | B95: 紡織纖維32 | C95: 1473 台南 | D95: 紡織纖維 | E95: M1400 | F95: 2496138 | G95: 2313969 | H95: 7.87 | I95: 182169 | J95: 64 | K95: 51 | L95: 20 | M95: 32 | N95: 0 | O95: 0
A96: 紡織纖維26 | B96: 紡織纖維26 | C96: 1474 弘裕 | D96: 紡織纖維 | E96: M1400 | F96: 743410 | G96: 735627 | H96: 1.06 | I96: 7783 | J96: 64 | K96: 51 | L96: 26 | M96: 26 | N96: 0 | O96: 0
A97: 紡織纖維38 | B97: 紡織纖維14 | C97: 1475 業旺 | D97: 紡織纖維 | E97: M1400 | F97: 390932 | G97: 421429 | H97: -7.24 | I97: -30497 | J97: 64 | K97: 51 | L97: 38 | M97: 14 | N97: 0 | O97: 0
A98: 紡織纖維12 | B98: 紡織纖維40 | C98: 1476 儒鴻 | D98: 紡織纖維 | E98: M1400 | F98: 9374606 | G98: 7632681 | H98: 22.82 | I98: 1741925 | J98: 64 | K98: 51 | L98: 12 | M98: 40 | N98: 0 | O98: 0
A99: 紡織纖維15 | B99: 紡織纖維37 | C99: 1477 聚陽 | D99: 紡織纖維 | E99: M1400 | F99: 9923923 | G99: 8608029 | H99: 15.29 | I99: 1315894 | J99: 64 | K99: 51 | L99: 15 | M99: 37 | N99: 0 | O99: 0
A100: 紡織纖維18 | B100: 紡織纖維34 | C100: 4401 東隆興 | D100: 紡織纖維 | E100: M1400 | F100: 935684 | G100: 845795 | H100: 10.63 | I100: 89889 | J100: 64 | K100: 51 | L100: 18 | M100: 34 | N100: 0 | O100: 0
A101: 紡織纖維48 | B101: 紡織纖維4 | C101: 4402 郡都開發 | D101: 紡織纖維 | E101: M1400 | F101: 6961 | G101: 9668 | H101: -28 | I101: -2707 | J101: 64 | K101: 51 | L101: 48 | M101: 4 | N101: 0 | O101: 0
A102: 紡織纖維5 | B102: 紡織纖維47 | C102: 4406 新昕纖 | D102: 紡織纖維 | E102: M1400 | F102: 123720 | G102: 86347 | H102: 43.28 | I102: 37373 | J102: 64 | K102: 51 | L102: 5 | M102: 47 | N102: 0 | O102: 0
A103: 紡織纖維6 | B103: 紡織纖維46 | C103: 4413 飛寶企業 | D103: 紡織纖維 | E103: M1400 | F103: 130473 | G103: 93144 | H103: 40.08 | I103: 37329 | J103: 64 | K103: 51 | L103: 6 | M103: 46 | N103: 0 | O103: 0
A104: 紡織纖維19 | B104: 紡織纖維33 | C104: 4414 如興 | D104: 紡織纖維 | E104: M1400 | F104: 3284902 | G104: 3041473 | H104: 8 | I104: 243429 | J104: 64 | K104: 51 | L104: 19 | M104: 33 | N104: 0 | O104: 0
A105: 紡織纖維4 | B105: 紡織纖維48 | C105: 4417 金洲 | D105: 紡織纖維 | E105: M1400 | F105: 806551 | G105: 560312 | H105: 43.95 | I105: 246239 | J105: 64 | K105: 51 | L105: 4 | M105: 48 | N105: 0 | O105: 0
A106: 紡織纖維3 | B106: 紡織纖維49 | C106: 4420 光明 | D106: 紡織纖維 | E106: M1400 | F106: 248252 | G106: 168317 | H106: 47.49 | I106: 79935 | J106: 64 | K106: 51 | L106: 3 | M106: 49 | N106: 0 | O106: 0
A107: 紡織纖維40 | B107: 紡織纖維12 | C107: 4426 利勤 | D107: 紡織纖維 | E107: M1400 | F107: 231108 | G107: 266953 | H107: -13.43 | I107: -35845 | J107: 64 | K107: 51 | L107: 40 | M107: 12 | N107: 0 | O107: 0
A108: 紡織纖維23 | B108: 紡織纖維29 | C108: 4432 銘旺實 | D108: 紡織纖維 | E108: M1400 | F108: 252887 | G108: 238897 | H108: 5.86 | I108: 13990 | J108: 64 | K108: 51 | L108: 23 | M108: 29 | N108: 0 | O108: 0
A109: 紡織纖維10 | B109: 紡織纖維42 | C109: 4433 興采 | D109: 紡織纖維 | E109: M1400 | F109: 779902 | G109: 613248 | H109: 27.18 | I109: 166654 | J109: 64 | K109: 51 | L109: 10 | M109: 42 | N109: 0 | O109: 0
A110: 紡織纖維13 | B110: 紡織纖維39 | C110: 4438 廣越 | D110: 紡織纖維 | E110: M1400 | F110: 2756948 | G110: 2365138 | H110: 16.57 | I110: 391810 | J110: 64 | K110: 51 | L110: 13 | M110: 39 | N110: 0 | O110: 0
A111: 紡織纖維9 | B111: 紡織纖維43 | C111: 4439 冠星-KY | D111: 紡織纖維 | E111: M1400 | F111: 1776469 | G111: 1390913 | H111: 27.72 | I111: 385556 | J111: 64 | K111: 51 | L111: 9 | M111: 43 | N111: 0 | O111: 0
A112: 紡織纖維34 | B112: 紡織纖維18 | C112: 4440 宜新實業 | D112: 紡織纖維 | E112: M1400 | F112: 227118 | G112: 235041 | H112: -3.37 | I112: -7923 | J112: 64 | K112: 51 | L112: 34 | M112: 18 | N112: 0 | O112: 0
A113: 紡織纖維8 | B113: 紡織纖維44 | C113: 4442 竣邦-KY | D113: 紡織纖維 | E113: M1400 | F113: 410085 | G113: 315385 | H113: 30.03 | I113: 94700 | J113: 64 | K113: 51 | L113: 8 | M113: 44 | N113: 0 | O113: 0
A114: 紡織纖維22 | B114: 紡織纖維30 | C114: 6506 雙邦 | D114: 紡織纖維 | E114: M1400 | F114: 521616 | G114: 487878 | H114: 6.92 | I114: 33738 | J114: 64 | K114: 51 | L114: 22 | M114: 30 | N114: 0 | O114: 0
A115: 電機機械55 | B115: 電機機械43 | C115: 1503 士電 | D115: 電機機械 | E115: M1500 | F115: 10294698 | G115: 9917890 | H115: 3.8 | I115: 376808 | J115: 115 | K115: 97 | L115: 55 | M115: 43 | N115: 0 | O115: 0
A116: 電機機械63 | B116: 電機機械35 | C116: 1504 東元 | D116: 電機機械 | E116: M1500 | F116: 13701115 | G116: 13729967 | H116: -0.21 | I116: -28852 | J116: 115 | K116: 97 | L116: 63 | M116: 35 | N116: 0 | O116: 0
A117: 電機機械60 | B117: 電機機械38 | C117: 1506 正道 | D117: 電機機械 | E117: M1500 | F117: 251614 | G117: 249187 | H117: 0.97 | I117: 2427 | J117: 115 | K117: 97 | L117: 60 | M117: 38 | N117: 0 | O117: 0
A118: 電機機械54 | B118: 電機機械44 | C118: 1513 中興電 | D118: 電機機械 | E118: M1500 | F118: 6447658 | G118: 6138650 | H118: 5.03 | I118: 309008 | J118: 115 | K118: 97 | L118: 54 | M118: 44 | N118: 0 | O118: 0
A119: 電機機械68 | B119: 電機機械30 | C119: 1514 亞力 | D119: 電機機械 | E119: M1500 | F119: 2020928 | G119: 2063160 | H119: -2.05 | I119: -42232 | J119: 115 | K119: 97 | L119: 68 | M119: 30 | N119: 0 | O119: 0
A120: 電機機械96 | B120: 電機機械2 | C120: 1515 力山 | D120: 電機機械 | E120: M1500 | F120: 1014493 | G120: 2186961 | H120: -53.61 | I120: -1172468 | J120: 115 | K120: 97 | L120: 96 | M120: 2 | N120: 0 | O120: 0
A121: 電機機械11 | B121: 電機機械87 | C121: 1517 利奇 | D121: 電機機械 | E121: M1500 | F121: 550262 | G121: 372496 | H121: 47.72 | I121: 177766 | J121: 115 | K121: 97 | L121: 11 | M121: 87 | N121: 0 | O121: 0
A122: 電機機械12 | B122: 電機機械86 | C122: 1519 華城 | D122: 電機機械 | E122: M1500 | F122: 4421261 | G122: 3037501 | H122: 45.56 | I122: 1383760 | J122: 115 | K122: 97 | L122: 12 | M122: 86 | N122: 0 | O122: 0
A123: 電機機械34 | B123: 電機機械64 | C123: 1526 日馳 | D123: 電機機械 | E123: M1500 | F123: 200582 | G123: 171552 | H123: 16.92 | I123: 29030 | J123: 115 | K123: 97 | L123: 34 | M123: 64 | N123: 0 | O123: 0
A124: 電機機械59 | B124: 電機機械39 | C124: 1527 鑽全 | D124: 電機機械 | E124: M1500 | F124: 816060 | G124: 801461 | H124: 1.82 | I124: 14599 | J124: 115 | K124: 97 | L124: 59 | M124: 39 | N124: 0 | O124: 0
A125: 電機機械90 | B125: 電機機械8 | C125: 1528 恩德 | D125: 電機機械 | E125: M1500 | F125: 571401 | G125: 770919 | H125: -25.88 | I125: -199518 | J125: 115 | K125: 97 | L125: 90 | M125: 8 | N125: 0 | O125: 0
A126: 電機機械4 | B126: 電機機械94 | C126: 1529 樂事綠能 | D126: 電機機械 | E126: M1500 | F126: 266543 | G126: 146152 | H126: 82.37 | I126: 120391 | J126: 115 | K126: 97 | L126: 4 | M126: 94 | N126: 0 | O126: 0
A127: 電機機械9 | B127: 電機機械89 | C127: 1530 亞崴 | D127: 電機機械 | E127: M1500 | F127: 552359 | G127: 362524 | H127: 52.36 | I127: 189835 | J127: 115 | K127: 97 | L127: 9 | M127: 89 | N127: 0 | O127: 0
A128: 電機機械45 | B128: 電機機械53 | C128: 1531 高林股 | D128: 電機機械 | E128: M1500 | F128: 410520 | G128: 371131 | H128: 10.61 | I128: 39389 | J128: 115 | K128: 97 | L128: 45 | M128: 53 | N128: 0 | O128: 0
A129: 電機機械93 | B129: 電機機械5 | C129: 1532 勤美 | D129: 電機機械 | E129: M1500 | F129: 2990065 | G129: 4861151 | H129: -38.49 | I129: -1871086 | J129: 115 | K129: 97 | L129: 93 | M129: 5 | N129: 0 | O129: 0
A130: 電機機械72 | B130: 電機機械26 | C130: 1535 中宇 | D130: 電機機械 | E130: M1500 | F130: 2469799 | G130: 2604139 | H130: -5.16 | I130: -134340 | J130: 115 | K130: 97 | L130: 72 | M130: 26 | N130: 0 | O130: 0
A131: 電機機械61 | B131: 電機機械37 | C131: 1537 廣隆 | D131: 電機機械 | E131: M1500 | F131: 1749734 | G131: 1741936 | H131: 0.45 | I131: 7798 | J131: 115 | K131: 97 | L131: 61 | M131: 37 | N131: 0 | O131: 0
A132: =D132&L132 -> 電機機械6 | B132: =D132&M132 -> 電機機械92 | C132: 1538 正峰 | D132: 電機機械 | E132: M1500 | F132: 30620 | G132: 18493 | H132: 65.58 | I132: =F132-G132 -> 12127 | J132: =IF(E132="","",MATCH(E132,E:E,0)) -> 115 | K132: =COUNTIF(D:D,D132) -> 97 | L132: =IF(H132="","",RANK(H132,OFFSET(H$1,$J132-1,,$K132,),0)) -> 6 | M132: =IF(H132="","",RANK(H132,OFFSET(H$1,$J132-1,,$K132,),1)) -> 92 | N132: 0 | O132: 0
A133: 電機機械74 | B133: 電機機械24 | C133: 1539 巨庭 | D133: 電機機械 | E133: M1500 | F133: 356799 | G133: 384104 | H133: -7.11 | I133: -27305 | J133: 115 | K133: 97 | L133: 74 | M133: 24 | N133: 0 | O133: 0
A134: 電機機械58 | B134: 電機機械40 | C134: 1540 喬福 | D134: 電機機械 | E134: M1500 | F134: 129829 | G134: 126782 | H134: 2.4 | I134: 3047 | J134: 115 | K134: 97 | L134: 58 | M134: 40 | N134: 0 | O134: 0
A135: 電機機械31 | B135: 電機機械67 | C135: 1541 錩泰 | D135: 電機機械 | E135: M1500 | F135: 847635 | G135: 721477 | H135: 17.49 | I135: 126158 | J135: 115 | K135: 97 | L135: 31 | M135: 67 | N135: 0 | O135: 0
A136: 電機機械39 | B136: 電機機械59 | C136: 1558 伸興 | D136: 電機機械 | E136: M1500 | F136: 2044322 | G136: 1804511 | H136: 13.29 | I136: 239811 | J136: 115 | K136: 97 | L136: 39 | M136: 59 | N136: 0 | O136: 0
A137: 電機機械43 | B137: 電機機械55 | C137: 1560 中砂 | D137: 電機機械 | E137: M1500 | F137: 1771630 | G137: 1595178 | H137: 11.06 | I137: 176452 | J137: 115 | K137: 97 | L137: 43 | M137: 55 | N137: 0 | O137: 0
A138: 電機機械23 | B138: 電機機械75 | C138: 1570 力肯 | D138: 電機機械 | E138: M1500 | F138: 121072 | G138: 96179 | H138: 25.88 | I138: 24893 | J138: 115 | K138: 97 | L138: 23 | M138: 75 | N138: 0 | O138: 0
A139: 電機機械36 | B139: 電機機械62 | C139: 1580 新麥 | D139: 電機機械 | E139: M1500 | F139: 1089039 | G139: 942562 | H139: 15.54 | I139: 146477 | J139: 115 | K139: 97 | L139: 36 | M139: 62 | N139: 0 | O139: 0
A140: 電機機械78 | B140: 電機機械20 | C140: 1583 程泰 | D140: 電機機械 | E140: M1500 | F140: 863760 | G140: 948344 | H140: -8.92 | I140: -84584 | J140: 115 | K140: 97 | L140: 78 | M140: 20 | N140: 0 | O140: 0
A141: 電機機械83 | B141: 電機機械15 | C141: 1586 和勤 | D141: 電機機械 | E141: M1500 | F141: 542289 | G141: 650982 | H141: -16.7 | I141: -108693 | J141: 115 | K141: 97 | L141: 83 | M141: 15 | N141: 0 | O141: 0
A142: 電機機械32 | B142: 電機機械66 | C142: 1589 永冠-KY | D142: 電機機械 | E142: M1500 | F142: 1667147 | G142: 1420144 | H142: 17.39 | I142: 247003 | J142: 115 | K142: 97 | L142: 32 | M142: 66 | N142: 0 | O142: 0
A143: 電機機械41 | B143: 電機機械57 | C143: 1590 亞德客-KY | D143: 電機機械 | E143: M1500 | F143: 8096148 | G143: 7205592 | H143: 12.36 | I143: 890556 | J143: 115 | K143: 97 | L143: 41 | M143: 57 | N143: 0 | O143: 0
A144: 電機機械97 | B144: 電機機械1 | C144: 1591 駿吉-KY | D144: 電機機械 | E144: M1500 | F144: 13538 | G144: 37367 | H144: -63.77 | I144: -23829 | J144: 115 | K144: 97 | L144: 97 | M144: 1 | N144: 0 | O144: 0
A145: 電機機械64 | B145: 電機機械34 | C145: 1597 直得 | D145: 電機機械 | E145: M1500 | F145: 253359 | G145: 254039 | H145: -0.27 | I145: -680 | J145: 115 | K145: 97 | L145: 64 | M145: 34 | N145: 0 | O145: 0
A146: 電機機械49 | B146: 電機機械49 | C146: 1599 宏佳騰 | D146: 電機機械 | E146: M1500 | F146: 495965 | G146: 457529 | H146: 8.4 | I146: 38436 | J146: 115 | K146: 97 | L146: 49 | M146: 49 | N146: 0 | O146: 0
A147: 電機機械52 | B147: 電機機械46 | C147: 2049 上銀 | D147: 電機機械 | E147: M1500 | F147: 5838895 | G147: 5506465 | H147: 6.04 | I147: 332430 | J147: 115 | K147: 97 | L147: 52 | M147: 46 | N147: 0 | O147: 0
A148: 電機機械71 | B148: 電機機械27 | C148: 2066 世德 | D148: 電機機械 | E148: M1500 | F148: 707519 | G148: 740431 | H148: -4.44 | I148: -32912 | J148: 115 | K148: 97 | L148: 71 | M148: 27 | N148: 0 | O148: 0
A149: 電機機械57 | B149: 電機機械41 | C149: 2067 嘉鋼 | D149: 電機機械 | E149: M1500 | F149: 238435 | G149: 230470 | H149: 3.46 | I149: 7965 | J149: 115 | K149: 97 | L149: 57 | M149: 41 | N149: 0 | O149: 0
A150: 電機機械67 | B150: 電機機械31 | C150: 2070 精湛 | D150: 電機機械 | E150: M1500 | F150: 145009 | G150: 146620 | H150: -1.1 | I150: -1611 | J150: 115 | K150: 97 | L150: 67 | M150: 31 | N150: 0 | O150: 0
A151: 電機機械7 | B151: 電機機械91 | C151: 2230 泰茂 | D151: 電機機械 | E151: M1500 | F151: 449559 | G151: 280328 | H151: 60.37 | I151: 169231 | J151: 115 | K151: 97 | L151: 7 | M151: 91 | N151: 0 | O151: 0
A152: 電機機械44 | B152: 電機機械54 | C152: 2235 謚源 | D152: 電機機械 | E152: M1500 | F152: 145804 | G152: 131302 | H152: 11.04 | I152: 14502 | J152: 115 | K152: 97 | L152: 44 | M152: 54 | N152: 0 | O152: 0
A153: 電機機械69 | B153: 電機機械29 | C153: 2371 大同 | D153: 電機機械 | E153: M1500 | F153: 10530477 | G153: 10820413 | H153: -2.68 | I153: -289936 | J153: 115 | K153: 97 | L153: 69 | M153: 29 | N153: 0 | O153: 0
A154: 電機機械2 | B154: 電機機械96 | C154: 3162 精確 | D154: 電機機械 | E154: M1500 | F154: 1839945 | G154: 689758 | H154: 166.75 | I154: 1150187 | J154: 115 | K154: 97 | L154: 2 | M154: 96 | N154: 0 | O154: 0
A155: 電機機械3 | B155: 電機機械95 | C155: 3167 大量 | D155: 電機機械 | E155: M1500 | F155: 843436 | G155: 398811 | H155: 111.49 | I155: 444625 | J155: 115 | K155: 97 | L155: 3 | M155: 95 | N155: 0 | O155: 0
A156: 電機機械75 | B156: 電機機械23 | C156: 3226 龍鋒 | D156: 電機機械 | E156: M1500 | F156: 526569 | G156: 567024 | H156: -7.13 | I156: -40455 | J156: 115 | K156: 97 | L156: 75 | M156: 23 | N156: 0 | O156: 0
A157: 電機機械1 | B157: 電機機械97 | C157: 3379 彬台 | D157: 電機機械 | E157: M1500 | F157: 273520 | G157: 78472 | H157: 248.56 | I157: 195048 | J157: 115 | K157: 97 | L157: 1 | M157: 97 | N157: 0 | O157: 0
A158: 電機機械37 | B158: 電機機械61 | C158: 3426 台興 | D158: 電機機械 | E158: M1500 | F158: 201814 | G158: 175197 | H158: 15.19 | I158: 26617 | J158: 115 | K158: 97 | L158: 37 | M158: 61 | N158: =U158 -> 0 | O158: =V158 -> 0
A159: 電機機械80 | B159: 電機機械18 | C159: 3685 元創精密 | D159: 電機機械 | E159: M1500 | F159: 240859 | G159: 267155 | H159: -9.84 | I159: -26296 | J159: 115 | K159: 97 | L159: 80 | M159: 18 | N159: 0 | O159: 0
A160: 電機機械94 | B160: 電機機械4 | C160: 4502 健信 | D160: 電機機械 | E160: M1500 | F160: 199451 | G160: 352962 | H160: -43.49 | I160: -153511 | J160: 115 | K160: 97 | L160: 94 | M160: 4 | N160: 0 | O160: 0
A161: 電機機械10 | B161: 電機機械88 | C161: 4503 金雨 | D161: 電機機械 | E161: M1500 | F161: 119613 | G161: 80248 | H161: 49.05 | I161: 39365 | J161: 115 | K161: 97 | L161: 10 | M161: 88 | N161: 0 | O161: 0
A162: 電機機械18 | B162: 電機機械80 | C162: 4506 崇友 | D162: 電機機械 | E162: M1500 | F162: 1593104 | G162: 1223824 | H162: 30.17 | I162: 369280 | J162: 115 | K162: 97 | L162: 18 | M162: 80 | N162: 0 | O162: 0
A163: 電機機械82 | B163: 電機機械16 | C163: 4510 高鋒 | D163: 電機機械 | E163: M1500 | F163: 311327 | G163: 373224 | H163: -16.58 | I163: -61897 | J163: 115 | K163: 97 | L163: 82 | M163: 16 | N163: 0 | O163: 0
A164: 電機機械88 | B164: 電機機械10 | C164: 4513 福裕 | D164: 電機機械 | E164: M1500 | F164: 235593 | G164: 313270 | H164: -24.8 | I164: -77677 | J164: 115 | K164: 97 | L164: 88 | M164: 10 | N164: 0 | O164: 0
A165: 電機機械21 | B165: 電機機械77 | C165: 4523 永彰 | D165: 電機機械 | E165: M1500 | F165: 161008 | G165: 125917 | H165: 27.87 | I165: 35091 | J165: 115 | K165: 97 | L165: 21 | M165: 77 | N165: 0 | O165: 0
A166: 電機機械38 | B166: 電機機械60 | C166: 4526 東台 | D166: 電機機械 | E166: M1500 | F166: 1520148 | G166: 1323214 | H166: 14.88 | I166: 196934 | J166: 115 | K166: 97 | L166: 38 | M166: 60 | N166: 0 | O166: 0
A167: 電機機械84 | B167: 電機機械14 | C167: 4527 方方土霖 | D167: 電機機械 | E167: M1500 | F167: 606013 | G167: 728491 | H167: -16.81 | I167: -122478 | J167: 115 | K167: 97 | L167: 84 | M167: 14 | N167: 0 | O167: 0
A168: 電機機械81 | B168: 電機機械17 | C168: 4528 江興鍛 | D168: 電機機械 | E168: M1500 | F168: 374222 | G168: 423604 | H168: -11.66 | I168: -49382 | J168: 115 | K168: 97 | L168: 81 | M168: 17 | N168: 0 | O168: 0
A169: 電機機械14 | B169: 電機機械84 | C169: 4532 瑞智 | D169: 電機機械 | E169: M1500 | F169: 6626688 | G169: 4933014 | H169: 34.33 | I169: 1693674 | J169: 115 | K169: 97 | L169: 14 | M169: 84 | N169: 0 | O169: 0
A170: 電機機械17 | B170: 電機機械81 | C170: 4533 協易機 | D170: 電機機械 | E170: M1500 | F170: 1049988 | G170: 796115 | H170: 31.89 | I170: 253873 | J170: 115 | K170: 97 | L170: 17 | M170: 81 | N170: 0 | O170: 0
A171: 電機機械56 | B171: 電機機械42 | C171: 4534 慶騰 | D171: 電機機械 | E171: M1500 | F171: 199352 | G171: 192326 | H171: 3.65 | I171: 7026 | J171: 115 | K171: 97 | L171: 56 | M171: 42 | N171: 0 | O171: 0
A172: 電機機械76 | B172: 電機機械22 | C172: 4535 至興 | D172: 電機機械 | E172: M1500 | F172: 639530 | G172: 688991 | H172: -7.18 | I172: -49461 | J172: 115 | K172: 97 | L172: 76 | M172: 22 | N172: 0 | O172: 0
A173: 電機機械62 | B173: 電機機械36 | C173: 4538 大詠城 | D173: 電機機械 | E173: M1500 | F173: 69594 | G173: 69660 | H173: -0.09 | I173: -66 | J173: 115 | K173: 97 | L173: 62 | M173: 36 | N173: 0 | O173: 0
A174: 電機機械85 | B174: 電機機械13 | C174: 4540 全球傳動 | D174: 電機機械 | E174: M1500 | F174: 471680 | G174: 589741 | H174: -20.02 | I174: -118061 | J174: 115 | K174: 97 | L174: 85 | M174: 13 | N174: 0 | O174: 0
A175: 電機機械79 | B175: 電機機械19 | C175: 4543 萬在 | D175: 電機機械 | E175: M1500 | F175: 176149 | G175: 193485 | H175: -8.96 | I175: -17336 | J175: 115 | K175: 97 | L175: 79 | M175: 19 | N175: 0 | O175: 0
A176: 電機機械73 | B176: 電機機械25 | C176: 4549 桓達 | D176: 電機機械 | E176: M1500 | F176: 289645 | G176: 306174 | H176: -5.4 | I176: -16529 | J176: 115 | K176: 97 | L176: 73 | M176: 25 | N176: 0 | O176: 0
A177: 電機機械95 | B177: 電機機械3 | C177: 4550 長佳 | D177: 電機機械 | E177: M1500 | F177: 192435 | G177: 384678 | H177: -49.98 | I177: -192243 | J177: 115 | K177: 97 | L177: 95 | M177: 3 | N177: 0 | O177: 0
A178: 電機機械47 | B178: 電機機械51 | C178: 4552 力達-KY | D178: 電機機械 | E178: M1500 | F178: 783490 | G178: 714092 | H178: 9.72 | I178: 69398 | J178: 115 | K178: 97 | L178: 47 | M178: 51 | N178: 0 | O178: 0
A179: 電機機械35 | B179: 電機機械63 | C179: 4555 氣立 | D179: 電機機械 | E179: M1500 | F179: 378214 | G179: 324429 | H179: 16.58 | I179: 53785 | J179: 115 | K179: 97 | L179: 35 | M179: 63 | N179: 0 | O179: 0
A180: 電機機械53 | B180: 電機機械45 | C180: 4558 寶緯 | D180: 電機機械 | E180: M1500 | F180: 395915 | G180: 373817 | H180: 5.91 | I180: 22098 | J180: 115 | K180: 97 | L180: 53 | M180: 45 | N180: 0 | O180: 0
A181: 電機機械20 | B181: 電機機械78 | C181: 4560 強信-KY | D181: 電機機械 | E181: M1500 | F181: 437615 | G181: 338462 | H181: 29.3 | I181: 99153 | J181: 115 | K181: 97 | L181: 20 | M181: 78 | N181: 0 | O181: 0
A182: 電機機械86 | B182: 電機機械12 | C182: 4561 健椿 | D182: 電機機械 | E182: M1500 | F182: 214791 | G182: 276600 | H182: -22.35 | I182: -61809 | J182: 115 | K182: 97 | L182: 86 | M182: 12 | N182: 0 | O182: 0
A183: 電機機械50 | B183: 電機機械48 | C183: 4562 穎漢 | D183: 電機機械 | E183: M1500 | F183: 193079 | G183: 178590 | H183: 8.11 | I183: 14489 | J183: 115 | K183: 97 | L183: 50 | M183: 48 | N183: 0 | O183: 0
A184: 電機機械33 | B184: 電機機械65 | C184: 4563 百德 | D184: 電機機械 | E184: M1500 | F184: 809752 | G184: 691668 | H184: 17.07 | I184: 118084 | J184: 115 | K184: 97 | L184: 33 | M184: 65 | N184: 0 | O184: 0
A185: 電機機械5 | B185: 電機機械93 | C185: 4564 元翎 | D185: 電機機械 | E185: M1500 | F185: 307896 | G185: 180295 | H185: 70.77 | I185: 127601 | J185: 115 | K185: 97 | L185: 5 | M185: 93 | N185: 0 | O185: 0
A186: 電機機械27 | B186: 電機機械71 | C186: 4566 時碩工業 | D186: 電機機械 | E186: M1500 | F186: 1252349 | G186: 1054688 | H186: 18.74 | I186: 197661 | J186: 115 | K186: 97 | L186: 27 | M186: 71 | N186: 0 | O186: 0
A187: 電機機械24 | B187: 電機機械74 | C187: 4568 科際精密 | D187: 電機機械 | E187: M1500 | F187: 304110 | G187: 242119 | H187: 25.6 | I187: 61991 | J187: 115 | K187: 97 | L187: 24 | M187: 74 | N187: 0 | O187: 0
A188: 電機機械42 | B188: 電機機械56 | C188: 4571 鈞興-KY | D188: 電機機械 | E188: M1500 | F188: 854824 | G188: 769657 | H188: 11.07 | I188: 85167 | J188: 115 | K188: 97 | L188: 42 | M188: 56 | N188: 0 | O188: 0
A189: 電機機械89 | B189: 電機機械9 | C189: 4572 駐龍 | D189: 電機機械 | E189: M1500 | F189: 171889 | G189: 231689 | H189: -25.81 | I189: -59800 | J189: 115 | K189: 97 | L189: 89 | M189: 9 | N189: 0 | O189: 0
A190: 電機機械19 | B190: 電機機械79 | C190: 4576 大銀微系統 | D190: 電機機械 | E190: M1500 | F190: 587785 | G190: 453943 | H190: 29.48 | I190: 133842 | J190: 115 | K190: 97 | L190: 19 | M190: 79 | N190: 0 | O190: 0
A191: 電機機械70 | B191: 電機機械28 | C191: 4580 捷流閥業 | D191: 電機機械 | E191: M1500 | F191: 537228 | G191: 561555 | H191: -4.33 | I191: -24327 | J191: 115 | K191: 97 | L191: 70 | M191: 28 | N191: 0 | O191: 0
A192: 電機機械40 | B192: 電機機械58 | C192: 4583 台灣精銳 | D192: 電機機械 | E192: M1500 | F192: 811862 | G192: 719758 | H192: 12.8 | I192: 92104 | J192: 115 | K192: 97 | L192: 40 | M192: 58 | N192: 0 | O192: 0
A193: 電機機械25 | B193: 電機機械73 | C193: 4584 君帆 | D193: 電機機械 | E193: M1500 | F193: 356341 | G193: 291004 | H193: 22.45 | I193: 65337 | J193: 115 | K193: 97 | L193: 25 | M193: 73 | N193: 0 | O193: 0
A194: 電機機械51 | B194: 電機機械47 | C194: 5288 豐祥-KY | D194: 電機機械 | E194: M1500 | F194: 1892248 | G194: 1775154 | H194: 6.6 | I194: 117094 | J194: 115 | K194: 97 | L194: 51 | M194: 47 | N194: 0 | O194: 0
A195: 電機機械77 | B195: 電機機械21 | C195: 6122 擎邦 | D195: 電機機械 | E195: M1500 | F195: 917134 | G195: 990496 | H195: -7.41 | I195: -73362 | J195: 115 | K195: 97 | L195: 77 | M195: 21 | N195: 0 | O195: 0
A196: =D196&L196 -> 電機機械91 | B196: =D196&M196 -> 電機機械7 | C196: 6425 易發 | D196: 電機機械 | E196: M1500 | F196: 290409 | G196: 396534 | H196: -26.76 | I196: =F196-G196 -> -106125 | J196: =IF(E196="","",MATCH(E196,E:E,0)) -> 115 | K196: =COUNTIF(D:D,D196) -> 97 | L196: =IF(H196="","",RANK(H196,OFFSET(H$1,$J196-1,,$K196,),0)) -> 91 | M196: =IF(H196="","",RANK(H196,OFFSET(H$1,$J196-1,,$K196,),1)) -> 7 | N196: 0 | O196: 0
A197: 電機機械46 | B197: 電機機械52 | C197: 6603 富強鑫 | D197: 電機機械 | E197: M1500 | F197: 1021446 | G197: 924920 | H197: 10.44 | I197: 96526 | J197: 115 | K197: 97 | L197: 46 | M197: 52 | N197: 0 | O197: 0
A198: 電機機械65 | B198: 電機機械33 | C198: 6606 建德工業 | D198: 電機機械 | E198: M1500 | F198: 172654 | G198: 173465 | H198: -0.47 | I198: -811 | J198: 115 | K198: 97 | L198: 65 | M198: 33 | N198: 0 | O198: 0
A199: 電機機械16 | B199: 電機機械82 | C199: 6609 瀧澤科 | D199: 電機機械 | E199: M1500 | F199: 586807 | G199: 439209 | H199: 33.61 | I199: 147598 | J199: 115 | K199: 97 | L199: 16 | M199: 82 | N199: 0 | O199: 0
A200: 電機機械13 | B200: 電機機械85 | C200: 6829 千附精密 | D200: 電機機械 | E200: M1500 | F200: 426760 | G200: 312822 | H200: 36.42 | I200: 113938 | J200: 115 | K200: 97 | L200: 13 | M200: 85 | N200: 0 | O200: 0
... 2800 more rows
